Workbook

Sheet Table of Contents
A1: Table of Contents
A3: Sheet | B3: Comment
A5: Starting point of analysis
A6: StartOfAnalysis_Dataset | B6: Hypothetical shape of dataset after data management tasks were completed.
A8: Data and documentation
A9: Analysis01_Variables | B9: Including (on the far right) the calculated variables.
A10: Analysis01_Data
A12: Formal: Demos of basic analyses, by data type and method
A13: Analysis01_PivotGrouping | B13: Overview of sites, by living arrangement and vulnerability, with area filters. Can be used as template for other Pivot tables.
A14: Analysis01_PivotBinaries | B14: Frequencies of all binary variables that are not part of multiple-response questions. Variable names use original question numbers.
A15: Analysis01_Priorities | B15: Borda count calculations of all priority-type multiple-response variables, using the functions COUNTIF, INDIRECT, SUMPRODUCT.
A16: Analysis01_TabCategorical | B16: Tabulation of multiple categorical variables, side by side. Two methods.
A17: Analysis01_MultipleR_Pivot | B17: Multiple response (non-ranked)-type data tabulation, using a Pivot table. Difference between "by sites" and "by choices".
A18: Analysis01_MultipleR_IF | B18: Multiple response (non-ranked)-type data tabulation - different method when missing values are a serious issue.
A19: Text01_Polytomous | B19: Formulas to transform unranked polytomously coded multi-response data into indicator variables
A20: Text02_Priorities | B20: Formulas to transform polytomously coded priority-type data into item-base variables
A22: Substantive: Elements of quick needs analysis
A23: Analyses02_QuickOverview | B23: Quick first overview: Vulnerability hotspots, by area and living arrangement. Pivot table, maximum of ordinal vulnerability.
A24: Analyses02_PrioritiesByVulnerab | B24: Priority needs, by men vs. women, and by vulnerability level. Calculated using the functions AVERAGEIF, INDIRECT.
A25: Analysis02_DistressIndex | B25: Ad-hoc distress index formed of ten binary or binarized indicators. Hotspot table, mean of ratio-level distress index.
A26: Analysis02_Men_Women | B26: Agreement between men's and women's (who had been interviewed separately) priorities.
A28: Auxiliary tables
A29: NamedRanges | B29: Convenience table of all named ranges in the workbook.

Sheet StartOfAnalysis_Dataset
A1: Identifiers | I1: Team observations | T1: Male groups | BS1: Womens groups
A2: Record number | B2: Assessment date | C2: Team number | D2: District | E2: Upazila | F2: Union | G2: Urban vs. rural | H2: Village | I2: Living arrangement | J2: Stagnant water: Settlement | K2: Stagnant water: Shelter | L2: Stagnant water: Water points | M2: Stagnant water: Other | N2: Garbage | O2: Disease vectors | P2: Latrines at site | Q2: Students truant | R2: Open water sources | S2: Site assessment by team | T2: Priority for men: Livelihoods | U2: Priority for men: Livestock feed | V2: Priority for men: Rebuild homes | W2: Priority for men: Children's schooling | X2: Priority for men: Health care | Y2: Priority for men: Food | Z2: Priority for men: Safe drinking water | AA2: Priority for men: Water for wash and bath | AB2: Priority for men: Markets | AC2: Priority for men: Short-term financial support | AD2: Priority for men: Safety | AE2: Priority for men: Other | AF2: Lack of safe water serious (men) | AG2: Defecation, males, pre-disaster | AH2: Defecation, males, post-disaster | AI2: Shelter issues for men: Shelter not available | AJ2: Shelter issues for men: Overcrowded | AK2: Shelter issues for men: Return home impossible | AL2: Shelter issues for men: No repair materials | AM2: Shelter issues for men: No manpower for repairs | AN2: Shelter issues for men: Land issues for men | AO2: Shelter issues for men: Lack of household items | AP2: Shelter issues for men: Lack of privacy | AQ2: Shelter issues for men: Exposed to weather | AR2: Shelter issues for men: Other | AS2: Shelter priorities for men: Find shelter | AT2: Shelter priorities for men: Move out of shelter | AU2: Shelter priorities for men: Return home | AV2: Shelter priorities for men: Material for home repair | AW2: Shelter priorities for men: Manpower for home repair | AX2: Shelter priorities for men: Household items | AY2: Shelter priorities for men: Privacy | AZ2: Shelter priorities for men: Protection from weather | BA2: Shelter priorities for men: Other | BB2: Coping priorities for men: Reduce meal size | BC2: Coping priorities for men: East less preferred food | BD2: Coping priorities for men: Eat wild foods | BE2: Coping priorities for men: Restrict adult male consumption | BF2: Coping priorities for men: Restrict adult female consumption | BG2: Coping priorities for men: Send children to relatives | BH2: Coping priorities for men: Borrow money | BI2: Coping priorities for men: Advance labor sale | BJ2: Coping priorities for men: Buy food on creadit | BK2: Coping priorities for men: Sell livestock and poultry | BL2: Coping priorities for men: Sell household utensils | BM2: Coping priorities for men: Sell land or trees | BN2: Coping priorities for men: Outmigration | BO2: Coping priorities for men: Send children to work | BP2: Coping priorities for men: Other | BQ2: Expected stay at shelter (men) | BR2: Safety of home and property (men) | BS2: Priority for women: Livelihoods | BT2: Priority for women: Livestock feed | BU2: Priority for women: Rebuild homes | BV2: Priority for women: Children's schooling | BW2: Priority for women: Health care | BX2: Priority for women: Food | BY2: Priority for women: Safe drinking water | BZ2: Priority for women: Water for wash and bath | CA2: Priority for women: Markets | CB2: Priority for women: Short-term financial support | CC2: Priority for women: Safety | CD2: Priority for women: Other | CE2: Has electricity | CF2: Lack of safe water serious (women) | CG2: Daily water supply for household | CH2: Lack of safetoilets (women) | CI2: Defecation, females, pre-disaster | CJ2: Defecation, females, post-disaster | CK2: Difficult women's hygiene | CL2: Shelter priorities for women: Find shelter | CM2: Shelter priorities for women: Move out of shelter | CN2: Shelter priorities for women: Return home | CO2: Shelter priorities for women: Material for home repair | CP2: Shelter priorities for women: Manpower for home repair | CQ2: Shelter priorities for women: Household items | CR2: Shelter priorities for women: Privacy | CS2: Shelter priorities for women: Protection from weather | CT2: Shelter priorities for women: Other | CU2: School attendance high - pre-disaster | CV2: School attendance high - post-disaster | CW2: Expected stay at shelter wo(men) | CX2: Time for women to reach health care | CY2: Health priorities for women: None | CZ2: Health priorities for women: Diarrhea | DA2: Health priorities for women: Skin disease | DB2: Health priorities for women: Snake bite | DC2: Health priorities for women: Safe birth | DD2: Health priorities for women: Other | DE2: Diarrhea increased | DF2: Women's safety issues | DG2: Child labor | DH2: Children missing | DI2: Food issues (women): None | DJ2: Food issues (women): Not enough | DK2: Food issues (women): Not good enough | DL2: Food issues (women): No cooking facility | DM2: Food issues (women): No utensils | DN2: Food issues (women): No cooking fuel | DO2: Food issues (women): Other
A3: i_00_01 | B3: i_00_03 | C3: i_00_04 | D3: i_00_05 | E3: i_00_06 | F3: i_00_07 | G3: i_00_08 | H3: i_00_09 | I3: t_00_10 | J3: t_02_01 | K3: t_02_02 | L3: t_02_03 | M3: t_02_04 | N3: t_03_00 | O3: t_04_00 | P3: t_05_00 | Q3: t_09_00 | R3: t_10_07 | S3: t_14_00 | T3: m_03_01 | U3: m_03_02 | V3: m_03_03 | W3: m_03_04 | X3: m_03_05 | Y3: m_03_06 | Z3: m_03_07 | AA3: m_03_08 | AB3: m_03_09 | AC3: m_03_10 | AD3: m_03_11 | AE3: m_03_12 | AF3: m_04_00 | AG3: m_06_01 | AH3: m_06_02 | AI3: m_07_01 | AJ3: m_07_02 | AK3: m_07_03 | AL3: m_07_04 | AM3: m_07_05 | AN3: m_07_06 | AO3: m_07_07 | AP3: m_07_08 | AQ3: m_07_09 | AR3: m_07_10 | AS3: m_08_01 | AT3: m_08_02 | AU3: m_08_03 | AV3: m_08_04 | AW3: m_08_05 | AX3: m_08_06 | AY3: m_08_07 | AZ3: m_08_08 | BA3: m_08_09 | BB3: m_16_01 | BC3: m_16_02 | BD3: m_16_03 | BE3: m_16_04 | BF3: m_16_05 | BG3: m_16_06 | BH3: m_16_07 | BI3: m_16_08 | BJ3: m_16_09 | BK3: m_16_10 | BL3: m_16_11 | BM3: m_16_12 | BN3: m_16_13 | BO3: m_16_14 | BP3: m_16_15 | BQ3: m_17_00 | BR3: m_21_00 | BS3: w_03_01 | BT3: w_03_02 | BU3: w_03_03 | BV3: w_03_04 | BW3: w_03_05 | BX3: w_03_06 | BY3: w_03_07 | BZ3: w_03_08 | CA3: w_03_09 | CB3: w_03_10 | CC3: w_03_11 | CD3: w_03_12 | CE3: w_04_02 | CF3: w_06_00 | CG3: w_09_00 | CH3: w_10_00 | CI3: w_11_01 | CJ3: w_11_02 | CK3: w_12_00 | CL3: w_14_01 | CM3: w_14_02 | CN3: w_14_03 | CO3: w_14_04 | CP3: w_14_05 | CQ3: w_14_06 | CR3: w_14_07 | CS3: w_14_08 | CT3: w_14_09 | CU3: w_18_01 | CV3: w_18_02 | CW3: w_21_00 | CX3: w_24_02 | CY3: w_25_01 | CZ3: w_25_02 | DA3: w_25_03 | DB3: w_25_04 | DC3: w_25_05 | DD3: w_25_06 | DE3: w_26_00 | DF3: w_28_01 | DG3: w_29_00 | DH3: w_30_00 | DI3: w_37_01 | DJ3: w_37_02 | DK3: w_37_03 | DL3: w_37_04 | DM3: w_37_05 | DN3: w_37_06 | DO3: w_37_07
A4: 1 | B4: 2011-09-11 | C4: 10 | D4: Jessore | E4: Abhynagar | F4: Paira | G4: Rural | H4: Ghoradari | I4: 4-Damaged or water-logged | J4: 1 | K4: 0 | L4: 0 | M4: 0 | N4: 0 | O4: 1 | P4: 1 | Q4: 0 | R4: 1 | S4: 2-Vulnerable | T4: 2 | U4: 1 | V4: 0 | W4: 0 | X4: 0 | Y4: 0 | Z4: 0 | AA4: 0 | AB4: 0 | AC4: 3 | AD4: 0 | AE4: 0 | AF4: 1 | AG4: 4-Sanitary latrines (household) | AH4: 1-Open area | AI4: 1 | AJ4: 1 | AK4: 0 | AL4: 0 | AM4: 0 | AN4: 0 | AO4: 0 | AP4: 0 | AQ4: 0 | AR4: 0 | AS4: 1 | AT4: 0 | AU4: 0 | AV4: 2 | AW4: 0 | AX4: 3 | AY4: 0 | AZ4: 0 | BA4: 0 | BB4: 1 | BC4: 0 | BD4: 0 | BE4: 0 | BF4: 0 | BG4: 0 | BH4: 0 | BI4: 0 | BJ4: 5 | BK4: 4 | BL4: 0 | BM4: 0 | BN4: 3 | BO4: 2 | BP4: 0 | BQ4: 0 - <1 | BS4: 3 | BT4: 2 | BU4: 0 | BV4: 0 | BW4: 1 | BX4: 0 | BY4: 0 | BZ4: 0 | CA4: 0 | CB4: 0 | CC4: 0 | CD4: 0 | CE4: 1 | CF4: 1 | CG4: 10 + | CH4: 1 | CI4: 4-Sanitary latrines (household) | CJ4: 1-Open area | CK4: 1 | CL4: 3 | CM4: 0 | CN4: 0 | CO4: 0 | CP4: 0 | CQ4: 2 | CR4: 1 | CS4: 0 | CT4: 0 | CU4: 1 | CV4: 1 | CX4: c-30-60 minutes | CY4: 0 | CZ4: 3 | DA4: 2 | DB4: 0 | DC4: 0 | DD4: 1 | DE4: 1 | DF4: 0 | DG4: 1 | DH4: 1 | DI4: 0 | DJ4: 1 | DK4: 1 | DL4: 0 | DM4: 0 | DN4: 0 | DO4: 0
A5: 2 | B5: 2011-09-09 | C5: 10 | D5: Jessore | E5: Abhynagar | F5: Siddiqpasa | G5: Rural | H5: Joyrabad | I5: 3-Marooned | J5: 1 | K5: 0 | L5: 1 | M5: 0 | N5: 1 | O5: 1 | P5: 1 | Q5: 0 | R5: 0 | S5: 2-Vulnerable | T5: 3 | U5: 0 | V5: 1 | W5: 0 | X5: 0 | Y5: 0 | Z5: 2 | AA5: 0 | AB5: 0 | AC5: 0 | AD5: 0 | AE5: 0 | AF5: 1 | AG5: 4-Sanitary latrines (household) | AH5: 1-Open area | AI5: 1 | AJ5: 0 | AK5: 1 | AL5: 0 | AM5: 0 | AN5: 0 | AO5: 0 | AP5: 0 | AQ5: 0 | AR5: 0 | AS5: 0 | AT5: 0 | AU5: 0 | AV5: 0 | AW5: 0 | AX5: 0 | AY5: 0 | AZ5: 0 | BA5: 0 | BB5: 2 | BC5: 0 | BD5: 0 | BE5: 0 | BF5: 0 | BG5: 0 | BH5: 4 | BI5: 0 | BJ5: 0 | BK5: 1 | BL5: 5 | BM5: 0 | BN5: 3 | BO5: 0 | BP5: 0 | BQ5: 0 - <1 | BR5: 1 | BS5: 3 | BT5: 0 | BU5: 0 | BV5: 0 | BW5: 0 | BX5: 0 | BY5: 0 | BZ5: 0 | CA5: 0 | CB5: 2 | CC5: 1 | CD5: 0 | CE5: 0 | CF5: 1 | CG5: 10 + | CH5: 1 | CI5: 4-Sanitary latrines (household) | CJ5: 1-Open area | CK5: 1 | CL5: 3 | CM5: 0 | CN5: 0 | CO5: 1 | CP5: 0 | CQ5: 2 | CR5: 0 | CS5: 0 | CT5: 0 | CU5: 1 | CV5: 1 | CX5: e-> 2 hours | CY5: 0 | CZ5: 0 | DA5: 3 | DB5: 2 | DC5: 0 | DD5: 1 | DE5: 0 | DF5: 1 | DG5: 0 | DH5: 0 | DI5: 0 | DJ5: 1 | DK5: 1 | DL5: 0 | DM5: 0 | DN5: 0 | DO5: 0
A6: 3 | B6: 2011-09-09 | C6: 10 | D6: Jessore | E6: Abhynagar | F6: Siddiqpasa | G6: Rural | H6: Nolamara | I6: 4-Damaged or water-logged | J6: 1 | K6: 0 | L6: 1 | M6: 0 | N6: 1 | O6: 1 | P6: 1 | Q6: 0 | R6: 0 | S6: 2-Vulnerable | T6: 3 | U6: 0 | V6: 0 | W6: 0 | X6: 0 | Y6: 0 | Z6: 1 | AA6: 0 | AB6: 0 | AC6: 0 | AD6: 2 | AE6: 0 | AF6: 1 | AG6: 4-Sanitary latrines (household) | AH6: 1-Open area | AI6: 1 | AJ6: 0 | AK6: 1 | AL6: 0 | AM6: 0 | AN6: 0 | AO6: 0 | AP6: 0 | AQ6: 0 | AR6: 0 | AS6: 3 | AT6: 0 | AU6: 0 | AV6: 2 | AW6: 0 | AX6: 1 | AY6: 0 | AZ6: 0 | BA6: 0 | BB6: 3 | BC6: 0 | BD6: 0 | BE6: 0 | BF6: 0 | BG6: 0 | BH6: 5 | BI6: 0 | BJ6: 0 | BK6: 2 | BL6: 1 | BM6: 0 | BN6: 4 | BO6: 0 | BP6: 0 | BQ6: 0 - <1 | BR6: 1 | BS6: 3 | BT6: 0 | BU6: 0 | BV6: 0 | BW6: 0 | BX6: 2 | BY6: 0 | BZ6: 0 | CA6: 0 | CB6: 1 | CC6: 0 | CD6: 0 | CE6: 0 | CF6: 0 | CG6: 10 + | CH6: 1 | CI6: 4-Sanitary latrines (household) | CJ6: 2-Hanging or open latrine | CK6: 1 | CL6: 1 | CM6: 0 | CN6: 0 | CO6: 2 | CP6: 0 | CQ6: 3 | CR6: 0 | CS6: 0 | CT6: 0 | CU6: 1 | CV6: 1 | CX6: e-> 2 hours | CY6: 0 | CZ6: 0 | DA6: 3 | DB6: 1 | DC6: 2 | DD6: 0 | DE6: 0 | DF6: 0 | DG6: 1 | DH6: 0 | DI6: 0 | DJ6: 1 | DK6: 1 | DL6: 0 | DM6: 0 | DN6: 1 | DO6: 0
A7: 4 | B7: 2011-09-10 | C7: 10 | D7: Jessore | E7: Abhynagar | F7: Suvoyara | G7: Rural | H7: IsamotiPurbapasa | I7: 3-Marooned | J7: 1 | K7: 0 | L7: 1 | M7: 0 | N7: 0 | O7: 1 | P7: 1 | Q7: 0 | R7: 1 | S7: 3-Seriously vulnerable | T7: 1 | U7: 0 | V7: 0 | W7: 0 | X7: 0 | Y7: 3 | Z7: 0 | AA7: 0 | AB7: 0 | AC7: 2 | AD7: 0 | AE7: 0 | AF7: 1 | AG7: 3-Sanitary latrines (communal) | AH7: 3-Sanitary latrines (communal) | AI7: 1 | AJ7: 1 | AK7: 1 | AL7: 0 | AM7: 0 | AN7: 0 | AO7: 0 | AP7: 0 | AQ7: 0 | AR7: 0 | AS7: 3 | AT7: 0 | AU7: 0 | AV7: 1 | AW7: 0 | AX7: 2 | AY7: 0 | AZ7: 0 | BA7: 0 | BB7: 0 | BC7: 0 | BD7: 0 | BE7: 2 | BF7: 3 | BG7: 0 | BH7: 0 | BI7: 0 | BJ7: 4 | BK7: 0 | BL7: 0 | BM7: 0 | BN7: 5 | BO7: 1 | BP7: 0 | BQ7: 0 - <1 | BR7: 1 | BS7: 0 | BT7: 0 | BU7: 0 | BV7: 0 | BW7: 1 | BX7: 2 | BY7: 0 | BZ7: 0 | CA7: 0 | CB7: 3 | CC7: 0 | CD7: 0 | CE7: 1 | CF7: 0 | CG7: 10 + | CH7: 1 | CI7: 4-Sanitary latrines (household) | CJ7: 1-Open area | CK7: 0 | CL7: 3 | CM7: 0 | CN7: 0 | CO7: 1 | CP7: 0 | CQ7: 2 | CR7: 0 | CS7: 0 | CT7: 0 | CU7: 1 | CV7: 1 | CX7: e-> 2 hours | CY7: 0 | CZ7: 0 | DA7: 3 | DB7: 0 | DC7: 2 | DD7: 1 | DE7: 0 | DF7: 0 | DG7: 0 | DH7: 0 | DI7: 0 | DJ7: 1 | DK7: 1 | DL7: 0 | DM7: 0 | DN7: 0 | DO7: 0
A8: 5 | B8: 2011-09-10 | C8: 10 | D8: Jessore | E8: Abhynagar | F8: Suvoyara | G8: Rural | H8: Hindia | I8: 4-Damaged or water-logged | J8: 1 | K8: 0 | L8: 1 | M8: 0 | N8: 1 | O8: 1 | P8: 1 | Q8: 0 | R8: 1 | S8: 2-Vulnerable | T8: 3 | U8: 0 | V8: 0 | W8: 0 | X8: 0 | Y8: 1 | Z8: 0 | AA8: 0 | AB8: 0 | AC8: 2 | AD8: 0 | AE8: 0 | AF8: 0 | AG8: 4-Sanitary latrines (household) | AH8: 3-Sanitary latrines (communal) | AI8: 1 | AJ8: 1 | AK8: 0 | AL8: 1 | AM8: 0 | AN8: 0 | AO8: 0 | AP8: 0 | AQ8: 0 | AR8: 0 | AS8: 3 | AT8: 1 | AU8: 0 | AV8: 2 | AW8: 0 | AX8: 0 | AY8: 0 | AZ8: 0 | BA8: 0 | BB8: 5 | BC8: 4 | BD8: 1 | BE8: 0 | BF8: 0 | BG8: 0 | BH8: 3 | BI8: 0 | BJ8: 2 | BK8: 0 | BL8: 0 | BM8: 0 | BN8: 0 | BO8: 0 | BP8: 0 | BQ8: 0 - <1 | BS8: 0 | BT8: 0 | BU8: 0 | BV8: 0 | BW8: 1 | BX8: 3 | BY8: 0 | BZ8: 0 | CA8: 0 | CB8: 2 | CC8: 0 | CD8: 0 | CE8: 1 | CF8: 1 | CG8: 10 + | CH8: 1 | CI8: 2-Hanging or open latrine | CJ8: 1-Open area | CK8: 1 | CL8: 2 | CM8: 0 | CN8: 0 | CO8: 2 | CP8: 0 | CQ8: 3 | CR8: 0 | CS8: 0 | CT8: 0 | CU8: 1 | CV8: 0 | CX8: c-30-60 minutes | CY8: 0 | CZ8: 1 | DA8: 3 | DB8: 2 | DC8: 0 | DD8: 0 | DE8: 0 | DF8: 0 | DG8: 1 | DH8: 0 | DI8: 0 | DJ8: 1 | DK8: 1 | DL8: 0 | DM8: 0 | DN8: 0 | DO8: 0
A9: 6 | B9: 2011-09-10 | C9: 11 | D9: Jessore | E9: Jhikargacha | F9: Bakra | G9: Rural | H9: Dikdana | I9: 2-Roadside / embankments | J9: 1 | K9: 0 | L9: 1 | M9: 1 | N9: 1 | O9: 1 | P9: 1 | Q9: 1 | R9: 0 | S9: 3-Seriously vulnerable | T9: 2 | U9: 0 | V9: 0 | W9: 0 | X9: 1 | Y9: 3 | Z9: 0 | AA9: 0 | AB9: 0 | AC9: 0 | AD9: 0 | AE9: 0 | AF9: 1 | AG9: 4-Sanitary latrines (household) | AH9: 5-Other | AI9: 1 | AJ9: 0 | AK9: 1 | AL9: 0 | AM9: 0 | AN9: 0 | AO9: 0 | AP9: 1 | AQ9: 0 | AR9: 1 | AS9: 1 | AT9: 0 | AU9: 0 | AV9: 3 | AW9: 0 | AX9: 0 | AY9: 2 | AZ9: 0 | BA9: 0 | BB9: 2 | BC9: 0 | BD9: 0 | BE9: 0 | BF9: 0 | BG9: 0 | BH9: 4 | BI9: 3 | BJ9: 5 | BK9: 0 | BL9: 0 | BM9: 0 | BN9: 0 | BO9: 1 | BP9: 0 | BQ9: 2 - 3 | BR9: 1 | BS9: 1 | BT9: 0 | BU9: 2 | BV9: 0 | BW9: 0 | BX9: 3 | BY9: 0 | BZ9: 0 | CA9: 0 | CB9: 0 | CC9: 0 | CD9: 0 | CE9: 1 | CF9: 1 | CG9: 10 + | CH9: 1 | CI9: 4-Sanitary latrines (household) | CJ9: 4-Sanitary latrines (household) | CK9: 1 | CL9: 1 | CM9: 0 | CN9: 0 | CO9: 2 | CP9: 0 | CQ9: 0 | CR9: 1 | CS9: 0 | CT9: 0 | CU9: 1 | CV9: 0 | CW9: 2 - 3 | CX9: c-30-60 minutes | CY9: 0 | CZ9: 2 | DA9: 3 | DB9: 0 | DC9: 0 | DD9: 1 | DE9: 0 | DF9: 0 | DG9: 0 | DH9: 0 | DI9: 0 | DJ9: 1 | DK9: 0 | DL9: 0 | DM9: 0 | DN9: 0 | DO9: 0
A10: 7 | B10: 2011-09-10 | C10: 11 | D10: Jessore | E10: Jhikargacha | F10: Bakra | G10: Rural | H10: Dikdana | I10: 3-Marooned | J10: 1 | K10: 0 | L10: 1 | M10: 0 | N10: 1 | O10: 1 | P10: 1 | Q10: 1 | R10: 0 | S10: 1-Relatively normal | T10: 2 | U10: 0 | V10: 0 | W10: 0 | X10: 1 | Y10: 3 | Z10: 0 | AA10: 0 | AB10: 0 | AC10: 0 | AD10: 0 | AE10: 0 | AF10: 1 | AG10: 4-Sanitary latrines (household) | AH10: 5-Other | AI10: 1 | AJ10: 0 | AK10: 1 | AL10: 1 | AM10: 0 | AN10: 0 | AO10: 0 | AP10: 0 | AQ10: 0 | AR10: 1 | AS10: 0 | AT10: 0 | AU10: 0 | AV10: 3 | AW10: 0 | AX10: 0 | AY10: 2 | AZ10: 0 | BA10: 1 | BB10: 0 | BC10: 0 | BD10: 0 | BE10: 0 | BF10: 0 | BG10: 0 | BH10: 5 | BI10: 1 | BJ10: 4 | BK10: 3 | BL10: 0 | BM10: 0 | BN10: 0 | BO10: 2 | BP10: 0 | BQ10: 0 - <1 | BS10: 1 | BT10: 0 | BU10: 0 | BV10: 0 | BW10: 0 | BX10: 3 | BY10: 2 | BZ10: 0 | CA10: 0 | CB10: 1 | CC10: 0 | CD10: 0 | CE10: 0 | CF10: 1 | CG10: 10 + | CH10: 1 | CI10: 4-Sanitary latrines (household) | CJ10: 1-Open area | CK10: 1 | CL10: 3 | CM10: 0 | CN10: 0 | CO10: 2 | CP10: 0 | CQ10: 0 | CR10: 1 | CS10: 0 | CT10: 0 | CU10: 1 | CV10: 0 | CX10: e-> 2 hours | CY10: 0 | CZ10: 2 | DA10: 3 | DB10: 0 | DC10: 0 | DD10: 1 | DE10: 0 | DF10: 0 | DG10: 1 | DH10: 0 | DI10: 0 | DJ10: 1 | DK10: 0 | DL10: 0 | DM10: 0 | DN10: 0 | DO10: 0
A11: 8 | B11: 2011-09-10 | C11: 11 | D11: Jessore | E11: Jhikargacha | F11: Nibeshkhola | G11: Rural | H11: Balla (Beside River) | I11: 5-Home undamaged | J11: 1 | K11: 0 | L11: 1 | M11: 1 | N11: 1 | O11: 1 | P11: 1 | Q11: 1 | R11: 0 | S11: 3-Seriously vulnerable | T11: 3 | U11: 0 | V11: 0 | W11: 0 | X11: 1 | Y11: 0 | Z11: 0 | AA11: 0 | AB11: 0 | AC11: 0 | AD11: 0 | AE11: 2 | AF11: 1 | AG11: 4-Sanitary latrines (household) | AH11: 2-Hanging or open latrine | AI11: 1 | AJ11: 0 | AK11: 1 | AL11: 0 | AM11: 0 | AN11: 0 | AO11: 0 | AP11: 0 | AQ11: 0 | AR11: 1 | AS11: 0 | AT11: 0 | AU11: 0 | AV11: 2 | AW11: 0 | AX11: 0 | AY11: 0 | AZ11: 0 | BA11: 0 | BB11: 0 | BC11: 0 | BD11: 0 | BE11: 0 | BF11: 0 | BG11: 0 | BH11: 4 | BI11: 0 | BJ11: 5 | BK11: 3 | BL11: 0 | BM11: 2 | BN11: 0 | BO11: 0 | BP11: 1 | BQ11: 0 - <1 | BS11: 0 | BT11: 0 | BU11: 2 | BV11: 0 | BW11: 0 | BX11: 3 | BY11: 0 | BZ11: 0 | CA11: 0 | CB11: 0 | CC11: 0 | CD11: 1 | CE11: 0 | CF11: 1 | CG11: 10 + | CH11: 1 | CI11: 4-Sanitary latrines (household) | CJ11: 1-Open area | CK11: 1 | CL11: 0 | CM11: 0 | CN11: 0 | CO11: 3 | CP11: 1 | CQ11: 0 | CR11: 0 | CS11: 2 | CT11: 0 | CU11: 1 | CV11: 0 | CX11: e-> 2 hours | CY11: 0 | CZ11: 1 | DA11: 3 | DB11: 0 | DC11: 0 | DD11: 2 | DE11: 0 | DF11: 0 | DG11: 0 | DH11: 0 | DI11: 0 | DJ11: 1 | DK11: 0 | DL11: 0 | DM11: 0 | DN11: 0 | DO11: 0
A12: 9 | B12: 2011-09-11 | C12: 11 | D12: Jessore | E12: Jhikargacha | F12: Ponisara | G12: Rural | H12: Purandapur (Purba Para) | I12: 5-Home undamaged | J12: 1 | K12: 0 | L12: 1 | M12: 0 | N12: 1 | O12: 1 | P12: 1 | Q12: 0 | R12: 0 | S12: 3-Seriously vulnerable | T12: 2 | U12: 0 | V12: 0 | W12: 0 | X12: 1 | Y12: 3 | Z12: 0 | AA12: 0 | AB12: 0 | AC12: 0 | AD12: 0 | AE12: 0 | AF12: 1 | AG12: 4-Sanitary latrines (household) | AH12: 5-Other | AI12: 1 | AJ12: 0 | AK12: 0 | AL12: 1 | AM12: 0 | AN12: 0 | AO12: 0 | AP12: 1 | AQ12: 0 | AR12: 0 | AS12: 0 | AT12: 0 | AU12: 0 | AV12: 3 | AW12: 0 | AX12: 1 | AY12: 2 | AZ12: 0 | BA12: 0 | BB12: 0 | BC12: 0 | BD12: 0 | BE12: 0 | BF12: 0 | BG12: 0 | BH12: 5 | BI12: 1 | BJ12: 2 | BK12: 4 | BL12: 0 | BM12: 3 | BN12: 0 | BO12: 0 | BP12: 0 | BQ12: 0 - <1 | BS12: 0 | BT12: 1 | BU12: 0 | BV12: 0 | BW12: 0 | BX12: 2 | BY12: 3 | BZ12: 0 | CA12: 0 | CB12: 0 | CC12: 0 | CD12: 0 | CE12: 0 | CF12: 1 | CG12: 10 + | CH12: 0 | CI12: 4-Sanitary latrines (household) | CJ12: 2-Hanging or open latrine | CK12: 1 | CL12: 0 | CM12: 0 | CN12: 0 | CO12: 3 | CP12: 2 | CQ12: 0 | CR12: 0 | CS12: 0 | CT12: 1 | CU12: 1 | CV12: 0 | CX12: d-1 - 2 hours | CY12: 0 | CZ12: 0 | DA12: 3 | DB12: 2 | DC12: 0 | DD12: 1 | DE12: 0 | DF12: 0 | DG12: 0 | DH12: 0 | DI12: 1 | DJ12: 0 | DK12: 0 | DL12: 0 | DM12: 0 | DN12: 0 | DO12: 0
A13: 10 | B13: 2011-09-09 | C13: 11 | D13: Jessore | E13: Jhikargacha | F13: Pourashara | G13: Urban | H13: Parbazar | I13: 1-Collective centers | J13: 0 | K13: 1 | L13: 1 | M13: 0 | N13: 1 | O13: 1 | P13: 1 | Q13: 1 | R13: 0 | S13: 3-Seriously vulnerable | T13: 1 | U13: 0 | V13: 0 | W13: 0 | X13: 3 | Y13: 2 | Z13: 0 | AA13: 0 | AB13: 0 | AC13: 0 | AD13: 0 | AE13: 0 | AF13: 1 | AG13: 4-Sanitary latrines (household) | AH13: 3-Sanitary latrines (communal) | AI13: 0 | AJ13: 0 | AK13: 1 | AL13: 1 | AM13: 0 | AN13: 0 | AO13: 0 | AP13: 1 | AQ13: 1 | AR13: 0 | AS13: 0 | AT13: 0 | AU13: 3 | AV13: 2 | AW13: 0 | AX13: 0 | AY13: 1 | AZ13: 0 | BA13: 0 | BB13: 2 | BC13: 0 | BD13: 0 | BE13: 0 | BF13: 1 | BG13: 0 | BH13: 4 | BI13: 0 | BJ13: 5 | BK13: 3 | BL13: 0 | BM13: 0 | BN13: 0 | BO13: 0 | BP13: 0 | BQ13: 1 - 2 | BR13: 1 | BS13: 1 | BT13: 0 | BU13: 3 | BV13: 0 | BW13: 0 | BX13: 2 | BY13: 0 | BZ13: 0 | CA13: 0 | CB13: 0 | CC13: 0 | CD13: 0 | CE13: 0 | CF13: 1 | CG13: 10 + | CH13: 1 | CI13: 4-Sanitary latrines (household) | CJ13: 4-Sanitary latrines (household) | CK13: 1 | CL13: 2 | CM13: 0 | CN13: 1 | CO13: 3 | CP13: 0 | CQ13: 0 | CR13: 0 | CS13: 0 | CT13: 0 | CU13: 1 | CV13: 0 | CW13: 1 - 2 | CX13: c-30-60 minutes | CY13: 0 | CZ13: 2 | DA13: 3 | DB13: 0 | DC13: 0 | DD13: 1 | DE13: 0 | DF13: 1 | DG13: 1 | DH13: 0 | DI13: 0 | DJ13: 1 | DK13: 0 | DL13: 0 | DM13: 0 | DN13: 0 | DO13: 0
A14: 11 | B14: 2011-09-09 | C14: 11 | D14: Jessore | E14: Jhikargacha | F14: Pourashara | G14: Urban | H14: Saddampara | I14: 3-Marooned | J14: 1 | K14: 0 | L14: 1 | M14: 0 | N14: 1 | O14: 1 | P14: 1 | Q14: 1 | R14: 0 | S14: 3-Seriously vulnerable | T14: 3 | U14: 0 | V14: 0 | W14: 0 | X14: 0 | Y14: 1 | Z14: 2 | AA14: 0 | AB14: 0 | AC14: 0 | AD14: 0 | AE14: 0 | AF14: 1 | AG14: 4-Sanitary latrines (household) | AH14: 2-Hanging or open latrine | AI14: 0 | AJ14: 0 | AK14: 0 | AL14: 1 | AM14: 0 | AN14: 0 | AO14: 1 | AP14: 0 | AQ14: 1 | AR14: 1 | AS14: 0 | AT14: 0 | AU14: 0 | AV14: 3 | AW14: 0 | AX14: 0 | AY14: 1 | AZ14: 2 | BA14: 0 | BB14: 0 | BC14: 1 | BD14: 0 | BE14: 0 | BF14: 3 | BG14: 0 | BH14: 4 | BI14: 0 | BJ14: 5 | BK14: 0 | BL14: 0 | BM14: 0 | BN14: 0 | BO14: 2 | BP14: 0 | BQ14: 0 - <1 | BS14: 3 | BT14: 0 | BU14: 0 | BV14: 0 | BW14: 1 | BX14: 2 | BY14: 0 | BZ14: 0 | CA14: 0 | CB14: 0 | CC14: 0 | CD14: 0 | CE14: 1 | CF14: 1 | CG14: 10 + | CH14: 1 | CI14: 4-Sanitary latrines (household) | CJ14: 1-Open area | CK14: 1 | CL14: 0 | CM14: 0 | CN14: 0 | CO14: 3 | CP14: 0 | CQ14: 2 | CR14: 1 | CS14: 0 | CT14: 0 | CU14: 1 | CV14: 0 | CX14: c-30-60 minutes | CY14: 0 | CZ14: 1 | DA14: 3 | DB14: 0 | DC14: 0 | DD14: 2 | DE14: 0 | DF14: 0 | DG14: 1 | DH14: 0 | DI14: 0 | DJ14: 1 | DK14: 0 | DL14: 0 | DM14: 0 | DN14: 1 | DO14: 0
A15: 12 | B15: 2011-09-09 | C15: 11 | D15: Jessore | E15: Jhikargacha | F15: Pourashara | G15: Rural | H15: Shanti Bagar | I15: 4-Damaged or water-logged | J15: 1 | K15: 1 | L15: 1 | M15: 0 | N15: 1 | O15: 1 | P15: 1 | Q15: 1 | R15: 0 | S15: 3-Seriously vulnerable | T15: 3 | U15: 0 | V15: 0 | W15: 0 | X15: 0 | Y15: 2 | Z15: 0 | AA15: 0 | AB15: 0 | AC15: 1 | AD15: 0 | AE15: 0 | AF15: 1 | AG15: 4-Sanitary latrines (household) | AH15: 2-Hanging or open latrine | AI15: 0 | AJ15: 0 | AK15: 1 | AL15: 1 | AM15: 0 | AN15: 0 | AO15: 0 | AP15: 0 | AQ15: 0 | AR15: 1 | AS15: 0 | AT15: 0 | AU15: 0 | AV15: 3 | AW15: 0 | AX15: 0 | AY15: 1 | AZ15: 0 | BA15: 0 | BB15: 3 | BC15: 2 | BD15: 0 | BE15: 0 | BF15: 1 | BG15: 0 | BH15: 1 | BI15: 0 | BJ15: 4 | BK15: 0 | BL15: 0 | BM15: 0 | BN15: 0 | BO15: 0 | BP15: 0 | BQ15: 0 - <1 | BS15: 1 | BT15: 0 | BU15: 2 | BV15: 0 | BW15: 0 | BX15: 3 | BY15: 0 | BZ15: 0 | CA15: 0 | CB15: 0 | CC15: 0 | CD15: 0 | CE15: 0 | CF15: 1 | CG15: 10 + | CH15: 1 | CI15: 4-Sanitary latrines (household) | CJ15: 1-Open area | CK15: 1 | CL15: 0 | CM15: 0 | CN15: 0 | CO15: 3 | CP15: 1 | CQ15: 2 | CR15: 0 | CS15: 0 | CT15: 0 | CU15: 1 | CV15: 0 | CX15: d-1 - 2 hours | CY15: 0 | CZ15: 2 | DA15: 3 | DB15: 0 | DC15: 0 | DD15: 1 | DE15: 0 | DF15: 0 | DG15: 1 | DH15: 0 | DI15: 0 | DJ15: 1 | DK15: 0 | DL15: 0 | DM15: 0 | DN15: 1 | DO15: 0
A16: 13 | B16: 2011-09-09 | C16: 9 | D16: Jessore | E16: Keshabpur | F16: Biddyanandakati | G16: Rural | H16: Nehanpur | I16: 1-Collective centers | J16: 1 | K16: 1 | L16: 1 | M16: 0 | N16: 1 | O16: 1 | P16: 1 | Q16: 0 | R16: 0 | S16: 3-Seriously vulnerable | T16: 2 | U16: 0 | V16: 0 | W16: 0 | X16: 0 | Y16: 3 | Z16: 1 | AA16: 0 | AB16: 0 | AC16: 0 | AD16: 0 | AE16: 0 | AF16: 1 | AG16: 3-Sanitary latrines (communal) | AH16: 2-Hanging or open latrine | AI16: 1 | AJ16: 1 | AK16: 1 | AL16: 0 | AM16: 0 | AN16: 0 | AO16: 0 | AP16: 0 | AQ16: 0 | AR16: 0 | AS16: 2 | AT16: 0 | AU16: 0 | AV16: 3 | AW16: 0 | AX16: 0 | AY16: 1 | AZ16: 0 | BA16: 0 | BB16: 0 | BC16: 0 | BD16: 0 | BE16: 0 | BF16: 0 | BG16: 0 | BH16: 5 | BI16: 1 | BJ16: 4 | BK16: 0 | BL16: 3 | BM16: 2 | BN16: 0 | BO16: 0 | BP16: 0 | BQ16: 3 + | BR16: 1 | BS16: 0 | BT16: 0 | BU16: 2 | BV16: 0 | BW16: 0 | BX16: 3 | BY16: 1 | BZ16: 0 | CA16: 0 | CB16: 0 | CC16: 0 | CD16: 0 | CE16: 1 | CF16: 1 | CG16: 10 + | CH16: 1 | CI16: 2-Hanging or open latrine | CJ16: 1-Open area | CK16: 1 | CL16: 1 | CM16: 0 | CN16: 0 | CO16: 3 | CP16: 0 | CQ16: 2 | CR16: 0 | CS16: 0 | CT16: 0 | CU16: 1 | CV16: 0 | CW16: 3 + | CX16: e-> 2 hours | CY16: 0 | CZ16: 1 | DA16: 3 | DB16: 2 | DC16: 0 | DD16: 0 | DE16: 1 | DF16: 1 | DG16: 0 | DH16: 0 | DI16: 0 | DJ16: 1 | DK16: 0 | DL16: 1 | DM16: 1 | DN16: 1 | DO16: 0
A17: 14 | B17: 2011-09-10 | C17: 9 | D17: Jessore | E17: Keshabpur | F17: Keshabpur Sadar | G17: Rural | H17: Basdanga | I17: 5-Home undamaged | J17: 1 | K17: 1 | L17: 0 | M17: 0 | N17: 1 | O17: 1 | P17: 1 | Q17: 1 | R17: 0 | S17: 2-Vulnerable | T17: 3 | U17: 1 | V17: 0 | W17: 0 | X17: 0 | Y17: 2 | Z17: 0 | AA17: 0 | AB17: 0 | AC17: 0 | AD17: 0 | AE17: 0 | AF17: 0 | AG17: 3-Sanitary latrines (communal) | AH17: 2-Hanging or open latrine | AI17: 1 | AJ17: 0 | AK17: 0 | AL17: 0 | AM17: 0 | AN17: 0 | AO17: 0 | AP17: 0 | AQ17: 0 | AR17: 0 | AS17: 0 | AT17: 0 | AU17: 0 | AV17: 0 | AW17: 0 | AX17: 0 | AY17: 0 | AZ17: 0 | BA17: 0 | BB17: 0 | BC17: 5 | BD17: 0 | BE17: 0 | BF17: 0 | BG17: 0 | BH17: 2 | BI17: 1 | BJ17: 0 | BK17: 4 | BL17: 3 | BM17: 0 | BN17: 0 | BO17: 0 | BP17: 0 | BQ17: 0 - <1 | BS17: 2 | BT17: 0 | BU17: 0 | BV17: 0 | BW17: 0 | BX17: 3 | BY17: 1 | BZ17: 0 | CA17: 0 | CB17: 0 | CC17: 0 | CD17: 0 | CE17: 1 | CF17: 1 | CG17: 10 + | CH17: 1 | CI17: 2-Hanging or open latrine | CJ17: 1-Open area | CK17: 1 | CL17: 0 | CM17: 0 | CN17: 0 | CO17: 3 | CP17: 0 | CQ17: 2 | CR17: 1 | CS17: 0 | CT17: 0 | CU17: 1 | CV17: 1 | CX17: d-1 - 2 hours | CY17: 0 | CZ17: 2 | DA17: 3 | DB17: 1 | DC17: 0 | DD17: 0 | DE17: 1 | DF17: 0 | DG17: 0 | DH17: 0 | DI17: 0 | DJ17: 1 | DK17: 0 | DL17: 1 | DM17: 0 | DN17: 1 | DO17: 0
A18: 15 | B18: 2011-09-11 | C18: 9 | D18: Jessore | E18: Keshabpur | F18: Mojidpur | G18: Rural | H18: Protappur | I18: 5-Home undamaged | J18: 1 | K18: 1 | L18: 0 | M18: 0 | N18: 0 | O18: 1 | P18: 1 | Q18: 1 | R18: 0 | S18: 2-Vulnerable | T18: 2 | U18: 0 | V18: 0 | W18: 0 | X18: 0 | Y18: 1 | Z18: 3 | AA18: 0 | AB18: 0 | AC18: 0 | AD18: 0 | AE18: 0 | AF18: 0 | AG18: 3-Sanitary latrines (communal) | AH18: 2-Hanging or open latrine | AI18: 0 | AJ18: 0 | AK18: 0 | AL18: 0 | AM18: 0 | AN18: 0 | AO18: 0 | AP18: 0 | AQ18: 0 | AR18: 0 | AS18: 0 | AT18: 0 | AU18: 0 | AV18: 3 | AW18: 1 | AX18: 2 | AY18: 0 | AZ18: 0 | BA18: 0 | BB18: 5 | BC18: 4 | BD18: 0 | BE18: 0 | BF18: 0 | BG18: 0 | BH18: 3 | BI18: 0 | BJ18: 0 | BK18: 2 | BL18: 1 | BM18: 0 | BN18: 0 | BO18: 0 | BP18: 0 | BQ18: 0 - <1 | BS18: 1 | BT18: 0 | BU18: 0 | BV18: 0 | BW18: 0 | BX18: 3 | BY18: 0 | BZ18: 0 | CA18: 2 | CB18: 0 | CC18: 0 | CD18: 0 | CE18: 0 | CF18: 1 | CG18: 10 + | CH18: 1 | CI18: 4-Sanitary latrines (household) | CJ18: 1-Open area | CK18: 1 | CL18: 3 | CM18: 0 | CN18: 0 | CO18: 2 | CP18: 0 | CQ18: 1 | CR18: 0 | CS18: 0 | CT18: 0 | CU18: 1 | CV18: 1 | CX18: d-1 - 2 hours | CY18: 0 | CZ18: 3 | DA18: 2 | DB18: 0 | DC18: 1 | DD18: 0 | DE18: 1 | DF18: 0 | DG18: 1 | DH18: 0 | DI18: 0 | DJ18: 1 | DK18: 1 | DL18: 1 | DM18: 0 | DN18: 0 | DO18: 0
A19: 16 | B19: 2011-09-11 | C19: 9 | D19: Jessore | E19: Keshabpur | F19: Pazia | G19: Rural | H19: Bagdanga | I19: 5-Home undamaged | J19: 1 | K19: 0 | L19: 0 | M19: 0 | N19: 1 | O19: 1 | P19: 1 | Q19: 1 | R19: 0 | S19: 2-Vulnerable | T19: 2 | U19: 1 | V19: 0 | W19: 0 | X19: 0 | Y19: 3 | Z19: 0 | AA19: 0 | AB19: 0 | AC19: 0 | AD19: 0 | AE19: 0 | AF19: 0 | AG19: 4-Sanitary latrines (household) | AH19: 3-Sanitary latrines (communal) | AI19: 1 | AJ19: 0 | AK19: 0 | AL19: 0 | AM19: 0 | AN19: 0 | AO19: 0 | AP19: 0 | AQ19: 0 | AR19: 0 | AS19: 0 | AT19: 0 | AU19: 0 | AV19: 0 | AW19: 0 | AX19: 0 | AY19: 0 | AZ19: 0 | BA19: 0 | BB19: 5 | BC19: 1 | BD19: 0 | BE19: 0 | BF19: 0 | BG19: 0 | BH19: 5 | BI19: 4 | BJ19: 0 | BK19: 3 | BL19: 2 | BM19: 0 | BN19: 0 | BO19: 0 | BP19: 0 | BQ19: 0 - <1 | BS19: 2 | BT19: 0 | BU19: 0 | BV19: 0 | BW19: 0 | BX19: 3 | BY19: 1 | BZ19: 0 | CA19: 0 | CB19: 0 | CC19: 0 | CD19: 0 | CE19: 1 | CF19: 1 | CG19: 10 + | CH19: 1 | CI19: 4-Sanitary latrines (household) | CJ19: 1-Open area | CK19: 1 | CL19: 0 | CM19: 0 | CN19: 0 | CO19: 2 | CP19: 1 | CQ19: 3 | CR19: 0 | CS19: 0 | CT19: 0 | CU19: 1 | CV19: 1 | CX19: d-1 - 2 hours | CY19: 0 | CZ19: 2 | DA19: 3 | DB19: 0 | DC19: 0 | DD19: 1 | DE19: 0 | DF19: 0 | DG19: 0 | DH19: 0 | DI19: 0 | DJ19: 1 | DK19: 1 | DL19: 1 | DM19: 0 | DN19: 0 | DO19: 0
A20: 17 | B20: 2011-09-08 | C20: 9 | D20: Jessore | E20: Keshabpur | F20: Sagardari | G20: Rural | H20: Sagardari | I20: 2-Roadside / embankments | J20: 1 | K20: 0 | L20: 1 | M20: 0 | N20: 1 | O20: 1 | P20: 1 | Q20: 1 | R20: 0 | S20: 3-Seriously vulnerable | T20: 2 | U20: 0 | V20: 0 | W20: 0 | X20: 1 | Y20: 3 | Z20: 0 | AA20: 0 | AB20: 0 | AC20: 0 | AD20: 0 | AE20: 0 | AF20: 1 | AG20: 4-Sanitary latrines (household) | AH20: 1-Open area | AI20: 0 | AJ20: 1 | AK20: 1 | AL20: 0 | AM20: 0 | AN20: 0 | AO20: 0 | AP20: 1 | AQ20: 0 | AR20: 0 | AS20: 2 | AT20: 0 | AU20: 0 | AV20: 3 | AW20: 0 | AX20: 1 | AY20: 0 | AZ20: 0 | BA20: 0 | BB20: 2 | BC20: 1 | BD20: 0 | BE20: 0 | BF20: 0 | BG20: 0 | BH20: 0 | BI20: 0 | BJ20: 5 | BK20: 4 | BL20: 0 | BM20: 3 | BN20: 0 | BO20: 0 | BP20: 0 | BQ20: 3 + | BR20: 1 | BS20: 0 | BT20: 0 | BU20: 0 | BV20: 0 | BW20: 1 | BX20: 3 | BY20: 0 | BZ20: 0 | CA20: 0 | CB20: 0 | CC20: 0 | CD20: 2 | CE20: 0 | CF20: 1 | CG20: 10 + | CH20: 1 | CI20: 2-Hanging or open latrine | CJ20: 1-Open area | CK20: 1 | CL20: 1 | CM20: 0 | CN20: 0 | CO20: 3 | CP20: 0 | CQ20: 2 | CR20: 0 | CS20: 0 | CT20: 0 | CU20: 1 | CV20: 0 | CW20: 3 + | CX20: d-1 - 2 hours | CY20: 0 | CZ20: 3 | DA20: 2 | DB20: 1 | DC20: 0 | DD20: 0 | DE20: 1 | DF20: 1 | DG20: 0 | DH20: 0 | DI20: 0 | DJ20: 1 | DK20: 0 | DL20: 1 | DM20: 1 | DN20: 1 | DO20: 0
A21: 18 | B21: 2011-09-10 | C21: 9 | D21: Jessore | E21: Keshabpur | F21: Shuflakati | G21: Rural | H21: Poschim Sarutia | I21: 3-Marooned | J21: 1 | K21: 0 | L21: 1 | M21: 0 | N21: 1 | O21: 1 | P21: 1 | Q21: 1 | R21: 0 | S21: 3-Seriously vulnerable | T21: 0 | U21: 2 | V21: 1 | W21: 0 | X21: 0 | Y21: 3 | Z21: 0 | AA21: 0 | AB21: 0 | AC21: 0 | AD21: 0 | AE21: 0 | AF21: 0 | AG21: 3-Sanitary latrines (communal) | AH21: 2-Hanging or open latrine | AI21: 1 | AJ21: 0 | AK21: 1 | AL21: 0 | AM21: 0 | AN21: 0 | AO21: 0 | AP21: 0 | AQ21: 0 | AR21: 0 | AS21: 3 | AT21: 0 | AU21: 0 | AV21: 2 | AW21: 0 | AX21: 1 | AY21: 0 | AZ21: 0 | BA21: 0 | BB21: 0 | BC21: 2 | BD21: 0 | BE21: 0 | BF21: 0 | BG21: 0 | BH21: 5 | BI21: 0 | BJ21: 4 | BK21: 0 | BL21: 1 | BM21: 3 | BN21: 0 | BO21: 0 | BP21: 0 | BQ21: 0 - <1 | BR21: 1 | BS21: 0 | BT21: 0 | BU21: 0 | BV21: 0 | BW21: 1 | BX21: 3 | BY21: 2 | BZ21: 0 | CA21: 0 | CB21: 0 | CC21: 0 | CD21: 0 | CE21: 1 | CF21: 1 | CG21: 10 + | CH21: 1 | CI21: 4-Sanitary latrines (household) | CJ21: 1-Open area | CK21: 1 | CL21: 1 | CM21: 0 | CN21: 0 | CO21: 3 | CP21: 0 | CQ21: 2 | CR21: 0 | CS21: 0 | CT21: 0 | CU21: 1 | CV21: 0 | CW21: 3 + | CX21: e-> 2 hours | CY21: 0 | CZ21: 2 | DA21: 3 | DB21: 1 | DC21: 0 | DD21: 0 | DE21: 0 | DF21: 0 | DG21: 0 | DH21: 0 | DI21: 0 | DJ21: 1 | DK21: 1 | DL21: 1 | DM21: 1 | DN21: 1 | DO21: 0
A22: 19 | B22: 2011-09-10 | C22: 9 | D22: Jessore | E22: Keshabpur | F22: Shuflakati | G22: Rural | H22: Krishnagar | I22: 4-Damaged or water-logged | J22: 1 | K22: 0 | L22: 1 | M22: 1 | N22: 1 | O22: 1 | P22: 1 | Q22: 1 | R22: 0 | S22: 3-Seriously vulnerable | T22: 1 | U22: 0 | V22: 0 | W22: 0 | X22: 0 | Y22: 3 | Z22: 2 | AA22: 0 | AB22: 0 | AC22: 0 | AD22: 0 | AE22: 0 | AF22: 0 | AG22: 3-Sanitary latrines (communal) | AH22: 5-Other | AI22: 0 | AJ22: 0 | AK22: 1 | AL22: 1 | AM22: 0 | AN22: 0 | AO22: 0 | AP22: 0 | AQ22: 0 | AR22: 0 | AS22: 1 | AT22: 0 | AU22: 0 | AV22: 3 | AW22: 0 | AX22: 2 | AY22: 0 | AZ22: 0 | BA22: 0 | BB22: 2 | BC22: 0 | BD22: 1 | BE22: 0 | BF22: 0 | BG22: 0 | BH22: 0 | BI22: 0 | BJ22: 5 | BK22: 4 | BL22: 0 | BM22: 3 | BN22: 0 | BO22: 0 | BP22: 0 | BQ22: 3 + | BS22: 0 | BT22: 0 | BU22: 0 | BV22: 0 | BW22: 0 | BX22: 3 | BY22: 1 | BZ22: 0 | CA22: 2 | CB22: 0 | CC22: 0 | CD22: 0 | CE22: 1 | CF22: 1 | CG22: 10 + | CH22: 1 | CI22: 2-Hanging or open latrine | CJ22: 1-Open area | CK22: 1 | CL22: 0 | CM22: 0 | CN22: 0 | CO22: 3 | CP22: 0 | CQ22: 2 | CR22: 0 | CS22: 1 | CT22: 0 | CU22: 1 | CV22: 0 | CW22: 3 + | CX22: e-> 2 hours | CY22: 0 | CZ22: 0 | DA22: 3 | DB22: 2 | DC22: 1 | DD22: 0 | DE22: 0 | DF22: 1 | DG22: 0 | DH22: 0 | DI22: 0 | DJ22: 1 | DK22: 0 | DL22: 1 | DM22: 0 | DN22: 1 | DO22: 0
A23: 20 | B23: 2011-09-10 | C23: 8 | D23: Jessore | E23: Monirampur | F23: Durbadunga | G23: Rural | H23: Ashanigar | I23: 3-Marooned | J23: 1 | K23: 0 | L23: 0 | M23: 0 | N23: 1 | O23: 1 | P23: 0 | Q23: 0 | R23: 0 | S23: 3-Seriously vulnerable | T23: 1 | U23: 0 | V23: 0 | W23: 0 | X23: 0 | Y23: 2 | Z23: 0 | AA23: 0 | AB23: 0 | AC23: 3 | AD23: 0 | AE23: 0 | AF23: 1 | AG23: 2-Hanging or open latrine | AH23: 1-Open area | AI23: 0 | AJ23: 0 | AK23: 1 | AL23: 1 | AM23: 0 | AN23: 0 | AO23: 1 | AP23: 0 | AQ23: 0 | AR23: 0 | AS23: 3 | AT23: 0 | AU23: 0 | AV23: 2 | AW23: 0 | AX23: 1 | AY23: 0 | AZ23: 0 | BA23: 0 | BB23: 0 | BC23: 0 | BD23: 0 | BE23: 1 | BF23: 2 | BG23: 0 | BH23: 0 | BI23: 3 | BJ23: 0 | BK23: 5 | BL23: 4 | BM23: 0 | BN23: 0 | BO23: 0 | BP23: 0 | BQ23: 3 + | BR23: 1 | BS23: 0 | BT23: 0 | BU23: 0 | BV23: 0 | BW23: 0 | BX23: 2 | BY23: 1 | BZ23: 0 | CA23: 0 | CB23: 3 | CC23: 0 | CD23: 0 | CE23: 1 | CF23: 1 | CG23: 10 + | CH23: 1 | CI23: 2-Hanging or open latrine | CJ23: 1-Open area | CK23: 1 | CL23: 2 | CM23: 0 | CN23: 0 | CO23: 1 | CP23: 0 | CQ23: 3 | CR23: 0 | CS23: 0 | CT23: 0 | CU23: 1 | CV23: 1 | CW23: 3 + | CX23: e-> 2 hours | CY23: 0 | CZ23: 2 | DA23: 3 | DB23: 0 | DC23: 0 | DD23: 1 | DE23: 1 | DF23: 1 | DG23: 1 | DH23: 0 | DI23: 0 | DJ23: 1 | DK23: 0 | DL23: 1 | DM23: 0 | DN23: 1 | DO23: 0
A24: 21 | B24: 2011-09-09 | C24: 8 | D24: Jessore | E24: Monirampur | F24: Jhapa | G24: Rural | H24: 2no Ward | I24: 4-Damaged or water-logged | J24: 1 | K24: 0 | L24: 1 | M24: 0 | N24: 1 | O24: 1 | P24: 1 | Q24: 0 | R24: 0 | S24: 3-Seriously vulnerable | T24: 0 | U24: 0 | V24: 0 | W24: 0 | X24: 1 | Y24: 3 | Z24: 0 | AA24: 0 | AB24: 0 | AC24: 0 | AD24: 2 | AE24: 0 | AF24: 1 | AG24: 1-Open area | AH24: 1-Open area | AI24: 0 | AJ24: 0 | AK24: 1 | AL24: 1 | AM24: 0 | AN24: 0 | AO24: 1 | AP24: 0 | AQ24: 0 | AR24: 0 | AS24: 3 | AT24: 0 | AU24: 0 | AV24: 2 | AW24: 0 | AX24: 1 | AY24: 0 | AZ24: 0 | BA24: 0 | BB24: 0 | BC24: 0 | BD24: 2 | BE24: 4 | BF24: 3 | BG24: 0 | BH24: 5 | BI24: 1 | BJ24: 0 | BK24: 0 | BL24: 0 | BM24: 0 | BN24: 0 | BO24: 0 | BP24: 0 | BQ24: 2 - 3 | BR24: 1 | BS24: 0 | BT24: 0 | BU24: 0 | BV24: 0 | BW24: 0 | BX24: 0 | BY24: 0 | BZ24: 0 | CA24: 0 | CB24: 0 | CC24: 0 | CD24: 0 | CE24: 1 | CF24: 1 | CG24: 10 + | CH24: 1 | CI24: 2-Hanging or open latrine | CJ24: 1-Open area | CK24: 1 | CL24: 2 | CM24: 0 | CN24: 3 | CO24: 1 | CP24: 0 | CQ24: 0 | CR24: 0 | CS24: 0 | CT24: 0 | CU24: 1 | CV24: 0 | CW24: 3 + | CX24: e-> 2 hours | CY24: 0 | CZ24: 3 | DA24: 2 | DB24: 1 | DC24: 0 | DD24: 0 | DE24: 1 | DF24: 1 | DG24: 1 | DH24: 0 | DI24: 0 | DJ24: 1 | DK24: 0 | DL24: 1 | DM24: 0 | DN24: 1 | DO24: 0
A25: 22 | B25: 2011-09-09 | C25: 8 | D25: Jessore | E25: Monirampur | F25: Jhapa | G25: Rural | H25: Jhapa | I25: 4-Damaged or water-logged | J25: 1 | K25: 0 | L25: 1 | M25: 0 | N25: 1 | O25: 1 | P25: 0 | Q25: 0 | R25: 0 | S25: 3-Seriously vulnerable | T25: 1 | U25: 0 | V25: 2 | W25: 0 | X25: 0 | Y25: 3 | Z25: 0 | AA25: 0 | AB25: 0 | AC25: 0 | AD25: 0 | AE25: 0 | AF25: 1 | AG25: 1-Open area | AH25: 1-Open area | AI25: 1 | AJ25: 0 | AK25: 0 | AL25: 1 | AM25: 0 | AN25: 0 | AO25: 1 | AP25: 0 | AQ25: 0 | AR25: 0 | AS25: 2 | AT25: 0 | AU25: 0 | AV25: 3 | AW25: 0 | AX25: 1 | AY25: 0 | AZ25: 0 | BA25: 0 | BB25: 0 | BC25: 0 | BD25: 0 | BE25: 2 | BF25: 3 | BG25: 0 | BH25: 0 | BI25: 1 | BJ25: 0 | BK25: 0 | BL25: 5 | BM25: 0 | BN25: 4 | BO25: 0 | BP25: 0 | BQ25: 3 + | BR25: 1 | BS25: 1 | BT25: 0 | BU25: 0 | BV25: 0 | BW25: 0 | BX25: 2 | BY25: 0 | BZ25: 0 | CA25: 0 | CB25: 3 | CC25: 0 | CD25: 0 | CE25: 0 | CF25: 1 | CG25: 10 + | CH25: 0 | CI25: 4-Sanitary latrines (household) | CJ25: 2-Hanging or open latrine | CK25: 1 | CL25: 2 | CM25: 0 | CN25: 3 | CO25: 0 | CP25: 0 | CQ25: 0 | CR25: 1 | CS25: 0 | CT25: 0 | CU25: 1 | CV25: 1 | CW25: 3 + | CX25: d-1 - 2 hours | CY25: 0 | CZ25: 3 | DA25: 2 | DB25: 0 | DC25: 0 | DD25: 1 | DE25: 1 | DF25: 0 | DG25: 1 | DH25: 0 | DI25: 0 | DJ25: 0 | DK25: 0 | DL25: 1 | DM25: 0 | DN25: 0 | DO25: 0
A26: 23 | B26: 2011-09-10 | C26: 8 | D26: Jessore | E26: Monirampur | F26: Moshimnagar | G26: Rural | H26: Horotpur | I26: 2-Roadside / embankments | J26: 1 | K26: 0 | L26: 1 | M26: 0 | N26: 1 | O26: 1 | P26: 1 | Q26: 0 | R26: 0 | S26: 2-Vulnerable | T26: 2 | U26: 0 | V26: 1 | W26: 0 | X26: 0 | Y26: 3 | Z26: 0 | AA26: 0 | AB26: 0 | AC26: 0 | AD26: 0 | AE26: 0 | AF26: 1 | AG26: 1-Open area | AH26: 1-Open area | AI26: 1 | AJ26: 0 | AK26: 1 | AL26: 0 | AM26: 0 | AN26: 0 | AO26: 0 | AP26: 0 | AQ26: 0 | AR26: 0 | AS26: 1 | AT26: 0 | AU26: 3 | AV26: 2 | AW26: 0 | AX26: 0 | AY26: 0 | AZ26: 0 | BA26: 0 | BB26: 0 | BC26: 0 | BD26: 0 | BE26: 0 | BF26: 0 | BG26: 0 | BH26: 5 | BI26: 0 | BJ26: 0 | BK26: 2 | BL26: 0 | BM26: 1 | BN26: 4 | BO26: 3 | BP26: 0 | BQ26: 2 - 3 | BR26: 1 | BS26: 2 | BT26: 0 | BU26: 1 | BV26: 0 | BW26: 0 | BX26: 3 | BY26: 0 | BZ26: 0 | CA26: 0 | CB26: 0 | CC26: 0 | CD26: 0 | CE26: 0 | CF26: 1 | CG26: 10 + | CH26: 1 | CI26: 4-Sanitary latrines (household) | CJ26: 1-Open area | CK26: 1 | CL26: 1 | CM26: 0 | CN26: 3 | CO26: 2 | CP26: 0 | CQ26: 0 | CR26: 0 | CS26: 0 | CT26: 0 | CU26: 1 | CV26: 0 | CW26: 2 - 3 | CX26: c-30-60 minutes | CY26: 0 | CZ26: 3 | DA26: 2 | DB26: 1 | DC26: 0 | DD26: 0 | DE26: 1 | DF26: 0 | DG26: 1 | DH26: 0 | DI26: 0 | DJ26: 1 | DK26: 1 | DL26: 0 | DM26: 0 | DN26: 0 | DO26: 0
A27: 24 | B27: 2011-09-09 | C27: 8 | D27: Jessore | E27: Monirampur | F27: Moshimnagar | G27: Rural | H27: Varatpur | I27: 3-Marooned | J27: 1 | K27: 0 | L27: 1 | M27: 0 | N27: 1 | O27: 1 | P27: 1 | Q27: 0 | R27: 0 | S27: 2-Vulnerable | T27: 0 | U27: 0 | V27: 0 | W27: 0 | X27: 0 | Y27: 0 | Z27: 0 | AA27: 0 | AB27: 0 | AC27: 0 | AD27: 0 | AE27: 0 | AF27: 1 | AG27: 3-Sanitary latrines (communal) | AH27: 2-Hanging or open latrine | AI27: 1 | AJ27: 0 | AK27: 1 | AL27: 0 | AM27: 0 | AN27: 0 | AO27: 0 | AP27: 0 | AQ27: 0 | AR27: 0 | AS27: 1 | AT27: 0 | AU27: 2 | AV27: 3 | AW27: 0 | AX27: 0 | AY27: 0 | AZ27: 0 | BA27: 2 | BB27: 5 | BC27: 0 | BD27: 3 | BE27: 4 | BF27: 2 | BG27: 0 | BH27: 0 | BI27: 0 | BJ27: 0 | BK27: 0 | BL27: 0 | BM27: 0 | BN27: 1 | BO27: 0 | BP27: 0 | BQ27: 3 + | BR27: 1 | BS27: 1 | BT27: 0 | BU27: 0 | BV27: 0 | BW27: 0 | BX27: 3 | BY27: 1 | BZ27: 0 | CA27: 0 | CB27: 2 | CC27: 0 | CD27: 0 | CE27: 0 | CF27: 1 | CG27: 05 - 10 | CH27: 1 | CI27: 2-Hanging or open latrine | CJ27: 1-Open area | CK27: 1 | CL27: 0 | CM27: 0 | CN27: 2 | CO27: 3 | CP27: 0 | CQ27: 1 | CR27: 0 | CS27: 0 | CT27: 0 | CU27: 1 | CV27: 0 | CW27: 3 + | CX27: e-> 2 hours | CY27: 0 | CZ27: 3 | DA27: 2 | DB27: 1 | DC27: 3 | DD27: 0 | DE27: 1 | DF27: 1 | DG27: 1 | DH27: 0 | DI27: 0 | DJ27: 1 | DK27: 0 | DL27: 1 | DM27: 0 | DN27: 1 | DO27: 0
A28: 25 | B28: 2011-09-09 | C28: 7 | D28: Kulna | E28: Paikgacha | F28: Horidhal | G28: Rural | H28: Horidaskathi | I28: 2-Roadside / embankments | J28: 0 | K28: 0 | L28: 0 | M28: 0 | N28: 0 | O28: 1 | P28: 1 | Q28: 0 | R28: 0 | S28: 3-Seriously vulnerable | T28: 1 | U28: 0 | V28: 2 | W28: 0 | X28: 0 | Y28: 3 | Z28: 0 | AA28: 0 | AB28: 0 | AC28: 0 | AD28: 0 | AE28: 0 | AF28: 0 | AG28: 3-Sanitary latrines (communal) | AH28: 1-Open area | AI28: 1 | AJ28: 0 | AK28: 1 | AL28: 0 | AM28: 0 | AN28: 0 | AO28: 0 | AP28: 0 | AQ28: 0 | AR28: 0 | AS28: 0 | AT28: 0 | AU28: 3 | AV28: 1 | AW28: 0 | AX28: 2 | AY28: 0 | AZ28: 0 | BA28: 0 | BB28: 5 | BC28: 1 | BD28: 0 | BE28: 0 | BF28: 0 | BG28: 4 | BH28: 0 | BI28: 0 | BJ28: 0 | BK28: 2 | BL28: 0 | BM28: 3 | BN28: 0 | BO28: 0 | BP28: 0 | BQ28: 3 + | BR28: 1 | BS28: 0 | BT28: 1 | BU28: 0 | BV28: 0 | BW28: 3 | BX28: 0 | BY28: 0 | BZ28: 0 | CA28: 0 | CB28: 0 | CC28: 0 | CD28: 2 | CE28: 0 | CF28: 1 | CG28: 05 - 10 | CH28: 1 | CI28: 2-Hanging or open latrine | CJ28: 1-Open area | CK28: 1 | CL28: 0 | CM28: 0 | CN28: 3 | CO28: 2 | CP28: 0 | CQ28: 1 | CR28: 0 | CS28: 0 | CT28: 0 | CU28: 1 | CV28: 0 | CW28: 2 - 3 | CX28: f-No access | CY28: 0 | CZ28: 2 | DA28: 3 | DB28: 0 | DC28: 0 | DD28: 1 | DE28: 1 | DF28: 1 | DG28: 0 | DH28: 0 | DI28: 0 | DJ28: 1 | DK28: 1 | DL28: 1 | DM28: 0 | DN28: 1 | DO28: 0
A29: 26 | B29: 2011-09-10 | C29: 7 | D29: Kulna | E29: Paikgacha | F29: Horidhal | G29: Rural | H29: Noakathi | I29: 2-Roadside / embankments | J29: 1 | K29: 0 | L29: 0 | M29: 0 | N29: 1 | O29: 1 | P29: 0 | Q29: 0 | R29: 1 | S29: 3-Seriously vulnerable | T29: 3 | U29: 0 | V29: 0 | W29: 0 | X29: 0 | Y29: 2 | Z29: 1 | AA29: 0 | AB29: 0 | AC29: 0 | AD29: 0 | AE29: 0 | AF29: 1 | AG29: 3-Sanitary latrines (communal) | AH29: 1-Open area | AI29: 1 | AJ29: 0 | AK29: 1 | AL29: 1 | AM29: 1 | AN29: 1 | AO29: 0 | AP29: 0 | AQ29: 0 | AR29: 0 | AS29: 0 | AT29: 0 | AU29: 0 | AV29: 2 | AW29: 1 | AX29: 3 | AY29: 0 | AZ29: 0 | BA29: 0 | BB29: 5 | BC29: 4 | BD29: 3 | BE29: 0 | BF29: 0 | BG29: 2 | BH29: 0 | BI29: 1 | BJ29: 0 | BK29: 0 | BL29: 0 | BM29: 0 | BN29: 0 | BO29: 0 | BP29: 0 | BQ29: 0 - <1 | BS29: 1 | BT29: 0 | BU29: 2 | BV29: 0 | BW29: 0 | BX29: 3 | BY29: 0 | BZ29: 0 | CA29: 0 | CB29: 0 | CC29: 0 | CD29: 0 | CE29: 1 | CF29: 1 | CG29: 05 - 10 | CH29: 1 | CI29: 4-Sanitary latrines (household) | CJ29: 2-Hanging or open latrine | CK29: 1 | CL29: 0 | CM29: 0 | CN29: 0 | CO29: 3 | CP29: 0 | CQ29: 2 | CR29: 1 | CS29: 0 | CT29: 0 | CU29: 1 | CV29: 0 | CX29: f-No access | CY29: 0 | CZ29: 3 | DA29: 2 | DB29: 1 | DC29: 0 | DD29: 0 | DE29: 1 | DF29: 1 | DG29: 1 | DH29: 0 | DI29: 0 | DJ29: 1 | DK29: 0 | DL29: 1 | DM29: 0 | DN29: 1 | DO29: 0
A30: 27 | B30: 2011-09-10 | C30: 7 | D30: Kulna | E30: Paikgacha | F30: Horikhali | G30: Rural | H30: ChandKhali 9No Katabunia | I30: 2-Roadside / embankments | J30: 1 | K30: 0 | L30: 0 | M30: 0 | N30: 1 | O30: 1 | P30: 1 | Q30: 1 | R30: 0 | S30: 3-Seriously vulnerable | T30: 2 | U30: 0 | V30: 0 | W30: 0 | X30: 0 | Y30: 3 | Z30: 1 | AA30: 0 | AB30: 0 | AC30: 0 | AD30: 0 | AE30: 0 | AF30: 1 | AG30: 2-Hanging or open latrine | AH30: 1-Open area | AI30: 1 | AJ30: 1 | AK30: 1 | AL30: 0 | AM30: 0 | AN30: 0 | AO30: 0 | AP30: 0 | AQ30: 0 | AR30: 0 | AS30: 0 | AT30: 0 | AU30: 0 | AV30: 3 | AW30: 1 | AX30: 2 | AY30: 0 | AZ30: 0 | BA30: 0 | BB30: 5 | BC30: 4 | BD30: 0 | BE30: 0 | BF30: 0 | BG30: 0 | BH30: 0 | BI30: 0 | BJ30: 3 | BK30: 0 | BL30: 0 | BM30: 0 | BN30: 2 | BO30: 1 | BP30: 0 | BQ30: 0 - <1 | BS30: 0 | BT30: 0 | BU30: 0 | BV30: 0 | BW30: 0 | BX30: 3 | BY30: 1 | BZ30: 0 | CA30: 0 | CB30: 2 | CC30: 0 | CD30: 0 | CE30: 0 | CF30: 1 | CG30: 05 - 10 | CH30: 1 | CI30: 2-Hanging or open latrine | CJ30: 2-Hanging or open latrine | CK30: 1 | CL30: 0 | CM30: 0 | CN30: 0 | CO30: 3 | CP30: 0 | CQ30: 2 | CR30: 1 | CS30: 0 | CT30: 0 | CU30: 0 | CV30: 0 | CX30: f-No access | CY30: 0 | CZ30: 1 | DA30: 2 | DB30: 3 | DC30: 0 | DD30: 0 | DE30: 1 | DF30: 1 | DG30: 1 | DH30: 1 | DI30: 0 | DJ30: 1 | DK30: 1 | DL30: 0 | DM30: 0 | DN30: 0 | DO30: 0
A31: 28 | B31: 2011-09-09 | C31: 7 | D31: Kulna | E31: Paikgacha | F31: Kopilmoni | G31: Rural | H31: Kasimnagar | I31: 3-Marooned | J31: 1 | K31: 0 | L31: 1 | M31: 0 | N31: 1 | O31: 1 | P31: 1 | Q31: 0 | R31: 0 | S31: 2-Vulnerable | T31: 1 | U31: 0 | V31: 2 | W31: 0 | X31: 0 | Y31: 3 | Z31: 0 | AA31: 0 | AB31: 0 | AC31: 0 | AD31: 0 | AE31: 0 | AF31: 1 | AG31: 3-Sanitary latrines (communal) | AH31: 1-Open area | AI31: 1 | AJ31: 1 | AK31: 1 | AL31: 0 | AM31: 0 | AN31: 0 | AO31: 0 | AP31: 0 | AQ31: 0 | AR31: 0 | AS31: 2 | AT31: 0 | AU31: 0 | AV31: 3 | AW31: 0 | AX31: 0 | AY31: 0 | AZ31: 1 | BA31: 0 | BB31: 5 | BC31: 0 | BD31: 0 | BE31: 4 | BF31: 0 | BG31: 0 | BH31: 0 | BI31: 0 | BJ31: 3 | BK31: 2 | BL31: 0 | BM31: 0 | BN31: 1 | BO31: 0 | BP31: 0 | BQ31: 3 + | BS31: 2 | BT31: 0 | BU31: 0 | BV31: 0 | BW31: 0 | BX31: 3 | BY31: 0 | BZ31: 0 | CA31: 0 | CB31: 1 | CC31: 0 | CD31: 0 | CE31: 1 | CF31: 0 | CG31: 10 + | CH31: 1 | CI31: 2-Hanging or open latrine | CJ31: 2-Hanging or open latrine | CK31: 1 | CL31: 0 | CM31: 0 | CN31: 0 | CO31: 3 | CP31: 1 | CQ31: 2 | CR31: 0 | CS31: 0 | CT31: 0 | CU31: 1 | CV31: 0 | CX31: a-Health facility nearby | CY31: 0 | CZ31: 3 | DA31: 2 | DB31: 1 | DC31: 0 | DD31: 0 | DE31: 1 | DF31: 1 | DG31: 1 | DH31: 0 | DI31: 0 | DJ31: 1 | DK31: 1 | DL31: 1 | DM31: 0 | DN31: 1 | DO31: 0
A32: 29 | B32: 2011-09-10 | C32: 7 | D32: Kulna | E32: Paikgacha | F32: Kopilmoni | G32: Rural | H32: Kazimusa | I32: 5-Home undamaged | J32: 0 | K32: 0 | L32: 0 | M32: 0 | N32: 1 | O32: 1 | P32: 1 | Q32: 0 | R32: 0 | S32: 1-Relatively normal | T32: 2 | U32: 0 | V32: 0 | W32: 0 | X32: 0 | Y32: 3 | Z32: 1 | AA32: 0 | AB32: 0 | AC32: 0 | AD32: 0 | AE32: 0 | AF32: 1 | AG32: 3-Sanitary latrines (communal) | AH32: 4-Sanitary latrines (household) | AI32: 0 | AJ32: 0 | AK32: 0 | AL32: 0 | AM32: 0 | AN32: 0 | AO32: 0 | AP32: 0 | AQ32: 0 | AR32: 0 | AS32: 0 | AT32: 0 | AU32: 0 | AV32: 0 | AW32: 0 | AX32: 0 | AY32: 0 | AZ32: 0 | BA32: 0 | BB32: 5 | BC32: 4 | BD32: 3 | BE32: 0 | BF32: 0 | BG32: 0 | BH32: 2 | BI32: 0 | BJ32: 1 | BK32: 0 | BL32: 0 | BM32: 0 | BN32: 0 | BO32: 0 | BP32: 0 | BQ32: 0 - <1 | BS32: 0 | BT32: 0 | BU32: 2 | BV32: 0 | BW32: 1 | BX32: 3 | BY32: 0 | BZ32: 0 | CA32: 0 | CB32: 0 | CC32: 0 | CD32: 0 | CE32: 1 | CF32: 1 | CG32: 05 - 10 | CH32: 1 | CI32: 4-Sanitary latrines (household) | CJ32: 5-Other | CK32: 1 | CL32: 0 | CM32: 0 | CN32: 0 | CO32: 3 | CP32: 0 | CQ32: 2 | CR32: 1 | CS32: 0 | CT32: 0 | CU32: 1 | CV32: 1 | CX32: b-< 30 minutes | CY32: 0 | CZ32: 3 | DA32: 2 | DB32: 0 | DC32: 1 | DD32: 0 | DE32: 1 | DF32: 0 | DG32: 1 | DH32: 0 | DI32: 0 | DJ32: 1 | DK32: 1 | DL32: 1 | DM32: 0 | DN32: 1 | DO32: 0
A33: 30 | B33: 2011-09-10 | C33: 6 | D33: Shatkira | E33: Assasuni | F33: Budhata | G33: Rural | H33: Behula | I33: 5-Home undamaged | J33: 1 | K33: 0 | L33: 0 | M33: 1 | N33: 1 | O33: 1 | P33: 1 | Q33: 0 | R33: 0 | S33: 2-Vulnerable | T33: 3 | U33: 2 | V33: 0 | W33: 0 | X33: 1 | Y33: 3 | Z33: 0 | AA33: 0 | AB33: 0 | AC33: 0 | AD33: 0 | AE33: 0 | AF33: 0 | AG33: 4-Sanitary latrines (household) | AH33: 2-Hanging or open latrine | AI33: 0 | AJ33: 0 | AK33: 0 | AL33: 0 | AM33: 0 | AN33: 0 | AO33: 0 | AP33: 0 | AQ33: 0 | AR33: 1 | AS33: 0 | AT33: 0 | AU33: 0 | AV33: 0 | AW33: 0 | AX33: 0 | AY33: 0 | AZ33: 0 | BA33: 0 | BB33: 0 | BC33: 0 | BD33: 0 | BE33: 0 | BF33: 0 | BG33: 0 | BH33: 0 | BI33: 0 | BJ33: 0 | BK33: 0 | BL33: 0 | BM33: 0 | BN33: 0 | BO33: 0 | BP33: 0 | BQ33: 0 - <1 | BS33: 1 | BT33: 0 | BU33: 0 | BV33: 0 | BW33: 0 | BX33: 0 | BY33: 0 | BZ33: 2 | CA33: 0 | CB33: 0 | CC33: 0 | CD33: 3 | CE33: 1 | CF33: 1 | CG33: 10 + | CH33: 1 | CI33: 4-Sanitary latrines (household) | CJ33: 1-Open area | CK33: 1 | CL33: 0 | CM33: 0 | CN33: 0 | CO33: 0 | CP33: 0 | CQ33: 0 | CR33: 0 | CS33: 0 | CT33: 0 | CU33: 1 | CV33: 1 | CX33: c-30-60 minutes | CY33: 0 | CZ33: 3 | DA33: 2 | DB33: 0 | DC33: 0 | DD33: 1 | DE33: 0 | DF33: 0 | DG33: 1 | DH33: 0 | DI33: 0 | DJ33: 1 | DK33: 1 | DL33: 1 | DM33: 0 | DN33: 1 | DO33: 0
A34: 31 | B34: 2011-09-09 | C34: 6 | D34: Shatkira | E34: Assasuni | F34: Dargapur | G34: Rural | H34: Sonai & Tokipur | I34: 4-Damaged or water-logged | J34: 1 | K34: 0 | L34: 0 | M34: 0 | N34: 1 | O34: 0 | P34: 1 | Q34: 0 | R34: 0 | S34: 3-Seriously vulnerable | T34: 0 | U34: 0 | V34: 0 | W34: 0 | X34: 0 | Y34: 3 | Z34: 2 | AA34: 0 | AB34: 0 | AC34: 0 | AD34: 0 | AE34: 1 | AF34: 1 | AG34: 4-Sanitary latrines (household) | AH34: 2-Hanging or open latrine | AI34: 1 | AJ34: 0 | AK34: 0 | AL34: 0 | AM34: 0 | AN34: 0 | AO34: 0 | AP34: 0 | AQ34: 0 | AR34: 0 | AS34: 3 | AT34: 0 | AU34: 0 | AV34: 0 | AW34: 0 | AX34: 0 | AY34: 0 | AZ34: 0 | BA34: 0 | BB34: 2 | BC34: 0 | BD34: 0 | BE34: 0 | BF34: 0 | BG34: 0 | BH34: 5 | BI34: 0 | BJ34: 4 | BK34: 0 | BL34: 0 | BM34: 0 | BN34: 0 | BO34: 1 | BP34: 3 | BQ34: 0 - <1 | BR34: 1 | BS34: 0 | BT34: 0 | BU34: 0 | BV34: 0 | BW34: 0 | BX34: 2 | BY34: 3 | BZ34: 0 | CA34: 1 | CB34: 0 | CC34: 0 | CD34: 0 | CE34: 0 | CF34: 1 | CG34: 10 + | CH34: 1 | CI34: 4-Sanitary latrines (household) | CJ34: 2-Hanging or open latrine | CK34: 1 | CL34: 0 | CM34: 0 | CN34: 0 | CO34: 0 | CP34: 0 | CQ34: 0 | CR34: 0 | CS34: 0 | CT34: 0 | CU34: 1 | CV34: 0 | CX34: e-> 2 hours | CY34: 0 | CZ34: 2 | DA34: 3 | DB34: 0 | DC34: 0 | DD34: 1 | DE34: 1 | DF34: 1 | DG34: 0 | DH34: 0 | DI34: 0 | DJ34: 1 | DK34: 1 | DL34: 1 | DM34: 0 | DN34: 0 | DO34: 0
A35: 32 | B35: 2011-09-10 | C35: 6 | D35: Shatkira | E35: Assasuni | F35: Kadakhati | G35: Rural | H35: Kadakati | I35: 1-Collective centers | J35: 0 | K35: 0 | L35: 0 | M35: 0 | N35: 1 | O35: 1 | P35: 1 | Q35: 1 | R35: 0 | S35: 4-Extremely vulnerable | T35: 3 | U35: 0 | V35: 1 | W35: 0 | X35: 0 | Y35: 2 | Z35: 0 | AA35: 0 | AB35: 0 | AC35: 0 | AD35: 0 | AE35: 0 | AF35: 1 | AG35: 4-Sanitary latrines (household) | AH35: 3-Sanitary latrines (communal) | AI35: 1 | AJ35: 0 | AK35: 1 | AL35: 0 | AM35: 0 | AN35: 0 | AO35: 0 | AP35: 0 | AQ35: 0 | AR35: 0 | AS35: 0 | AT35: 0 | AU35: 3 | AV35: 2 | AW35: 0 | AX35: 0 | AY35: 0 | AZ35: 0 | BA35: 1 | BB35: 5 | BC35: 4 | BD35: 0 | BE35: 0 | BF35: 0 | BG35: 1 | BH35: 3 | BI35: 0 | BJ35: 0 | BK35: 2 | BL35: 0 | BM35: 0 | BN35: 0 | BO35: 0 | BP35: 0 | BQ35: 2 - 3 | BR35: 1 | BS35: 0 | BT35: 0 | BU35: 3 | BV35: 0 | BW35: 0 | BX35: 1 | BY35: 2 | BZ35: 0 | CA35: 0 | CB35: 0 | CC35: 0 | CD35: 0 | CE35: 0 | CF35: 0 | CG35: 10 + | CH35: 1 | CI35: 4-Sanitary latrines (household) | CJ35: 3-Sanitary latrines (communal) | CK35: 1 | CL35: 0 | CM35: 0 | CN35: 2 | CO35: 3 | CP35: 0 | CQ35: 1 | CR35: 0 | CS35: 0 | CT35: 0 | CU35: 1 | CV35: 0 | CW35: 2 - 3 | CX35: d-1 - 2 hours | CY35: 0 | CZ35: 3 | DA35: 2 | DB35: 1 | DC35: 0 | DD35: 0 | DE35: 0 | DF35: 1 | DG35: 1 | DH35: 0 | DI35: 0 | DJ35: 1 | DK35: 1 | DL35: 0 | DM35: 1 | DN35: 1 | DO35: 0
A36: 33 | B36: 2011-09-10 | C36: 6 | D36: Shatkira | E36: Assasuni | F36: Kadakhati | G36: Rural | H36: Kadakati | I36: 3-Marooned | J36: 1 | K36: 0 | L36: 0 | M36: 0 | N36: 1 | O36: 1 | P36: 1 | Q36: 1 | R36: 0 | S36: 4-Extremely vulnerable | T36: 1 | U36: 0 | V36: 3 | W36: 0 | X36: 0 | Y36: 2 | Z36: 0 | AA36: 0 | AB36: 0 | AC36: 0 | AD36: 0 | AE36: 0 | AF36: 1 | AG36: 4-Sanitary latrines (household) | AH36: 2-Hanging or open latrine | AI36: 1 | AJ36: 0 | AK36: 1 | AL36: 1 | AM36: 0 | AN36: 0 | AO36: 0 | AP36: 0 | AQ36: 0 | AR36: 0 | AS36: 0 | AT36: 0 | AU36: 0 | AV36: 0 | AW36: 0 | AX36: 0 | AY36: 0 | AZ36: 0 | BA36: 0 | BB36: 5 | BC36: 4 | BD36: 0 | BE36: 0 | BF36: 0 | BG36: 0 | BH36: 0 | BI36: 0 | BJ36: 3 | BK36: 2 | BL36: 0 | BM36: 0 | BN36: 0 | BO36: 1 | BP36: 0 | BQ36: 0 - <1 | BS36: 0 | BT36: 0 | BU36: 3 | BV36: 0 | BW36: 0 | BX36: 1 | BY36: 2 | BZ36: 0 | CA36: 0 | CB36: 0 | CC36: 0 | CD36: 0 | CE36: 0 | CF36: 1 | CG36: 10 + | CH36: 1 | CI36: 2-Hanging or open latrine | CJ36: 2-Hanging or open latrine | CK36: 1 | CL36: 0 | CM36: 0 | CN36: 3 | CO36: 2 | CP36: 0 | CQ36: 1 | CR36: 0 | CS36: 0 | CT36: 0 | CU36: 1 | CV36: 0 | CW36: 1 - 2 | CX36: d-1 - 2 hours | CY36: 0 | CZ36: 1 | DA36: 2 | DB36: 3 | DC36: 0 | DD36: 0 | DE36: 0 | DF36: 1 | DG36: 1 | DH36: 0 | DI36: 0 | DJ36: 1 | DK36: 1 | DL36: 1 | DM36: 1 | DN36: 1 | DO36: 0
A37: 34 | B37: 2011-09-10 | C37: 6 | D37: Shatkira | E37: Assasuni | F37: Kulia | G37: Rural | H37: Kochua | I37: 4-Damaged or water-logged | J37: 1 | K37: 0 | L37: 1 | M37: 0 | N37: 1 | O37: 1 | P37: 1 | Q37: 1 | R37: 1 | S37: 2-Vulnerable | T37: 1 | U37: 0 | V37: 3 | W37: 0 | X37: 0 | Y37: 2 | Z37: 0 | AA37: 0 | AB37: 0 | AC37: 0 | AD37: 0 | AE37: 0 | AF37: 1 | AG37: 4-Sanitary latrines (household) | AH37: 1-Open area | AI37: 1 | AJ37: 0 | AK37: 0 | AL37: 0 | AM37: 0 | AN37: 0 | AO37: 0 | AP37: 0 | AQ37: 0 | AR37: 0 | AS37: 1 | AT37: 0 | AU37: 3 | AV37: 2 | AW37: 0 | AX37: 0 | AY37: 0 | AZ37: 0 | BA37: 0 | BB37: 3 | BC37: 2 | BD37: 0 | BE37: 0 | BF37: 0 | BG37: 0 | BH37: 5 | BI37: 0 | BJ37: 0 | BK37: 4 | BL37: 0 | BM37: 0 | BN37: 0 | BO37: 0 | BP37: 0 | BQ37: 1 - 2 | BR37: 1 | BS37: 0 | BT37: 0 | BU37: 3 | BV37: 0 | BW37: 0 | BX37: 2 | BY37: 1 | BZ37: 0 | CA37: 0 | CB37: 0 | CC37: 0 | CD37: 0 | CE37: 0 | CF37: 1 | CG37: 10 + | CH37: 1 | CI37: 4-Sanitary latrines (household) | CJ37: 5-Other | CK37: 1 | CL37: 2 | CM37: 0 | CN37: 3 | CO37: 1 | CP37: 0 | CQ37: 0 | CR37: 0 | CS37: 0 | CT37: 0 | CU37: 1 | CV37: 0 | CW37: 1 - 2 | CX37: d-1 - 2 hours | CY37: 0 | CZ37: 3 | DA37: 1 | DB37: 2 | DC37: 0 | DD37: 0 | DE37: 1 | DF37: 1 | DG37: 1 | DH37: 0 | DI37: 0 | DJ37: 1 | DK37: 1 | DL37: 1 | DM37: 0 | DN37: 1 | DO37: 0
A38: 35 | B38: 2011-09-10 | C38: 6 | D38: Shatkira | E38: Assasuni | F38: Shobnali | G38: Rural | H38: Katakhali | I38: 2-Roadside / embankments | J38: 1 | K38: 1 | L38: 0 | M38: 0 | N38: 1 | O38: 1 | P38: 0 | Q38: 1 | R38: 0 | S38: 2-Vulnerable | T38: 1 | U38: 0 | V38: 3 | W38: 0 | X38: 0 | Y38: 2 | Z38: 0 | AA38: 0 | AB38: 0 | AC38: 0 | AD38: 0 | AE38: 0 | AF38: 0 | AG38: 4-Sanitary latrines (household) | AH38: 1-Open area | AI38: 1 | AJ38: 0 | AK38: 1 | AL38: 0 | AM38: 0 | AN38: 0 | AO38: 0 | AP38: 0 | AQ38: 0 | AR38: 0 | AS38: 3 | AT38: 0 | AU38: 2 | AV38: 0 | AW38: 0 | AX38: 0 | AY38: 0 | AZ38: 0 | BA38: 0 | BB38: 5 | BC38: 4 | BD38: 0 | BE38: 0 | BF38: 0 | BG38: 0 | BH38: 0 | BI38: 0 | BJ38: 0 | BK38: 3 | BL38: 0 | BM38: 0 | BN38: 0 | BO38: 0 | BP38: 0 | BQ38: 2 - 3 | BR38: 1 | BS38: 0 | BT38: 0 | BU38: 3 | BV38: 0 | BW38: 0 | BX38: 2 | BY38: 1 | BZ38: 0 | CA38: 0 | CB38: 0 | CC38: 0 | CD38: 0 | CE38: 0 | CF38: 1 | CG38: 10 + | CH38: 1 | CI38: 4-Sanitary latrines (household) | CJ38: 1-Open area | CK38: 1 | CL38: 0 | CM38: 0 | CN38: 3 | CO38: 2 | CP38: 0 | CQ38: 1 | CR38: 0 | CS38: 0 | CT38: 0 | CU38: 1 | CV38: 0 | CW38: 1 - 2 | CX38: c-30-60 minutes | CY38: 0 | CZ38: 3 | DA38: 2 | DB38: 1 | DC38: 0 | DD38: 0 | DE38: 0 | DF38: 1 | DG38: 1 | DH38: 0 | DI38: 0 | DJ38: 1 | DK38: 1 | DL38: 1 | DM38: 1 | DN38: 1 | DO38: 0
A39: 36 | B39: 2011-09-10 | C39: 6 | D39: Shatkira | E39: Assasuni | F39: Shobnali | G39: Rural | H39: Bodortola | I39: 3-Marooned | J39: 1 | K39: 1 | L39: 1 | M39: 1 | N39: 1 | O39: 1 | P39: 1 | Q39: 0 | R39: 0 | S39: 4-Extremely vulnerable | T39: 0 | U39: 0 | V39: 0 | W39: 0 | X39: 0 | Y39: 3 | Z39: 0 | AA39: 0 | AB39: 0 | AC39: 0 | AD39: 0 | AE39: 0 | AF39: 0 | AG39: 4-Sanitary latrines (household) | AH39: 1-Open area | AI39: 1 | AJ39: 0 | AK39: 1 | AL39: 0 | AM39: 0 | AN39: 0 | AO39: 1 | AP39: 0 | AQ39: 0 | AR39: 0 | AS39: 3 | AT39: 0 | AU39: 0 | AV39: 2 | AW39: 0 | AX39: 3 | AY39: 0 | AZ39: 0 | BA39: 0 | BB39: 5 | BC39: 4 | BD39: 0 | BE39: 0 | BF39: 0 | BG39: 0 | BH39: 0 | BI39: 0 | BJ39: 2 | BK39: 3 | BL39: 0 | BM39: 0 | BN39: 0 | BO39: 0 | BP39: 0 | BQ39: 0 - <1 | BS39: 0 | BT39: 0 | BU39: 3 | BV39: 0 | BW39: 0 | BX39: 2 | BY39: 1 | BZ39: 0 | CA39: 0 | CB39: 0 | CC39: 0 | CD39: 0 | CE39: 0 | CF39: 1 | CG39: 10 + | CH39: 1 | CI39: 4-Sanitary latrines (household) | CJ39: 2-Hanging or open latrine | CK39: 1 | CL39: 0 | CM39: 0 | CN39: 3 | CO39: 2 | CP39: 0 | CQ39: 0 | CR39: 0 | CS39: 0 | CT39: 1 | CU39: 1 | CV39: 0 | CW39: 1 - 2 | CX39: e-> 2 hours | CY39: 0 | CZ39: 1 | DA39: 0 | DB39: 3 | DC39: 0 | DD39: 2 | DE39: 1 | DF39: 1 | DG39: 1 | DH39: 0 | DI39: 0 | DJ39: 1 | DK39: 1 | DL39: 1 | DM39: 1 | DN39: 1 | DO39: 0
A40: 37 | B40: 2011-09-10 | C40: 5 | D40: Shatkira | E40: Debhata | F40: Kulia | G40: Rural | H40: Gobrakhali | I40: 1-Collective centers | J40: 1 | K40: 1 | L40: 1 | M40: 0 | N40: 0 | O40: 0 | P40: 1 | Q40: 1 | R40: 0 | S40: 4-Extremely vulnerable | T40: 1 | U40: 0 | V40: 2 | W40: 0 | X40: 0 | Y40: 3 | Z40: 0 | AA40: 0 | AB40: 0 | AC40: 0 | AD40: 0 | AE40: 0 | AG40: 4-Sanitary latrines (household) | AH40: 3-Sanitary latrines (communal) | AI40: 0 | AJ40: 0 | AK40: 1 | AL40: 1 | AM40: 1 | AN40: 0 | AO40: 0 | AP40: 1 | AQ40: 1 | AR40: 0 | AS40: 0 | AT40: 0 | AU40: 2 | AV40: 3 | AW40: 0 | AX40: 0 | AY40: 0 | AZ40: 1 | BA40: 0 | BB40: 3 | BC40: 0 | BD40: 0 | BE40: 0 | BF40: 0 | BG40: 0 | BH40: 5 | BI40: 4 | BJ40: 0 | BK40: 0 | BL40: 0 | BM40: 0 | BN40: 2 | BO40: 1 | BP40: 0 | BQ40: 3 + | BR40: 0 | BS40: 0 | BT40: 0 | BU40: 2 | BV40: 0 | BW40: 1 | BX40: 3 | BY40: 0 | BZ40: 0 | CA40: 0 | CB40: 0 | CC40: 0 | CD40: 0 | CE40: 0 | CF40: 0 | CG40: 10 + | CH40: 1 | CI40: 4-Sanitary latrines (household) | CJ40: 3-Sanitary latrines (communal) | CK40: 1 | CL40: 0 | CM40: 0 | CN40: 3 | CO40: 2 | CP40: 0 | CQ40: 3 | CR40: 0 | CS40: 0 | CT40: 0 | CU40: 1 | CV40: 0 | CW40: 1 - 2 | CX40: d-1 - 2 hours | CY40: 0 | CZ40: 3 | DA40: 2 | DB40: 0 | DC40: 0 | DD40: 1 | DE40: 0 | DF40: 1 | DG40: 0 | DH40: 0 | DI40: 0 | DJ40: 1 | DK40: 1 | DL40: 1 | DM40: 1 | DN40: 1 | DO40: 0
A41: 38 | B41: 2011-09-11 | C41: 5 | D41: Shatkira | E41: Debhata | F41: Nowapara | G41: Rural | H41: Kaminiboshu | I41: 3-Marooned | J41: 0 | K41: 0 | L41: 1 | M41: 0 | N41: 1 | O41: 1 | P41: 1 | Q41: 1 | R41: 0 | S41: 1-Relatively normal | T41: 1 | U41: 0 | V41: 2 | W41: 0 | X41: 0 | Y41: 3 | Z41: 0 | AA41: 0 | AB41: 0 | AC41: 0 | AD41: 0 | AE41: 0 | AF41: 1 | AG41: 4-Sanitary latrines (household) | AH41: 4-Sanitary latrines (household) | AI41: 0 | AJ41: 0 | AK41: 1 | AL41: 1 | AM41: 0 | AN41: 0 | AO41: 0 | AP41: 0 | AQ41: 0 | AR41: 0 | AS41: 0 | AT41: 0 | AU41: 0 | AV41: 3 | AW41: 0 | AX41: 2 | AY41: 0 | AZ41: 1 | BA41: 0 | BB41: 5 | BC41: 4 | BD41: 0 | BE41: 0 | BF41: 0 | BG41: 0 | BH41: 3 | BI41: 0 | BJ41: 2 | BK41: 0 | BL41: 0 | BM41: 0 | BN41: 1 | BO41: 0 | BP41: 0 | BQ41: 0 - <1 | BS41: 0 | BT41: 0 | BU41: 2 | BV41: 0 | BW41: 0 | BX41: 3 | BY41: 0 | BZ41: 0 | CA41: 0 | CB41: 1 | CC41: 0 | CD41: 0 | CE41: 0 | CF41: 0 | CG41: 10 + | CH41: 0 | CI41: 4-Sanitary latrines (household) | CJ41: 4-Sanitary latrines (household) | CK41: 1 | CL41: 0 | CM41: 0 | CN41: 0 | CO41: 3 | CP41: 2 | CQ41: 0 | CR41: 0 | CS41: 0 | CT41: 1 | CU41: 1 | CV41: 1 | CX41: c-30-60 minutes | CY41: 0 | CZ41: 2 | DA41: 3 | DB41: 1 | DC41: 0 | DD41: 0 | DE41: 0 | DF41: 1 | DG41: 0 | DH41: 0 | DI41: 0 | DJ41: 1 | DK41: 1 | DL41: 1 | DM41: 0 | DN41: 0 | DO41: 0
A42: 39 | B42: 2011-09-11 | C42: 5 | D42: Shatkira | E42: Debhata | F42: Nowapara | G42: Rural | H42: Chachura hati | I42: 5-Home undamaged | J42: 1 | K42: 0 | L42: 0 | M42: 0 | N42: 0 | O42: 1 | P42: 1 | Q42: 1 | R42: 0 | S42: 1-Relatively normal | T42: 0 | U42: 2 | V42: 0 | W42: 0 | X42: 1 | Y42: 3 | Z42: 0 | AA42: 0 | AB42: 0 | AC42: 0 | AD42: 0 | AE42: 0 | AF42: 0 | AG42: 4-Sanitary latrines (household) | AH42: 4-Sanitary latrines (household) | AI42: 1 | AJ42: 0 | AK42: 0 | AL42: 0 | AM42: 0 | AN42: 0 | AO42: 1 | AP42: 0 | AQ42: 0 | AR42: 0 | AS42: 0 | AT42: 0 | AU42: 0 | AV42: 0 | AW42: 0 | AX42: 0 | AY42: 0 | AZ42: 0 | BA42: 0 | BB42: 0 | BC42: 0 | BD42: 0 | BE42: 0 | BF42: 0 | BG42: 0 | BH42: 0 | BI42: 0 | BJ42: 0 | BK42: 0 | BL42: 0 | BM42: 0 | BN42: 0 | BO42: 0 | BP42: 0 | BQ42: 0 - <1 | BS42: 0 | BT42: 1 | BU42: 2 | BV42: 0 | BW42: 0 | BX42: 3 | BY42: 0 | BZ42: 0 | CA42: 0 | CB42: 0 | CC42: 0 | CD42: 0 | CE42: 0 | CF42: 0 | CG42: 10 + | CH42: 0 | CI42: 4-Sanitary latrines (household) | CJ42: 4-Sanitary latrines (household) | CK42: 0 | CL42: 0 | CM42: 0 | CN42: 0 | CO42: 3 | CP42: 2 | CQ42: 0 | CR42: 0 | CS42: 0 | CT42: 1 | CU42: 1 | CV42: 0 | CX42: b-< 30 minutes | CY42: 0 | CZ42: 2 | DA42: 3 | DB42: 0 | DC42: 0 | DD42: 1 | DE42: 0 | DF42: 1 | DG42: 0 | DH42: 0 | DI42: 0 | DJ42: 1 | DK42: 1 | DL42: 0 | DM42: 0 | DN42: 0 | DO42: 0
A43: 40 | B43: 2011-09-11 | C43: 5 | D43: Shatkira | E43: Debhata | F43: Parulia | G43: Rural | H43: Polgoda | I43: 2-Roadside / embankments | J43: 1 | K43: 0 | L43: 0 | M43: 0 | N43: 0 | O43: 1 | P43: 0 | Q43: 0 | R43: 0 | S43: 3-Seriously vulnerable | T43: 1 | U43: 0 | V43: 2 | W43: 0 | X43: 0 | Y43: 3 | Z43: 0 | AA43: 0 | AB43: 0 | AC43: 0 | AD43: 0 | AE43: 0 | AF43: 0 | AG43: 4-Sanitary latrines (household) | AH43: 2-Hanging or open latrine | AI43: 0 | AJ43: 0 | AK43: 1 | AL43: 1 | AM43: 0 | AN43: 0 | AO43: 1 | AP43: 0 | AQ43: 1 | AR43: 0 | AS43: 0 | AT43: 0 | AU43: 3 | AV43: 2 | AW43: 0 | AX43: 0 | AY43: 0 | AZ43: 0 | BA43: 0 | BB43: 4 | BC43: 5 | BD43: 0 | BE43: 0 | BF43: 0 | BG43: 1 | BH43: 0 | BI43: 0 | BJ43: 3 | BK43: 0 | BL43: 0 | BM43: 0 | BN43: 2 | BO43: 0 | BP43: 0 | BQ43: 3 + | BR43: 0 | BS43: 0 | BT43: 0 | BU43: 2 | BV43: 0 | BW43: 0 | BX43: 3 | BY43: 0 | BZ43: 0 | CA43: 0 | CB43: 0 | CC43: 0 | CD43: 1 | CE43: 0 | CF43: 0 | CG43: 10 + | CH43: 1 | CI43: 4-Sanitary latrines (household) | CJ43: 2-Hanging or open latrine | CK43: 1 | CL43: 0 | CM43: 0 | CN43: 3 | CO43: 2 | CP43: 0 | CQ43: 1 | CR43: 0 | CS43: 0 | CT43: 0 | CU43: 1 | CV43: 1 | CW43: 1 - 2 | CX43: b-< 30 minutes | CY43: 0 | CZ43: 3 | DA43: 2 | DB43: 0 | DC43: 0 | DD43: 1 | DE43: 0 | DF43: 1 | DG43: 0 | DH43: 0 | DI43: 0 | DJ43: 1 | DK43: 1 | DL43: 1 | DM43: 1 | DN43: 0 | DO43: 0
A44: 41 | B44: 2011-09-09 | C44: 5 | D44: Shatkira | E44: Debhata | F44: Parulia | G44: Rural | H44: Soto Shatha | I44: 4-Damaged or water-logged | J44: 1 | K44: 1 | L44: 1 | M44: 0 | N44: 0 | O44: 1 | P44: 0 | Q44: 1 | R44: 0 | S44: 4-Extremely vulnerable | T44: 0 | U44: 0 | V44: 2 | W44: 0 | X44: 0 | Y44: 3 | Z44: 0 | AA44: 0 | AB44: 0 | AC44: 1 | AD44: 0 | AE44: 0 | AG44: 4-Sanitary latrines (household) | AH44: 2-Hanging or open latrine | AI44: 0 | AJ44: 0 | AK44: 1 | AL44: 1 | AM44: 0 | AN44: 1 | AO44: 1 | AP44: 0 | AQ44: 1 | AR44: 0 | AS44: 1 | AT44: 0 | AU44: 0 | AV44: 3 | AW44: 0 | AX44: 0 | AY44: 0 | AZ44: 2 | BA44: 0 | BB44: 2 | BC44: 0 | BD44: 0 | BE44: 0 | BF44: 0 | BG44: 0 | BH44: 5 | BI44: 0 | BJ44: 1 | BK44: 4 | BL44: 0 | BM44: 0 | BN44: 3 | BO44: 0 | BP44: 0 | BQ44: 3 + | BR44: 0 | BS44: 0 | BT44: 0 | BU44: 2 | BV44: 0 | BW44: 3 | BX44: 0 | BY44: 1 | BZ44: 0 | CA44: 0 | CB44: 0 | CC44: 0 | CD44: 0 | CE44: 0 | CF44: 1 | CG44: 10 + | CH44: 1 | CI44: 4-Sanitary latrines (household) | CJ44: 2-Hanging or open latrine | CK44: 1 | CL44: 0 | CM44: 0 | CN44: 0 | CO44: 3 | CP44: 0 | CQ44: 0 | CR44: 2 | CS44: 1 | CT44: 0 | CU44: 1 | CV44: 0 | CX44: e-> 2 hours | CY44: 0 | CZ44: 1 | DA44: 3 | DB44: 2 | DC44: 0 | DD44: 0 | DE44: 0 | DF44: 1 | DG44: 0 | DH44: 0 | DI44: 0 | DJ44: 1 | DK44: 1 | DL44: 1 | DM44: 1 | DN44: 1 | DO44: 0
A45: 42 | B45: 2011-09-09 | C45: 4 | D45: Shatkira | E45: Kalaroa | F45: Deara | G45: Rural | H45: Deara Dakhil Madrasha | I45: 1-Collective centers | J45: 0 | K45: 1 | L45: 0 | M45: 0 | N45: 1 | O45: 1 | P45: 0 | Q45: 0 | R45: 0 | S45: 3-Seriously vulnerable | T45: 2 | U45: 0 | V45: 3 | W45: 0 | X45: 1 | Y45: 0 | Z45: 0 | AA45: 0 | AB45: 0 | AC45: 0 | AD45: 0 | AE45: 0 | AF45: 0 | AG45: 5-Other | AH45: 3-Sanitary latrines (communal) | AI45: 0 | AJ45: 0 | AK45: 0 | AL45: 0 | AM45: 0 | AN45: 0 | AO45: 0 | AP45: 0 | AQ45: 0 | AR45: 1 | AS45: 3 | AT45: 0 | AU45: 2 | AV45: 1 | AW45: 0 | AX45: 0 | AY45: 0 | AZ45: 0 | BA45: 0 | BB45: 0 | BC45: 0 | BD45: 0 | BE45: 0 | BF45: 0 | BG45: 0 | BH45: 0 | BI45: 0 | BJ45: 5 | BK45: 3 | BL45: 4 | BM45: 2 | BN45: 0 | BO45: 0 | BP45: 0 | BQ45: 3 + | BR45: 1 | BS45: 0 | BT45: 1 | BU45: 2 | BV45: 0 | BW45: 0 | BX45: 3 | BY45: 0 | BZ45: 0 | CA45: 0 | CB45: 0 | CC45: 0 | CD45: 0 | CE45: 1 | CF45: 1 | CG45: 10 + | CH45: 1 | CI45: 4-Sanitary latrines (household) | CJ45: 1-Open area | CK45: 1 | CL45: 1 | CM45: 2 | CN45: 3 | CO45: 0 | CP45: 0 | CQ45: 0 | CR45: 0 | CS45: 0 | CT45: 0 | CU45: 1 | CV45: 0 | CW45: 3 + | CX45: d-1 - 2 hours | CY45: 0 | CZ45: 3 | DA45: 2 | DB45: 1 | DC45: 0 | DD45: 0 | DE45: 1 | DF45: 1 | DG45: 0 | DH45: 0 | DI45: 0 | DJ45: 1 | DK45: 1 | DL45: 0 | DM45: 0 | DN45: 1 | DO45: 0
A46: 43 | B46: 2011-09-09 | C46: 4 | D46: Shatkira | E46: Kalaroa | F46: Deara | G46: Rural | H46: Deara Matpara | I46: 2-Roadside / embankments | J46: 0 | K46: 0 | L46: 1 | M46: 0 | N46: 1 | O46: 1 | P46: 0 | Q46: 0 | R46: 0 | S46: 2-Vulnerable | T46: 0 | U46: 0 | V46: 0 | W46: 0 | X46: 1 | Y46: 2 | Z46: 0 | AA46: 0 | AB46: 0 | AC46: 0 | AD46: 0 | AE46: 3 | AF46: 0 | AG46: 4-Sanitary latrines (household) | AH46: 1-Open area | AI46: 1 | AJ46: 0 | AK46: 0 | AL46: 0 | AM46: 0 | AN46: 0 | AO46: 0 | AP46: 0 | AQ46: 0 | AR46: 0 | AS46: 3 | AT46: 0 | AU46: 0 | AV46: 2 | AW46: 0 | AX46: 0 | AY46: 0 | AZ46: 0 | BA46: 0 | BB46: 3 | BC46: 2 | BD46: 0 | BE46: 0 | BF46: 0 | BG46: 0 | BH46: 0 | BI46: 0 | BJ46: 5 | BK46: 4 | BL46: 0 | BM46: 0 | BN46: 0 | BO46: 0 | BP46: 0 | BQ46: 3 + | BR46: 1 | BS46: 0 | BT46: 0 | BU46: 2 | BV46: 0 | BW46: 0 | BX46: 3 | BY46: 0 | BZ46: 0 | CA46: 0 | CB46: 1 | CC46: 0 | CD46: 0 | CE46: 0 | CF46: 0 | CG46: 10 + | CH46: 1 | CI46: 4-Sanitary latrines (household) | CJ46: 2-Hanging or open latrine | CK46: 1 | CL46: 3 | CM46: 0 | CN46: 2 | CO46: 1 | CP46: 0 | CQ46: 0 | CR46: 0 | CS46: 0 | CT46: 0 | CU46: 1 | CV46: 1 | CW46: 3 + | CX46: e-> 2 hours | CY46: 0 | CZ46: 3 | DA46: 2 | DB46: 1 | DC46: 0 | DD46: 0 | DE46: 1 | DF46: 0 | DG46: 1 | DH46: 0 | DI46: 0 | DJ46: 1 | DK46: 1 | DL46: 1 | DM46: 1 | DN46: 1 | DO46: 0
A47: 44 | B47: 2011-09-10 | C47: 4 | D47: Shatkira | E47: Kalaroa | F47: Joynagar | G47: Rural | H47: Dokkhin Khetropara | I47: 3-Marooned | J47: 1 | K47: 0 | L47: 0 | M47: 0 | N47: 1 | O47: 1 | P47: 1 | Q47: 0 | R47: 0 | S47: 2-Vulnerable | T47: 0 | U47: 0 | V47: 0 | W47: 0 | X47: 3 | Y47: 1 | Z47: 0 | AA47: 0 | AB47: 0 | AC47: 0 | AD47: 0 | AE47: 2 | AF47: 1 | AG47: 4-Sanitary latrines (household) | AH47: 1-Open area | AI47: 0 | AJ47: 0 | AK47: 1 | AL47: 0 | AM47: 0 | AN47: 0 | AO47: 0 | AP47: 0 | AQ47: 0 | AR47: 0 | AS47: 0 | AT47: 0 | AU47: 0 | AV47: 3 | AW47: 0 | AX47: 0 | AY47: 0 | AZ47: 0 | BA47: 0 | BB47: 0 | BC47: 0 | BD47: 0 | BE47: 0 | BF47: 0 | BG47: 0 | BH47: 0 | BI47: 0 | BJ47: 5 | BK47: 4 | BL47: 0 | BM47: 0 | BN47: 0 | BO47: 0 | BP47: 0 | BQ47: 1 - 2 | BR47: 1 | BS47: 0 | BT47: 1 | BU47: 0 | BV47: 0 | BW47: 0 | BX47: 3 | BY47: 2 | BZ47: 0 | CA47: 0 | CB47: 0 | CC47: 0 | CD47: 0 | CE47: 0 | CF47: 1 | CG47: 10 + | CH47: 1 | CI47: 4-Sanitary latrines (household) | CJ47: 1-Open area | CK47: 1 | CL47: 0 | CM47: 0 | CN47: 0 | CO47: 3 | CP47: 1 | CQ47: 2 | CR47: 0 | CS47: 0 | CT47: 0 | CU47: 1 | CV47: 1 | CX47: c-30-60 minutes | CY47: 0 | CZ47: 3 | DA47: 2 | DB47: 0 | DC47: 0 | DD47: 1 | DE47: 1 | DF47: 0 | DG47: 1 | DH47: 0 | DI47: 0 | DJ47: 1 | DK47: 1 | DL47: 0 | DM47: 0 | DN47: 1 | DO47: 0
A48: 45 | B48: 2011-09-10 | C48: 4 | D48: Shatkira | E48: Kalaroa | F48: Joynagar | G48: Rural | H48: Manik Nagar | I48: 5-Home undamaged | J48: 0 | K48: 1 | L48: 0 | M48: 0 | N48: 1 | O48: 0 | P48: 1 | Q48: 0 | R48: 0 | S48: 1-Relatively normal | T48: 3 | U48: 0 | V48: 0 | W48: 0 | X48: 0 | Y48: 0 | Z48: 0 | AA48: 0 | AB48: 0 | AC48: 0 | AD48: 0 | AE48: 2 | AF48: 0 | AG48: 4-Sanitary latrines (household) | AH48: 4-Sanitary latrines (household) | AI48: 0 | AJ48: 0 | AK48: 0 | AL48: 0 | AM48: 0 | AN48: 0 | AO48: 0 | AP48: 0 | AQ48: 0 | AR48: 0 | AS48: 0 | AT48: 0 | AU48: 0 | AV48: 0 | AW48: 0 | AX48: 0 | AY48: 0 | AZ48: 0 | BA48: 0 | BB48: 0 | BC48: 0 | BD48: 0 | BE48: 0 | BF48: 0 | BG48: 0 | BH48: 0 | BI48: 0 | BJ48: 4 | BK48: 3 | BL48: 0 | BM48: 0 | BN48: 5 | BO48: 0 | BP48: 0 | BQ48: 3 + | BS48: 3 | BT48: 2 | BU48: 0 | BV48: 0 | BW48: 0 | BX48: 0 | BY48: 0 | BZ48: 0 | CA48: 0 | CB48: 1 | CC48: 0 | CD48: 0 | CE48: 1 | CF48: 0 | CG48: 10 + | CH48: 0 | CI48: 4-Sanitary latrines (household) | CJ48: 4-Sanitary latrines (household) | CK48: 1 | CL48: 3 | CM48: 0 | CN48: 0 | CO48: 2 | CP48: 0 | CQ48: 0 | CR48: 0 | CS48: 0 | CT48: 1 | CU48: 1 | CV48: 1 | CX48: d-1 - 2 hours | CY48: 0 | CZ48: 0 | DA48: 3 | DB48: 2 | DC48: 0 | DD48: 1 | DE48: 0 | DF48: 0 | DG48: 1 | DH48: 0 | DI48: 0 | DJ48: 1 | DK48: 1 | DL48: 0 | DM48: 0 | DN48: 0 | DO48: 0
A49: 46 | B49: 2011-09-09 | C49: 4 | D49: Shatkira | E49: Kalaroa | F49: Pouroshava | G49: Urban | H49: Gopinathpur Poschim para | I49: 4-Damaged or water-logged | J49: 0 | K49: 0 | L49: 1 | M49: 0 | N49: 1 | O49: 1 | P49: 1 | Q49: 0 | R49: 0 | S49: 1-Relatively normal | T49: 0 | U49: 0 | V49: 0 | W49: 0 | X49: 2 | Y49: 3 | Z49: 1 | AA49: 0 | AB49: 0 | AC49: 0 | AD49: 0 | AE49: 0 | AF49: 1 | AG49: 4-Sanitary latrines (household) | AH49: 1-Open area | AI49: 0 | AJ49: 0 | AK49: 0 | AL49: 0 | AM49: 0 | AN49: 0 | AO49: 0 | AP49: 0 | AQ49: 0 | AR49: 0 | AS49: 3 | AT49: 0 | AU49: 0 | AV49: 0 | AW49: 2 | AX49: 1 | AY49: 0 | AZ49: 0 | BA49: 0 | BB49: 0 | BC49: 0 | BD49: 0 | BE49: 0 | BF49: 0 | BG49: 0 | BH49: 0 | BI49: 0 | BJ49: 5 | BK49: 4 | BL49: 0 | BM49: 0 | BN49: 0 | BO49: 0 | BP49: 0 | BQ49: 3 + | BR49: 1 | BS49: 0 | BT49: 0 | BU49: 2 | BV49: 0 | BW49: 0 | BX49: 3 | BY49: 1 | BZ49: 0 | CA49: 0 | CB49: 0 | CC49: 0 | CD49: 0 | CE49: 1 | CF49: 1 | CG49: 10 + | CH49: 1 | CI49: 4-Sanitary latrines (household) | CJ49: 2-Hanging or open latrine | CK49: 1 | CL49: 0 | CM49: 0 | CN49: 0 | CO49: 3 | CP49: 1 | CQ49: 2 | CR49: 0 | CS49: 0 | CT49: 0 | CU49: 1 | CV49: 1 | CX49: d-1 - 2 hours | CY49: 0 | CZ49: 2 | DA49: 3 | DB49: 1 | DC49: 0 | DD49: 0 | DE49: 0 | DF49: 1 | DG49: 1 | DH49: 0 | DI49: 0 | DJ49: 1 | DK49: 1 | DL49: 0 | DM49: 0 | DN49: 1 | DO49: 0
A50: 47 | B50: 2011-09-09 | C50: 3 | D50: Shatkira | E50: Shaktira_Sadar | F50: Bolli | G50: Rural | H50: Rajjabari bad, Mukudpur vill | I50: 2-Roadside / embankments | J50: 1 | K50: 1 | L50: 1 | M50: 0 | N50: 1 | O50: 1 | P50: 1 | Q50: 0 | R50: 1 | S50: 4-Extremely vulnerable | T50: 1 | U50: 0 | V50: 2 | W50: 0 | X50: 0 | Y50: 3 | Z50: 0 | AA50: 0 | AB50: 0 | AC50: 0 | AD50: 0 | AE50: 0 | AF50: 0 | AG50: 4-Sanitary latrines (household) | AH50: 2-Hanging or open latrine | AI50: 0 | AJ50: 0 | AK50: 1 | AL50: 0 | AM50: 0 | AN50: 0 | AO50: 1 | AP50: 0 | AQ50: 0 | AR50: 0 | AS50: 0 | AT50: 0 | AU50: 3 | AV50: 2 | AW50: 0 | AX50: 1 | AY50: 0 | AZ50: 0 | BA50: 0 | BB50: 5 | BC50: 4 | BD50: 0 | BE50: 0 | BF50: 0 | BG50: 0 | BH50: 2 | BI50: 0 | BJ50: 1 | BK50: 3 | BL50: 0 | BM50: 0 | BN50: 0 | BO50: 0 | BP50: 0 | BQ50: 3 + | BR50: 1 | BS50: 0 | BT50: 2 | BU50: 0 | BV50: 0 | BW50: 0 | BX50: 3 | BY50: 0 | BZ50: 1 | CA50: 0 | CB50: 0 | CC50: 0 | CD50: 0 | CE50: 0 | CF50: 1 | CG50: 10 + | CH50: 1 | CI50: 4-Sanitary latrines (household) | CJ50: 1-Open area | CK50: 1 | CL50: 3 | CM50: 0 | CN50: 2 | CO50: 0 | CP50: 0 | CQ50: 1 | CR50: 0 | CS50: 0 | CT50: 0 | CU50: 1 | CV50: 0 | CW50: 2 - 3 | CX50: d-1 - 2 hours | CY50: 0 | CZ50: 3 | DA50: 2 | DB50: 0 | DC50: 0 | DD50: 1 | DE50: 1 | DF50: 1 | DG50: 0 | DH50: 0 | DI50: 0 | DJ50: 1 | DK50: 1 | DL50: 1 | DM50: 0 | DN50: 1 | DO50: 0
A51: 48 | B51: 2011-09-10 | C51: 3 | D51: Shatkira | E51: Shaktira_Sadar | F51: Brahamorajpur | G51: Rural | H51: Machkhola | I51: 4-Damaged or water-logged | J51: 1 | K51: 1 | L51: 1 | M51: 0 | N51: 1 | O51: 1 | P51: 1 | Q51: 1 | R51: 1 | S51: 4-Extremely vulnerable | T51: 1 | U51: 0 | V51: 3 | W51: 0 | X51: 0 | Y51: 2 | Z51: 0 | AA51: 0 | AB51: 0 | AC51: 0 | AD51: 0 | AE51: 0 | AF51: 1 | AG51: 4-Sanitary latrines (household) | AH51: 2-Hanging or open latrine | AI51: 1 | AJ51: 1 | AK51: 1 | AL51: 0 | AM51: 0 | AN51: 0 | AO51: 1 | AP51: 1 | AQ51: 0 | AR51: 0 | AS51: 0 | AT51: 1 | AU51: 0 | AV51: 3 | AW51: 0 | AX51: 2 | AY51: 0 | AZ51: 0 | BA51: 0 | BB51: 5 | BC51: 1 | BD51: 4 | BE51: 0 | BF51: 0 | BG51: 0 | BH51: 0 | BI51: 0 | BJ51: 2 | BK51: 3 | BL51: 0 | BM51: 0 | BN51: 0 | BO51: 0 | BP51: 0 | BQ51: 2 - 3 | BS51: 0 | BT51: 0 | BU51: 1 | BV51: 0 | BW51: 0 | BX51: 3 | BY51: 2 | BZ51: 0 | CA51: 0 | CB51: 0 | CC51: 0 | CD51: 0 | CE51: 0 | CF51: 1 | CG51: 10 + | CH51: 1 | CI51: 2-Hanging or open latrine | CJ51: 2-Hanging or open latrine | CK51: 1 | CL51: 0 | CM51: 0 | CN51: 0 | CO51: 3 | CP51: 0 | CQ51: 2 | CR51: 1 | CS51: 0 | CT51: 0 | CU51: 1 | CV51: 0 | CW51: 2 - 3 | CX51: b-< 30 minutes | CY51: 0 | CZ51: 0 | DA51: 3 | DB51: 0 | DC51: 1 | DD51: 2 | DE51: 0 | DF51: 0 | DG51: 0 | DH51: 0 | DI51: 0 | DJ51: 1 | DK51: 1 | DL51: 1 | DM51: 1 | DN51: 1 | DO51: 0
A52: 49 | B52: 2011-09-10 | C52: 3 | D52: Shatkira | E52: Shaktira_Sadar | F52: Fringi | G52: Rural | H52: Gobordari | I52: 5-Home undamaged | J52: 0 | K52: 0 | L52: 0 | M52: 0 | N52: 1 | O52: 1 | P52: 1 | Q52: 0 | R52: 0 | S52: 4-Extremely vulnerable | T52: 3 | U52: 0 | V52: 0 | W52: 0 | X52: 0 | Y52: 1 | Z52: 0 | AA52: 0 | AB52: 0 | AC52: 2 | AD52: 0 | AE52: 0 | AF52: 0 | AG52: 4-Sanitary latrines (household) | AH52: 3-Sanitary latrines (communal) | AI52: 0 | AJ52: 0 | AK52: 1 | AL52: 0 | AM52: 0 | AN52: 0 | AO52: 1 | AP52: 0 | AQ52: 0 | AR52: 0 | AS52: 0 | AT52: 0 | AU52: 0 | AV52: 3 | AW52: 0 | AX52: 2 | AY52: 0 | AZ52: 0 | BA52: 0 | BB52: 5 | BC52: 4 | BD52: 4 | BE52: 0 | BF52: 0 | BG52: 0 | BH52: 3 | BI52: 0 | BJ52: 1 | BK52: 2 | BL52: 0 | BM52: 0 | BN52: 0 | BO52: 0 | BP52: 0 | BQ52: 2 - 3 | BS52: 0 | BT52: 0 | BU52: 0 | BV52: 1 | BW52: 0 | BX52: 3 | BY52: 2 | BZ52: 0 | CA52: 0 | CB52: 0 | CC52: 0 | CD52: 0 | CE52: 0 | CF52: 1 | CG52: 05 - 10 | CH52: 1 | CI52: 2-Hanging or open latrine | CJ52: 2-Hanging or open latrine | CK52: 1 | CL52: 0 | CM52: 0 | CN52: 0 | CO52: 3 | CP52: 0 | CQ52: 0 | CR52: 2 | CS52: 1 | CT52: 0 | CU52: 1 | CV52: 0 | CX52: a-Health facility nearby | CY52: 0 | CZ52: 3 | DA52: 2 | DB52: 0 | DC52: 0 | DD52: 1 | DE52: 1 | DF52: 1 | DG52: 0 | DH52: 0 | DI52: 0 | DJ52: 1 | DK52: 1 | DL52: 0 | DM52: 0 | DN52: 1 | DO52: 0
A53: 50 | B53: 2011-09-09 | C53: 3 | D53: Shatkira | E53: Shaktira_Sadar | F53: Labsa | G53: Rural | H53: Soninathpur, Binerputa | I53: 3-Marooned | J53: 1 | K53: 1 | L53: 0 | M53: 1 | N53: 1 | O53: 1 | P53: 1 | Q53: 0 | R53: 1 | S53: 4-Extremely vulnerable | T53: 0 | U53: 0 | V53: 1 | W53: 0 | X53: 0 | Y53: 2 | Z53: 0 | AA53: 0 | AB53: 0 | AC53: 0 | AD53: 3 | AE53: 0 | AF53: 0 | AG53: 4-Sanitary latrines (household) | AH53: 2-Hanging or open latrine | AI53: 1 | AJ53: 0 | AK53: 0 | AL53: 0 | AM53: 0 | AN53: 0 | AO53: 0 | AP53: 0 | AQ53: 0 | AR53: 0 | AS53: 3 | AT53: 1 | AU53: 0 | AV53: 2 | AW53: 0 | AX53: 0 | AY53: 0 | AZ53: 0 | BA53: 0 | BB53: 3 | BC53: 5 | BD53: 0 | BE53: 0 | BF53: 0 | BG53: 0 | BH53: 1 | BI53: 0 | BJ53: 4 | BK53: 2 | BL53: 0 | BM53: 0 | BN53: 0 | BO53: 0 | BP53: 0 | BQ53: 3 + | BS53: 0 | BT53: 0 | BU53: 2 | BV53: 0 | BW53: 0 | BX53: 1 | BY53: 0 | BZ53: 0 | CA53: 0 | CB53: 0 | CC53: 0 | CD53: 3 | CE53: 0 | CF53: 1 | CG53: 05 - 10 | CH53: 1 | CI53: 4-Sanitary latrines (household) | CJ53: 2-Hanging or open latrine | CK53: 1 | CL53: 0 | CM53: 0 | CN53: 0 | CO53: 3 | CP53: 0 | CQ53: 1 | CR53: 2 | CS53: 0 | CT53: 0 | CU53: 1 | CV53: 0 | CX53: c-30-60 minutes | CY53: 0 | CZ53: 2 | DA53: 3 | DB53: 1 | DC53: 0 | DD53: 0 | DE53: 1 | DF53: 1 | DG53: 0 | DH53: 0 | DI53: 0 | DJ53: 1 | DK53: 1 | DL53: 1 | DM53: 0 | DN53: 1 | DO53: 0
A54: 51 | B54: 2011-09-09 | C54: 3 | D54: Shatkira | E54: Shaktira_Sadar | F54: Municipality | G54: Rural | H54: 6 No Ward | I54: 1-Collective centers | J54: 1 | K54: 1 | L54: 1 | M54: 0 | N54: 1 | O54: 1 | P54: 1 | Q54: 0 | R54: 1 | S54: 4-Extremely vulnerable | T54: 0 | U54: 0 | V54: 2 | W54: 1 | X54: 0 | Y54: 3 | Z54: 0 | AA54: 0 | AB54: 0 | AC54: 0 | AD54: 0 | AE54: 0 | AF54: 1 | AG54: 4-Sanitary latrines (household) | AH54: 2-Hanging or open latrine | AI54: 1 | AJ54: 0 | AK54: 1 | AL54: 0 | AM54: 0 | AN54: 0 | AO54: 0 | AP54: 0 | AQ54: 0 | AR54: 0 | AS54: 3 | AT54: 0 | AU54: 2 | AV54: 0 | AW54: 0 | AX54: 0 | AY54: 0 | AZ54: 0 | BA54: 0 | BB54: 5 | BC54: 4 | BD54: 2 | BE54: 0 | BF54: 0 | BG54: 0 | BH54: 0 | BI54: 0 | BJ54: 0 | BK54: 3 | BL54: 0 | BM54: 0 | BN54: 0 | BO54: 1 | BP54: 0 | BQ54: 3 + | BR54: 1 | BS54: 0 | BT54: 0 | BU54: 0 | BV54: 0 | BW54: 2 | BX54: 3 | BY54: 0 | BZ54: 0 | CA54: 0 | CB54: 0 | CC54: 1 | CD54: 0 | CE54: 0 | CF54: 1 | CG54: 10 + | CH54: 1 | CI54: 4-Sanitary latrines (household) | CJ54: 2-Hanging or open latrine | CK54: 1 | CL54: 0 | CM54: 0 | CN54: 3 | CO54: 0 | CP54: 0 | CQ54: 2 | CR54: 1 | CS54: 0 | CT54: 0 | CU54: 1 | CV54: 0 | CW54: 1 - 2 | CX54: e-> 2 hours | CY54: 0 | CZ54: 0 | DA54: 3 | DB54: 2 | DC54: 1 | DD54: 0 | DE54: 0 | DF54: 0 | DG54: 0 | DH54: 0 | DI54: 0 | DJ54: 1 | DK54: 1 | DL54: 1 | DM54: 1 | DN54: 1 | DO54: 0
A55: 52 | B55: 2011-09-10 | C55: 3 | D55: Shatkira | E55: Shaktira_Sadar | F55: Municipality | G55: Urban | H55: 6 No Ward | I55: 2-Roadside / embankments | J55: 0 | K55: 0 | L55: 0 | M55: 0 | N55: 1 | O55: 1 | P55: 0 | Q55: 0 | R55: 1 | S55: 4-Extremely vulnerable | T55: 1 | U55: 0 | V55: 3 | W55: 0 | X55: 0 | Y55: 2 | Z55: 0 | AA55: 0 | AB55: 0 | AC55: 0 | AD55: 0 | AE55: 0 | AF55: 1 | AG55: 4-Sanitary latrines (household) | AH55: 3-Sanitary latrines (communal) | AI55: 0 | AJ55: 0 | AK55: 1 | AL55: 0 | AM55: 0 | AN55: 0 | AO55: 1 | AP55: 0 | AQ55: 0 | AR55: 0 | AS55: 0 | AT55: 0 | AU55: 3 | AV55: 2 | AW55: 0 | AX55: 1 | AY55: 0 | AZ55: 0 | BA55: 0 | BB55: 5 | BC55: 4 | BD55: 0 | BE55: 0 | BF55: 0 | BG55: 0 | BH55: 0 | BI55: 0 | BJ55: 0 | BK55: 3 | BL55: 0 | BM55: 0 | BN55: 0 | BO55: 0 | BP55: 0 | BQ55: 2 - 3 | BR55: 1 | BS55: 1 | BT55: 0 | BU55: 2 | BV55: 0 | BW55: 0 | BX55: 3 | BY55: 0 | BZ55: 0 | CA55: 0 | CB55: 0 | CC55: 0 | CD55: 0 | CE55: 0 | CF55: 0 | CG55: 10 + | CH55: 1 | CI55: 4-Sanitary latrines (household) | CJ55: 1-Open area | CK55: 1 | CL55: 0 | CM55: 0 | CN55: 3 | CO55: 2 | CP55: 0 | CQ55: 1 | CR55: 0 | CS55: 0 | CT55: 0 | CU55: 1 | CV55: 0 | CW55: 2 - 3 | CX55: b-< 30 minutes | CY55: 0 | CZ55: 1 | DA55: 3 | DB55: 0 | DC55: 0 | DD55: 2 | DE55: 0 | DF55: 1 | DG55: 1 | DH55: 0 | DI55: 0 | DJ55: 0 | DK55: 0 | DL55: 0 | DM55: 0 | DN55: 1 | DO55: 0
A56: 53 | B56: 2011-09-09 | C56: 1 | D56: Shatkira | E56: Tala | F56: Islam Kati | G56: Rural | H56: Narayanpur/ Bhanipur | I56: 2-Roadside / embankments | J56: 1 | K56: 1 | L56: 1 | M56: 0 | N56: 1 | O56: 1 | P56: 1 | Q56: 1 | R56: 0 | S56: 4-Extremely vulnerable | T56: 0 | U56: 0 | V56: 2 | W56: 0 | X56: 0 | Y56: 3 | Z56: 0 | AA56: 0 | AB56: 0 | AC56: 1 | AD56: 0 | AE56: 0 | AF56: 0 | AG56: 4-Sanitary latrines (household) | AH56: 3-Sanitary latrines (communal) | AI56: 0 | AJ56: 0 | AK56: 1 | AL56: 0 | AM56: 0 | AN56: 0 | AO56: 0 | AP56: 0 | AQ56: 1 | AR56: 0 | AS56: 1 | AT56: 0 | AU56: 3 | AV56: 2 | AW56: 0 | AX56: 0 | AY56: 0 | AZ56: 0 | BA56: 0 | BB56: 5 | BC56: 0 | BD56: 0 | BE56: 0 | BF56: 1 | BG56: 2 | BH56: 4 | BI56: 0 | BJ56: 3 | BK56: 0 | BL56: 0 | BM56: 0 | BN56: 0 | BO56: 0 | BP56: 0 | BQ56: 3 + | BR56: 1 | BS56: 0 | BT56: 0 | BU56: 0 | BV56: 0 | BW56: 1 | BX56: 3 | BY56: 2 | BZ56: 0 | CA56: 0 | CB56: 0 | CC56: 0 | CD56: 0 | CE56: 0 | CF56: 1 | CG56: 10 + | CH56: 1 | CI56: 4-Sanitary latrines (household) | CJ56: 3-Sanitary latrines (communal) | CK56: 1 | CL56: 0 | CM56: 2 | CN56: 0 | CO56: 3 | CP56: 0 | CQ56: 0 | CR56: 1 | CS56: 0 | CT56: 0 | CU56: 1 | CV56: 0 | CW56: 3 + | CX56: c-30-60 minutes | CY56: 0 | CZ56: 2 | DA56: 3 | DB56: 0 | DC56: 1 | DD56: 0 | DE56: 1 | DF56: 1 | DG56: 1 | DH56: 0 | DI56: 0 | DJ56: 1 | DK56: 1 | DL56: 1 | DM56: 1 | DN56: 1 | DO56: 0
A57: 54 | B57: 2011-09-11 | C57: 2 | D57: Shatkira | E57: Tala | F57: Khalilinagar | G57: Rural | H57: Nagarghata | I57: 2-Roadside / embankments | J57: 1 | K57: 1 | L57: 1 | M57: 0 | N57: 1 | O57: 1 | P57: 1 | Q57: 0 | R57: 0 | S57: 4-Extremely vulnerable | T57: 0 | U57: 0 | V57: 2 | W57: 0 | X57: 0 | Y57: 3 | Z57: 0 | AA57: 0 | AB57: 0 | AC57: 1 | AD57: 0 | AE57: 0 | AF57: 1 | AG57: 3-Sanitary latrines (communal) | AH57: 2-Hanging or open latrine | AI57: 1 | AJ57: 0 | AK57: 1 | AL57: 1 | AM57: 0 | AN57: 0 | AO57: 1 | AP57: 1 | AQ57: 1 | AR57: 0 | AS57: 3 | AT57: 0 | AU57: 2 | AV57: 1 | AW57: 0 | AX57: 0 | AY57: 0 | AZ57: 0 | BA57: 0 | BB57: 5 | BC57: 0 | BD57: 0 | BE57: 0 | BF57: 0 | BG57: 0 | BH57: 4 | BI57: 3 | BJ57: 1 | BK57: 0 | BL57: 0 | BM57: 2 | BN57: 1 | BO57: 0 | BP57: 0 | BQ57: 3 + | BR57: 1 | BS57: 0 | BT57: 0 | BU57: 3 | BV57: 0 | BW57: 0 | BX57: 2 | BY57: 1 | BZ57: 0 | CA57: 0 | CB57: 0 | CC57: 0 | CD57: 0 | CE57: 0 | CF57: 1 | CG57: 10 + | CH57: 1 | CI57: 4-Sanitary latrines (household) | CJ57: 3-Sanitary latrines (communal) | CK57: 1 | CL57: 0 | CM57: 0 | CN57: 3 | CO57: 2 | CP57: 0 | CQ57: 0 | CR57: 1 | CS57: 0 | CT57: 0 | CU57: 1 | CV57: 0 | CW57: 3 + | CX57: d-1 - 2 hours | CY57: 0 | CZ57: 3 | DA57: 0 | DB57: 1 | DC57: 0 | DD57: 2 | DE57: 0 | DF57: 1 | DG57: 1 | DH57: 0 | DI57: 0 | DJ57: 1 | DK57: 1 | DL57: 0 | DM57: 0 | DN57: 1 | DO57: 0
A58: 55 | B58: 2011-09-10 | C58: 2 | D58: Shatkira | E58: Tala | F58: Kholishakhali | G58: Rural | H58: Dolua College | I58: 1-Collective centers | J58: 1 | K58: 1 | L58: 0 | M58: 0 | N58: 1 | O58: 1 | P58: 1 | Q58: 1 | R58: 0 | S58: 4-Extremely vulnerable | T58: 1 | U58: 0 | V58: 3 | W58: 0 | X58: 0 | Y58: 2 | Z58: 0 | AA58: 0 | AB58: 0 | AC58: 0 | AD58: 0 | AE58: 0 | AF58: 1 | AG58: 3-Sanitary latrines (communal) | AH58: 3-Sanitary latrines (communal) | AI58: 0 | AJ58: 1 | AK58: 1 | AL58: 1 | AM58: 1 | AN58: 0 | AO58: 1 | AP58: 1 | AQ58: 0 | AR58: 0 | AS58: 2 | AT58: 0 | AU58: 3 | AV58: 1 | AW58: 0 | AX58: 0 | AY58: 0 | AZ58: 0 | BA58: 0 | BB58: 3 | BC58: 0 | BD58: 0 | BE58: 0 | BF58: 0 | BG58: 0 | BH58: 5 | BI58: 0 | BJ58: 0 | BK58: 2 | BL58: 0 | BM58: 4 | BN58: 0 | BO58: 1 | BP58: 0 | BQ58: 1 - 2 | BR58: 1 | BS58: 0 | BT58: 0 | BU58: 3 | BV58: 0 | BW58: 0 | BX58: 1 | BY58: 0 | BZ58: 2 | CA58: 0 | CB58: 0 | CC58: 0 | CD58: 0 | CE58: 1 | CF58: 1 | CG58: 10 + | CH58: 1 | CI58: 4-Sanitary latrines (household) | CJ58: 3-Sanitary latrines (communal) | CK58: 1 | CL58: 3 | CM58: 0 | CN58: 0 | CO58: 1 | CP58: 2 | CQ58: 0 | CR58: 0 | CS58: 0 | CT58: 0 | CU58: 1 | CV58: 0 | CW58: 3 + | CX58: b-< 30 minutes | CY58: 0 | CZ58: 3 | DA58: 2 | DB58: 1 | DC58: 0 | DD58: 0 | DE58: 1 | DF58: 1 | DG58: 0 | DH58: 0 | DI58: 0 | DJ58: 1 | DK58: 0 | DL58: 0 | DM58: 0 | DN58: 0 | DO58: 0
A59: 56 | B59: 2011-09-11 | C59: 2 | D59: Shatkira | E59: Tala | F59: Kumira | G59: Rural | H59: Raripara | I59: 3-Marooned | J59: 1 | K59: 0 | L59: 1 | M59: 0 | N59: 1 | O59: 1 | P59: 1 | Q59: 0 | R59: 0 | S59: 2-Vulnerable | T59: 0 | U59: 0 | V59: 0 | W59: 0 | X59: 0 | Y59: 2 | Z59: 0 | AA59: 0 | AB59: 0 | AC59: 1 | AD59: 0 | AE59: 3 | AF59: 1 | AG59: 3-Sanitary latrines (communal) | AH59: 2-Hanging or open latrine | AI59: 0 | AJ59: 0 | AK59: 0 | AL59: 1 | AM59: 0 | AN59: 0 | AO59: 0 | AP59: 0 | AQ59: 0 | AR59: 0 | AS59: 0 | AT59: 1 | AU59: 0 | AV59: 3 | AW59: 0 | AX59: 0 | AY59: 0 | AZ59: 0 | BA59: 2 | BB59: 2 | BC59: 0 | BD59: 0 | BE59: 0 | BF59: 0 | BG59: 0 | BH59: 5 | BI59: 4 | BJ59: 0 | BK59: 0 | BL59: 0 | BM59: 0 | BN59: 1 | BO59: 0 | BP59: 0 | BQ59: 3 + | BS59: 3 | BT59: 0 | BU59: 0 | BV59: 0 | BW59: 2 | BX59: 1 | BY59: 0 | BZ59: 0 | CA59: 0 | CB59: 0 | CC59: 0 | CD59: 0 | CE59: 1 | CF59: 1 | CG59: 10 + | CH59: 1 | CI59: 4-Sanitary latrines (household) | CJ59: 3-Sanitary latrines (communal) | CK59: 1 | CL59: 0 | CM59: 0 | CN59: 0 | CO59: 3 | CP59: 0 | CQ59: 1 | CR59: 2 | CS59: 0 | CT59: 0 | CU59: 1 | CV59: 0 | CW59: 2 - 3 | CX59: e-> 2 hours | CY59: 0 | CZ59: 3 | DA59: 0 | DB59: 2 | DC59: 0 | DD59: 1 | DE59: 0 | DF59: 1 | DG59: 0 | DH59: 0 | DI59: 0 | DJ59: 1 | DK59: 1 | DL59: 0 | DM59: 0 | DN59: 0 | DO59: 0
A60: 57 | B60: 2011-09-10 | C60: 2 | D60: Shatkira | E60: Tala | F60: Magura | G60: Rural | H60: Parmadra | I60: 4-Damaged or water-logged | J60: 1 | K60: 0 | L60: 1 | M60: 0 | N60: 1 | O60: 1 | P60: 1 | Q60: 0 | R60: 0 | S60: 4-Extremely vulnerable | T60: 2 | U60: 0 | V60: 3 | W60: 0 | X60: 0 | Y60: 1 | Z60: 0 | AA60: 0 | AB60: 0 | AC60: 0 | AD60: 0 | AE60: 0 | AF60: 1 | AG60: 3-Sanitary latrines (communal) | AH60: 2-Hanging or open latrine | AI60: 0 | AJ60: 0 | AK60: 1 | AL60: 1 | AM60: 0 | AN60: 0 | AO60: 0 | AP60: 0 | AQ60: 0 | AR60: 0 | AS60: 0 | AT60: 0 | AU60: 0 | AV60: 3 | AW60: 1 | AX60: 0 | AY60: 0 | AZ60: 0 | BA60: 2 | BB60: 4 | BC60: 0 | BD60: 0 | BE60: 0 | BF60: 0 | BG60: 0 | BH60: 2 | BI60: 0 | BJ60: 0 | BK60: 5 | BL60: 0 | BM60: 1 | BN60: 3 | BO60: 0 | BP60: 0 | BQ60: 3 + | BR60: 0 | BS60: 0 | BT60: 0 | BU60: 0 | BV60: 0 | BW60: 2 | BX60: 3 | BY60: 1 | BZ60: 0 | CA60: 0 | CB60: 0 | CC60: 0 | CD60: 0 | CE60: 0 | CF60: 1 | CG60: 05 - 10 | CH60: 1 | CI60: 4-Sanitary latrines (household) | CJ60: 3-Sanitary latrines (communal) | CK60: 1 | CL60: 0 | CM60: 0 | CN60: 0 | CO60: 0 | CP60: 0 | CQ60: 0 | CR60: 0 | CS60: 0 | CT60: 0 | CU60: 1 | CV60: 0 | CW60: 3 + | CX60: e-> 2 hours | CY60: 0 | CZ60: 1 | DA60: 2 | DB60: 3 | DC60: 0 | DD60: 0 | DE60: 1 | DF60: 1 | DG60: 0 | DH60: 0 | DI60: 0 | DJ60: 1 | DK60: 0 | DL60: 0 | DM60: 0 | DN60: 0 | DO60: 0
A61: 58 | B61: 2011-09-10 | C61: 2 | D61: Shatkira | E61: Tala | F61: Nagarghata | G61: Rural | H61: Nagarghata | I61: 5-Home undamaged | J61: 0 | K61: 0 | L61: 0 | M61: 0 | N61: 0 | O61: 0 | P61: 1 | Q61: 1 | R61: 0 | S61: 2-Vulnerable | T61: 2 | U61: 1 | V61: 0 | W61: 0 | X61: 0 | Y61: 3 | Z61: 0 | AA61: 0 | AB61: 0 | AC61: 0 | AD61: 0 | AE61: 0 | AF61: 0 | AG61: 4-Sanitary latrines (household) | AH61: 3-Sanitary latrines (communal) | AI61: 0 | AJ61: 0 | AK61: 0 | AL61: 0 | AM61: 0 | AN61: 0 | AO61: 0 | AP61: 0 | AQ61: 0 | AR61: 0 | AS61: 0 | AT61: 0 | AU61: 0 | AV61: 0 | AW61: 0 | AX61: 0 | AY61: 0 | AZ61: 0 | BA61: 0 | BB61: 0 | BC61: 0 | BD61: 0 | BE61: 0 | BF61: 0 | BG61: 0 | BH61: 0 | BI61: 0 | BJ61: 0 | BK61: 0 | BL61: 0 | BM61: 0 | BN61: 0 | BO61: 0 | BP61: 0 | BQ61: 0 - <1 | BS61: 2 | BT61: 0 | BU61: 0 | BV61: 1 | BW61: 0 | BX61: 3 | BY61: 0 | BZ61: 0 | CA61: 0 | CB61: 0 | CC61: 0 | CD61: 0 | CE61: 1 | CF61: 1 | CG61: 05 - 10 | CH61: 0 | CI61: 4-Sanitary latrines (household) | CJ61: 5-Other | CK61: 1 | CL61: 0 | CM61: 0 | CN61: 0 | CO61: 0 | CP61: 0 | CQ61: 0 | CR61: 0 | CS61: 0 | CT61: 0 | CU61: 1 | CV61: 0 | CW61: 3 + | CX61: e-> 2 hours | CY61: 0 | CZ61: 3 | DA61: 0 | DB61: 2 | DC61: 0 | DD61: 1 | DE61: 1 | DF61: 1 | DG61: 0 | DH61: 0 | DI61: 0 | DJ61: 1 | DK61: 0 | DL61: 0 | DM61: 0 | DN61: 0 | DO61: 0
A62: 59 | B62: 2011-09-10 | C62: 1 | D62: Shatkira | E62: Tala | F62: Sarulia | G62: Rural | H62: Kasipur | I62: 1-Collective centers | J62: 1 | K62: 1 | L62: 1 | M62: 0 | N62: 1 | O62: 1 | P62: 1 | Q62: 1 | R62: 0 | S62: 3-Seriously vulnerable | T62: 0 | U62: 0 | V62: 0 | W62: 0 | X62: 1 | Y62: 3 | Z62: 2 | AA62: 0 | AB62: 0 | AC62: 0 | AD62: 0 | AE62: 0 | AF62: 0 | AG62: 4-Sanitary latrines (household) | AH62: 1-Open area | AI62: 0 | AJ62: 1 | AK62: 0 | AL62: 1 | AM62: 0 | AN62: 0 | AO62: 0 | AP62: 1 | AQ62: 0 | AR62: 0 | AS62: 0 | AT62: 0 | AU62: 3 | AV62: 2 | AW62: 0 | AX62: 1 | AY62: 0 | AZ62: 0 | BA62: 0 | BB62: 5 | BC62: 0 | BD62: 4 | BE62: 0 | BF62: 3 | BG62: 0 | BH62: 0 | BI62: 0 | BJ62: 2 | BK62: 1 | BL62: 0 | BM62: 0 | BN62: 0 | BO62: 0 | BP62: 0 | BQ62: 3 + | BR62: 1 | BS62: 0 | BT62: 0 | BU62: 1 | BV62: 0 | BW62: 0 | BX62: 3 | BY62: 2 | BZ62: 0 | CA62: 0 | CB62: 0 | CC62: 0 | CD62: 0 | CE62: 0 | CF62: 1 | CG62: 10 + | CH62: 1 | CI62: 4-Sanitary latrines (household) | CJ62: 3-Sanitary latrines (communal) | CK62: 1 | CL62: 0 | CM62: 0 | CN62: 3 | CO62: 2 | CP62: 0 | CQ62: 0 | CR62: 1 | CS62: 0 | CT62: 0 | CU62: 1 | CV62: 0 | CW62: 3 + | CX62: a-Health facility nearby | CY62: 0 | CZ62: 2 | DA62: 3 | DB62: 1 | DC62: 0 | DD62: 0 | DE62: 1 | DF62: 1 | DG62: 1 | DH62: 0 | DI62: 0 | DJ62: 1 | DK62: 1 | DL62: 1 | DM62: 0 | DN62: 1 | DO62: 0
A63: 60 | B63: 2011-09-11 | C63: 1 | D63: Shatkira | E63: Tala | F63: Sarulia | G63: Rural | H63: Boro Kasipur | I63: 3-Marooned | J63: 1 | K63: 1 | L63: 1 | M63: 0 | N63: 1 | O63: 1 | P63: 1 | Q63: 1 | R63: 0 | S63: 3-Seriously vulnerable | T63: 2 | U63: 0 | V63: 1 | W63: 0 | X63: 0 | Y63: 3 | Z63: 0 | AA63: 0 | AB63: 0 | AC63: 0 | AD63: 0 | AE63: 0 | AF63: 0 | AG63: 4-Sanitary latrines (household) | AH63: 1-Open area | AI63: 1 | AJ63: 0 | AK63: 1 | AL63: 0 | AM63: 0 | AN63: 0 | AO63: 0 | AP63: 1 | AQ63: 0 | AR63: 0 | AS63: 0 | AT63: 0 | AU63: 3 | AV63: 2 | AW63: 0 | AX63: 1 | AY63: 0 | AZ63: 0 | BA63: 0 | BB63: 2 | BC63: 0 | BD63: 0 | BE63: 0 | BF63: 5 | BG63: 4 | BH63: 0 | BI63: 0 | BJ63: 0 | BK63: 3 | BL63: 0 | BM63: 0 | BN63: 1 | BO63: 0 | BP63: 0 | BQ63: 3 + | BR63: 0 | BS63: 1 | BT63: 0 | BU63: 0 | BV63: 0 | BW63: 0 | BX63: 3 | BY63: 2 | BZ63: 0 | CA63: 0 | CB63: 0 | CC63: 0 | CD63: 0 | CE63: 0 | CF63: 1 | CG63: 10 + | CH63: 1 | CI63: 4-Sanitary latrines (household) | CJ63: 5-Other | CK63: 1 | CL63: 0 | CM63: 0 | CN63: 0 | CO63: 0 | CP63: 3 | CQ63: 0 | CR63: 0 | CS63: 2 | CT63: 1 | CU63: 1 | CV63: 0 | CW63: 3 + | CX63: c-30-60 minutes | CY63: 0 | CZ63: 1 | DA63: 2 | DB63: 3 | DC63: 0 | DD63: 0 | DE63: 1 | DF63: 1 | DG63: 1 | DH63: 0 | DI63: 0 | DJ63: 1 | DK63: 1 | DL63: 0 | DM63: 0 | DN63: 1 | DO63: 0
A64: 61 | B64: 2011-09-10 | C64: 1 | D64: Shatkira | E64: Tala | F64: Tala Sadar | G64: Rural | H64: Monipur/ Shahpur | I64: 2-Roadside / embankments | J64: 1 | K64: 1 | L64: 1 | M64: 0 | N64: 1 | O64: 1 | P64: 1 | Q64: 1 | R64: 0 | S64: 4-Extremely vulnerable | T64: 2 | U64: 0 | V64: 1 | W64: 0 | X64: 0 | Y64: 3 | Z64: 0 | AA64: 0 | AB64: 0 | AC64: 0 | AD64: 0 | AE64: 0 | AF64: 1 | AG64: 4-Sanitary latrines (household) | AH64: 5-Other | AI64: 0 | AJ64: 1 | AK64: 1 | AL64: 1 | AM64: 0 | AN64: 0 | AO64: 1 | AP64: 0 | AQ64: 0 | AR64: 0 | AS64: 0 | AT64: 0 | AU64: 3 | AV64: 2 | AW64: 0 | AX64: 0 | AY64: 0 | AZ64: 1 | BA64: 0 | BB64: 5 | BC64: 0 | BD64: 0 | BE64: 0 | BF64: 1 | BG64: 2 | BH64: 4 | BI64: 0 | BJ64: 3 | BK64: 2 | BL64: 1 | BM64: 0 | BN64: 0 | BO64: 0 | BP64: 0 | BQ64: 3 + | BR64: 1 | BS64: 0 | BT64: 0 | BU64: 2 | BV64: 0 | BW64: 0 | BX64: 3 | BY64: 1 | BZ64: 0 | CA64: 0 | CB64: 0 | CC64: 0 | CD64: 0 | CE64: 0 | CF64: 1 | CG64: 10 + | CH64: 1 | CI64: 4-Sanitary latrines (household) | CJ64: 3-Sanitary latrines (communal) | CK64: 1 | CL64: 0 | CM64: 0 | CN64: 1 | CO64: 3 | CP64: 0 | CQ64: 0 | CR64: 2 | CS64: 0 | CT64: 0 | CU64: 1 | CV64: 0 | CW64: 3 + | CX64: e-> 2 hours | CY64: 0 | CZ64: 2 | DA64: 3 | DB64: 0 | DC64: 0 | DD64: 1 | DE64: 1 | DF64: 1 | DG64: 1 | DH64: 0 | DI64: 0 | DJ64: 1 | DK64: 1 | DL64: 1 | DM64: 0 | DN64: 1 | DO64: 0
A65: 62 | B65: 2011-09-10 | C65: 1 | D65: Shatkira | E65: Tala | F65: Tala Sadar | G65: Rural | H65: Kismotghona | I65: 5-Home undamaged | J65: 1 | K65: 1 | L65: 0 | M65: 0 | N65: 1 | O65: 1 | P65: 1 | Q65: 1 | R65: 0 | S65: 2-Vulnerable | T65: 2 | U65: 0 | V65: 0 | W65: 0 | X65: 0 | Y65: 3 | Z65: 0 | AA65: 0 | AB65: 0 | AC65: 1 | AD65: 0 | AE65: 0 | AF65: 1 | AG65: 4-Sanitary latrines (household) | AH65: 4-Sanitary latrines (household) | AI65: 0 | AJ65: 0 | AK65: 0 | AL65: 0 | AM65: 0 | AN65: 0 | AO65: 0 | AP65: 0 | AQ65: 0 | AR65: 1 | AS65: 0 | AT65: 0 | AU65: 0 | AV65: 0 | AW65: 0 | AX65: 0 | AY65: 0 | AZ65: 0 | BA65: 0 | BB65: 5 | BC65: 3 | BD65: 0 | BE65: 0 | BF65: 0 | BG65: 0 | BH65: 4 | BI65: 0 | BJ65: 0 | BK65: 1 | BL65: 0 | BM65: 0 | BN65: 2 | BO65: 0 | BP65: 0 | BQ65: 3 + | BS65: 0 | BT65: 0 | BU65: 0 | BV65: 1 | BW65: 0 | BX65: 2 | BY65: 0 | BZ65: 0 | CA65: 0 | CB65: 3 | CC65: 0 | CD65: 0 | CE65: 1 | CF65: 0 | CG65: 10 + | CH65: 0 | CI65: 4-Sanitary latrines (household) | CJ65: 4-Sanitary latrines (household) | CK65: 0 | CL65: 0 | CM65: 0 | CN65: 0 | CO65: 0 | CP65: 0 | CQ65: 0 | CR65: 0 | CS65: 0 | CT65: 0 | CU65: 1 | CV65: 0 | CX65: c-30-60 minutes | CY65: 0 | CZ65: 1 | DA65: 2 | DB65: 3 | DC65: 0 | DD65: 0 | DE65: 1 | DF65: 0 | DG65: 1 | DH65: 0 | DI65: 0 | DJ65: 1 | DK65: 0 | DL65: 0 | DM65: 0 | DN65: 0 | DO65: 0
A66: 63 | B66: 2011-09-09 | C66: 1 | D66: Shatkira | E66: Tala | F66: Tentulia | G66: Rural | H66: Hatbas, Modonpur, Lakkhanpur | I66: 2-Roadside / embankments | J66: 1 | K66: 1 | L66: 1 | M66: 0 | N66: 1 | O66: 1 | P66: 1 | Q66: 1 | R66: 0 | S66: 4-Extremely vulnerable | T66: 0 | U66: 0 | V66: 2 | W66: 0 | X66: 0 | Y66: 3 | Z66: 0 | AA66: 0 | AB66: 0 | AC66: 1 | AD66: 0 | AE66: 0 | AF66: 1 | AG66: 4-Sanitary latrines (household) | AH66: 3-Sanitary latrines (communal) | AI66: 0 | AJ66: 1 | AK66: 1 | AL66: 1 | AM66: 0 | AN66: 0 | AO66: 0 | AP66: 0 | AQ66: 0 | AR66: 0 | AS66: 0 | AT66: 0 | AU66: 3 | AV66: 2 | AW66: 0 | AX66: 1 | AY66: 0 | AZ66: 0 | BA66: 0 | BB66: 5 | BC66: 4 | BD66: 0 | BE66: 3 | BF66: 0 | BG66: 2 | BH66: 0 | BI66: 0 | BJ66: 1 | BK66: 0 | BL66: 0 | BM66: 0 | BN66: 0 | BO66: 0 | BP66: 0 | BQ66: 3 + | BR66: 1 | BS66: 0 | BT66: 0 | BU66: 1 | BV66: 0 | BW66: 0 | BX66: 3 | BY66: 2 | BZ66: 0 | CA66: 0 | CB66: 0 | CC66: 0 | CD66: 0 | CE66: 0 | CF66: 1 | CG66: 10 + | CH66: 1 | CI66: 4-Sanitary latrines (household) | CJ66: 3-Sanitary latrines (communal) | CK66: 1 | CL66: 0 | CM66: 0 | CN66: 0 | CO66: 3 | CP66: 0 | CQ66: 0 | CR66: 2 | CS66: 0 | CT66: 1 | CU66: 1 | CV66: 0 | CW66: 3 + | CX66: c-30-60 minutes | CY66: 0 | CZ66: 2 | DA66: 3 | DB66: 1 | DC66: 0 | DD66: 0 | DE66: 1 | DF66: 1 | DG66: 0 | DH66: 0 | DI66: 0 | DJ66: 1 | DK66: 1 | DL66: 1 | DM66: 1 | DN66: 1 | DO66: 0

Sheet Analysis01_Variables
A1: ColNo | B1: Data sets by origin | C1: Type of variable | D1: Variable label | E1: Variable name (question no.) | F1: COUNTA | G1: COUNT | H1: MIN | I1: MEDIAN | J1: MEAN over non-blanks | K1: MEAN, blanks = 0 | L1: MAX | M1: SUM | N1: Original question wording - Upper level. Also: for calculated variables, the formulas used (See in rows 121 - 132). | O1: Original question wording - Lower level - or response options, numbered
A2: 1 | B2: Identifiers | C2: Integer | D2: Record number | E2: i_00_01 | F2: =COUNTA(INDIRECT($E2)) -> 63 | G2: =COUNT(INDIRECT($E2)) -> 63 | H2: =MIN(INDIRECT($E2)) -> 1 | I2: =MEDIAN(INDIRECT($E2)) -> 32 | J2: =AVERAGE(INDIRECT($E2)) -> 32 | K2: =IF(L2=0,"",SUM(INDIRECT($E2)) / 63) -> 32 | L2: =MAX(INDIRECT($E2)) -> 63 | M2: =SUM(INDIRECT($E2)) -> 2016 | N2: Localisation | O2: New Number
A3: 2 | C3: Date | D3: Assessment date | E3: i_00_03 | F3: 63 | G3: 63 | H3: 2011-09-08 | I3: =MEDIAN(INDIRECT($E3)) -> 2011-09-10 | J3: =AVERAGE(INDIRECT($E3)) -> 40795.79365 | K3: 40795.79365 | L3: 2011-09-11 | M3: 2570135 | N3: Localisation | O3: 00.03 Date
A4: 3 | C4: Categorical | D4: Team number | E4: i_00_04 | F4: 63 | G4: 63 | H4: 1 | I4: =MEDIAN(INDIRECT($E4)) -> 6 | J4: =AVERAGE(INDIRECT($E4)) -> 6.126984127 | K4: 6.126984127 | L4: 11 | M4: 386 | N4: Localisation | O4: 00.04 Team Number
A5: 4 | C5: Categorical | D5: District | E5: i_00_05 | F5: 63 | G5: 0 | H5: 0 | L5: 0 | M5: 0 | N5: Localisation | O5: 00.05 District
A6: 5 | C6: Categorical | D6: Upazila | E6: i_00_06 | F6: 63 | G6: 0 | H6: 0 | L6: 0 | M6: 0 | N6: Localisation | O6: 00.06 Upazilla
A7: 6 | C7: Categorical | D7: Union | E7: i_00_07 | F7: 63 | G7: 0 | H7: 0 | L7: 0 | M7: 0 | N7: Localisation | O7: 00.07 Union
A8: 7 | C8: Categorical | D8: Urban vs. rural | E8: i_00_08 | F8: 63 | G8: 0 | H8: 0 | L8: 0 | M8: 0 | N8: Localisation | O8: 00.08 Urban / Rural
A9: 8 | C9: Categorical | D9: Village | E9: i_00_09 | F9: 63 | G9: 0 | H9: 0 | L9: 0 | M9: 0 | N9: Localisation | O9: 00.09Village
A10: 9 | B10: Team observations | C10: Grouping variable | D10: Living arrangement | E10: t_00_10 | F10: 63 | G10: 0 | H10: 0 | L10: 0 | M10: 0 | N10: Living Arrangement | O10: 00.10 Living Arrangement
A11: 10 | C11: Binary indicator | D11: Stagnant water: Settlement | E11: t_02_01 | F11: 63 | G11: 63 | H11: 0 | I11: =MEDIAN(INDIRECT($E11)) -> 1 | J11: =AVERAGE(INDIRECT($E11)) -> 0.8095238095 | K11: 0.8095238095 | L11: 1 | M11: 51 | N11: 02.00 There are problems with stagnant water: ( Tick all that apply) | O11: 02.01in and around settlement
A12: 11 | C12: Binary indicator | D12: Stagnant water: Shelter | E12: t_02_02 | F12: 63 | G12: 63 | H12: 0 | I12: 0 | J12: 0.3650793651 | K12: 0.3650793651 | L12: 1 | M12: 23 | N12: 02.00 There are problems with stagnant water: ( Tick all that apply) | O12: 02.02 in and around shelters
A13: 12 | C13: Binary indicator | D13: Stagnant water: Water points | E13: t_02_03 | F13: 63 | G13: 63 | H13: 0 | I13: 1 | J13: 0.6031746032 | K13: 0.6031746032 | L13: 1 | M13: 38 | N13: 02.00 There are problems with stagnant water: ( Tick all that apply) | O13: 02.03 in and around water points/facilities
A14: 13 | C14: Binary indicator | D14: Stagnant water: Other | E14: t_02_04 | F14: 63 | G14: 63 | H14: 0 | I14: 0 | J14: 0.09523809524 | K14: 0.09523809524 | L14: 1 | M14: 6 | N14: 02.00 There are problems with stagnant water: ( Tick all that apply) | O14: 02.04 other
A15: 14 | C15: Binary indicator | D15: Garbage | E15: t_03_00 | F15: 63 | G15: 63 | H15: 0 | I15: 1 | J15: 0.8571428571 | K15: 0.8571428571 | L15: 1 | M15: 54 | O15: 03.00 Is there a problem with garbage/waste around where people are staying?
A16: 15 | C16: Binary indicator | D16: Disease vectors | E16: t_04_00 | F16: 63 | G16: 63 | H16: 0 | I16: 1 | J16: 0.9365079365 | K16: 0.9365079365 | L16: 1 | M16: 59 | O16: 04.00 Are there vectors evident where people are staying (mosquitoes, rats etc)
A17: 16 | C17: Binary indicator | D17: Latrines at site | E17: t_05_00 | F17: 63 | G17: 63 | H17: 0 | I17: 1 | J17: 0.8571428571 | K17: 0.8571428571 | L17: 1 | M17: 54 | O17: 05.00 Are there latrines at the site?
A18: 17 | C18: Binary indicator | D18: Students truant | E18: t_09_00 | F18: 63 | G18: 63 | H18: 0 | I18: 0 | J18: 0.4761904762 | K18: 0.4761904762 | L18: 1 | M18: 30 | O18: 09.00 Were school aged children observed out of school during school hours on school days?
A19: 18 | C19: Binary indicator | D19: Open water sources | E19: t_10_07 | F19: 63 | G19: 63 | H19: 0 | I19: 0 | J19: 0.1587301587 | K19: 0.1587301587 | L19: 1 | M19: 10 | O19: 10.07 Water taken also from ponds, rivers, canals
A20: 19 | C20: Team's severity ranking | D20: Site assessment by team | E20: t_14_00 | F20: 63 | G20: 0 | H20: 0 | L20: 0 | M20: 0 | O20: 14.00 Assessment team overall ranking of the situation at this site: (tick one only)
A21: 20 | B21: Men's groups | C21: Priority type data | D21: Priority for men: Livelihoods | E21: m_03_01 | F21: 63 | G21: 63 | H21: 0 | I21: =MEDIAN(INDIRECT($E21)) -> 1 | J21: =AVERAGE(INDIRECT($E21)) -> 1.380952381 | K21: 1.380952381 | L21: 3 | M21: 87 | N21: 03.00 For men in this community, what is the top priority right now? (select three only, number them 1st, 2nd, 3rd) | O21: 03.01 resumption of livelihood activities
A22: 21 | D22: Priority for men: Livestock feed | E22: m_03_02 | F22: 63 | G22: 63 | H22: 0 | I22: 0 | J22: 0.1587301587 | K22: 0.1587301587 | L22: 2 | M22: 10 | N22: 03.00 For men in this community, what is the top priority right now? (select three only, number them 1st, 2nd, 3rd) | O22: 03.02 feed for livestock
A23: 22 | D23: Priority for men: Rebuild homes | E23: m_03_03 | F23: 63 | G23: 63 | H23: 0 | I23: 0 | J23: 0.873015873 | K23: 0.873015873 | L23: 3 | M23: 55 | N23: 03.00 For men in this community, what is the top priority right now? (select three only, number them 1st, 2nd, 3rd) | O23: 03.03 return/rebuild houses
A24: 23 | D24: Priority for men: Children's schooling | E24: m_03_04 | F24: 63 | G24: 63 | H24: 0 | I24: 0 | J24: 0.01587301587 | K24: 0.01587301587 | L24: 1 | M24: 1 | N24: 03.00 For men in this community, what is the top priority right now? (select three only, number them 1st, 2nd, 3rd) | O24: 03.04 children return to school
A25: 24 | D25: Priority for men: Health care | E25: m_03_05 | F25: 63 | G25: 63 | H25: 0 | I25: 0 | J25: 0.3015873016 | K25: 0.3015873016 | L25: 3 | M25: 19 | N25: 03.00 For men in this community, what is the top priority right now? (select three only, number them 1st, 2nd, 3rd) | O25: 03.05 health care
A26: 25 | D26: Priority for men: Food | E26: m_03_06 | F26: 63 | G26: 63 | H26: 0 | I26: 3 | J26: 2.238095238 | K26: 2.238095238 | L26: 3 | M26: 141 | N26: 03.00 For men in this community, what is the top priority right now? (select three only, number them 1st, 2nd, 3rd) | O26: 03.06 food
A27: 26 | D27: Priority for men: Safe drinking water | E27: m_03_07 | F27: 63 | G27: 63 | H27: 0 | I27: 0 | J27: 0.3015873016 | K27: 0.3015873016 | L27: 3 | M27: 19 | N27: 03.00 For men in this community, what is the top priority right now? (select three only, number them 1st, 2nd, 3rd) | O27: 03.07 access to clean drinking water
A28: 27 | D28: Priority for men: Water for wash and bath | E28: m_03_08 | F28: 63 | G28: 63 | H28: 0 | L28: 0 | M28: 0 | N28: 03.00 For men in this community, what is the top priority right now? (select three only, number them 1st, 2nd, 3rd) | O28: 03.08 access to water for washing/bathing
A29: 28 | D29: Priority for men: Markets | E29: m_03_09 | F29: 63 | G29: 63 | H29: 0 | L29: 0 | M29: 0 | N29: 03.00 For men in this community, what is the top priority right now? (select three only, number them 1st, 2nd, 3rd) | O29: 03.09 access to markets
A30: 29 | D30: Priority for men: Short-term financial support | E30: m_03_10 | F30: 63 | G30: 63 | H30: 0 | I30: =MEDIAN(INDIRECT($E30)) -> 0 | J30: =AVERAGE(INDIRECT($E30)) -> 0.3015873016 | K30: 0.3015873016 | L30: 3 | M30: 19 | N30: 03.00 For men in this community, what is the top priority right now? (select three only, number them 1st, 2nd, 3rd) | O30: 03.10 short term financial support
A31: 30 | D31: Priority for men: Safety | E31: m_03_11 | F31: 63 | G31: 63 | H31: 0 | I31: =MEDIAN(INDIRECT($E31)) -> 0 | J31: =AVERAGE(INDIRECT($E31)) -> 0.1111111111 | K31: 0.1111111111 | L31: 3 | M31: 7 | N31: 03.00 For men in this community, what is the top priority right now? (select three only, number them 1st, 2nd, 3rd) | O31: 03.11 concerns about safety and security
A32: 31 | D32: Priority for men: Other | E32: m_03_12 | F32: 63 | G32: 63 | H32: 0 | I32: =MEDIAN(INDIRECT($E32)) -> 0 | J32: =AVERAGE(INDIRECT($E32)) -> 0.2063492063 | K32: 0.2063492063 | L32: 3 | M32: 13 | N32: 03.00 For men in this community, what is the top priority right now? (select three only, number them 1st, 2nd, 3rd) | O32: 03.12 other
A33: 32 | C33: Binary indicator | D33: Lack of safe water serious (men) | E33: m_04_00 | F33: 61 | G33: 61 | H33: 0 | I33: =MEDIAN(INDIRECT($E33)) -> 1 | J33: =AVERAGE(INDIRECT($E33)) -> 0.6393442623 | K33: 0.619047619 | L33: 1 | M33: 39 | O33: 04.00 Is there a serious problem in your community because people do not have enough water that is safe for drinking and cooking?
A34: 33 | C34: Before - after pair of categorical | D34: Defecation, males, pre-disaster | E34: m_06_01 | F34: =COUNTA(INDIRECT($E34)) -> 63 | G34: =COUNT(INDIRECT($E34)) -> 0 | H34: =MIN(INDIRECT($E34)) -> 0 | K34: =IF(L34=0,"",SUM(INDIRECT($E34)) / 63) ->  | L34: =MAX(INDIRECT($E34)) -> 0 | M34: =SUM(INDIRECT($E34)) -> 0 | N34: Sanitation | O34: 06.01Where did men and boys mostly defecate prior to the flooding/water-logging?
A35: 34 | C35: Before - after pair of categorical | D35: Defecation, males, post-disaster | E35: m_06_02 | F35: 63 | G35: 0 | H35: 0 | L35: 0 | M35: 0 | O35: 06.02 Where do men and boys mostly defecate NOW?
A36: 35 | C36: Multiple response data | D36: Shelter issues for men: Shelter not available | E36: m_07_01 | F36: 63 | G36: 63 | H36: 0 | I36: =MEDIAN(INDIRECT($E36)) -> 1 | J36: =AVERAGE(INDIRECT($E36)) -> 0.5238095238 | K36: 0.5238095238 | L36: 1 | M36: 33 | N36: 07.00 What are the main problems with meeting shelter needs here? (select all that are mentioned by the group) | O36: 07.01 no shelter
A37: 36 | D37: Shelter issues for men: Overcrowded | E37: m_07_02 | F37: 63 | G37: 63 | H37: 0 | I37: 0 | J37: 0.1904761905 | K37: 0.1904761905 | L37: 1 | M37: 12 | N37: 07.00 What are the main problems with meeting shelter needs here? (select all that are mentioned by the group) | O37: 07.02 communal shelters are overcrowded
A38: 37 | D38: Shelter issues for men: Return home impossible | E38: m_07_03 | F38: 63 | G38: 63 | H38: 0 | I38: 1 | J38: 0.6507936508 | K38: 0.6507936508 | L38: 1 | M38: 41 | N38: 07.00 What are the main problems with meeting shelter needs here? (select all that are mentioned by the group) | O38: 07.03 homes uninhabitable
A39: 38 | D39: Shelter issues for men: No repair materials | E39: m_07_04 | F39: 63 | G39: 63 | H39: 0 | I39: 0 | J39: 0.3650793651 | K39: 0.3650793651 | L39: 1 | M39: 23 | N39: 07.00 What are the main problems with meeting shelter needs here? (select all that are mentioned by the group) | O39: 07.04 materials for repair are not available
A40: 39 | D40: Shelter issues for men: No manpower for repairs | E40: m_07_05 | F40: 63 | G40: 63 | H40: 0 | I40: 0 | J40: 0.04761904762 | K40: 0.04761904762 | L40: 1 | M40: 3 | N40: 07.00 What are the main problems with meeting shelter needs here? (select all that are mentioned by the group) | O40: 07.05 skills/labour for repair not available
A41: 40 | D41: Shelter issues for men: Land issues for men | E41: m_07_06 | F41: 63 | G41: 63 | H41: 0 | I41: 0 | J41: 0.03174603175 | K41: 0.03174603175 | L41: 1 | M41: 2 | N41: 07.00 What are the main problems with meeting shelter needs here? (select all that are mentioned by the group) | O41: 07.06 potential grievances on land issues
A42: 41 | D42: Shelter issues for men: Lack of household items | E42: m_07_07 | F42: 63 | G42: 63 | H42: 0 | I42: 0 | J42: 0.2380952381 | K42: 0.2380952381 | L42: 1 | M42: 15 | N42: 07.00 What are the main problems with meeting shelter needs here? (select all that are mentioned by the group) | O42: 07.07people lack basic household items
A43: 42 | D43: Shelter issues for men: Lack of privacy | E43: m_07_08 | F43: 63 | G43: 63 | H43: 0 | I43: 0 | J43: 0.1587301587 | K43: 0.1587301587 | L43: 1 | M43: 10 | N43: 07.00 What are the main problems with meeting shelter needs here? (select all that are mentioned by the group) | O43: 07.08 shelters do not offer privacy
A44: 43 | D44: Shelter issues for men: Exposed to weather | E44: m_07_09 | F44: 63 | G44: 63 | H44: 0 | I44: 0 | J44: 0.1111111111 | K44: 0.1111111111 | L44: 1 | M44: 7 | N44: 07.00 What are the main problems with meeting shelter needs here? (select all that are mentioned by the group) | O44: 07.09 shelters do not offer protection from weather/elements
A45: 44 | D45: Shelter issues for men: Other | E45: m_07_10 | F45: 63 | G45: 63 | H45: 0 | I45: 0 | J45: 0.126984127 | K45: 0.126984127 | L45: 1 | M45: 8 | N45: 07.00 What are the main problems with meeting shelter needs here? (select all that are mentioned by the group) | O45: 07.10 other
A46: 45 | D46: Shelter priorities for men: Find shelter | E46: m_08_01 | F46: 63 | G46: 63 | H46: 0 | I46: 0 | J46: 1 | K46: 1 | L46: 3 | M46: 63 | N46: 08.00 What are the top 3 shelter priorities for the male group in relation to shelter? (number 1st, 2nd, 3rd ) | O46: 08.01 to acquire shelter / presently without shelter at all
A47: 46 | C47: Priority data | D47: Shelter priorities for men: Move out of shelter | E47: m_08_02 | F47: 63 | G47: 63 | H47: 0 | I47: 0 | J47: 0.06349206349 | K47: 0.06349206349 | L47: 1 | M47: 4 | N47: 08.00 What are the top 3 shelter priorities for the male group in relation to shelter? (number 1st, 2nd, 3rd ) | O47: 08.02 to move out of a communal shelters
A48: 47 | D48: Shelter priorities for men: Return home | E48: m_08_03 | F48: 63 | G48: 63 | H48: 0 | I48: 0 | J48: 0.8571428571 | K48: 0.8571428571 | L48: 3 | M48: 54 | N48: 08.00 What are the top 3 shelter priorities for the male group in relation to shelter? (number 1st, 2nd, 3rd ) | O48: 08.03 return home
A49: 48 | D49: Shelter priorities for men: Material for home repair | E49: m_08_04 | F49: 63 | G49: 63 | H49: 0 | I49: 2 | J49: 1.80952381 | K49: 1.80952381 | L49: 3 | M49: 114 | N49: 08.00 What are the top 3 shelter priorities for the male group in relation to shelter? (number 1st, 2nd, 3rd ) | O49: 08.04 materials for repair of house
A50: 49 | D50: Shelter priorities for men: Manpower for home repair | E50: m_08_05 | F50: 63 | G50: 63 | H50: 0 | I50: 0 | J50: 0.09523809524 | K50: 0.09523809524 | L50: 2 | M50: 6 | N50: 08.00 What are the top 3 shelter priorities for the male group in relation to shelter? (number 1st, 2nd, 3rd ) | O50: 08.05 skills/labour for repair
A51: 50 | D51: Shelter priorities for men: Household items | E51: m_08_06 | F51: 63 | G51: 63 | H51: 0 | I51: 0 | J51: 0.6031746032 | K51: 0.6031746032 | L51: 3 | M51: 38 | N51: 08.00 What are the top 3 shelter priorities for the male group in relation to shelter? (number 1st, 2nd, 3rd ) | O51: 08.06 basic household items
A52: 51 | D52: Shelter priorities for men: Privacy | E52: m_08_07 | F52: 63 | G52: 63 | H52: 0 | I52: 0 | J52: 0.1587301587 | K52: 0.1587301587 | L52: 2 | M52: 10 | N52: 08.00 What are the top 3 shelter priorities for the male group in relation to shelter? (number 1st, 2nd, 3rd ) | O52: 08.07 shelter to give more privacy
A53: 52 | D53: Shelter priorities for men: Protection from weather | E53: m_08_08 | F53: 63 | G53: 63 | H53: 0 | I53: 0 | J53: 0.126984127 | K53: 0.126984127 | L53: 2 | M53: 8 | N53: 08.00 What are the top 3 shelter priorities for the male group in relation to shelter? (number 1st, 2nd, 3rd ) | O53: 08.08 Shelter to give mor protection from weather/elements
A54: 53 | D54: Shelter priorities for men: Other | E54: m_08_09 | F54: 63 | G54: 63 | H54: 0 | I54: 0 | J54: 0.126984127 | K54: 0.126984127 | L54: 2 | M54: 8 | N54: 08.00 What are the top 3 shelter priorities for the male group in relation to shelter? (number 1st, 2nd, 3rd ) | O54: 08.09 other
A55: 54 | C55: Priority data | D55: Coping priorities for men: Reduce meal size | E55: m_16_01 | F55: 63 | G55: 63 | H55: 0 | I55: 3 | J55: 2.746031746 | K55: 2.746031746 | L55: 5 | M55: 173 | N55: 16.00 What strategies are being used by the community here to cope with loss of livelihoods? | O55: 16.01 Reduced meal size
A56: 55 | D56: Coping priorities for men: East less preferred food | E56: m_16_02 | F56: 63 | G56: 63 | H56: 0 | I56: 0 | J56: 1.444444444 | K56: 1.444444444 | L56: 5 | M56: 91 | N56: 16.00 What strategies are being used by the community here to cope with loss of livelihoods? | O56: 16.02 Eat less preferred food
A57: 56 | D57: Coping priorities for men: Eat wild foods | E57: m_16_03 | F57: 63 | G57: 63 | H57: 0 | I57: 0 | J57: 0.4285714286 | K57: 0.4285714286 | L57: 4 | M57: 27 | N57: 16.00 What strategies are being used by the community here to cope with loss of livelihoods? | O57: 16.03 Eat wild food like roadside vegetables etc.
A58: 57 | D58: Coping priorities for men: Restrict adult male consumption | E58: m_16_04 | F58: 63 | G58: 63 | H58: 0 | I58: 0 | J58: 0.3174603175 | K58: 0.3174603175 | L58: 4 | M58: 20 | N58: 16.00 What strategies are being used by the community here to cope with loss of livelihoods? | O58: 16.04 Male adults restrict food consumption to feed the children
A59: 58 | D59: Coping priorities for men: Restrict adult female consumption | E59: m_16_05 | F59: 63 | G59: 63 | H59: 0 | I59: 0 | J59: 0.4444444444 | K59: 0.4444444444 | L59: 5 | M59: 28 | N59: 16.00 What strategies are being used by the community here to cope with loss of livelihoods? | O59: 16.05 Female adults restrict food consumption to feed the children
A60: 59 | D60: Coping priorities for men: Send children to relatives | E60: m_16_06 | F60: 63 | G60: 63 | H60: 0 | I60: 0 | J60: 0.2857142857 | K60: 0.2857142857 | L60: 4 | M60: 18 | N60: 16.00 What strategies are being used by the community here to cope with loss of livelihoods? | O60: 16.06 Send children to friend/relative’s house
A61: 60 | D61: Coping priorities for men: Borrow money | E61: m_16_07 | F61: 63 | G61: 63 | H61: 0 | I61: 2 | J61: 2.079365079 | K61: 2.079365079 | L61: 5 | M61: 131 | N61: 16.00 What strategies are being used by the community here to cope with loss of livelihoods? | O61: 16.07 Borrow money at high interest
A62: 61 | D62: Coping priorities for men: Advance labor sale | E62: m_16_08 | F62: 63 | G62: 63 | H62: 0 | I62: 0 | J62: 0.4444444444 | K62: 0.4444444444 | L62: 4 | M62: 28 | N62: 16.00 What strategies are being used by the community here to cope with loss of livelihoods? | O62: 16.08 Selling of advanced labour
A63: 62 | D63: Coping priorities for men: Buy food on creadit | E63: m_16_09 | F63: 63 | G63: 63 | H63: 0 | I63: 1 | J63: 1.952380952 | K63: 1.952380952 | L63: 5 | M63: 123 | N63: 16.00 What strategies are being used by the community here to cope with loss of livelihoods? | O63: 16.09 Purchase food on credit
A64: 63 | D64: Coping priorities for men: Sell livestock and poultry | E64: m_16_10 | F64: 63 | G64: 63 | H64: 0 | I64: 2 | J64: 1.80952381 | K64: 1.80952381 | L64: 5 | M64: 114 | N64: 16.00 What strategies are being used by the community here to cope with loss of livelihoods? | O64: 16.10 Selling of livestock and poultry
A65: 64 | D65: Coping priorities for men: Sell household utensils | E65: m_16_11 | F65: 63 | G65: 63 | H65: 0 | I65: 0 | J65: 0.4761904762 | K65: 0.4761904762 | L65: 5 | M65: 30 | N65: 16.00 What strategies are being used by the community here to cope with loss of livelihoods? | O65: 16.11 Selling of household utensils/utilities
A66: 65 | D66: Coping priorities for men: Sell land or trees | E66: m_16_12 | F66: =COUNTA(INDIRECT($E66)) -> 63 | G66: =COUNT(INDIRECT($E66)) -> 63 | H66: =MIN(INDIRECT($E66)) -> 0 | I66: 0 | J66: 0.4603174603 | K66: =IF(L66=0,"",SUM(INDIRECT($E66)) / 63) -> 0.4603174603 | L66: =MAX(INDIRECT($E66)) -> 4 | M66: =SUM(INDIRECT($E66)) -> 29 | N66: 16.00 What strategies are being used by the community here to cope with loss of livelihoods? | O66: 16.12 Selling of land/tree
A67: 66 | D67: Coping priorities for men: Outmigration | E67: m_16_13 | F67: 63 | G67: 63 | H67: 0 | I67: 0 | J67: 0.7619047619 | K67: 0.7619047619 | L67: 5 | M67: 48 | N67: 16.00 What strategies are being used by the community here to cope with loss of livelihoods? | O67: 16.13 Out migration of household members
A68: 67 | D68: Coping priorities for men: Send children to work | E68: m_16_14 | F68: 63 | G68: 63 | H68: 0 | I68: 0 | J68: 0.2698412698 | K68: 0.2698412698 | L68: 3 | M68: 17 | N68: 16.00 What strategies are being used by the community here to cope with loss of livelihoods? | O68: 16.14 Send children to work
A69: 68 | D69: Coping priorities for men: Other | E69: m_16_15 | F69: 63 | G69: 63 | H69: 0 | I69: 0 | J69: 0.06349206349 | K69: 0.06349206349 | L69: 3 | M69: 4 | N69: 16.00 What strategies are being used by the community here to cope with loss of livelihoods? | O69: 16.15 Others (specify)
A70: 69 | C70: Ordered categorical indicator | D70: Expected stay at shelter (men) | E70: m_17_00 | F70: 63 | G70: 0 | H70: 0 | L70: 0 | M70: 0 | O70: 17.00 How long do you think you will stay here before you will go back home? (tick one)
A71: 70 | C71: Binary indicator | D71: Safety of home and property (men) | E71: m_21_00 | F71: 36 | G71: 36 | H71: 0 | I71: =MEDIAN(INDIRECT($E71)) -> 1 | J71: =AVERAGE(INDIRECT($E71)) -> 0.8611111111 | K71: 0.4920634921 | L71: 1 | M71: 31 | O71: 21.00 Do you have security concerns for your house and property that you have left?
A72: 71 | B72: Women's groups | C72: Priority data | D72: Priority for women: Livelihoods | E72: w_03_01 | F72: 63 | G72: 63 | H72: 0 | I72: 0 | J72: 0.619047619 | K72: 0.619047619 | L72: 3 | M72: 39 | N72: 03.00 For women in this community, what is the top priority right now? (select three only, number them 1st, 2nd, 3rd) | O72: 03.01 resumption of livelihood activities
A73: 72 | D73: Priority for women: Livestock feed | E73: w_03_02 | F73: 63 | G73: 63 | H73: 0 | I73: 0 | J73: 0.1746031746 | K73: 0.1746031746 | L73: 2 | M73: 11 | N73: 03.00 For women in this community, what is the top priority right now? (select three only, number them 1st, 2nd, 3rd) | O73: 03.02 feed for livestock
A74: 73 | D74: Priority for women: Rebuild homes | E74: w_03_03 | F74: 63 | G74: 63 | H74: 0 | I74: 0 | J74: 0.9841269841 | K74: 0.9841269841 | L74: 3 | M74: 62 | N74: 03.00 For women in this community, what is the top priority right now? (select three only, number them 1st, 2nd, 3rd) | O74: 03.03 return/rebuild houses
A75: 74 | D75: Priority for women: Children's schooling | E75: w_03_04 | F75: 63 | G75: 63 | H75: 0 | I75: 0 | J75: 0.04761904762 | K75: 0.04761904762 | L75: 1 | M75: 3 | N75: 03.00 For women in this community, what is the top priority right now? (select three only, number them 1st, 2nd, 3rd) | O75: 03.04 children return to school
A76: 75 | D76: Priority for women: Health care | E76: w_03_05 | F76: 63 | G76: 63 | H76: 0 | I76: 0 | J76: 0.3333333333 | K76: 0.3333333333 | L76: 3 | M76: 21 | N76: 03.00 For women in this community, what is the top priority right now? (select three only, number them 1st, 2nd, 3rd) | O76: 03.05 health care
A77: 76 | D77: Priority for women: Food | E77: w_03_06 | F77: 63 | G77: 63 | H77: 0 | I77: 3 | J77: 2.301587302 | K77: 2.301587302 | L77: 3 | M77: 145 | N77: 03.00 For women in this community, what is the top priority right now? (select three only, number them 1st, 2nd, 3rd) | O77: 03.06 food
A78: 77 | D78: Priority for women: Safe drinking water | E78: w_03_07 | F78: 63 | G78: 63 | H78: 0 | I78: 0 | J78: 0.6825396825 | K78: 0.6825396825 | L78: 3 | M78: 43 | N78: 03.00 For women in this community, what is the top priority right now? (select three only, number them 1st, 2nd, 3rd) | O78: 03.07 access to clean drinking water
A79: 78 | D79: Priority for women: Water for wash and bath | E79: w_03_08 | F79: 63 | G79: 63 | H79: 0 | I79: 0 | J79: 0.07936507937 | K79: 0.07936507937 | L79: 2 | M79: 5 | N79: 03.00 For women in this community, what is the top priority right now? (select three only, number them 1st, 2nd, 3rd) | O79: 03.08 access to water for washing/bathing
A80: 79 | D80: Priority for women: Markets | E80: w_03_09 | F80: 63 | G80: 63 | H80: 0 | I80: 0 | J80: 0.07936507937 | K80: 0.07936507937 | L80: 2 | M80: 5 | N80: 03.00 For women in this community, what is the top priority right now? (select three only, number them 1st, 2nd, 3rd) | O80: 03.09 access to markets
A81: 80 | D81: Priority for women: Short-term financial support | E81: w_03_10 | F81: 63 | G81: 63 | H81: 0 | I81: 0 | J81: 0.4126984127 | K81: 0.4126984127 | L81: 3 | M81: 26 | N81: 03.00 For women in this community, what is the top priority right now? (select three only, number them 1st, 2nd, 3rd) | O81: 03.10 short term financial support
A82: 81 | D82: Priority for women: Safety | E82: w_03_11 | F82: 63 | G82: 63 | H82: 0 | I82: 0 | J82: 0.03174603175 | K82: 0.03174603175 | L82: 1 | M82: 2 | N82: 03.00 For women in this community, what is the top priority right now? (select three only, number them 1st, 2nd, 3rd) | O82: 03.11 concerns about safety and security
A83: 82 | D83: Priority for women: Other | E83: w_03_12 | F83: 63 | G83: 63 | H83: 0 | I83: 0 | J83: 0.1904761905 | K83: 0.1904761905 | L83: 3 | M83: 12 | N83: 03.00 For women in this community, what is the top priority right now? (select three only, number them 1st, 2nd, 3rd) | O83: 03.12 other
A84: 83 | C84: Binary indicator | D84: Has electricity | E84: w_04_02 | F84: 63 | G84: 63 | H84: 0 | I84: 0 | J84: 0.3650793651 | K84: 0.3650793651 | L84: 1 | M84: 23 | O84: 04.02Do you have electricity at this site NOW?
A85: 84 | C85: Binary indicator | D85: Lack of safe water serious (women) | E85: w_06_00 | F85: 63 | G85: 63 | H85: 0 | I85: 1 | J85: 0.8095238095 | K85: 0.8095238095 | L85: 1 | M85: 51 | O85: 06.00 Is there a serious problem in your community because people do not have enough water that is safe for drinking and cooking?
A86: 85 | C86: Ordered categorical indicator | D86: Daily water supply for household | E86: w_09_00 | F86: 63 | G86: 0 | H86: 0 | L86: 0 | M86: 0 | O86: 09.00 Approximately how many liters of drinking water do people here have each day per family?
A87: 86 | C87: Binary indicator | D87: Lack of safetoilets (women) | E87: w_10_00 | F87: 63 | G87: 63 | H87: 0 | I87: =MEDIAN(INDIRECT($E87)) -> 1 | J87: =AVERAGE(INDIRECT($E87)) -> 0.8888888889 | K87: 0.8888888889 | L87: 1 | M87: 56 | O87: 10.00 Is there a serious problem in your community because people do not have easy and safe access to clean toilets?
A88: 87 | C88: Before - after pair of categorical | D88: Defecation, females, pre-disaster | E88: w_11_01 | F88: 63 | G88: 0 | H88: 0 | L88: 0 | M88: 0 | N88: Sanitation | O88: 11.01 Where did women and girls mostly defecate prior to the flooding/water-logging?
A89: 88 | C89: Before - after pair of categorical | D89: Defecation, females, post-disaster | E89: w_11_02 | F89: 63 | G89: 0 | H89: 0 | L89: 0 | M89: 0 | O89: 11.02 Where do women and girls mostly defecate NOW?
A90: 89 | C90: Binary indicator | D90: Difficult women's hygiene | E90: w_12_00 | F90: 63 | G90: 63 | H90: 0 | I90: =MEDIAN(INDIRECT($E90)) -> 1 | J90: =AVERAGE(INDIRECT($E90)) -> 0.9523809524 | K90: 0.9523809524 | L90: 1 | M90: 60 | O90: 12.00 Is there a serious problem in your community for women to keep clean ?
A91: 90 | C91: Priority type data | D91: Shelter priorities for women: Find shelter | E91: w_14_01 | F91: 63 | G91: 63 | H91: 0 | I91: 0 | J91: 0.7301587302 | K91: 0.7301587302 | L91: 3 | M91: 46 | N91: 14.00 What are the top 3 shelter priorities for the female group in relation to shelter? (number 1st, 2nd, 3rd ) | O91: 14.01 to acquire shelter / presently without shelter at all
A92: 91 | D92: Shelter priorities for women: Move out of shelter | E92: w_14_02 | F92: 63 | G92: 63 | H92: 0 | I92: 0 | J92: 0.06349206349 | K92: 0.06349206349 | L92: 2 | M92: 4 | N92: 14.00 What are the top 3 shelter priorities for the female group in relation to shelter? (number 1st, 2nd, 3rd ) | O92: 14.02 to move out of a communal shelters
A93: 92 | D93: Shelter priorities for women: Return home | E93: w_14_03 | F93: 63 | G93: 63 | H93: 0 | I93: 0 | J93: 0.873015873 | K93: 0.873015873 | L93: 3 | M93: 55 | N93: 14.00 What are the top 3 shelter priorities for the female group in relation to shelter? (number 1st, 2nd, 3rd ) | O93: 14.03 return home
A94: 93 | D94: Shelter priorities for women: Material for home repair | E94: w_14_04 | F94: 63 | G94: 63 | H94: 0 | I94: 2 | J94: 1.984126984 | K94: 1.984126984 | L94: 3 | M94: 125 | N94: 14.00 What are the top 3 shelter priorities for the female group in relation to shelter? (number 1st, 2nd, 3rd ) | O94: 14.04 materials for repair of house
A95: 94 | D95: Shelter priorities for women: Manpower for home repair | E95: w_14_05 | F95: 63 | G95: 63 | H95: 0 | I95: 0 | J95: 0.2698412698 | K95: 0.2698412698 | L95: 3 | M95: 17 | N95: 14.00 What are the top 3 shelter priorities for the female group in relation to shelter? (number 1st, 2nd, 3rd ) | O95: 14.05 skills/labour for repair
A96: 95 | D96: Shelter priorities for women: Household items | E96: w_14_06 | F96: 63 | G96: 63 | H96: 0 | I96: 1 | J96: 0.9841269841 | K96: 0.9841269841 | L96: 3 | M96: 62 | N96: 14.00 What are the top 3 shelter priorities for the female group in relation to shelter? (number 1st, 2nd, 3rd ) | O96: 14.06 basic household items
A97: 96 | D97: Shelter priorities for women: Privacy | E97: w_14_07 | F97: 63 | G97: 63 | H97: 0 | I97: 0 | J97: 0.4126984127 | K97: 0.4126984127 | L97: 2 | M97: 26 | N97: 14.00 What are the top 3 shelter priorities for the female group in relation to shelter? (number 1st, 2nd, 3rd ) | O97: 14.07 shelter to give more privacy
A98: 97 | D98: Shelter priorities for women: Protection from weather | E98: w_14_08 | F98: =COUNTA(INDIRECT($E98)) -> 63 | G98: =COUNT(INDIRECT($E98)) -> 63 | H98: =MIN(INDIRECT($E98)) -> 0 | I98: 0 | J98: 0.1111111111 | K98: =IF(L98=0,"",SUM(INDIRECT($E98)) / 63) -> 0.1111111111 | L98: =MAX(INDIRECT($E98)) -> 2 | M98: =SUM(INDIRECT($E98)) -> 7 | N98: 14.00 What are the top 3 shelter priorities for the female group in relation to shelter? (number 1st, 2nd, 3rd ) | O98: 14.08 Shelter to give mor protection from weather/elements
A99: 98 | D99: Shelter priorities for women: Other | E99: w_14_09 | F99: 63 | G99: 63 | H99: 0 | I99: 0 | J99: 0.1111111111 | K99: 0.1111111111 | L99: 1 | M99: 7 | N99: 14.00 What are the top 3 shelter priorities for the female group in relation to shelter? (number 1st, 2nd, 3rd ) | O99: 14.09other
A100: 99 | C100: Binary indicator | D100: School attendance high - pre-disaster | E100: w_18_01 | F100: 63 | G100: 63 | H100: 0 | I100: 1 | J100: 0.9841269841 | K100: 0.9841269841 | L100: 1 | M100: 62 | O100: 18.01 Did most (75% +) of the children from this community attend school before the flooding/water-logging?
A101: 100 | C101: Binary indicator | D101: School attendance high - post-disaster | E101: w_18_02 | F101: 63 | G101: 63 | H101: 0 | I101: 0 | J101: 0.2698412698 | K101: 0.2698412698 | L101: 1 | M101: 17 | O101: 18.02 Do most (75% +) of the children from this community attend school NOW?
A102: 101 | C102: Ordered categorical indicator | D102: Expected stay at shelter wo(men) | E102: w_21_00 | F102: 63 | G102: 0 | H102: 0 | L102: 0 | M102: 0 | O102: 21.00 How long do you think you will stay here before you will go back home? (tick one)
A103: 102 | C103: Ordered categorical indicator | D103: Time for women to reach health care | E103: w_24_02 | F103: 63 | G103: 0 | H103: 0 | L103: 0 | M103: 0 | O103: 24.02 Access to health for women care now?
A104: 103 | C104: Priority type data | D104: Health priorities for women: None | E104: w_25_01 | F104: 63 | G104: 63 | H104: 0 | L104: 0 | M104: 0 | N104: 25.00 What are your main health concerns? (rank the first three, number them 1st, 2nd, 3rd) | O104: 25.01 No concern
A105: 104 | D105: Health priorities for women: Diarrhea | E105: w_25_02 | F105: 63 | G105: 63 | H105: 0 | I105: =MEDIAN(INDIRECT($E105)) -> 2 | J105: =AVERAGE(INDIRECT($E105)) -> 1.952380952 | K105: 1.952380952 | L105: 3 | M105: 123 | N105: 25.00 What are your main health concerns? (rank the first three, number them 1st, 2nd, 3rd) | O105: 25.02 Diarrhea diseases
A106: 105 | D106: Health priorities for women: Skin disease | E106: w_25_03 | F106: 63 | G106: 63 | H106: 0 | I106: 3 | J106: 2.365079365 | K106: 2.365079365 | L106: 3 | M106: 149 | N106: 25.00 What are your main health concerns? (rank the first three, number them 1st, 2nd, 3rd) | O106: 25.03 skin diseases
A107: 106 | D107: Health priorities for women: Snake bite | E107: w_25_04 | F107: 63 | G107: 63 | H107: 0 | I107: 1 | J107: 0.9523809524 | K107: 0.9523809524 | L107: 3 | M107: 60 | N107: 25.00 What are your main health concerns? (rank the first three, number them 1st, 2nd, 3rd) | O107: 25.04 snake bite
A108: 107 | D108: Health priorities for women: Safe birth | E108: w_25_05 | F108: 63 | G108: 63 | H108: 0 | I108: 0 | J108: 0.2063492063 | K108: 0.2063492063 | L108: 3 | M108: 13 | N108: 25.00 What are your main health concerns? (rank the first three, number them 1st, 2nd, 3rd) | O108: 25.05 access to safe child birthing support/facilities
A109: 108 | D109: Health priorities for women: Other | E109: w_25_06 | F109: 63 | G109: 63 | H109: 0 | I109: 0 | J109: 0.5714285714 | K109: 0.5714285714 | L109: 2 | M109: 36 | N109: 25.00 What are your main health concerns? (rank the first three, number them 1st, 2nd, 3rd) | O109: 25.06 other, specify
A110: 109 | C110: Binary indicator | D110: Diarrhea increased | E110: w_26_00 | F110: 63 | G110: 63 | H110: 0 | I110: 1 | J110: 0.5238095238 | K110: 0.5238095238 | L110: 1 | M110: 33 | O110: 26.00 Has the incidence of diarrhea increased in the last 7 days?
A111: 110 | C111: Binary indicator | D111: Women's safety issues | E111: w_28_01 | F111: 63 | G111: 63 | H111: 0 | I111: 1 | J111: 0.619047619 | K111: 0.619047619 | L111: 1 | M111: 39 | N111: 28.00 Do you know of children being sent away for any of the following since the floods? | O111: 28.01 Safety
A112: 111 | C112: Binary indicator | D112: Child labor | E112: w_29_00 | F112: 63 | G112: 63 | H112: 0 | I112: 1 | J112: 0.5396825397 | K112: 0.5396825397 | L112: 1 | M112: 34 | O112: 29.00 Are children here involved in laborious work?
A113: 112 | C113: Binary indicator | D113: Children missing | E113: w_30_00 | F113: 63 | G113: 63 | H113: 0 | I113: 0 | J113: 0.03174603175 | K113: 0.03174603175 | L113: 1 | M113: 2 | O113: 30.00 Have you heard of children missing/trafficked from water logged area ?
A114: 113 | C114: Multiple-choice data | D114: Food issues (women): None | E114: w_37_01 | F114: 63 | G114: 63 | H114: 0 | I114: 0 | J114: 0.01587301587 | K114: 0.01587301587 | L114: 1 | M114: 1 | N114: 37.00 Is there a problem in your community in relation to food NOW? | O114: 37.01 no problem
A115: 114 | D115: Food issues (women): Not enough | E115: w_37_02 | F115: 63 | G115: 63 | H115: 0 | I115: 1 | J115: 0.9523809524 | K115: 0.9523809524 | L115: 1 | M115: 60 | N115: 37.00 Is there a problem in your community in relation to food NOW? | O115: 37.02 not enough food
A116: 115 | D116: Food issues (women): Not good enough | E116: w_37_03 | F116: 63 | G116: 63 | H116: 0 | I116: 1 | J116: 0.6666666667 | K116: 0.6666666667 | L116: 1 | M116: 42 | N116: 37.00 Is there a problem in your community in relation to food NOW? | O116: 37.03 not good enough food
A117: 116 | D117: Food issues (women): No cooking facility | E117: w_37_04 | F117: 63 | G117: 63 | H117: 0 | I117: 1 | J117: 0.5396825397 | K117: 0.5396825397 | L117: 1 | M117: 34 | N117: 37.00 Is there a problem in your community in relation to food NOW? | O117: 37.04 no cooking facilities
A118: 117 | D118: Food issues (women): No utensils | E118: w_37_05 | F118: 63 | G118: 63 | H118: 0 | I118: 0 | J118: 0.2380952381 | K118: 0.2380952381 | L118: 1 | M118: 15 | N118: 37.00 Is there a problem in your community in relation to food NOW? | O118: 37.05 no utensils
A119: 118 | D119: Food issues (women): No cooking fuel | E119: w_37_06 | F119: 63 | G119: 63 | H119: 0 | I119: 1 | J119: 0.619047619 | K119: 0.619047619 | L119: 1 | M119: 39 | N119: 37.00 Is there a problem in your community in relation to food NOW? | O119: 37.06 no fuel to cook with
A120: 119 | D120: Food issues (women): Other | E120: w_37_07 | F120: 63 | G120: 63 | H120: 0 | I120: 0 | J120: 0 | L120: 0 | M120: 0 | N120: 37.00 Is there a problem in your community in relation to food NOW? | O120: 37.07other
A121: 120 | B121: Calculated variables | C121: Team's severity ranking | D121: Site assessment by team (numeric) | E121: t_14_00_code | F121: 63 | G121: 63 | H121: 1 | I121: 3 | J121: 2.793650794 | K121: =IF(L121=0,"",SUM(INDIRECT($E121)) / 63) -> 2.793650794 | L121: 4 | M121: 176 | N121: =VALUE(LEFT(RC[-101],1))
A122: 121 | C122: Distress indicators | D122: Food highest priority (women) | E122: dw_03_06 | F122: 63 | G122: 63 | H122: 0 | I122: 1 | J122: 0.6031746032 | K122: =IF(L122=0,"",SUM(INDIRECT($E122)) / 63) -> 0.6031746032 | L122: 1 | M122: 38 | N122: =IF(R[-45]C =3,1,0)
A123: 122 | D123: Livelihoods highest priority (women) | E123: dw_03_01 | F123: 63 | G123: 63 | H123: 0 | I123: 0 | J123: 0.09523809524 | K123: 0.09523809524 | L123: 1 | M123: 6 | N123: =IF(R[-51]C =3,1,0)
A124: 123 | D124: Lack of safe water serious | E124: dw_06_00 | F124: 63 | G124: 63 | H124: 0 | I124: 1 | J124: 0.8095238095 | K124: 0.8095238095 | L124: 1 | M124: 51 | N124: =R[-39]C
A125: 124 | D125: Diarrhea has increased. | E125: dw_26_00 | F125: 63 | G125: 63 | H125: 0 | I125: 1 | J125: 0.5238095238 | K125: 0.5238095238 | L125: 1 | M125: 33 | N125: =R[-15]C
A126: 125 | D126: Lack of safe toilets | E126: dw_10_00 | F126: 63 | G126: 63 | H126: 0 | I126: 1 | J126: 0.8888888889 | K126: 0.8888888889 | L126: 1 | M126: 56 | N126: =R[-39]C
A127: 126 | D127: Women face safety issues. | E127: dw_28_01 | F127: 63 | G127: 63 | H127: 0 | I127: 1 | J127: 0.619047619 | K127: 0.619047619 | L127: 1 | M127: 39 | N127: =R[-16]C
A128: 127 | D128: School attendance is low. | E128: dw_18_02 | F128: 63 | G128: 63 | H128: 0 | I128: 1 | J128: 0.7301587302 | K128: 0.7301587302 | L128: 1 | M128: 46 | N128: =1 - R[-27]C
A129: 128 | D129: Significant child labor. | E129: dw_29_00 | F129: 63 | G129: 63 | H129: 0 | I129: 1 | J129: 0.5396825397 | K129: 0.5396825397 | L129: 1 | M129: 34 | N129: =R[-17]C
A130: 129 | D130: No electricity | E130: dw_04_02 | F130: 63 | G130: 63 | H130: 0 | I130: 1 | J130: 0.6349206349 | K130: 0.6349206349 | L130: 1 | M130: 40 | N130: =1-R[-46]C
A131: 130 | D131: Health care facility more than 60 minutes' travel | E131: dw_24_02 | F131: 63 | G131: 63 | H131: 0 | I131: 1 | J131: 0.619047619 | K131: 0.619047619 | L131: 1 | M131: 39 | N131: =IF(OR(LEFT(R[-28]C,1) ="d",LEFT(R[-28]C,1) ="e", LEFT(R[-28]C,1) ="f"),1,0)
A132: 131 | D132: Distress index | E132: dw_distress | F132: 63 | G132: 63 | H132: 2 | I132: 6 | J132: 6.063492063 | K132: 6.063492063 | L132: 9 | M132: 382 | N132: =SUM(R[-10]C:R[-1]C)

Sheet Analysis01_Data
A1: Identifiers | I1: Team observations | T1: Male groups | BS1: Womens groups | DP1: Calculated variables
A2: Integer | B2: Date | C2: Categorical | D2: Categorical | E2: Categorical | F2: Categorical | G2: Categorical | H2: Categorical | I2: Grouping variable | J2: Binary indicator | K2: Binary indicator | L2: Binary indicator | M2: Binary indicator | N2: Binary indicator | O2: Binary indicator | P2: Binary indicator | Q2: Binary indicator | R2: Binary indicator | S2: Team's severity ranking | T2: Priority type data | AF2: Binary indicator | AG2: Before - after pair of categorical | AH2: Before - after pair of categorical | AI2: Multiple response data | AT2: Priority data | BB2: Priority data | BQ2: Ordered categorical indicator | BR2: Binary indicator | BS2: Priority data | CE2: Binary indicator | CF2: Binary indicator | CG2: Ordered categorical indicator | CH2: Binary indicator | CI2: Before - after pair of categorical | CJ2: Before - after pair of categorical | CK2: Binary indicator | CL2: Priority type data | CU2: Binary indicator | CV2: Binary indicator | CW2: Ordered categorical indicator | CX2: Ordered categorical indicator | CY2: Priority type data | DE2: Binary indicator | DF2: Binary indicator | DG2: Binary indicator | DH2: Binary indicator | DI2: Multiple-choice data | DP2: Team's severity ranking | DQ2: Distress indicators
A3: Record number | B3: Assessment date | C3: Team number | D3: District | E3: Upazila | F3: Union | G3: Urban vs. rural | H3: Village | I3: Living arrangement | J3: Stagnant water: Settlement | K3: Stagnant water: Shelter | L3: Stagnant water: Water points | M3: Stagnant water: Other | N3: Garbage | O3: Disease vectors | P3: Latrines at site | Q3: Students truant | R3: Open water sources | S3: Site assessment by team | T3: Priority for men: Livelihoods | U3: Priority for men: Livestock feed | V3: Priority for men: Rebuild homes | W3: Priority for men: Children's schooling | X3: Priority for men: Health care | Y3: Priority for men: Food | Z3: Priority for men: Safe drinking water | AA3: Priority for men: Water for wash and bath | AB3: Priority for men: Markets | AC3: Priority for men: Short-term financial support | AD3: Priority for men: Safety | AE3: Priority for men: Other | AF3: Lack of safe water serious (men) | AG3: Defecation, males, pre-disaster | AH3: Defecation, males, post-disaster | AI3: Shelter issues for men: Shelter not available | AJ3: Shelter issues for men: Overcrowded | AK3: Shelter issues for men: Return home impossible | AL3: Shelter issues for men: No repair materials | AM3: Shelter issues for men: No manpower for repairs | AN3: Shelter issues for men: Land issues for men | AO3: Shelter issues for men: Lack of household items | AP3: Shelter issues for men: Lack of privacy | AQ3: Shelter issues for men: Exposed to weather | AR3: Shelter issues for men: Other | AS3: Shelter priorities for men: Find shelter | AT3: Shelter priorities for men: Move out of shelter | AU3: Shelter priorities for men: Return home | AV3: Shelter priorities for men: Material for home repair | AW3: Shelter priorities for men: Manpower for home repair | AX3: Shelter priorities for men: Household items | AY3: Shelter priorities for men: Privacy | AZ3: Shelter priorities for men: Protection from weather | BA3: Shelter priorities for men: Other | BB3: Coping priorities for men: Reduce meal size | BC3: Coping priorities for men: East less preferred food | BD3: Coping priorities for men: Eat wild foods | BE3: Coping priorities for men: Restrict adult male consumption | BF3: Coping priorities for men: Restrict adult female consumption | BG3: Coping priorities for men: Send children to relatives | BH3: Coping priorities for men: Borrow money | BI3: Coping priorities for men: Advance labor sale | BJ3: Coping priorities for men: Buy food on creadit | BK3: Coping priorities for men: Sell livestock and poultry | BL3: Coping priorities for men: Sell household utensils | BM3: Coping priorities for men: Sell land or trees | BN3: Coping priorities for men: Outmigration | BO3: Coping priorities for men: Send children to work | BP3: Coping priorities for men: Other | BQ3: Expected stay at shelter (men) | BR3: Safety of home and property (men) | BS3: Priority for women: Livelihoods | BT3: Priority for women: Livestock feed | BU3: Priority for women: Rebuild homes | BV3: Priority for women: Children's schooling | BW3: Priority for women: Health care | BX3: Priority for women: Food | BY3: Priority for women: Safe drinking water | BZ3: Priority for women: Water for wash and bath | CA3: Priority for women: Markets | CB3: Priority for women: Short-term financial support | CC3: Priority for women: Safety | CD3: Priority for women: Other | CE3: Has electricity | CF3: Lack of safe water serious (women) | CG3: Daily water supply for household | CH3: Lack of safetoilets (women) | CI3: Defecation, females, pre-disaster | CJ3: Defecation, females, post-disaster | CK3: Difficult women's hygiene | CL3: Shelter priorities for women: Find shelter | CM3: Shelter priorities for women: Move out of shelter | CN3: Shelter priorities for women: Return home | CO3: Shelter priorities for women: Material for home repair | CP3: Shelter priorities for women: Manpower for home repair | CQ3: Shelter priorities for women: Household items | CR3: Shelter priorities for women: Privacy | CS3: Shelter priorities for women: Protection from weather | CT3: Shelter priorities for women: Other | CU3: School attendance high - pre-disaster | CV3: School attendance high - post-disaster | CW3: Expected stay at shelter wo(men) | CX3: Time for women to reach health care | CY3: Health priorities for women: None | CZ3: Health priorities for women: Diarrhea | DA3: Health priorities for women: Skin disease | DB3: Health priorities for women: Snake bite | DC3: Health priorities for women: Safe birth | DD3: Health priorities for women: Other | DE3: Diarrhea increased | DF3: Women's safety issues | DG3: Child labor | DH3: Children missing | DI3: Food issues (women): None | DJ3: Food issues (women): Not enough | DK3: Food issues (women): Not good enough | DL3: Food issues (women): No cooking facility | DM3: Food issues (women): No utensils | DN3: Food issues (women): No cooking fuel | DO3: Food issues (women): Other | DP3: Site assessment by team (numeric) | DQ3: Food highest priority (women) | DR3: Livelihoods highest priority (women) | DS3: Lack of safe water serious | DT3: Diarrhea has increased. | DU3: Lack of safe toilets | DV3: Women face safety issues. | DW3: School attendance is low. | DX3: Significant child labor. | DY3: No electricity | DZ3: Health care facility more than 60 minutes' travel | EA3: Distress index
A4: i_00_01 | B4: i_00_03 | C4: i_00_04 | D4: i_00_05 | E4: i_00_06 | F4: i_00_07 | G4: i_00_08 | H4: i_00_09 | I4: t_00_10 | J4: t_02_01 | K4: t_02_02 | L4: t_02_03 | M4: t_02_04 | N4: t_03_00 | O4: t_04_00 | P4: t_05_00 | Q4: t_09_00 | R4: t_10_07 | S4: t_14_00 | T4: m_03_01 | U4: m_03_02 | V4: m_03_03 | W4: m_03_04 | X4: m_03_05 | Y4: m_03_06 | Z4: m_03_07 | AA4: m_03_08 | AB4: m_03_09 | AC4: m_03_10 | AD4: m_03_11 | AE4: m_03_12 | AF4: m_04_00 | AG4: m_06_01 | AH4: m_06_02 | AI4: m_07_01 | AJ4: m_07_02 | AK4: m_07_03 | AL4: m_07_04 | AM4: m_07_05 | AN4: m_07_06 | AO4: m_07_07 | AP4: m_07_08 | AQ4: m_07_09 | AR4: m_07_10 | AS4: m_08_01 | AT4: m_08_02 | AU4: m_08_03 | AV4: m_08_04 | AW4: m_08_05 | AX4: m_08_06 | AY4: m_08_07 | AZ4: m_08_08 | BA4: m_08_09 | BB4: m_16_01 | BC4: m_16_02 | BD4: m_16_03 | BE4: m_16_04 | BF4: m_16_05 | BG4: m_16_06 | BH4: m_16_07 | BI4: m_16_08 | BJ4: m_16_09 | BK4: m_16_10 | BL4: m_16_11 | BM4: m_16_12 | BN4: m_16_13 | BO4: m_16_14 | BP4: m_16_15 | BQ4: m_17_00 | BR4: m_21_00 | BS4: w_03_01 | BT4: w_03_02 | BU4: w_03_03 | BV4: w_03_04 | BW4: w_03_05 | BX4: w_03_06 | BY4: w_03_07 | BZ4: w_03_08 | CA4: w_03_09 | CB4: w_03_10 | CC4: w_03_11 | CD4: w_03_12 | CE4: w_04_02 | CF4: w_06_00 | CG4: w_09_00 | CH4: w_10_00 | CI4: w_11_01 | CJ4: w_11_02 | CK4: w_12_00 | CL4: w_14_01 | CM4: w_14_02 | CN4: w_14_03 | CO4: w_14_04 | CP4: w_14_05 | CQ4: w_14_06 | CR4: w_14_07 | CS4: w_14_08 | CT4: w_14_09 | CU4: w_18_01 | CV4: w_18_02 | CW4: w_21_00 | CX4: w_24_02 | CY4: w_25_01 | CZ4: w_25_02 | DA4: w_25_03 | DB4: w_25_04 | DC4: w_25_05 | DD4: w_25_06 | DE4: w_26_00 | DF4: w_28_01 | DG4: w_29_00 | DH4: w_30_00 | DI4: w_37_01 | DJ4: w_37_02 | DK4: w_37_03 | DL4: w_37_04 | DM4: w_37_05 | DN4: w_37_06 | DO4: w_37_07 | DP4: t_14_00_code | DQ4: dw_03_06 | DR4: dw_03_01 | DS4: dw_06_00 | DT4: dw_26_00 | DU4: dw_10_00 | DV4: dw_28_01 | DW4: dw_18_02 | DX4: dw_29_00 | DY4: dw_04_02 | DZ4: dw_24_02 | EA4: dw_distress
A5: 1 | B5: 2011-09-11 | C5: 10 | D5: Jessore | E5: Abhynagar | F5: Paira | G5: Rural | H5: Ghoradari | I5: 4-Damaged or water-logged | J5: 1 | K5: 0 | L5: 0 | M5: 0 | N5: 0 | O5: 1 | P5: 1 | Q5: 0 | R5: 1 | S5: 2-Vulnerable | T5: 2 | U5: 1 | V5: 0 | W5: 0 | X5: 0 | Y5: 0 | Z5: 0 | AA5: 0 | AB5: 0 | AC5: 3 | AD5: 0 | AE5: 0 | AF5: 1 | AG5: 4-Sanitary latrines (household) | AH5: 1-Open area | AI5: 1 | AJ5: 1 | AK5: 0 | AL5: 0 | AM5: 0 | AN5: 0 | AO5: 0 | AP5: 0 | AQ5: 0 | AR5: 0 | AS5: 1 | AT5: 0 | AU5: 0 | AV5: 2 | AW5: 0 | AX5: 3 | AY5: 0 | AZ5: 0 | BA5: 0 | BB5: 1 | BC5: 0 | BD5: 0 | BE5: 0 | BF5: 0 | BG5: 0 | BH5: 0 | BI5: 0 | BJ5: 5 | BK5: 4 | BL5: 0 | BM5: 0 | BN5: 3 | BO5: 2 | BP5: 0 | BQ5: 0 - <1 | BS5: 3 | BT5: 2 | BU5: 0 | BV5: 0 | BW5: 1 | BX5: 0 | BY5: 0 | BZ5: 0 | CA5: 0 | CB5: 0 | CC5: 0 | CD5: 0 | CE5: 1 | CF5: 1 | CG5: 10 + | CH5: 1 | CI5: 4-Sanitary latrines (household) | CJ5: 1-Open area | CK5: 1 | CL5: 3 | CM5: 0 | CN5: 0 | CO5: 0 | CP5: 0 | CQ5: 2 | CR5: 1 | CS5: 0 | CT5: 0 | CU5: 1 | CV5: 1 | CX5: c-30-60 minutes | CY5: 0 | CZ5: 3 | DA5: 2 | DB5: 0 | DC5: 0 | DD5: 1 | DE5: 1 | DF5: 0 | DG5: 1 | DH5: 1 | DI5: 0 | DJ5: 1 | DK5: 1 | DL5: 0 | DM5: 0 | DN5: 0 | DO5: 0 | DP5: =VALUE(LEFT($S5,1)) -> 2 | DQ5: =IF(BX5=3,1,0) -> 0 | DR5: =IF(BS5=3,1,0) -> 1 | DS5: =CF5 -> 1 | DT5: =DE5 -> 1 | DU5: =CH5 -> 1 | DV5: =DF5 -> 0 | DW5: =1 - CV5 -> 0 | DX5: =DG5 -> 1 | DY5: =1-CE5 -> 0 | DZ5: =IF(OR(LEFT(CX5,1)="d",LEFT(CX5,1)="e", LEFT(CX5,1)="f"),1,0) -> 0 | EA5: =SUM(DQ5:DZ5) -> 5
A6: 2 | B6: 2011-09-09 | C6: 10 | D6: Jessore | E6: Abhynagar | F6: Siddiqpasa | G6: Rural | H6: Joyrabad | I6: 3-Marooned | J6: 1 | K6: 0 | L6: 1 | M6: 0 | N6: 1 | O6: 1 | P6: 1 | Q6: 0 | R6: 0 | S6: 2-Vulnerable | T6: 3 | U6: 0 | V6: 1 | W6: 0 | X6: 0 | Y6: 0 | Z6: 2 | AA6: 0 | AB6: 0 | AC6: 0 | AD6: 0 | AE6: 0 | AF6: 1 | AG6: 4-Sanitary latrines (household) | AH6: 1-Open area | AI6: 1 | AJ6: 0 | AK6: 1 | AL6: 0 | AM6: 0 | AN6: 0 | AO6: 0 | AP6: 0 | AQ6: 0 | AR6: 0 | AS6: 0 | AT6: 0 | AU6: 0 | AV6: 0 | AW6: 0 | AX6: 0 | AY6: 0 | AZ6: 0 | BA6: 0 | BB6: 2 | BC6: 0 | BD6: 0 | BE6: 0 | BF6: 0 | BG6: 0 | BH6: 4 | BI6: 0 | BJ6: 0 | BK6: 1 | BL6: 5 | BM6: 0 | BN6: 3 | BO6: 0 | BP6: 0 | BQ6: 0 - <1 | BR6: 1 | BS6: 3 | BT6: 0 | BU6: 0 | BV6: 0 | BW6: 0 | BX6: 0 | BY6: 0 | BZ6: 0 | CA6: 0 | CB6: 2 | CC6: 1 | CD6: 0 | CE6: 0 | CF6: 1 | CG6: 10 + | CH6: 1 | CI6: 4-Sanitary latrines (household) | CJ6: 1-Open area | CK6: 1 | CL6: 3 | CM6: 0 | CN6: 0 | CO6: 1 | CP6: 0 | CQ6: 2 | CR6: 0 | CS6: 0 | CT6: 0 | CU6: 1 | CV6: 1 | CX6: e-> 2 hours | CY6: 0 | CZ6: 0 | DA6: 3 | DB6: 2 | DC6: 0 | DD6: 1 | DE6: 0 | DF6: 1 | DG6: 0 | DH6: 0 | DI6: 0 | DJ6: 1 | DK6: 1 | DL6: 0 | DM6: 0 | DN6: 0 | DO6: 0 | DP6: =VALUE(LEFT($S6,1)) -> 2 | DQ6: =IF(BX6=3,1,0) -> 0 | DR6: =IF(BS6=3,1,0) -> 1 | DS6: =CF6 -> 1 | DT6: =DE6 -> 0 | DU6: =CH6 -> 1 | DV6: =DF6 -> 1 | DW6: =1 - CV6 -> 0 | DX6: =DG6 -> 0 | DY6: =1-CE6 -> 1 | DZ6: =IF(OR(LEFT(CX6,1)="d",LEFT(CX6,1)="e", LEFT(CX6,1)="f"),1,0) -> 1 | EA6: =SUM(DQ6:DZ6) -> 6
A7: 3 | B7: 2011-09-09 | C7: 10 | D7: Jessore | E7: Abhynagar | F7: Siddiqpasa | G7: Rural | H7: Nolamara | I7: 4-Damaged or water-logged | J7: 1 | K7: 0 | L7: 1 | M7: 0 | N7: 1 | O7: 1 | P7: 1 | Q7: 0 | R7: 0 | S7: 2-Vulnerable | T7: 3 | U7: 0 | V7: 0 | W7: 0 | X7: 0 | Y7: 0 | Z7: 1 | AA7: 0 | AB7: 0 | AC7: 0 | AD7: 2 | AE7: 0 | AF7: 1 | AG7: 4-Sanitary latrines (household) | AH7: 1-Open area | AI7: 1 | AJ7: 0 | AK7: 1 | AL7: 0 | AM7: 0 | AN7: 0 | AO7: 0 | AP7: 0 | AQ7: 0 | AR7: 0 | AS7: 3 | AT7: 0 | AU7: 0 | AV7: 2 | AW7: 0 | AX7: 1 | AY7: 0 | AZ7: 0 | BA7: 0 | BB7: 3 | BC7: 0 | BD7: 0 | BE7: 0 | BF7: 0 | BG7: 0 | BH7: 5 | BI7: 0 | BJ7: 0 | BK7: 2 | BL7: 1 | BM7: 0 | BN7: 4 | BO7: 0 | BP7: 0 | BQ7: 0 - <1 | BR7: 1 | BS7: 3 | BT7: 0 | BU7: 0 | BV7: 0 | BW7: 0 | BX7: 2 | BY7: 0 | BZ7: 0 | CA7: 0 | CB7: 1 | CC7: 0 | CD7: 0 | CE7: 0 | CF7: 0 | CG7: 10 + | CH7: 1 | CI7: 4-Sanitary latrines (household) | CJ7: 2-Hanging or open latrine | CK7: 1 | CL7: 1 | CM7: 0 | CN7: 0 | CO7: 2 | CP7: 0 | CQ7: 3 | CR7: 0 | CS7: 0 | CT7: 0 | CU7: 1 | CV7: 1 | CX7: e-> 2 hours | CY7: 0 | CZ7: 0 | DA7: 3 | DB7: 1 | DC7: 2 | DD7: 0 | DE7: 0 | DF7: 0 | DG7: 1 | DH7: 0 | DI7: 0 | DJ7: 1 | DK7: 1 | DL7: 0 | DM7: 0 | DN7: 1 | DO7: 0 | DP7: 2 | DQ7: 0 | DR7: 1 | DS7: 0 | DT7: 0 | DU7: 1 | DV7: 0 | DW7: 0 | DX7: 1 | DY7: 1 | DZ7: 1 | EA7: 5
A8: 4 | B8: 2011-09-10 | C8: 10 | D8: Jessore | E8: Abhynagar | F8: Suvoyara | G8: Rural | H8: IsamotiPurbapasa | I8: 3-Marooned | J8: 1 | K8: 0 | L8: 1 | M8: 0 | N8: 0 | O8: 1 | P8: 1 | Q8: 0 | R8: 1 | S8: 3-Seriously vulnerable | T8: 1 | U8: 0 | V8: 0 | W8: 0 | X8: 0 | Y8: 3 | Z8: 0 | AA8: 0 | AB8: 0 | AC8: 2 | AD8: 0 | AE8: 0 | AF8: 1 | AG8: 3-Sanitary latrines (communal) | AH8: 3-Sanitary latrines (communal) | AI8: 1 | AJ8: 1 | AK8: 1 | AL8: 0 | AM8: 0 | AN8: 0 | AO8: 0 | AP8: 0 | AQ8: 0 | AR8: 0 | AS8: 3 | AT8: 0 | AU8: 0 | AV8: 1 | AW8: 0 | AX8: 2 | AY8: 0 | AZ8: 0 | BA8: 0 | BB8: 0 | BC8: 0 | BD8: 0 | BE8: 2 | BF8: 3 | BG8: 0 | BH8: 0 | BI8: 0 | BJ8: 4 | BK8: 0 | BL8: 0 | BM8: 0 | BN8: 5 | BO8: 1 | BP8: 0 | BQ8: 0 - <1 | BR8: 1 | BS8: 0 | BT8: 0 | BU8: 0 | BV8: 0 | BW8: 1 | BX8: 2 | BY8: 0 | BZ8: 0 | CA8: 0 | CB8: 3 | CC8: 0 | CD8: 0 | CE8: 1 | CF8: 0 | CG8: 10 + | CH8: 1 | CI8: 4-Sanitary latrines (household) | CJ8: 1-Open area | CK8: 0 | CL8: 3 | CM8: 0 | CN8: 0 | CO8: 1 | CP8: 0 | CQ8: 2 | CR8: 0 | CS8: 0 | CT8: 0 | CU8: 1 | CV8: 1 | CX8: e-> 2 hours | CY8: 0 | CZ8: 0 | DA8: 3 | DB8: 0 | DC8: 2 | DD8: 1 | DE8: 0 | DF8: 0 | DG8: 0 | DH8: 0 | DI8: 0 | DJ8: 1 | DK8: 1 | DL8: 0 | DM8: 0 | DN8: 0 | DO8: 0 | DP8: 3 | DQ8: 0 | DR8: 0 | DS8: 0 | DT8: 0 | DU8: 1 | DV8: 0 | DW8: 0 | DX8: 0 | DY8: 0 | DZ8: 1 | EA8: 2
A9: 5 | B9: 2011-09-10 | C9: 10 | D9: Jessore | E9: Abhynagar | F9: Suvoyara | G9: Rural | H9: Hindia | I9: 4-Damaged or water-logged | J9: 1 | K9: 0 | L9: 1 | M9: 0 | N9: 1 | O9: 1 | P9: 1 | Q9: 0 | R9: 1 | S9: 2-Vulnerable | T9: 3 | U9: 0 | V9: 0 | W9: 0 | X9: 0 | Y9: 1 | Z9: 0 | AA9: 0 | AB9: 0 | AC9: 2 | AD9: 0 | AE9: 0 | AF9: 0 | AG9: 4-Sanitary latrines (household) | AH9: 3-Sanitary latrines (communal) | AI9: 1 | AJ9: 1 | AK9: 0 | AL9: 1 | AM9: 0 | AN9: 0 | AO9: 0 | AP9: 0 | AQ9: 0 | AR9: 0 | AS9: 3 | AT9: 1 | AU9: 0 | AV9: 2 | AW9: 0 | AX9: 0 | AY9: 0 | AZ9: 0 | BA9: 0 | BB9: 5 | BC9: 4 | BD9: 1 | BE9: 0 | BF9: 0 | BG9: 0 | BH9: 3 | BI9: 0 | BJ9: 2 | BK9: 0 | BL9: 0 | BM9: 0 | BN9: 0 | BO9: 0 | BP9: 0 | BQ9: 0 - <1 | BS9: 0 | BT9: 0 | BU9: 0 | BV9: 0 | BW9: 1 | BX9: 3 | BY9: 0 | BZ9: 0 | CA9: 0 | CB9: 2 | CC9: 0 | CD9: 0 | CE9: 1 | CF9: 1 | CG9: 10 + | CH9: 1 | CI9: 2-Hanging or open latrine | CJ9: 1-Open area | CK9: 1 | CL9: 2 | CM9: 0 | CN9: 0 | CO9: 2 | CP9: 0 | CQ9: 3 | CR9: 0 | CS9: 0 | CT9: 0 | CU9: 1 | CV9: 0 | CX9: c-30-60 minutes | CY9: 0 | CZ9: 1 | DA9: 3 | DB9: 2 | DC9: 0 | DD9: 0 | DE9: 0 | DF9: 0 | DG9: 1 | DH9: 0 | DI9: 0 | DJ9: 1 | DK9: 1 | DL9: 0 | DM9: 0 | DN9: 0 | DO9: 0 | DP9: 2 | DQ9: 1 | DR9: 0 | DS9: 1 | DT9: 0 | DU9: 1 | DV9: 0 | DW9: 1 | DX9: 1 | DY9: 0 | DZ9: 0 | EA9: 5
A10: 6 | B10: 2011-09-10 | C10: 11 | D10: Jessore | E10: Jhikargacha | F10: Bakra | G10: Rural | H10: Dikdana | I10: 2-Roadside / embankments | J10: 1 | K10: 0 | L10: 1 | M10: 1 | N10: 1 | O10: 1 | P10: 1 | Q10: 1 | R10: 0 | S10: 3-Seriously vulnerable | T10: 2 | U10: 0 | V10: 0 | W10: 0 | X10: 1 | Y10: 3 | Z10: 0 | AA10: 0 | AB10: 0 | AC10: 0 | AD10: 0 | AE10: 0 | AF10: 1 | AG10: 4-Sanitary latrines (household) | AH10: 5-Other | AI10: 1 | AJ10: 0 | AK10: 1 | AL10: 0 | AM10: 0 | AN10: 0 | AO10: 0 | AP10: 1 | AQ10: 0 | AR10: 1 | AS10: 1 | AT10: 0 | AU10: 0 | AV10: 3 | AW10: 0 | AX10: 0 | AY10: 2 | AZ10: 0 | BA10: 0 | BB10: 2 | BC10: 0 | BD10: 0 | BE10: 0 | BF10: 0 | BG10: 0 | BH10: 4 | BI10: 3 | BJ10: 5 | BK10: 0 | BL10: 0 | BM10: 0 | BN10: 0 | BO10: 1 | BP10: 0 | BQ10: 2 - 3 | BR10: 1 | BS10: 1 | BT10: 0 | BU10: 2 | BV10: 0 | BW10: 0 | BX10: 3 | BY10: 0 | BZ10: 0 | CA10: 0 | CB10: 0 | CC10: 0 | CD10: 0 | CE10: 1 | CF10: 1 | CG10: 10 + | CH10: 1 | CI10: 4-Sanitary latrines (household) | CJ10: 4-Sanitary latrines (household) | CK10: 1 | CL10: 1 | CM10: 0 | CN10: 0 | CO10: 2 | CP10: 0 | CQ10: 0 | CR10: 1 | CS10: 0 | CT10: 0 | CU10: 1 | CV10: 0 | CW10: 2 - 3 | CX10: c-30-60 minutes | CY10: 0 | CZ10: 2 | DA10: 3 | DB10: 0 | DC10: 0 | DD10: 1 | DE10: 0 | DF10: 0 | DG10: 0 | DH10: 0 | DI10: 0 | DJ10: 1 | DK10: 0 | DL10: 0 | DM10: 0 | DN10: 0 | DO10: 0 | DP10: 3 | DQ10: 1 | DR10: 0 | DS10: 1 | DT10: 0 | DU10: 1 | DV10: 0 | DW10: 1 | DX10: 0 | DY10: 0 | DZ10: 0 | EA10: 4
A11: 7 | B11: 2011-09-10 | C11: 11 | D11: Jessore | E11: Jhikargacha | F11: Bakra | G11: Rural | H11: Dikdana | I11: 3-Marooned | J11: 1 | K11: 0 | L11: 1 | M11: 0 | N11: 1 | O11: 1 | P11: 1 | Q11: 1 | R11: 0 | S11: 1-Relatively normal | T11: 2 | U11: 0 | V11: 0 | W11: 0 | X11: 1 | Y11: 3 | Z11: 0 | AA11: 0 | AB11: 0 | AC11: 0 | AD11: 0 | AE11: 0 | AF11: 1 | AG11: 4-Sanitary latrines (household) | AH11: 5-Other | AI11: 1 | AJ11: 0 | AK11: 1 | AL11: 1 | AM11: 0 | AN11: 0 | AO11: 0 | AP11: 0 | AQ11: 0 | AR11: 1 | AS11: 0 | AT11: 0 | AU11: 0 | AV11: 3 | AW11: 0 | AX11: 0 | AY11: 2 | AZ11: 0 | BA11: 1 | BB11: 0 | BC11: 0 | BD11: 0 | BE11: 0 | BF11: 0 | BG11: 0 | BH11: 5 | BI11: 1 | BJ11: 4 | BK11: 3 | BL11: 0 | BM11: 0 | BN11: 0 | BO11: 2 | BP11: 0 | BQ11: 0 - <1 | BS11: 1 | BT11: 0 | BU11: 0 | BV11: 0 | BW11: 0 | BX11: 3 | BY11: 2 | BZ11: 0 | CA11: 0 | CB11: 1 | CC11: 0 | CD11: 0 | CE11: 0 | CF11: 1 | CG11: 10 + | CH11: 1 | CI11: 4-Sanitary latrines (household) | CJ11: 1-Open area | CK11: 1 | CL11: 3 | CM11: 0 | CN11: 0 | CO11: 2 | CP11: 0 | CQ11: 0 | CR11: 1 | CS11: 0 | CT11: 0 | CU11: 1 | CV11: 0 | CX11: e-> 2 hours | CY11: 0 | CZ11: 2 | DA11: 3 | DB11: 0 | DC11: 0 | DD11: 1 | DE11: 0 | DF11: 0 | DG11: 1 | DH11: 0 | DI11: 0 | DJ11: 1 | DK11: 0 | DL11: 0 | DM11: 0 | DN11: 0 | DO11: 0 | DP11: 1 | DQ11: 1 | DR11: 0 | DS11: 1 | DT11: 0 | DU11: 1 | DV11: 0 | DW11: 1 | DX11: 1 | DY11: 1 | DZ11: 1 | EA11: 7
A12: 8 | B12: 2011-09-10 | C12: 11 | D12: Jessore | E12: Jhikargacha | F12: Nibeshkhola | G12: Rural | H12: Balla (Beside River) | I12: 5-Home undamaged | J12: 1 | K12: 0 | L12: 1 | M12: 1 | N12: 1 | O12: 1 | P12: 1 | Q12: 1 | R12: 0 | S12: 3-Seriously vulnerable | T12: 3 | U12: 0 | V12: 0 | W12: 0 | X12: 1 | Y12: 0 | Z12: 0 | AA12: 0 | AB12: 0 | AC12: 0 | AD12: 0 | AE12: 2 | AF12: 1 | AG12: 4-Sanitary latrines (household) | AH12: 2-Hanging or open latrine | AI12: 1 | AJ12: 0 | AK12: 1 | AL12: 0 | AM12: 0 | AN12: 0 | AO12: 0 | AP12: 0 | AQ12: 0 | AR12: 1 | AS12: 0 | AT12: 0 | AU12: 0 | AV12: 2 | AW12: 0 | AX12: 0 | AY12: 0 | AZ12: 0 | BA12: 0 | BB12: 0 | BC12: 0 | BD12: 0 | BE12: 0 | BF12: 0 | BG12: 0 | BH12: 4 | BI12: 0 | BJ12: 5 | BK12: 3 | BL12: 0 | BM12: 2 | BN12: 0 | BO12: 0 | BP12: 1 | BQ12: 0 - <1 | BS12: 0 | BT12: 0 | BU12: 2 | BV12: 0 | BW12: 0 | BX12: 3 | BY12: 0 | BZ12: 0 | CA12: 0 | CB12: 0 | CC12: 0 | CD12: 1 | CE12: 0 | CF12: 1 | CG12: 10 + | CH12: 1 | CI12: 4-Sanitary latrines (household) | CJ12: 1-Open area | CK12: 1 | CL12: 0 | CM12: 0 | CN12: 0 | CO12: 3 | CP12: 1 | CQ12: 0 | CR12: 0 | CS12: 2 | CT12: 0 | CU12: 1 | CV12: 0 | CX12: e-> 2 hours | CY12: 0 | CZ12: 1 | DA12: 3 | DB12: 0 | DC12: 0 | DD12: 2 | DE12: 0 | DF12: 0 | DG12: 0 | DH12: 0 | DI12: 0 | DJ12: 1 | DK12: 0 | DL12: 0 | DM12: 0 | DN12: 0 | DO12: 0 | DP12: 3 | DQ12: 1 | DR12: 0 | DS12: 1 | DT12: 0 | DU12: 1 | DV12: 0 | DW12: 1 | DX12: 0 | DY12: 1 | DZ12: 1 | EA12: 6
A13: 9 | B13: 2011-09-11 | C13: 11 | D13: Jessore | E13: Jhikargacha | F13: Ponisara | G13: Rural | H13: Purandapur (Purba Para) | I13: 5-Home undamaged | J13: 1 | K13: 0 | L13: 1 | M13: 0 | N13: 1 | O13: 1 | P13: 1 | Q13: 0 | R13: 0 | S13: 3-Seriously vulnerable | T13: 2 | U13: 0 | V13: 0 | W13: 0 | X13: 1 | Y13: 3 | Z13: 0 | AA13: 0 | AB13: 0 | AC13: 0 | AD13: 0 | AE13: 0 | AF13: 1 | AG13: 4-Sanitary latrines (household) | AH13: 5-Other | AI13: 1 | AJ13: 0 | AK13: 0 | AL13: 1 | AM13: 0 | AN13: 0 | AO13: 0 | AP13: 1 | AQ13: 0 | AR13: 0 | AS13: 0 | AT13: 0 | AU13: 0 | AV13: 3 | AW13: 0 | AX13: 1 | AY13: 2 | AZ13: 0 | BA13: 0 | BB13: 0 | BC13: 0 | BD13: 0 | BE13: 0 | BF13: 0 | BG13: 0 | BH13: 5 | BI13: 1 | BJ13: 2 | BK13: 4 | BL13: 0 | BM13: 3 | BN13: 0 | BO13: 0 | BP13: 0 | BQ13: 0 - <1 | BS13: 0 | BT13: 1 | BU13: 0 | BV13: 0 | BW13: 0 | BX13: 2 | BY13: 3 | BZ13: 0 | CA13: 0 | CB13: 0 | CC13: 0 | CD13: 0 | CE13: 0 | CF13: 1 | CG13: 10 + | CH13: 0 | CI13: 4-Sanitary latrines (household) | CJ13: 2-Hanging or open latrine | CK13: 1 | CL13: 0 | CM13: 0 | CN13: 0 | CO13: 3 | CP13: 2 | CQ13: 0 | CR13: 0 | CS13: 0 | CT13: 1 | CU13: 1 | CV13: 0 | CX13: d-1 - 2 hours | CY13: 0 | CZ13: 0 | DA13: 3 | DB13: 2 | DC13: 0 | DD13: 1 | DE13: 0 | DF13: 0 | DG13: 0 | DH13: 0 | DI13: 1 | DJ13: 0 | DK13: 0 | DL13: 0 | DM13: 0 | DN13: 0 | DO13: 0 | DP13: 3 | DQ13: 0 | DR13: 0 | DS13: 1 | DT13: 0 | DU13: 0 | DV13: 0 | DW13: 1 | DX13: 0 | DY13: 1 | DZ13: 1 | EA13: 4
A14: 10 | B14: 2011-09-09 | C14: 11 | D14: Jessore | E14: Jhikargacha | F14: Pourashara | G14: Urban | H14: Parbazar | I14: 1-Collective centers | J14: 0 | K14: 1 | L14: 1 | M14: 0 | N14: 1 | O14: 1 | P14: 1 | Q14: 1 | R14: 0 | S14: 3-Seriously vulnerable | T14: 1 | U14: 0 | V14: 0 | W14: 0 | X14: 3 | Y14: 2 | Z14: 0 | AA14: 0 | AB14: 0 | AC14: 0 | AD14: 0 | AE14: 0 | AF14: 1 | AG14: 4-Sanitary latrines (household) | AH14: 3-Sanitary latrines (communal) | AI14: 0 | AJ14: 0 | AK14: 1 | AL14: 1 | AM14: 0 | AN14: 0 | AO14: 0 | AP14: 1 | AQ14: 1 | AR14: 0 | AS14: 0 | AT14: 0 | AU14: 3 | AV14: 2 | AW14: 0 | AX14: 0 | AY14: 1 | AZ14: 0 | BA14: 0 | BB14: 2 | BC14: 0 | BD14: 0 | BE14: 0 | BF14: 1 | BG14: 0 | BH14: 4 | BI14: 0 | BJ14: 5 | BK14: 3 | BL14: 0 | BM14: 0 | BN14: 0 | BO14: 0 | BP14: 0 | BQ14: 1 - 2 | BR14: 1 | BS14: 1 | BT14: 0 | BU14: 3 | BV14: 0 | BW14: 0 | BX14: 2 | BY14: 0 | BZ14: 0 | CA14: 0 | CB14: 0 | CC14: 0 | CD14: 0 | CE14: 0 | CF14: 1 | CG14: 10 + | CH14: 1 | CI14: 4-Sanitary latrines (household) | CJ14: 4-Sanitary latrines (household) | CK14: 1 | CL14: 2 | CM14: 0 | CN14: 1 | CO14: 3 | CP14: 0 | CQ14: 0 | CR14: 0 | CS14: 0 | CT14: 0 | CU14: 1 | CV14: 0 | CW14: 1 - 2 | CX14: c-30-60 minutes | CY14: 0 | CZ14: 2 | DA14: 3 | DB14: 0 | DC14: 0 | DD14: 1 | DE14: 0 | DF14: 1 | DG14: 1 | DH14: 0 | DI14: 0 | DJ14: 1 | DK14: 0 | DL14: 0 | DM14: 0 | DN14: 0 | DO14: 0 | DP14: 3 | DQ14: 0 | DR14: 0 | DS14: 1 | DT14: 0 | DU14: 1 | DV14: 1 | DW14: 1 | DX14: 1 | DY14: 1 | DZ14: 0 | EA14: 6
A15: 11 | B15: 2011-09-09 | C15: 11 | D15: Jessore | E15: Jhikargacha | F15: Pourashara | G15: Urban | H15: Saddampara | I15: 3-Marooned | J15: 1 | K15: 0 | L15: 1 | M15: 0 | N15: 1 | O15: 1 | P15: 1 | Q15: 1 | R15: 0 | S15: 3-Seriously vulnerable | T15: 3 | U15: 0 | V15: 0 | W15: 0 | X15: 0 | Y15: 1 | Z15: 2 | AA15: 0 | AB15: 0 | AC15: 0 | AD15: 0 | AE15: 0 | AF15: 1 | AG15: 4-Sanitary latrines (household) | AH15: 2-Hanging or open latrine | AI15: 0 | AJ15: 0 | AK15: 0 | AL15: 1 | AM15: 0 | AN15: 0 | AO15: 1 | AP15: 0 | AQ15: 1 | AR15: 1 | AS15: 0 | AT15: 0 | AU15: 0 | AV15: 3 | AW15: 0 | AX15: 0 | AY15: 1 | AZ15: 2 | BA15: 0 | BB15: 0 | BC15: 1 | BD15: 0 | BE15: 0 | BF15: 3 | BG15: 0 | BH15: 4 | BI15: 0 | BJ15: 5 | BK15: 0 | BL15: 0 | BM15: 0 | BN15: 0 | BO15: 2 | BP15: 0 | BQ15: 0 - <1 | BS15: 3 | BT15: 0 | BU15: 0 | BV15: 0 | BW15: 1 | BX15: 2 | BY15: 0 | BZ15: 0 | CA15: 0 | CB15: 0 | CC15: 0 | CD15: 0 | CE15: 1 | CF15: 1 | CG15: 10 + | CH15: 1 | CI15: 4-Sanitary latrines (household) | CJ15: 1-Open area | CK15: 1 | CL15: 0 | CM15: 0 | CN15: 0 | CO15: 3 | CP15: 0 | CQ15: 2 | CR15: 1 | CS15: 0 | CT15: 0 | CU15: 1 | CV15: 0 | CX15: c-30-60 minutes | CY15: 0 | CZ15: 1 | DA15: 3 | DB15: 0 | DC15: 0 | DD15: 2 | DE15: 0 | DF15: 0 | DG15: 1 | DH15: 0 | DI15: 0 | DJ15: 1 | DK15: 0 | DL15: 0 | DM15: 0 | DN15: 1 | DO15: 0 | DP15: 3 | DQ15: 0 | DR15: 1 | DS15: 1 | DT15: 0 | DU15: 1 | DV15: 0 | DW15: 1 | DX15: 1 | DY15: 0 | DZ15: 0 | EA15: 5
A16: 12 | B16: 2011-09-09 | C16: 11 | D16: Jessore | E16: Jhikargacha | F16: Pourashara | G16: Rural | H16: Shanti Bagar | I16: 4-Damaged or water-logged | J16: 1 | K16: 1 | L16: 1 | M16: 0 | N16: 1 | O16: 1 | P16: 1 | Q16: 1 | R16: 0 | S16: 3-Seriously vulnerable | T16: 3 | U16: 0 | V16: 0 | W16: 0 | X16: 0 | Y16: 2 | Z16: 0 | AA16: 0 | AB16: 0 | AC16: 1 | AD16: 0 | AE16: 0 | AF16: 1 | AG16: 4-Sanitary latrines (household) | AH16: 2-Hanging or open latrine | AI16: 0 | AJ16: 0 | AK16: 1 | AL16: 1 | AM16: 0 | AN16: 0 | AO16: 0 | AP16: 0 | AQ16: 0 | AR16: 1 | AS16: 0 | AT16: 0 | AU16: 0 | AV16: 3 | AW16: 0 | AX16: 0 | AY16: 1 | AZ16: 0 | BA16: 0 | BB16: 3 | BC16: 2 | BD16: 0 | BE16: 0 | BF16: 1 | BG16: 0 | BH16: 1 | BI16: 0 | BJ16: 4 | BK16: 0 | BL16: 0 | BM16: 0 | BN16: 0 | BO16: 0 | BP16: 0 | BQ16: 0 - <1 | BS16: 1 | BT16: 0 | BU16: 2 | BV16: 0 | BW16: 0 | BX16: 3 | BY16: 0 | BZ16: 0 | CA16: 0 | CB16: 0 | CC16: 0 | CD16: 0 | CE16: 0 | CF16: 1 | CG16: 10 + | CH16: 1 | CI16: 4-Sanitary latrines (household) | CJ16: 1-Open area | CK16: 1 | CL16: 0 | CM16: 0 | CN16: 0 | CO16: 3 | CP16: 1 | CQ16: 2 | CR16: 0 | CS16: 0 | CT16: 0 | CU16: 1 | CV16: 0 | CX16: d-1 - 2 hours | CY16: 0 | CZ16: 2 | DA16: 3 | DB16: 0 | DC16: 0 | DD16: 1 | DE16: 0 | DF16: 0 | DG16: 1 | DH16: 0 | DI16: 0 | DJ16: 1 | DK16: 0 | DL16: 0 | DM16: 0 | DN16: 1 | DO16: 0 | DP16: 3 | DQ16: 1 | DR16: 0 | DS16: 1 | DT16: 0 | DU16: 1 | DV16: 0 | DW16: 1 | DX16: 1 | DY16: 1 | DZ16: 1 | EA16: 7
A17: 13 | B17: 2011-09-09 | C17: 9 | D17: Jessore | E17: Keshabpur | F17: Biddyanandakati | G17: Rural | H17: Nehanpur | I17: 1-Collective centers | J17: 1 | K17: 1 | L17: 1 | M17: 0 | N17: 1 | O17: 1 | P17: 1 | Q17: 0 | R17: 0 | S17: 3-Seriously vulnerable | T17: 2 | U17: 0 | V17: 0 | W17: 0 | X17: 0 | Y17: 3 | Z17: 1 | AA17: 0 | AB17: 0 | AC17: 0 | AD17: 0 | AE17: 0 | AF17: 1 | AG17: 3-Sanitary latrines (communal) | AH17: 2-Hanging or open latrine | AI17: 1 | AJ17: 1 | AK17: 1 | AL17: 0 | AM17: 0 | AN17: 0 | AO17: 0 | AP17: 0 | AQ17: 0 | AR17: 0 | AS17: 2 | AT17: 0 | AU17: 0 | AV17: 3 | AW17: 0 | AX17: 0 | AY17: 1 | AZ17: 0 | BA17: 0 | BB17: 0 | BC17: 0 | BD17: 0 | BE17: 0 | BF17: 0 | BG17: 0 | BH17: 5 | BI17: 1 | BJ17: 4 | BK17: 0 | BL17: 3 | BM17: 2 | BN17: 0 | BO17: 0 | BP17: 0 | BQ17: 3 + | BR17: 1 | BS17: 0 | BT17: 0 | BU17: 2 | BV17: 0 | BW17: 0 | BX17: 3 | BY17: 1 | BZ17: 0 | CA17: 0 | CB17: 0 | CC17: 0 | CD17: 0 | CE17: 1 | CF17: 1 | CG17: 10 + | CH17: 1 | CI17: 2-Hanging or open latrine | CJ17: 1-Open area | CK17: 1 | CL17: 1 | CM17: 0 | CN17: 0 | CO17: 3 | CP17: 0 | CQ17: 2 | CR17: 0 | CS17: 0 | CT17: 0 | CU17: 1 | CV17: 0 | CW17: 3 + | CX17: e-> 2 hours | CY17: 0 | CZ17: 1 | DA17: 3 | DB17: 2 | DC17: 0 | DD17: 0 | DE17: 1 | DF17: 1 | DG17: 0 | DH17: 0 | DI17: 0 | DJ17: 1 | DK17: 0 | DL17: 1 | DM17: 1 | DN17: 1 | DO17: 0 | DP17: 3 | DQ17: 1 | DR17: 0 | DS17: 1 | DT17: 1 | DU17: 1 | DV17: 1 | DW17: 1 | DX17: 0 | DY17: 0 | DZ17: 1 | EA17: 7
A18: 14 | B18: 2011-09-10 | C18: 9 | D18: Jessore | E18: Keshabpur | F18: Keshabpur Sadar | G18: Rural | H18: Basdanga | I18: 5-Home undamaged | J18: 1 | K18: 1 | L18: 0 | M18: 0 | N18: 1 | O18: 1 | P18: 1 | Q18: 1 | R18: 0 | S18: 2-Vulnerable | T18: 3 | U18: 1 | V18: 0 | W18: 0 | X18: 0 | Y18: 2 | Z18: 0 | AA18: 0 | AB18: 0 | AC18: 0 | AD18: 0 | AE18: 0 | AF18: 0 | AG18: 3-Sanitary latrines (communal) | AH18: 2-Hanging or open latrine | AI18: 1 | AJ18: 0 | AK18: 0 | AL18: 0 | AM18: 0 | AN18: 0 | AO18: 0 | AP18: 0 | AQ18: 0 | AR18: 0 | AS18: 0 | AT18: 0 | AU18: 0 | AV18: 0 | AW18: 0 | AX18: 0 | AY18: 0 | AZ18: 0 | BA18: 0 | BB18: 0 | BC18: 5 | BD18: 0 | BE18: 0 | BF18: 0 | BG18: 0 | BH18: 2 | BI18: 1 | BJ18: 0 | BK18: 4 | BL18: 3 | BM18: 0 | BN18: 0 | BO18: 0 | BP18: 0 | BQ18: 0 - <1 | BS18: 2 | BT18: 0 | BU18: 0 | BV18: 0 | BW18: 0 | BX18: 3 | BY18: 1 | BZ18: 0 | CA18: 0 | CB18: 0 | CC18: 0 | CD18: 0 | CE18: 1 | CF18: 1 | CG18: 10 + | CH18: 1 | CI18: 2-Hanging or open latrine | CJ18: 1-Open area | CK18: 1 | CL18: 0 | CM18: 0 | CN18: 0 | CO18: 3 | CP18: 0 | CQ18: 2 | CR18: 1 | CS18: 0 | CT18: 0 | CU18: 1 | CV18: 1 | CX18: d-1 - 2 hours | CY18: 0 | CZ18: 2 | DA18: 3 | DB18: 1 | DC18: 0 | DD18: 0 | DE18: 1 | DF18: 0 | DG18: 0 | DH18: 0 | DI18: 0 | DJ18: 1 | DK18: 0 | DL18: 1 | DM18: 0 | DN18: 1 | DO18: 0 | DP18: 2 | DQ18: 1 | DR18: 0 | DS18: 1 | DT18: 1 | DU18: 1 | DV18: 0 | DW18: 0 | DX18: 0 | DY18: 0 | DZ18: 1 | EA18: 5
A19: 15 | B19: 2011-09-11 | C19: 9 | D19: Jessore | E19: Keshabpur | F19: Mojidpur | G19: Rural | H19: Protappur | I19: 5-Home undamaged | J19: 1 | K19: 1 | L19: 0 | M19: 0 | N19: 0 | O19: 1 | P19: 1 | Q19: 1 | R19: 0 | S19: 2-Vulnerable | T19: 2 | U19: 0 | V19: 0 | W19: 0 | X19: 0 | Y19: 1 | Z19: 3 | AA19: 0 | AB19: 0 | AC19: 0 | AD19: 0 | AE19: 0 | AF19: 0 | AG19: 3-Sanitary latrines (communal) | AH19: 2-Hanging or open latrine | AI19: 0 | AJ19: 0 | AK19: 0 | AL19: 0 | AM19: 0 | AN19: 0 | AO19: 0 | AP19: 0 | AQ19: 0 | AR19: 0 | AS19: 0 | AT19: 0 | AU19: 0 | AV19: 3 | AW19: 1 | AX19: 2 | AY19: 0 | AZ19: 0 | BA19: 0 | BB19: 5 | BC19: 4 | BD19: 0 | BE19: 0 | BF19: 0 | BG19: 0 | BH19: 3 | BI19: 0 | BJ19: 0 | BK19: 2 | BL19: 1 | BM19: 0 | BN19: 0 | BO19: 0 | BP19: 0 | BQ19: 0 - <1 | BS19: 1 | BT19: 0 | BU19: 0 | BV19: 0 | BW19: 0 | BX19: 3 | BY19: 0 | BZ19: 0 | CA19: 2 | CB19: 0 | CC19: 0 | CD19: 0 | CE19: 0 | CF19: 1 | CG19: 10 + | CH19: 1 | CI19: 4-Sanitary latrines (household) | CJ19: 1-Open area | CK19: 1 | CL19: 3 | CM19: 0 | CN19: 0 | CO19: 2 | CP19: 0 | CQ19: 1 | CR19: 0 | CS19: 0 | CT19: 0 | CU19: 1 | CV19: 1 | CX19: d-1 - 2 hours | CY19: 0 | CZ19: 3 | DA19: 2 | DB19: 0 | DC19: 1 | DD19: 0 | DE19: 1 | DF19: 0 | DG19: 1 | DH19: 0 | DI19: 0 | DJ19: 1 | DK19: 1 | DL19: 1 | DM19: 0 | DN19: 0 | DO19: 0 | DP19: 2 | DQ19: 1 | DR19: 0 | DS19: 1 | DT19: 1 | DU19: 1 | DV19: 0 | DW19: 0 | DX19: 1 | DY19: 1 | DZ19: 1 | EA19: 7
A20: 16 | B20: 2011-09-11 | C20: 9 | D20: Jessore | E20: Keshabpur | F20: Pazia | G20: Rural | H20: Bagdanga | I20: 5-Home undamaged | J20: 1 | K20: 0 | L20: 0 | M20: 0 | N20: 1 | O20: 1 | P20: 1 | Q20: 1 | R20: 0 | S20: 2-Vulnerable | T20: 2 | U20: 1 | V20: 0 | W20: 0 | X20: 0 | Y20: 3 | Z20: 0 | AA20: 0 | AB20: 0 | AC20: 0 | AD20: 0 | AE20: 0 | AF20: 0 | AG20: 4-Sanitary latrines (household) | AH20: 3-Sanitary latrines (communal) | AI20: 1 | AJ20: 0 | AK20: 0 | AL20: 0 | AM20: 0 | AN20: 0 | AO20: 0 | AP20: 0 | AQ20: 0 | AR20: 0 | AS20: 0 | AT20: 0 | AU20: 0 | AV20: 0 | AW20: 0 | AX20: 0 | AY20: 0 | AZ20: 0 | BA20: 0 | BB20: 5 | BC20: 1 | BD20: 0 | BE20: 0 | BF20: 0 | BG20: 0 | BH20: 5 | BI20: 4 | BJ20: 0 | BK20: 3 | BL20: 2 | BM20: 0 | BN20: 0 | BO20: 0 | BP20: 0 | BQ20: 0 - <1 | BS20: 2 | BT20: 0 | BU20: 0 | BV20: 0 | BW20: 0 | BX20: 3 | BY20: 1 | BZ20: 0 | CA20: 0 | CB20: 0 | CC20: 0 | CD20: 0 | CE20: 1 | CF20: 1 | CG20: 10 + | CH20: 1 | CI20: 4-Sanitary latrines (household) | CJ20: 1-Open area | CK20: 1 | CL20: 0 | CM20: 0 | CN20: 0 | CO20: 2 | CP20: 1 | CQ20: 3 | CR20: 0 | CS20: 0 | CT20: 0 | CU20: 1 | CV20: 1 | CX20: d-1 - 2 hours | CY20: 0 | CZ20: 2 | DA20: 3 | DB20: 0 | DC20: 0 | DD20: 1 | DE20: 0 | DF20: 0 | DG20: 0 | DH20: 0 | DI20: 0 | DJ20: 1 | DK20: 1 | DL20: 1 | DM20: 0 | DN20: 0 | DO20: 0 | DP20: 2 | DQ20: 1 | DR20: 0 | DS20: 1 | DT20: 0 | DU20: 1 | DV20: 0 | DW20: 0 | DX20: 0 | DY20: 0 | DZ20: 1 | EA20: 4
A21: 17 | B21: 2011-09-08 | C21: 9 | D21: Jessore | E21: Keshabpur | F21: Sagardari | G21: Rural | H21: Sagardari | I21: 2-Roadside / embankments | J21: 1 | K21: 0 | L21: 1 | M21: 0 | N21: 1 | O21: 1 | P21: 1 | Q21: 1 | R21: 0 | S21: 3-Seriously vulnerable | T21: 2 | U21: 0 | V21: 0 | W21: 0 | X21: 1 | Y21: 3 | Z21: 0 | AA21: 0 | AB21: 0 | AC21: 0 | AD21: 0 | AE21: 0 | AF21: 1 | AG21: 4-Sanitary latrines (household) | AH21: 1-Open area | AI21: 0 | AJ21: 1 | AK21: 1 | AL21: 0 | AM21: 0 | AN21: 0 | AO21: 0 | AP21: 1 | AQ21: 0 | AR21: 0 | AS21: 2 | AT21: 0 | AU21: 0 | AV21: 3 | AW21: 0 | AX21: 1 | AY21: 0 | AZ21: 0 | BA21: 0 | BB21: 2 | BC21: 1 | BD21: 0 | BE21: 0 | BF21: 0 | BG21: 0 | BH21: 0 | BI21: 0 | BJ21: 5 | BK21: 4 | BL21: 0 | BM21: 3 | BN21: 0 | BO21: 0 | BP21: 0 | BQ21: 3 + | BR21: 1 | BS21: 0 | BT21: 0 | BU21: 0 | BV21: 0 | BW21: 1 | BX21: 3 | BY21: 0 | BZ21: 0 | CA21: 0 | CB21: 0 | CC21: 0 | CD21: 2 | CE21: 0 | CF21: 1 | CG21: 10 + | CH21: 1 | CI21: 2-Hanging or open latrine | CJ21: 1-Open area | CK21: 1 | CL21: 1 | CM21: 0 | CN21: 0 | CO21: 3 | CP21: 0 | CQ21: 2 | CR21: 0 | CS21: 0 | CT21: 0 | CU21: 1 | CV21: 0 | CW21: 3 + | CX21: d-1 - 2 hours | CY21: 0 | CZ21: 3 | DA21: 2 | DB21: 1 | DC21: 0 | DD21: 0 | DE21: 1 | DF21: 1 | DG21: 0 | DH21: 0 | DI21: 0 | DJ21: 1 | DK21: 0 | DL21: 1 | DM21: 1 | DN21: 1 | DO21: 0 | DP21: 3 | DQ21: 1 | DR21: 0 | DS21: 1 | DT21: 1 | DU21: 1 | DV21: 1 | DW21: 1 | DX21: 0 | DY21: 1 | DZ21: 1 | EA21: 8
A22: 18 | B22: 2011-09-10 | C22: 9 | D22: Jessore | E22: Keshabpur | F22: Shuflakati | G22: Rural | H22: Poschim Sarutia | I22: 3-Marooned | J22: 1 | K22: 0 | L22: 1 | M22: 0 | N22: 1 | O22: 1 | P22: 1 | Q22: 1 | R22: 0 | S22: 3-Seriously vulnerable | T22: 0 | U22: 2 | V22: 1 | W22: 0 | X22: 0 | Y22: 3 | Z22: 0 | AA22: 0 | AB22: 0 | AC22: 0 | AD22: 0 | AE22: 0 | AF22: 0 | AG22: 3-Sanitary latrines (communal) | AH22: 2-Hanging or open latrine | AI22: 1 | AJ22: 0 | AK22: 1 | AL22: 0 | AM22: 0 | AN22: 0 | AO22: 0 | AP22: 0 | AQ22: 0 | AR22: 0 | AS22: 3 | AT22: 0 | AU22: 0 | AV22: 2 | AW22: 0 | AX22: 1 | AY22: 0 | AZ22: 0 | BA22: 0 | BB22: 0 | BC22: 2 | BD22: 0 | BE22: 0 | BF22: 0 | BG22: 0 | BH22: 5 | BI22: 0 | BJ22: 4 | BK22: 0 | BL22: 1 | BM22: 3 | BN22: 0 | BO22: 0 | BP22: 0 | BQ22: 0 - <1 | BR22: 1 | BS22: 0 | BT22: 0 | BU22: 0 | BV22: 0 | BW22: 1 | BX22: 3 | BY22: 2 | BZ22: 0 | CA22: 0 | CB22: 0 | CC22: 0 | CD22: 0 | CE22: 1 | CF22: 1 | CG22: 10 + | CH22: 1 | CI22: 4-Sanitary latrines (household) | CJ22: 1-Open area | CK22: 1 | CL22: 1 | CM22: 0 | CN22: 0 | CO22: 3 | CP22: 0 | CQ22: 2 | CR22: 0 | CS22: 0 | CT22: 0 | CU22: 1 | CV22: 0 | CW22: 3 + | CX22: e-> 2 hours | CY22: 0 | CZ22: 2 | DA22: 3 | DB22: 1 | DC22: 0 | DD22: 0 | DE22: 0 | DF22: 0 | DG22: 0 | DH22: 0 | DI22: 0 | DJ22: 1 | DK22: 1 | DL22: 1 | DM22: 1 | DN22: 1 | DO22: 0 | DP22: 3 | DQ22: 1 | DR22: 0 | DS22: 1 | DT22: 0 | DU22: 1 | DV22: 0 | DW22: 1 | DX22: 0 | DY22: 0 | DZ22: 1 | EA22: 5
A23: 19 | B23: 2011-09-10 | C23: 9 | D23: Jessore | E23: Keshabpur | F23: Shuflakati | G23: Rural | H23: Krishnagar | I23: 4-Damaged or water-logged | J23: 1 | K23: 0 | L23: 1 | M23: 1 | N23: 1 | O23: 1 | P23: 1 | Q23: 1 | R23: 0 | S23: 3-Seriously vulnerable | T23: 1 | U23: 0 | V23: 0 | W23: 0 | X23: 0 | Y23: 3 | Z23: 2 | AA23: 0 | AB23: 0 | AC23: 0 | AD23: 0 | AE23: 0 | AF23: 0 | AG23: 3-Sanitary latrines (communal) | AH23: 5-Other | AI23: 0 | AJ23: 0 | AK23: 1 | AL23: 1 | AM23: 0 | AN23: 0 | AO23: 0 | AP23: 0 | AQ23: 0 | AR23: 0 | AS23: 1 | AT23: 0 | AU23: 0 | AV23: 3 | AW23: 0 | AX23: 2 | AY23: 0 | AZ23: 0 | BA23: 0 | BB23: 2 | BC23: 0 | BD23: 1 | BE23: 0 | BF23: 0 | BG23: 0 | BH23: 0 | BI23: 0 | BJ23: 5 | BK23: 4 | BL23: 0 | BM23: 3 | BN23: 0 | BO23: 0 | BP23: 0 | BQ23: 3 + | BS23: 0 | BT23: 0 | BU23: 0 | BV23: 0 | BW23: 0 | BX23: 3 | BY23: 1 | BZ23: 0 | CA23: 2 | CB23: 0 | CC23: 0 | CD23: 0 | CE23: 1 | CF23: 1 | CG23: 10 + | CH23: 1 | CI23: 2-Hanging or open latrine | CJ23: 1-Open area | CK23: 1 | CL23: 0 | CM23: 0 | CN23: 0 | CO23: 3 | CP23: 0 | CQ23: 2 | CR23: 0 | CS23: 1 | CT23: 0 | CU23: 1 | CV23: 0 | CW23: 3 + | CX23: e-> 2 hours | CY23: 0 | CZ23: 0 | DA23: 3 | DB23: 2 | DC23: 1 | DD23: 0 | DE23: 0 | DF23: 1 | DG23: 0 | DH23: 0 | DI23: 0 | DJ23: 1 | DK23: 0 | DL23: 1 | DM23: 0 | DN23: 1 | DO23: 0 | DP23: 3 | DQ23: 1 | DR23: 0 | DS23: 1 | DT23: 0 | DU23: 1 | DV23: 1 | DW23: 1 | DX23: 0 | DY23: 0 | DZ23: 1 | EA23: 6
A24: 20 | B24: 2011-09-10 | C24: 8 | D24: Jessore | E24: Monirampur | F24: Durbadunga | G24: Rural | H24: Ashanigar | I24: 3-Marooned | J24: 1 | K24: 0 | L24: 0 | M24: 0 | N24: 1 | O24: 1 | P24: 0 | Q24: 0 | R24: 0 | S24: 3-Seriously vulnerable | T24: 1 | U24: 0 | V24: 0 | W24: 0 | X24: 0 | Y24: 2 | Z24: 0 | AA24: 0 | AB24: 0 | AC24: 3 | AD24: 0 | AE24: 0 | AF24: 1 | AG24: 2-Hanging or open latrine | AH24: 1-Open area | AI24: 0 | AJ24: 0 | AK24: 1 | AL24: 1 | AM24: 0 | AN24: 0 | AO24: 1 | AP24: 0 | AQ24: 0 | AR24: 0 | AS24: 3 | AT24: 0 | AU24: 0 | AV24: 2 | AW24: 0 | AX24: 1 | AY24: 0 | AZ24: 0 | BA24: 0 | BB24: 0 | BC24: 0 | BD24: 0 | BE24: 1 | BF24: 2 | BG24: 0 | BH24: 0 | BI24: 3 | BJ24: 0 | BK24: 5 | BL24: 4 | BM24: 0 | BN24: 0 | BO24: 0 | BP24: 0 | BQ24: 3 + | BR24: 1 | BS24: 0 | BT24: 0 | BU24: 0 | BV24: 0 | BW24: 0 | BX24: 2 | BY24: 1 | BZ24: 0 | CA24: 0 | CB24: 3 | CC24: 0 | CD24: 0 | CE24: 1 | CF24: 1 | CG24: 10 + | CH24: 1 | CI24: 2-Hanging or open latrine | CJ24: 1-Open area | CK24: 1 | CL24: 2 | CM24: 0 | CN24: 0 | CO24: 1 | CP24: 0 | CQ24: 3 | CR24: 0 | CS24: 0 | CT24: 0 | CU24: 1 | CV24: 1 | CW24: 3 + | CX24: e-> 2 hours | CY24: 0 | CZ24: 2 | DA24: 3 | DB24: 0 | DC24: 0 | DD24: 1 | DE24: 1 | DF24: 1 | DG24: 1 | DH24: 0 | DI24: 0 | DJ24: 1 | DK24: 0 | DL24: 1 | DM24: 0 | DN24: 1 | DO24: 0 | DP24: 3 | DQ24: 0 | DR24: 0 | DS24: 1 | DT24: 1 | DU24: 1 | DV24: 1 | DW24: 0 | DX24: 1 | DY24: 0 | DZ24: 1 | EA24: 6
A25: 21 | B25: 2011-09-09 | C25: 8 | D25: Jessore | E25: Monirampur | F25: Jhapa | G25: Rural | H25: 2no Ward | I25: 4-Damaged or water-logged | J25: 1 | K25: 0 | L25: 1 | M25: 0 | N25: 1 | O25: 1 | P25: 1 | Q25: 0 | R25: 0 | S25: 3-Seriously vulnerable | T25: 0 | U25: 0 | V25: 0 | W25: 0 | X25: 1 | Y25: 3 | Z25: 0 | AA25: 0 | AB25: 0 | AC25: 0 | AD25: 2 | AE25: 0 | AF25: 1 | AG25: 1-Open area | AH25: 1-Open area | AI25: 0 | AJ25: 0 | AK25: 1 | AL25: 1 | AM25: 0 | AN25: 0 | AO25: 1 | AP25: 0 | AQ25: 0 | AR25: 0 | AS25: 3 | AT25: 0 | AU25: 0 | AV25: 2 | AW25: 0 | AX25: 1 | AY25: 0 | AZ25: 0 | BA25: 0 | BB25: 0 | BC25: 0 | BD25: 2 | BE25: 4 | BF25: 3 | BG25: 0 | BH25: 5 | BI25: 1 | BJ25: 0 | BK25: 0 | BL25: 0 | BM25: 0 | BN25: 0 | BO25: 0 | BP25: 0 | BQ25: 2 - 3 | BR25: 1 | BS25: 0 | BT25: 0 | BU25: 0 | BV25: 0 | BW25: 0 | BX25: 0 | BY25: 0 | BZ25: 0 | CA25: 0 | CB25: 0 | CC25: 0 | CD25: 0 | CE25: 1 | CF25: 1 | CG25: 10 + | CH25: 1 | CI25: 2-Hanging or open latrine | CJ25: 1-Open area | CK25: 1 | CL25: 2 | CM25: 0 | CN25: 3 | CO25: 1 | CP25: 0 | CQ25: 0 | CR25: 0 | CS25: 0 | CT25: 0 | CU25: 1 | CV25: 0 | CW25: 3 + | CX25: e-> 2 hours | CY25: 0 | CZ25: 3 | DA25: 2 | DB25: 1 | DC25: 0 | DD25: 0 | DE25: 1 | DF25: 1 | DG25: 1 | DH25: 0 | DI25: 0 | DJ25: 1 | DK25: 0 | DL25: 1 | DM25: 0 | DN25: 1 | DO25: 0 | DP25: 3 | DQ25: 0 | DR25: 0 | DS25: 1 | DT25: 1 | DU25: 1 | DV25: 1 | DW25: 1 | DX25: 1 | DY25: 0 | DZ25: 1 | EA25: 7
A26: 22 | B26: 2011-09-09 | C26: 8 | D26: Jessore | E26: Monirampur | F26: Jhapa | G26: Rural | H26: Jhapa | I26: 4-Damaged or water-logged | J26: 1 | K26: 0 | L26: 1 | M26: 0 | N26: 1 | O26: 1 | P26: 0 | Q26: 0 | R26: 0 | S26: 3-Seriously vulnerable | T26: 1 | U26: 0 | V26: 2 | W26: 0 | X26: 0 | Y26: 3 | Z26: 0 | AA26: 0 | AB26: 0 | AC26: 0 | AD26: 0 | AE26: 0 | AF26: 1 | AG26: 1-Open area | AH26: 1-Open area | AI26: 1 | AJ26: 0 | AK26: 0 | AL26: 1 | AM26: 0 | AN26: 0 | AO26: 1 | AP26: 0 | AQ26: 0 | AR26: 0 | AS26: 2 | AT26: 0 | AU26: 0 | AV26: 3 | AW26: 0 | AX26: 1 | AY26: 0 | AZ26: 0 | BA26: 0 | BB26: 0 | BC26: 0 | BD26: 0 | BE26: 2 | BF26: 3 | BG26: 0 | BH26: 0 | BI26: 1 | BJ26: 0 | BK26: 0 | BL26: 5 | BM26: 0 | BN26: 4 | BO26: 0 | BP26: 0 | BQ26: 3 + | BR26: 1 | BS26: 1 | BT26: 0 | BU26: 0 | BV26: 0 | BW26: 0 | BX26: 2 | BY26: 0 | BZ26: 0 | CA26: 0 | CB26: 3 | CC26: 0 | CD26: 0 | CE26: 0 | CF26: 1 | CG26: 10 + | CH26: 0 | CI26: 4-Sanitary latrines (household) | CJ26: 2-Hanging or open latrine | CK26: 1 | CL26: 2 | CM26: 0 | CN26: 3 | CO26: 0 | CP26: 0 | CQ26: 0 | CR26: 1 | CS26: 0 | CT26: 0 | CU26: 1 | CV26: 1 | CW26: 3 + | CX26: d-1 - 2 hours | CY26: 0 | CZ26: 3 | DA26: 2 | DB26: 0 | DC26: 0 | DD26: 1 | DE26: 1 | DF26: 0 | DG26: 1 | DH26: 0 | DI26: 0 | DJ26: 0 | DK26: 0 | DL26: 1 | DM26: 0 | DN26: 0 | DO26: 0 | DP26: 3 | DQ26: 0 | DR26: 0 | DS26: 1 | DT26: 1 | DU26: 0 | DV26: 0 | DW26: 0 | DX26: 1 | DY26: 1 | DZ26: 1 | EA26: 5
A27: 23 | B27: 2011-09-10 | C27: 8 | D27: Jessore | E27: Monirampur | F27: Moshimnagar | G27: Rural | H27: Horotpur | I27: 2-Roadside / embankments | J27: 1 | K27: 0 | L27: 1 | M27: 0 | N27: 1 | O27: 1 | P27: 1 | Q27: 0 | R27: 0 | S27: 2-Vulnerable | T27: 2 | U27: 0 | V27: 1 | W27: 0 | X27: 0 | Y27: 3 | Z27: 0 | AA27: 0 | AB27: 0 | AC27: 0 | AD27: 0 | AE27: 0 | AF27: 1 | AG27: 1-Open area | AH27: 1-Open area | AI27: 1 | AJ27: 0 | AK27: 1 | AL27: 0 | AM27: 0 | AN27: 0 | AO27: 0 | AP27: 0 | AQ27: 0 | AR27: 0 | AS27: 1 | AT27: 0 | AU27: 3 | AV27: 2 | AW27: 0 | AX27: 0 | AY27: 0 | AZ27: 0 | BA27: 0 | BB27: 0 | BC27: 0 | BD27: 0 | BE27: 0 | BF27: 0 | BG27: 0 | BH27: 5 | BI27: 0 | BJ27: 0 | BK27: 2 | BL27: 0 | BM27: 1 | BN27: 4 | BO27: 3 | BP27: 0 | BQ27: 2 - 3 | BR27: 1 | BS27: 2 | BT27: 0 | BU27: 1 | BV27: 0 | BW27: 0 | BX27: 3 | BY27: 0 | BZ27: 0 | CA27: 0 | CB27: 0 | CC27: 0 | CD27: 0 | CE27: 0 | CF27: 1 | CG27: 10 + | CH27: 1 | CI27: 4-Sanitary latrines (household) | CJ27: 1-Open area | CK27: 1 | CL27: 1 | CM27: 0 | CN27: 3 | CO27: 2 | CP27: 0 | CQ27: 0 | CR27: 0 | CS27: 0 | CT27: 0 | CU27: 1 | CV27: 0 | CW27: 2 - 3 | CX27: c-30-60 minutes | CY27: 0 | CZ27: 3 | DA27: 2 | DB27: 1 | DC27: 0 | DD27: 0 | DE27: 1 | DF27: 0 | DG27: 1 | DH27: 0 | DI27: 0 | DJ27: 1 | DK27: 1 | DL27: 0 | DM27: 0 | DN27: 0 | DO27: 0 | DP27: 2 | DQ27: 1 | DR27: 0 | DS27: 1 | DT27: 1 | DU27: 1 | DV27: 0 | DW27: 1 | DX27: 1 | DY27: 1 | DZ27: 0 | EA27: 7
A28: 24 | B28: 2011-09-09 | C28: 8 | D28: Jessore | E28: Monirampur | F28: Moshimnagar | G28: Rural | H28: Varatpur | I28: 3-Marooned | J28: 1 | K28: 0 | L28: 1 | M28: 0 | N28: 1 | O28: 1 | P28: 1 | Q28: 0 | R28: 0 | S28: 2-Vulnerable | T28: 0 | U28: 0 | V28: 0 | W28: 0 | X28: 0 | Y28: 0 | Z28: 0 | AA28: 0 | AB28: 0 | AC28: 0 | AD28: 0 | AE28: 0 | AF28: 1 | AG28: 3-Sanitary latrines (communal) | AH28: 2-Hanging or open latrine | AI28: 1 | AJ28: 0 | AK28: 1 | AL28: 0 | AM28: 0 | AN28: 0 | AO28: 0 | AP28: 0 | AQ28: 0 | AR28: 0 | AS28: 1 | AT28: 0 | AU28: 2 | AV28: 3 | AW28: 0 | AX28: 0 | AY28: 0 | AZ28: 0 | BA28: 2 | BB28: 5 | BC28: 0 | BD28: 3 | BE28: 4 | BF28: 2 | BG28: 0 | BH28: 0 | BI28: 0 | BJ28: 0 | BK28: 0 | BL28: 0 | BM28: 0 | BN28: 1 | BO28: 0 | BP28: 0 | BQ28: 3 + | BR28: 1 | BS28: 1 | BT28: 0 | BU28: 0 | BV28: 0 | BW28: 0 | BX28: 3 | BY28: 1 | BZ28: 0 | CA28: 0 | CB28: 2 | CC28: 0 | CD28: 0 | CE28: 0 | CF28: 1 | CG28: 05 - 10 | CH28: 1 | CI28: 2-Hanging or open latrine | CJ28: 1-Open area | CK28: 1 | CL28: 0 | CM28: 0 | CN28: 2 | CO28: 3 | CP28: 0 | CQ28: 1 | CR28: 0 | CS28: 0 | CT28: 0 | CU28: 1 | CV28: 0 | CW28: 3 + | CX28: e-> 2 hours | CY28: 0 | CZ28: 3 | DA28: 2 | DB28: 1 | DC28: 3 | DD28: 0 | DE28: 1 | DF28: 1 | DG28: 1 | DH28: 0 | DI28: 0 | DJ28: 1 | DK28: 0 | DL28: 1 | DM28: 0 | DN28: 1 | DO28: 0 | DP28: 2 | DQ28: 1 | DR28: 0 | DS28: 1 | DT28: 1 | DU28: 1 | DV28: 1 | DW28: 1 | DX28: 1 | DY28: 1 | DZ28: 1 | EA28: 9
A29: 25 | B29: 2011-09-09 | C29: 7 | D29: Kulna | E29: Paikgacha | F29: Horidhal | G29: Rural | H29: Horidaskathi | I29: 2-Roadside / embankments | J29: 0 | K29: 0 | L29: 0 | M29: 0 | N29: 0 | O29: 1 | P29: 1 | Q29: 0 | R29: 0 | S29: 3-Seriously vulnerable | T29: 1 | U29: 0 | V29: 2 | W29: 0 | X29: 0 | Y29: 3 | Z29: 0 | AA29: 0 | AB29: 0 | AC29: 0 | AD29: 0 | AE29: 0 | AF29: 0 | AG29: 3-Sanitary latrines (communal) | AH29: 1-Open area | AI29: 1 | AJ29: 0 | AK29: 1 | AL29: 0 | AM29: 0 | AN29: 0 | AO29: 0 | AP29: 0 | AQ29: 0 | AR29: 0 | AS29: 0 | AT29: 0 | AU29: 3 | AV29: 1 | AW29: 0 | AX29: 2 | AY29: 0 | AZ29: 0 | BA29: 0 | BB29: 5 | BC29: 1 | BD29: 0 | BE29: 0 | BF29: 0 | BG29: 4 | BH29: 0 | BI29: 0 | BJ29: 0 | BK29: 2 | BL29: 0 | BM29: 3 | BN29: 0 | BO29: 0 | BP29: 0 | BQ29: 3 + | BR29: 1 | BS29: 0 | BT29: 1 | BU29: 0 | BV29: 0 | BW29: 3 | BX29: 0 | BY29: 0 | BZ29: 0 | CA29: 0 | CB29: 0 | CC29: 0 | CD29: 2 | CE29: 0 | CF29: 1 | CG29: 05 - 10 | CH29: 1 | CI29: 2-Hanging or open latrine | CJ29: 1-Open area | CK29: 1 | CL29: 0 | CM29: 0 | CN29: 3 | CO29: 2 | CP29: 0 | CQ29: 1 | CR29: 0 | CS29: 0 | CT29: 0 | CU29: 1 | CV29: 0 | CW29: 2 - 3 | CX29: f-No access | CY29: 0 | CZ29: 2 | DA29: 3 | DB29: 0 | DC29: 0 | DD29: 1 | DE29: 1 | DF29: 1 | DG29: 0 | DH29: 0 | DI29: 0 | DJ29: 1 | DK29: 1 | DL29: 1 | DM29: 0 | DN29: 1 | DO29: 0 | DP29: 3 | DQ29: 0 | DR29: 0 | DS29: 1 | DT29: 1 | DU29: 1 | DV29: 1 | DW29: 1 | DX29: 0 | DY29: 1 | DZ29: 1 | EA29: 7
A30: 26 | B30: 2011-09-10 | C30: 7 | D30: Kulna | E30: Paikgacha | F30: Horidhal | G30: Rural | H30: Noakathi | I30: 2-Roadside / embankments | J30: 1 | K30: 0 | L30: 0 | M30: 0 | N30: 1 | O30: 1 | P30: 0 | Q30: 0 | R30: 1 | S30: 3-Seriously vulnerable | T30: 3 | U30: 0 | V30: 0 | W30: 0 | X30: 0 | Y30: 2 | Z30: 1 | AA30: 0 | AB30: 0 | AC30: 0 | AD30: 0 | AE30: 0 | AF30: 1 | AG30: 3-Sanitary latrines (communal) | AH30: 1-Open area | AI30: 1 | AJ30: 0 | AK30: 1 | AL30: 1 | AM30: 1 | AN30: 1 | AO30: 0 | AP30: 0 | AQ30: 0 | AR30: 0 | AS30: 0 | AT30: 0 | AU30: 0 | AV30: 2 | AW30: 1 | AX30: 3 | AY30: 0 | AZ30: 0 | BA30: 0 | BB30: 5 | BC30: 4 | BD30: 3 | BE30: 0 | BF30: 0 | BG30: 2 | BH30: 0 | BI30: 1 | BJ30: 0 | BK30: 0 | BL30: 0 | BM30: 0 | BN30: 0 | BO30: 0 | BP30: 0 | BQ30: 0 - <1 | BS30: 1 | BT30: 0 | BU30: 2 | BV30: 0 | BW30: 0 | BX30: 3 | BY30: 0 | BZ30: 0 | CA30: 0 | CB30: 0 | CC30: 0 | CD30: 0 | CE30: 1 | CF30: 1 | CG30: 05 - 10 | CH30: 1 | CI30: 4-Sanitary latrines (household) | CJ30: 2-Hanging or open latrine | CK30: 1 | CL30: 0 | CM30: 0 | CN30: 0 | CO30: 3 | CP30: 0 | CQ30: 2 | CR30: 1 | CS30: 0 | CT30: 0 | CU30: 1 | CV30: 0 | CX30: f-No access | CY30: 0 | CZ30: 3 | DA30: 2 | DB30: 1 | DC30: 0 | DD30: 0 | DE30: 1 | DF30: 1 | DG30: 1 | DH30: 0 | DI30: 0 | DJ30: 1 | DK30: 0 | DL30: 1 | DM30: 0 | DN30: 1 | DO30: 0 | DP30: 3 | DQ30: 1 | DR30: 0 | DS30: 1 | DT30: 1 | DU30: 1 | DV30: 1 | DW30: 1 | DX30: 1 | DY30: 0 | DZ30: 1 | EA30: 8
A31: 27 | B31: 2011-09-10 | C31: 7 | D31: Kulna | E31: Paikgacha | F31: Horikhali | G31: Rural | H31: ChandKhali 9No Katabunia | I31: 2-Roadside / embankments | J31: 1 | K31: 0 | L31: 0 | M31: 0 | N31: 1 | O31: 1 | P31: 1 | Q31: 1 | R31: 0 | S31: 3-Seriously vulnerable | T31: 2 | U31: 0 | V31: 0 | W31: 0 | X31: 0 | Y31: 3 | Z31: 1 | AA31: 0 | AB31: 0 | AC31: 0 | AD31: 0 | AE31: 0 | AF31: 1 | AG31: 2-Hanging or open latrine | AH31: 1-Open area | AI31: 1 | AJ31: 1 | AK31: 1 | AL31: 0 | AM31: 0 | AN31: 0 | AO31: 0 | AP31: 0 | AQ31: 0 | AR31: 0 | AS31: 0 | AT31: 0 | AU31: 0 | AV31: 3 | AW31: 1 | AX31: 2 | AY31: 0 | AZ31: 0 | BA31: 0 | BB31: 5 | BC31: 4 | BD31: 0 | BE31: 0 | BF31: 0 | BG31: 0 | BH31: 0 | BI31: 0 | BJ31: 3 | BK31: 0 | BL31: 0 | BM31: 0 | BN31: 2 | BO31: 1 | BP31: 0 | BQ31: 0 - <1 | BS31: 0 | BT31: 0 | BU31: 0 | BV31: 0 | BW31: 0 | BX31: 3 | BY31: 1 | BZ31: 0 | CA31: 0 | CB31: 2 | CC31: 0 | CD31: 0 | CE31: 0 | CF31: 1 | CG31: 05 - 10 | CH31: 1 | CI31: 2-Hanging or open latrine | CJ31: 2-Hanging or open latrine | CK31: 1 | CL31: 0 | CM31: 0 | CN31: 0 | CO31: 3 | CP31: 0 | CQ31: 2 | CR31: 1 | CS31: 0 | CT31: 0 | CU31: 0 | CV31: 0 | CX31: f-No access | CY31: 0 | CZ31: 1 | DA31: 2 | DB31: 3 | DC31: 0 | DD31: 0 | DE31: 1 | DF31: 1 | DG31: 1 | DH31: 1 | DI31: 0 | DJ31: 1 | DK31: 1 | DL31: 0 | DM31: 0 | DN31: 0 | DO31: 0 | DP31: 3 | DQ31: 1 | DR31: 0 | DS31: 1 | DT31: 1 | DU31: 1 | DV31: 1 | DW31: 1 | DX31: 1 | DY31: 1 | DZ31: 1 | EA31: 9
A32: 28 | B32: 2011-09-09 | C32: 7 | D32: Kulna | E32: Paikgacha | F32: Kopilmoni | G32: Rural | H32: Kasimnagar | I32: 3-Marooned | J32: 1 | K32: 0 | L32: 1 | M32: 0 | N32: 1 | O32: 1 | P32: 1 | Q32: 0 | R32: 0 | S32: 2-Vulnerable | T32: 1 | U32: 0 | V32: 2 | W32: 0 | X32: 0 | Y32: 3 | Z32: 0 | AA32: 0 | AB32: 0 | AC32: 0 | AD32: 0 | AE32: 0 | AF32: 1 | AG32: 3-Sanitary latrines (communal) | AH32: 1-Open area | AI32: 1 | AJ32: 1 | AK32: 1 | AL32: 0 | AM32: 0 | AN32: 0 | AO32: 0 | AP32: 0 | AQ32: 0 | AR32: 0 | AS32: 2 | AT32: 0 | AU32: 0 | AV32: 3 | AW32: 0 | AX32: 0 | AY32: 0 | AZ32: 1 | BA32: 0 | BB32: 5 | BC32: 0 | BD32: 0 | BE32: 4 | BF32: 0 | BG32: 0 | BH32: 0 | BI32: 0 | BJ32: 3 | BK32: 2 | BL32: 0 | BM32: 0 | BN32: 1 | BO32: 0 | BP32: 0 | BQ32: 3 + | BS32: 2 | BT32: 0 | BU32: 0 | BV32: 0 | BW32: 0 | BX32: 3 | BY32: 0 | BZ32: 0 | CA32: 0 | CB32: 1 | CC32: 0 | CD32: 0 | CE32: 1 | CF32: 0 | CG32: 10 + | CH32: 1 | CI32: 2-Hanging or open latrine | CJ32: 2-Hanging or open latrine | CK32: 1 | CL32: 0 | CM32: 0 | CN32: 0 | CO32: 3 | CP32: 1 | CQ32: 2 | CR32: 0 | CS32: 0 | CT32: 0 | CU32: 1 | CV32: 0 | CX32: a-Health facility nearby | CY32: 0 | CZ32: 3 | DA32: 2 | DB32: 1 | DC32: 0 | DD32: 0 | DE32: 1 | DF32: 1 | DG32: 1 | DH32: 0 | DI32: 0 | DJ32: 1 | DK32: 1 | DL32: 1 | DM32: 0 | DN32: 1 | DO32: 0 | DP32: 2 | DQ32: 1 | DR32: 0 | DS32: 0 | DT32: 1 | DU32: 1 | DV32: 1 | DW32: 1 | DX32: 1 | DY32: 0 | DZ32: 0 | EA32: 6
A33: 29 | B33: 2011-09-10 | C33: 7 | D33: Kulna | E33: Paikgacha | F33: Kopilmoni | G33: Rural | H33: Kazimusa | I33: 5-Home undamaged | J33: 0 | K33: 0 | L33: 0 | M33: 0 | N33: 1 | O33: 1 | P33: 1 | Q33: 0 | R33: 0 | S33: 1-Relatively normal | T33: 2 | U33: 0 | V33: 0 | W33: 0 | X33: 0 | Y33: 3 | Z33: 1 | AA33: 0 | AB33: 0 | AC33: 0 | AD33: 0 | AE33: 0 | AF33: 1 | AG33: 3-Sanitary latrines (communal) | AH33: 4-Sanitary latrines (household) | AI33: 0 | AJ33: 0 | AK33: 0 | AL33: 0 | AM33: 0 | AN33: 0 | AO33: 0 | AP33: 0 | AQ33: 0 | AR33: 0 | AS33: 0 | AT33: 0 | AU33: 0 | AV33: 0 | AW33: 0 | AX33: 0 | AY33: 0 | AZ33: 0 | BA33: 0 | BB33: 5 | BC33: 4 | BD33: 3 | BE33: 0 | BF33: 0 | BG33: 0 | BH33: 2 | BI33: 0 | BJ33: 1 | BK33: 0 | BL33: 0 | BM33: 0 | BN33: 0 | BO33: 0 | BP33: 0 | BQ33: 0 - <1 | BS33: 0 | BT33: 0 | BU33: 2 | BV33: 0 | BW33: 1 | BX33: 3 | BY33: 0 | BZ33: 0 | CA33: 0 | CB33: 0 | CC33: 0 | CD33: 0 | CE33: 1 | CF33: 1 | CG33: 05 - 10 | CH33: 1 | CI33: 4-Sanitary latrines (household) | CJ33: 5-Other | CK33: 1 | CL33: 0 | CM33: 0 | CN33: 0 | CO33: 3 | CP33: 0 | CQ33: 2 | CR33: 1 | CS33: 0 | CT33: 0 | CU33: 1 | CV33: 1 | CX33: b-< 30 minutes | CY33: 0 | CZ33: 3 | DA33: 2 | DB33: 0 | DC33: 1 | DD33: 0 | DE33: 1 | DF33: 0 | DG33: 1 | DH33: 0 | DI33: 0 | DJ33: 1 | DK33: 1 | DL33: 1 | DM33: 0 | DN33: 1 | DO33: 0 | DP33: 1 | DQ33: 1 | DR33: 0 | DS33: 1 | DT33: 1 | DU33: 1 | DV33: 0 | DW33: 0 | DX33: 1 | DY33: 0 | DZ33: 0 | EA33: 5
A34: 30 | B34: 2011-09-10 | C34: 6 | D34: Shatkira | E34: Assasuni | F34: Budhata | G34: Rural | H34: Behula | I34: 5-Home undamaged | J34: 1 | K34: 0 | L34: 0 | M34: 1 | N34: 1 | O34: 1 | P34: 1 | Q34: 0 | R34: 0 | S34: 2-Vulnerable | T34: 3 | U34: 2 | V34: 0 | W34: 0 | X34: 1 | Y34: 3 | Z34: 0 | AA34: 0 | AB34: 0 | AC34: 0 | AD34: 0 | AE34: 0 | AF34: 0 | AG34: 4-Sanitary latrines (household) | AH34: 2-Hanging or open latrine | AI34: 0 | AJ34: 0 | AK34: 0 | AL34: 0 | AM34: 0 | AN34: 0 | AO34: 0 | AP34: 0 | AQ34: 0 | AR34: 1 | AS34: 0 | AT34: 0 | AU34: 0 | AV34: 0 | AW34: 0 | AX34: 0 | AY34: 0 | AZ34: 0 | BA34: 0 | BB34: 0 | BC34: 0 | BD34: 0 | BE34: 0 | BF34: 0 | BG34: 0 | BH34: 0 | BI34: 0 | BJ34: 0 | BK34: 0 | BL34: 0 | BM34: 0 | BN34: 0 | BO34: 0 | BP34: 0 | BQ34: 0 - <1 | BS34: 1 | BT34: 0 | BU34: 0 | BV34: 0 | BW34: 0 | BX34: 0 | BY34: 0 | BZ34: 2 | CA34: 0 | CB34: 0 | CC34: 0 | CD34: 3 | CE34: 1 | CF34: 1 | CG34: 10 + | CH34: 1 | CI34: 4-Sanitary latrines (household) | CJ34: 1-Open area | CK34: 1 | CL34: 0 | CM34: 0 | CN34: 0 | CO34: 0 | CP34: 0 | CQ34: 0 | CR34: 0 | CS34: 0 | CT34: 0 | CU34: 1 | CV34: 1 | CX34: c-30-60 minutes | CY34: 0 | CZ34: 3 | DA34: 2 | DB34: 0 | DC34: 0 | DD34: 1 | DE34: 0 | DF34: 0 | DG34: 1 | DH34: 0 | DI34: 0 | DJ34: 1 | DK34: 1 | DL34: 1 | DM34: 0 | DN34: 1 | DO34: 0 | DP34: 2 | DQ34: 0 | DR34: 0 | DS34: 1 | DT34: 0 | DU34: 1 | DV34: 0 | DW34: 0 | DX34: 1 | DY34: 0 | DZ34: 0 | EA34: 3
A35: 31 | B35: 2011-09-09 | C35: 6 | D35: Shatkira | E35: Assasuni | F35: Dargapur | G35: Rural | H35: Sonai & Tokipur | I35: 4-Damaged or water-logged | J35: 1 | K35: 0 | L35: 0 | M35: 0 | N35: 1 | O35: 0 | P35: 1 | Q35: 0 | R35: 0 | S35: 3-Seriously vulnerable | T35: 0 | U35: 0 | V35: 0 | W35: 0 | X35: 0 | Y35: 3 | Z35: 2 | AA35: 0 | AB35: 0 | AC35: 0 | AD35: 0 | AE35: 1 | AF35: 1 | AG35: 4-Sanitary latrines (household) | AH35: 2-Hanging or open latrine | AI35: 1 | AJ35: 0 | AK35: 0 | AL35: 0 | AM35: 0 | AN35: 0 | AO35: 0 | AP35: 0 | AQ35: 0 | AR35: 0 | AS35: 3 | AT35: 0 | AU35: 0 | AV35: 0 | AW35: 0 | AX35: 0 | AY35: 0 | AZ35: 0 | BA35: 0 | BB35: 2 | BC35: 0 | BD35: 0 | BE35: 0 | BF35: 0 | BG35: 0 | BH35: 5 | BI35: 0 | BJ35: 4 | BK35: 0 | BL35: 0 | BM35: 0 | BN35: 0 | BO35: 1 | BP35: 3 | BQ35: 0 - <1 | BR35: 1 | BS35: 0 | BT35: 0 | BU35: 0 | BV35: 0 | BW35: 0 | BX35: 2 | BY35: 3 | BZ35: 0 | CA35: 1 | CB35: 0 | CC35: 0 | CD35: 0 | CE35: 0 | CF35: 1 | CG35: 10 + | CH35: 1 | CI35: 4-Sanitary latrines (household) | CJ35: 2-Hanging or open latrine | CK35: 1 | CL35: 0 | CM35: 0 | CN35: 0 | CO35: 0 | CP35: 0 | CQ35: 0 | CR35: 0 | CS35: 0 | CT35: 0 | CU35: 1 | CV35: 0 | CX35: e-> 2 hours | CY35: 0 | CZ35: 2 | DA35: 3 | DB35: 0 | DC35: 0 | DD35: 1 | DE35: 1 | DF35: 1 | DG35: 0 | DH35: 0 | DI35: 0 | DJ35: 1 | DK35: 1 | DL35: 1 | DM35: 0 | DN35: 0 | DO35: 0 | DP35: 3 | DQ35: 0 | DR35: 0 | DS35: 1 | DT35: 1 | DU35: 1 | DV35: 1 | DW35: 1 | DX35: 0 | DY35: 1 | DZ35: 1 | EA35: 7
A36: 32 | B36: 2011-09-10 | C36: 6 | D36: Shatkira | E36: Assasuni | F36: Kadakhati | G36: Rural | H36: Kadakati | I36: 1-Collective centers | J36: 0 | K36: 0 | L36: 0 | M36: 0 | N36: 1 | O36: 1 | P36: 1 | Q36: 1 | R36: 0 | S36: 4-Extremely vulnerable | T36: 3 | U36: 0 | V36: 1 | W36: 0 | X36: 0 | Y36: 2 | Z36: 0 | AA36: 0 | AB36: 0 | AC36: 0 | AD36: 0 | AE36: 0 | AF36: 1 | AG36: 4-Sanitary latrines (household) | AH36: 3-Sanitary latrines (communal) | AI36: 1 | AJ36: 0 | AK36: 1 | AL36: 0 | AM36: 0 | AN36: 0 | AO36: 0 | AP36: 0 | AQ36: 0 | AR36: 0 | AS36: 0 | AT36: 0 | AU36: 3 | AV36: 2 | AW36: 0 | AX36: 0 | AY36: 0 | AZ36: 0 | BA36: 1 | BB36: 5 | BC36: 4 | BD36: 0 | BE36: 0 | BF36: 0 | BG36: 1 | BH36: 3 | BI36: 0 | BJ36: 0 | BK36: 2 | BL36: 0 | BM36: 0 | BN36: 0 | BO36: 0 | BP36: 0 | BQ36: 2 - 3 | BR36: 1 | BS36: 0 | BT36: 0 | BU36: 3 | BV36: 0 | BW36: 0 | BX36: 1 | BY36: 2 | BZ36: 0 | CA36: 0 | CB36: 0 | CC36: 0 | CD36: 0 | CE36: 0 | CF36: 0 | CG36: 10 + | CH36: 1 | CI36: 4-Sanitary latrines (household) | CJ36: 3-Sanitary latrines (communal) | CK36: 1 | CL36: 0 | CM36: 0 | CN36: 2 | CO36: 3 | CP36: 0 | CQ36: 1 | CR36: 0 | CS36: 0 | CT36: 0 | CU36: 1 | CV36: 0 | CW36: 2 - 3 | CX36: d-1 - 2 hours | CY36: 0 | CZ36: 3 | DA36: 2 | DB36: 1 | DC36: 0 | DD36: 0 | DE36: 0 | DF36: 1 | DG36: 1 | DH36: 0 | DI36: 0 | DJ36: 1 | DK36: 1 | DL36: 0 | DM36: 1 | DN36: 1 | DO36: 0 | DP36: 4 | DQ36: 0 | DR36: 0 | DS36: 0 | DT36: 0 | DU36: 1 | DV36: 1 | DW36: 1 | DX36: 1 | DY36: 1 | DZ36: 1 | EA36: 6
A37: 33 | B37: 2011-09-10 | C37: 6 | D37: Shatkira | E37: Assasuni | F37: Kadakhati | G37: Rural | H37: Kadakati | I37: 3-Marooned | J37: 1 | K37: 0 | L37: 0 | M37: 0 | N37: 1 | O37: 1 | P37: 1 | Q37: 1 | R37: 0 | S37: 4-Extremely vulnerable | T37: 1 | U37: 0 | V37: 3 | W37: 0 | X37: 0 | Y37: 2 | Z37: 0 | AA37: 0 | AB37: 0 | AC37: 0 | AD37: 0 | AE37: 0 | AF37: 1 | AG37: 4-Sanitary latrines (household) | AH37: 2-Hanging or open latrine | AI37: 1 | AJ37: 0 | AK37: 1 | AL37: 1 | AM37: 0 | AN37: 0 | AO37: 0 | AP37: 0 | AQ37: 0 | AR37: 0 | AS37: 0 | AT37: 0 | AU37: 0 | AV37: 0 | AW37: 0 | AX37: 0 | AY37: 0 | AZ37: 0 | BA37: 0 | BB37: 5 | BC37: 4 | BD37: 0 | BE37: 0 | BF37: 0 | BG37: 0 | BH37: 0 | BI37: 0 | BJ37: 3 | BK37: 2 | BL37: 0 | BM37: 0 | BN37: 0 | BO37: 1 | BP37: 0 | BQ37: 0 - <1 | BS37: 0 | BT37: 0 | BU37: 3 | BV37: 0 | BW37: 0 | BX37: 1 | BY37: 2 | BZ37: 0 | CA37: 0 | CB37: 0 | CC37: 0 | CD37: 0 | CE37: 0 | CF37: 1 | CG37: 10 + | CH37: 1 | CI37: 2-Hanging or open latrine | CJ37: 2-Hanging or open latrine | CK37: 1 | CL37: 0 | CM37: 0 | CN37: 3 | CO37: 2 | CP37: 0 | CQ37: 1 | CR37: 0 | CS37: 0 | CT37: 0 | CU37: 1 | CV37: 0 | CW37: 1 - 2 | CX37: d-1 - 2 hours | CY37: 0 | CZ37: 1 | DA37: 2 | DB37: 3 | DC37: 0 | DD37: 0 | DE37: 0 | DF37: 1 | DG37: 1 | DH37: 0 | DI37: 0 | DJ37: 1 | DK37: 1 | DL37: 1 | DM37: 1 | DN37: 1 | DO37: 0 | DP37: 4 | DQ37: 0 | DR37: 0 | DS37: 1 | DT37: 0 | DU37: 1 | DV37: 1 | DW37: 1 | DX37: 1 | DY37: 1 | DZ37: 1 | EA37: 7
A38: 34 | B38: 2011-09-10 | C38: 6 | D38: Shatkira | E38: Assasuni | F38: Kulia | G38: Rural | H38: Kochua | I38: 4-Damaged or water-logged | J38: 1 | K38: 0 | L38: 1 | M38: 0 | N38: 1 | O38: 1 | P38: 1 | Q38: 1 | R38: 1 | S38: 2-Vulnerable | T38: 1 | U38: 0 | V38: 3 | W38: 0 | X38: 0 | Y38: 2 | Z38: 0 | AA38: 0 | AB38: 0 | AC38: 0 | AD38: 0 | AE38: 0 | AF38: 1 | AG38: 4-Sanitary latrines (household) | AH38: 1-Open area | AI38: 1 | AJ38: 0 | AK38: 0 | AL38: 0 | AM38: 0 | AN38: 0 | AO38: 0 | AP38: 0 | AQ38: 0 | AR38: 0 | AS38: 1 | AT38: 0 | AU38: 3 | AV38: 2 | AW38: 0 | AX38: 0 | AY38: 0 | AZ38: 0 | BA38: 0 | BB38: 3 | BC38: 2 | BD38: 0 | BE38: 0 | BF38: 0 | BG38: 0 | BH38: 5 | BI38: 0 | BJ38: 0 | BK38: 4 | BL38: 0 | BM38: 0 | BN38: 0 | BO38: 0 | BP38: 0 | BQ38: 1 - 2 | BR38: 1 | BS38: 0 | BT38: 0 | BU38: 3 | BV38: 0 | BW38: 0 | BX38: 2 | BY38: 1 | BZ38: 0 | CA38: 0 | CB38: 0 | CC38: 0 | CD38: 0 | CE38: 0 | CF38: 1 | CG38: 10 + | CH38: 1 | CI38: 4-Sanitary latrines (household) | CJ38: 5-Other | CK38: 1 | CL38: 2 | CM38: 0 | CN38: 3 | CO38: 1 | CP38: 0 | CQ38: 0 | CR38: 0 | CS38: 0 | CT38: 0 | CU38: 1 | CV38: 0 | CW38: 1 - 2 | CX38: d-1 - 2 hours | CY38: 0 | CZ38: 3 | DA38: 1 | DB38: 2 | DC38: 0 | DD38: 0 | DE38: 1 | DF38: 1 | DG38: 1 | DH38: 0 | DI38: 0 | DJ38: 1 | DK38: 1 | DL38: 1 | DM38: 0 | DN38: 1 | DO38: 0 | DP38: 2 | DQ38: 0 | DR38: 0 | DS38: 1 | DT38: 1 | DU38: 1 | DV38: 1 | DW38: 1 | DX38: 1 | DY38: 1 | DZ38: 1 | EA38: 8
A39: 35 | B39: 2011-09-10 | C39: 6 | D39: Shatkira | E39: Assasuni | F39: Shobnali | G39: Rural | H39: Katakhali | I39: 2-Roadside / embankments | J39: 1 | K39: 1 | L39: 0 | M39: 0 | N39: 1 | O39: 1 | P39: 0 | Q39: 1 | R39: 0 | S39: 2-Vulnerable | T39: 1 | U39: 0 | V39: 3 | W39: 0 | X39: 0 | Y39: 2 | Z39: 0 | AA39: 0 | AB39: 0 | AC39: 0 | AD39: 0 | AE39: 0 | AF39: 0 | AG39: 4-Sanitary latrines (household) | AH39: 1-Open area | AI39: 1 | AJ39: 0 | AK39: 1 | AL39: 0 | AM39: 0 | AN39: 0 | AO39: 0 | AP39: 0 | AQ39: 0 | AR39: 0 | AS39: 3 | AT39: 0 | AU39: 2 | AV39: 0 | AW39: 0 | AX39: 0 | AY39: 0 | AZ39: 0 | BA39: 0 | BB39: 5 | BC39: 4 | BD39: 0 | BE39: 0 | BF39: 0 | BG39: 0 | BH39: 0 | BI39: 0 | BJ39: 0 | BK39: 3 | BL39: 0 | BM39: 0 | BN39: 0 | BO39: 0 | BP39: 0 | BQ39: 2 - 3 | BR39: 1 | BS39: 0 | BT39: 0 | BU39: 3 | BV39: 0 | BW39: 0 | BX39: 2 | BY39: 1 | BZ39: 0 | CA39: 0 | CB39: 0 | CC39: 0 | CD39: 0 | CE39: 0 | CF39: 1 | CG39: 10 + | CH39: 1 | CI39: 4-Sanitary latrines (household) | CJ39: 1-Open area | CK39: 1 | CL39: 0 | CM39: 0 | CN39: 3 | CO39: 2 | CP39: 0 | CQ39: 1 | CR39: 0 | CS39: 0 | CT39: 0 | CU39: 1 | CV39: 0 | CW39: 1 - 2 | CX39: c-30-60 minutes | CY39: 0 | CZ39: 3 | DA39: 2 | DB39: 1 | DC39: 0 | DD39: 0 | DE39: 0 | DF39: 1 | DG39: 1 | DH39: 0 | DI39: 0 | DJ39: 1 | DK39: 1 | DL39: 1 | DM39: 1 | DN39: 1 | DO39: 0 | DP39: 2 | DQ39: 0 | DR39: 0 | DS39: 1 | DT39: 0 | DU39: 1 | DV39: 1 | DW39: 1 | DX39: 1 | DY39: 1 | DZ39: 0 | EA39: 6
A40: 36 | B40: 2011-09-10 | C40: 6 | D40: Shatkira | E40: Assasuni | F40: Shobnali | G40: Rural | H40: Bodortola | I40: 3-Marooned | J40: 1 | K40: 1 | L40: 1 | M40: 1 | N40: 1 | O40: 1 | P40: 1 | Q40: 0 | R40: 0 | S40: 4-Extremely vulnerable | T40: 0 | U40: 0 | V40: 0 | W40: 0 | X40: 0 | Y40: 3 | Z40: 0 | AA40: 0 | AB40: 0 | AC40: 0 | AD40: 0 | AE40: 0 | AF40: 0 | AG40: 4-Sanitary latrines (household) | AH40: 1-Open area | AI40: 1 | AJ40: 0 | AK40: 1 | AL40: 0 | AM40: 0 | AN40: 0 | AO40: 1 | AP40: 0 | AQ40: 0 | AR40: 0 | AS40: 3 | AT40: 0 | AU40: 0 | AV40: 2 | AW40: 0 | AX40: 3 | AY40: 0 | AZ40: 0 | BA40: 0 | BB40: 5 | BC40: 4 | BD40: 0 | BE40: 0 | BF40: 0 | BG40: 0 | BH40: 0 | BI40: 0 | BJ40: 2 | BK40: 3 | BL40: 0 | BM40: 0 | BN40: 0 | BO40: 0 | BP40: 0 | BQ40: 0 - <1 | BS40: 0 | BT40: 0 | BU40: 3 | BV40: 0 | BW40: 0 | BX40: 2 | BY40: 1 | BZ40: 0 | CA40: 0 | CB40: 0 | CC40: 0 | CD40: 0 | CE40: 0 | CF40: 1 | CG40: 10 + | CH40: 1 | CI40: 4-Sanitary latrines (household) | CJ40: 2-Hanging or open latrine | CK40: 1 | CL40: 0 | CM40: 0 | CN40: 3 | CO40: 2 | CP40: 0 | CQ40: 0 | CR40: 0 | CS40: 0 | CT40: 1 | CU40: 1 | CV40: 0 | CW40: 1 - 2 | CX40: e-> 2 hours | CY40: 0 | CZ40: 1 | DA40: 0 | DB40: 3 | DC40: 0 | DD40: 2 | DE40: 1 | DF40: 1 | DG40: 1 | DH40: 0 | DI40: 0 | DJ40: 1 | DK40: 1 | DL40: 1 | DM40: 1 | DN40: 1 | DO40: 0 | DP40: 4 | DQ40: 0 | DR40: 0 | DS40: 1 | DT40: 1 | DU40: 1 | DV40: 1 | DW40: 1 | DX40: 1 | DY40: 1 | DZ40: 1 | EA40: 8
A41: 37 | B41: 2011-09-10 | C41: 5 | D41: Shatkira | E41: Debhata | F41: Kulia | G41: Rural | H41: Gobrakhali | I41: 1-Collective centers | J41: 1 | K41: 1 | L41: 1 | M41: 0 | N41: 0 | O41: 0 | P41: 1 | Q41: 1 | R41: 0 | S41: 4-Extremely vulnerable | T41: 1 | U41: 0 | V41: 2 | W41: 0 | X41: 0 | Y41: 3 | Z41: 0 | AA41: 0 | AB41: 0 | AC41: 0 | AD41: 0 | AE41: 0 | AG41: 4-Sanitary latrines (household) | AH41: 3-Sanitary latrines (communal) | AI41: 0 | AJ41: 0 | AK41: 1 | AL41: 1 | AM41: 1 | AN41: 0 | AO41: 0 | AP41: 1 | AQ41: 1 | AR41: 0 | AS41: 0 | AT41: 0 | AU41: 2 | AV41: 3 | AW41: 0 | AX41: 0 | AY41: 0 | AZ41: 1 | BA41: 0 | BB41: 3 | BC41: 0 | BD41: 0 | BE41: 0 | BF41: 0 | BG41: 0 | BH41: 5 | BI41: 4 | BJ41: 0 | BK41: 0 | BL41: 0 | BM41: 0 | BN41: 2 | BO41: 1 | BP41: 0 | BQ41: 3 + | BR41: 0 | BS41: 0 | BT41: 0 | BU41: 2 | BV41: 0 | BW41: 1 | BX41: 3 | BY41: 0 | BZ41: 0 | CA41: 0 | CB41: 0 | CC41: 0 | CD41: 0 | CE41: 0 | CF41: 0 | CG41: 10 + | CH41: 1 | CI41: 4-Sanitary latrines (household) | CJ41: 3-Sanitary latrines (communal) | CK41: 1 | CL41: 0 | CM41: 0 | CN41: 3 | CO41: 2 | CP41: 0 | CQ41: 3 | CR41: 0 | CS41: 0 | CT41: 0 | CU41: 1 | CV41: 0 | CW41: 1 - 2 | CX41: d-1 - 2 hours | CY41: 0 | CZ41: 3 | DA41: 2 | DB41: 0 | DC41: 0 | DD41: 1 | DE41: 0 | DF41: 1 | DG41: 0 | DH41: 0 | DI41: 0 | DJ41: 1 | DK41: 1 | DL41: 1 | DM41: 1 | DN41: 1 | DO41: 0 | DP41: 4 | DQ41: 1 | DR41: 0 | DS41: 0 | DT41: 0 | DU41: 1 | DV41: 1 | DW41: 1 | DX41: 0 | DY41: 1 | DZ41: 1 | EA41: 6
A42: 38 | B42: 2011-09-11 | C42: 5 | D42: Shatkira | E42: Debhata | F42: Nowapara | G42: Rural | H42: Kaminiboshu | I42: 3-Marooned | J42: 0 | K42: 0 | L42: 1 | M42: 0 | N42: 1 | O42: 1 | P42: 1 | Q42: 1 | R42: 0 | S42: 1-Relatively normal | T42: 1 | U42: 0 | V42: 2 | W42: 0 | X42: 0 | Y42: 3 | Z42: 0 | AA42: 0 | AB42: 0 | AC42: 0 | AD42: 0 | AE42: 0 | AF42: 1 | AG42: 4-Sanitary latrines (household) | AH42: 4-Sanitary latrines (household) | AI42: 0 | AJ42: 0 | AK42: 1 | AL42: 1 | AM42: 0 | AN42: 0 | AO42: 0 | AP42: 0 | AQ42: 0 | AR42: 0 | AS42: 0 | AT42: 0 | AU42: 0 | AV42: 3 | AW42: 0 | AX42: 2 | AY42: 0 | AZ42: 1 | BA42: 0 | BB42: 5 | BC42: 4 | BD42: 0 | BE42: 0 | BF42: 0 | BG42: 0 | BH42: 3 | BI42: 0 | BJ42: 2 | BK42: 0 | BL42: 0 | BM42: 0 | BN42: 1 | BO42: 0 | BP42: 0 | BQ42: 0 - <1 | BS42: 0 | BT42: 0 | BU42: 2 | BV42: 0 | BW42: 0 | BX42: 3 | BY42: 0 | BZ42: 0 | CA42: 0 | CB42: 1 | CC42: 0 | CD42: 0 | CE42: 0 | CF42: 0 | CG42: 10 + | CH42: 0 | CI42: 4-Sanitary latrines (household) | CJ42: 4-Sanitary latrines (household) | CK42: 1 | CL42: 0 | CM42: 0 | CN42: 0 | CO42: 3 | CP42: 2 | CQ42: 0 | CR42: 0 | CS42: 0 | CT42: 1 | CU42: 1 | CV42: 1 | CX42: c-30-60 minutes | CY42: 0 | CZ42: 2 | DA42: 3 | DB42: 1 | DC42: 0 | DD42: 0 | DE42: 0 | DF42: 1 | DG42: 0 | DH42: 0 | DI42: 0 | DJ42: 1 | DK42: 1 | DL42: 1 | DM42: 0 | DN42: 0 | DO42: 0 | DP42: 1 | DQ42: 1 | DR42: 0 | DS42: 0 | DT42: 0 | DU42: 0 | DV42: 1 | DW42: 0 | DX42: 0 | DY42: 1 | DZ42: 0 | EA42: 3
A43: 39 | B43: 2011-09-11 | C43: 5 | D43: Shatkira | E43: Debhata | F43: Nowapara | G43: Rural | H43: Chachura hati | I43: 5-Home undamaged | J43: 1 | K43: 0 | L43: 0 | M43: 0 | N43: 0 | O43: 1 | P43: 1 | Q43: 1 | R43: 0 | S43: 1-Relatively normal | T43: 0 | U43: 2 | V43: 0 | W43: 0 | X43: 1 | Y43: 3 | Z43: 0 | AA43: 0 | AB43: 0 | AC43: 0 | AD43: 0 | AE43: 0 | AF43: 0 | AG43: 4-Sanitary latrines (household) | AH43: 4-Sanitary latrines (household) | AI43: 1 | AJ43: 0 | AK43: 0 | AL43: 0 | AM43: 0 | AN43: 0 | AO43: 1 | AP43: 0 | AQ43: 0 | AR43: 0 | AS43: 0 | AT43: 0 | AU43: 0 | AV43: 0 | AW43: 0 | AX43: 0 | AY43: 0 | AZ43: 0 | BA43: 0 | BB43: 0 | BC43: 0 | BD43: 0 | BE43: 0 | BF43: 0 | BG43: 0 | BH43: 0 | BI43: 0 | BJ43: 0 | BK43: 0 | BL43: 0 | BM43: 0 | BN43: 0 | BO43: 0 | BP43: 0 | BQ43: 0 - <1 | BS43: 0 | BT43: 1 | BU43: 2 | BV43: 0 | BW43: 0 | BX43: 3 | BY43: 0 | BZ43: 0 | CA43: 0 | CB43: 0 | CC43: 0 | CD43: 0 | CE43: 0 | CF43: 0 | CG43: 10 + | CH43: 0 | CI43: 4-Sanitary latrines (household) | CJ43: 4-Sanitary latrines (household) | CK43: 0 | CL43: 0 | CM43: 0 | CN43: 0 | CO43: 3 | CP43: 2 | CQ43: 0 | CR43: 0 | CS43: 0 | CT43: 1 | CU43: 1 | CV43: 0 | CX43: b-< 30 minutes | CY43: 0 | CZ43: 2 | DA43: 3 | DB43: 0 | DC43: 0 | DD43: 1 | DE43: 0 | DF43: 1 | DG43: 0 | DH43: 0 | DI43: 0 | DJ43: 1 | DK43: 1 | DL43: 0 | DM43: 0 | DN43: 0 | DO43: 0 | DP43: 1 | DQ43: 1 | DR43: 0 | DS43: 0 | DT43: 0 | DU43: 0 | DV43: 1 | DW43: 1 | DX43: 0 | DY43: 1 | DZ43: 0 | EA43: 4
A44: 40 | B44: 2011-09-11 | C44: 5 | D44: Shatkira | E44: Debhata | F44: Parulia | G44: Rural | H44: Polgoda | I44: 2-Roadside / embankments | J44: 1 | K44: 0 | L44: 0 | M44: 0 | N44: 0 | O44: 1 | P44: 0 | Q44: 0 | R44: 0 | S44: 3-Seriously vulnerable | T44: 1 | U44: 0 | V44: 2 | W44: 0 | X44: 0 | Y44: 3 | Z44: 0 | AA44: 0 | AB44: 0 | AC44: 0 | AD44: 0 | AE44: 0 | AF44: 0 | AG44: 4-Sanitary latrines (household) | AH44: 2-Hanging or open latrine | AI44: 0 | AJ44: 0 | AK44: 1 | AL44: 1 | AM44: 0 | AN44: 0 | AO44: 1 | AP44: 0 | AQ44: 1 | AR44: 0 | AS44: 0 | AT44: 0 | AU44: 3 | AV44: 2 | AW44: 0 | AX44: 0 | AY44: 0 | AZ44: 0 | BA44: 0 | BB44: 4 | BC44: 5 | BD44: 0 | BE44: 0 | BF44: 0 | BG44: 1 | BH44: 0 | BI44: 0 | BJ44: 3 | BK44: 0 | BL44: 0 | BM44: 0 | BN44: 2 | BO44: 0 | BP44: 0 | BQ44: 3 + | BR44: 0 | BS44: 0 | BT44: 0 | BU44: 2 | BV44: 0 | BW44: 0 | BX44: 3 | BY44: 0 | BZ44: 0 | CA44: 0 | CB44: 0 | CC44: 0 | CD44: 1 | CE44: 0 | CF44: 0 | CG44: 10 + | CH44: 1 | CI44: 4-Sanitary latrines (household) | CJ44: 2-Hanging or open latrine | CK44: 1 | CL44: 0 | CM44: 0 | CN44: 3 | CO44: 2 | CP44: 0 | CQ44: 1 | CR44: 0 | CS44: 0 | CT44: 0 | CU44: 1 | CV44: 1 | CW44: 1 - 2 | CX44: b-< 30 minutes | CY44: 0 | CZ44: 3 | DA44: 2 | DB44: 0 | DC44: 0 | DD44: 1 | DE44: 0 | DF44: 1 | DG44: 0 | DH44: 0 | DI44: 0 | DJ44: 1 | DK44: 1 | DL44: 1 | DM44: 1 | DN44: 0 | DO44: 0 | DP44: 3 | DQ44: 1 | DR44: 0 | DS44: 0 | DT44: 0 | DU44: 1 | DV44: 1 | DW44: 0 | DX44: 0 | DY44: 1 | DZ44: 0 | EA44: 4
A45: 41 | B45: 2011-09-09 | C45: 5 | D45: Shatkira | E45: Debhata | F45: Parulia | G45: Rural | H45: Soto Shatha | I45: 4-Damaged or water-logged | J45: 1 | K45: 1 | L45: 1 | M45: 0 | N45: 0 | O45: 1 | P45: 0 | Q45: 1 | R45: 0 | S45: 4-Extremely vulnerable | T45: 0 | U45: 0 | V45: 2 | W45: 0 | X45: 0 | Y45: 3 | Z45: 0 | AA45: 0 | AB45: 0 | AC45: 1 | AD45: 0 | AE45: 0 | AG45: 4-Sanitary latrines (household) | AH45: 2-Hanging or open latrine | AI45: 0 | AJ45: 0 | AK45: 1 | AL45: 1 | AM45: 0 | AN45: 1 | AO45: 1 | AP45: 0 | AQ45: 1 | AR45: 0 | AS45: 1 | AT45: 0 | AU45: 0 | AV45: 3 | AW45: 0 | AX45: 0 | AY45: 0 | AZ45: 2 | BA45: 0 | BB45: 2 | BC45: 0 | BD45: 0 | BE45: 0 | BF45: 0 | BG45: 0 | BH45: 5 | BI45: 0 | BJ45: 1 | BK45: 4 | BL45: 0 | BM45: 0 | BN45: 3 | BO45: 0 | BP45: 0 | BQ45: 3 + | BR45: 0 | BS45: 0 | BT45: 0 | BU45: 2 | BV45: 0 | BW45: 3 | BX45: 0 | BY45: 1 | BZ45: 0 | CA45: 0 | CB45: 0 | CC45: 0 | CD45: 0 | CE45: 0 | CF45: 1 | CG45: 10 + | CH45: 1 | CI45: 4-Sanitary latrines (household) | CJ45: 2-Hanging or open latrine | CK45: 1 | CL45: 0 | CM45: 0 | CN45: 0 | CO45: 3 | CP45: 0 | CQ45: 0 | CR45: 2 | CS45: 1 | CT45: 0 | CU45: 1 | CV45: 0 | CX45: e-> 2 hours | CY45: 0 | CZ45: 1 | DA45: 3 | DB45: 2 | DC45: 0 | DD45: 0 | DE45: 0 | DF45: 1 | DG45: 0 | DH45: 0 | DI45: 0 | DJ45: 1 | DK45: 1 | DL45: 1 | DM45: 1 | DN45: 1 | DO45: 0 | DP45: 4 | DQ45: 0 | DR45: 0 | DS45: 1 | DT45: 0 | DU45: 1 | DV45: 1 | DW45: 1 | DX45: 0 | DY45: 1 | DZ45: 1 | EA45: 6
A46: 42 | B46: 2011-09-09 | C46: 4 | D46: Shatkira | E46: Kalaroa | F46: Deara | G46: Rural | H46: Deara Dakhil Madrasha | I46: 1-Collective centers | J46: 0 | K46: 1 | L46: 0 | M46: 0 | N46: 1 | O46: 1 | P46: 0 | Q46: 0 | R46: 0 | S46: 3-Seriously vulnerable | T46: 2 | U46: 0 | V46: 3 | W46: 0 | X46: 1 | Y46: 0 | Z46: 0 | AA46: 0 | AB46: 0 | AC46: 0 | AD46: 0 | AE46: 0 | AF46: 0 | AG46: 5-Other | AH46: 3-Sanitary latrines (communal) | AI46: 0 | AJ46: 0 | AK46: 0 | AL46: 0 | AM46: 0 | AN46: 0 | AO46: 0 | AP46: 0 | AQ46: 0 | AR46: 1 | AS46: 3 | AT46: 0 | AU46: 2 | AV46: 1 | AW46: 0 | AX46: 0 | AY46: 0 | AZ46: 0 | BA46: 0 | BB46: 0 | BC46: 0 | BD46: 0 | BE46: 0 | BF46: 0 | BG46: 0 | BH46: 0 | BI46: 0 | BJ46: 5 | BK46: 3 | BL46: 4 | BM46: 2 | BN46: 0 | BO46: 0 | BP46: 0 | BQ46: 3 + | BR46: 1 | BS46: 0 | BT46: 1 | BU46: 2 | BV46: 0 | BW46: 0 | BX46: 3 | BY46: 0 | BZ46: 0 | CA46: 0 | CB46: 0 | CC46: 0 | CD46: 0 | CE46: 1 | CF46: 1 | CG46: 10 + | CH46: 1 | CI46: 4-Sanitary latrines (household) | CJ46: 1-Open area | CK46: 1 | CL46: 1 | CM46: 2 | CN46: 3 | CO46: 0 | CP46: 0 | CQ46: 0 | CR46: 0 | CS46: 0 | CT46: 0 | CU46: 1 | CV46: 0 | CW46: 3 + | CX46: d-1 - 2 hours | CY46: 0 | CZ46: 3 | DA46: 2 | DB46: 1 | DC46: 0 | DD46: 0 | DE46: 1 | DF46: 1 | DG46: 0 | DH46: 0 | DI46: 0 | DJ46: 1 | DK46: 1 | DL46: 0 | DM46: 0 | DN46: 1 | DO46: 0 | DP46: 3 | DQ46: 1 | DR46: 0 | DS46: 1 | DT46: 1 | DU46: 1 | DV46: 1 | DW46: 1 | DX46: 0 | DY46: 0 | DZ46: 1 | EA46: 7
A47: 43 | B47: 2011-09-09 | C47: 4 | D47: Shatkira | E47: Kalaroa | F47: Deara | G47: Rural | H47: Deara Matpara | I47: 2-Roadside / embankments | J47: 0 | K47: 0 | L47: 1 | M47: 0 | N47: 1 | O47: 1 | P47: 0 | Q47: 0 | R47: 0 | S47: 2-Vulnerable | T47: 0 | U47: 0 | V47: 0 | W47: 0 | X47: 1 | Y47: 2 | Z47: 0 | AA47: 0 | AB47: 0 | AC47: 0 | AD47: 0 | AE47: 3 | AF47: 0 | AG47: 4-Sanitary latrines (household) | AH47: 1-Open area | AI47: 1 | AJ47: 0 | AK47: 0 | AL47: 0 | AM47: 0 | AN47: 0 | AO47: 0 | AP47: 0 | AQ47: 0 | AR47: 0 | AS47: 3 | AT47: 0 | AU47: 0 | AV47: 2 | AW47: 0 | AX47: 0 | AY47: 0 | AZ47: 0 | BA47: 0 | BB47: 3 | BC47: 2 | BD47: 0 | BE47: 0 | BF47: 0 | BG47: 0 | BH47: 0 | BI47: 0 | BJ47: 5 | BK47: 4 | BL47: 0 | BM47: 0 | BN47: 0 | BO47: 0 | BP47: 0 | BQ47: 3 + | BR47: 1 | BS47: 0 | BT47: 0 | BU47: 2 | BV47: 0 | BW47: 0 | BX47: 3 | BY47: 0 | BZ47: 0 | CA47: 0 | CB47: 1 | CC47: 0 | CD47: 0 | CE47: 0 | CF47: 0 | CG47: 10 + | CH47: 1 | CI47: 4-Sanitary latrines (household) | CJ47: 2-Hanging or open latrine | CK47: 1 | CL47: 3 | CM47: 0 | CN47: 2 | CO47: 1 | CP47: 0 | CQ47: 0 | CR47: 0 | CS47: 0 | CT47: 0 | CU47: 1 | CV47: 1 | CW47: 3 + | CX47: e-> 2 hours | CY47: 0 | CZ47: 3 | DA47: 2 | DB47: 1 | DC47: 0 | DD47: 0 | DE47: 1 | DF47: 0 | DG47: 1 | DH47: 0 | DI47: 0 | DJ47: 1 | DK47: 1 | DL47: 1 | DM47: 1 | DN47: 1 | DO47: 0 | DP47: 2 | DQ47: 1 | DR47: 0 | DS47: 0 | DT47: 1 | DU47: 1 | DV47: 0 | DW47: 0 | DX47: 1 | DY47: 1 | DZ47: 1 | EA47: 6
A48: 44 | B48: 2011-09-10 | C48: 4 | D48: Shatkira | E48: Kalaroa | F48: Joynagar | G48: Rural | H48: Dokkhin Khetropara | I48: 3-Marooned | J48: 1 | K48: 0 | L48: 0 | M48: 0 | N48: 1 | O48: 1 | P48: 1 | Q48: 0 | R48: 0 | S48: 2-Vulnerable | T48: 0 | U48: 0 | V48: 0 | W48: 0 | X48: 3 | Y48: 1 | Z48: 0 | AA48: 0 | AB48: 0 | AC48: 0 | AD48: 0 | AE48: 2 | AF48: 1 | AG48: 4-Sanitary latrines (household) | AH48: 1-Open area | AI48: 0 | AJ48: 0 | AK48: 1 | AL48: 0 | AM48: 0 | AN48: 0 | AO48: 0 | AP48: 0 | AQ48: 0 | AR48: 0 | AS48: 0 | AT48: 0 | AU48: 0 | AV48: 3 | AW48: 0 | AX48: 0 | AY48: 0 | AZ48: 0 | BA48: 0 | BB48: 0 | BC48: 0 | BD48: 0 | BE48: 0 | BF48: 0 | BG48: 0 | BH48: 0 | BI48: 0 | BJ48: 5 | BK48: 4 | BL48: 0 | BM48: 0 | BN48: 0 | BO48: 0 | BP48: 0 | BQ48: 1 - 2 | BR48: 1 | BS48: 0 | BT48: 1 | BU48: 0 | BV48: 0 | BW48: 0 | BX48: 3 | BY48: 2 | BZ48: 0 | CA48: 0 | CB48: 0 | CC48: 0 | CD48: 0 | CE48: 0 | CF48: 1 | CG48: 10 + | CH48: 1 | CI48: 4-Sanitary latrines (household) | CJ48: 1-Open area | CK48: 1 | CL48: 0 | CM48: 0 | CN48: 0 | CO48: 3 | CP48: 1 | CQ48: 2 | CR48: 0 | CS48: 0 | CT48: 0 | CU48: 1 | CV48: 1 | CX48: c-30-60 minutes | CY48: 0 | CZ48: 3 | DA48: 2 | DB48: 0 | DC48: 0 | DD48: 1 | DE48: 1 | DF48: 0 | DG48: 1 | DH48: 0 | DI48: 0 | DJ48: 1 | DK48: 1 | DL48: 0 | DM48: 0 | DN48: 1 | DO48: 0 | DP48: 2 | DQ48: 1 | DR48: 0 | DS48: 1 | DT48: 1 | DU48: 1 | DV48: 0 | DW48: 0 | DX48: 1 | DY48: 1 | DZ48: 0 | EA48: 6
A49: 45 | B49: 2011-09-10 | C49: 4 | D49: Shatkira | E49: Kalaroa | F49: Joynagar | G49: Rural | H49: Manik Nagar | I49: 5-Home undamaged | J49: 0 | K49: 1 | L49: 0 | M49: 0 | N49: 1 | O49: 0 | P49: 1 | Q49: 0 | R49: 0 | S49: 1-Relatively normal | T49: 3 | U49: 0 | V49: 0 | W49: 0 | X49: 0 | Y49: 0 | Z49: 0 | AA49: 0 | AB49: 0 | AC49: 0 | AD49: 0 | AE49: 2 | AF49: 0 | AG49: 4-Sanitary latrines (household) | AH49: 4-Sanitary latrines (household) | AI49: 0 | AJ49: 0 | AK49: 0 | AL49: 0 | AM49: 0 | AN49: 0 | AO49: 0 | AP49: 0 | AQ49: 0 | AR49: 0 | AS49: 0 | AT49: 0 | AU49: 0 | AV49: 0 | AW49: 0 | AX49: 0 | AY49: 0 | AZ49: 0 | BA49: 0 | BB49: 0 | BC49: 0 | BD49: 0 | BE49: 0 | BF49: 0 | BG49: 0 | BH49: 0 | BI49: 0 | BJ49: 4 | BK49: 3 | BL49: 0 | BM49: 0 | BN49: 5 | BO49: 0 | BP49: 0 | BQ49: 3 + | BS49: 3 | BT49: 2 | BU49: 0 | BV49: 0 | BW49: 0 | BX49: 0 | BY49: 0 | BZ49: 0 | CA49: 0 | CB49: 1 | CC49: 0 | CD49: 0 | CE49: 1 | CF49: 0 | CG49: 10 + | CH49: 0 | CI49: 4-Sanitary latrines (household) | CJ49: 4-Sanitary latrines (household) | CK49: 1 | CL49: 3 | CM49: 0 | CN49: 0 | CO49: 2 | CP49: 0 | CQ49: 0 | CR49: 0 | CS49: 0 | CT49: 1 | CU49: 1 | CV49: 1 | CX49: d-1 - 2 hours | CY49: 0 | CZ49: 0 | DA49: 3 | DB49: 2 | DC49: 0 | DD49: 1 | DE49: 0 | DF49: 0 | DG49: 1 | DH49: 0 | DI49: 0 | DJ49: 1 | DK49: 1 | DL49: 0 | DM49: 0 | DN49: 0 | DO49: 0 | DP49: 1 | DQ49: 0 | DR49: 1 | DS49: 0 | DT49: 0 | DU49: 0 | DV49: 0 | DW49: 0 | DX49: 1 | DY49: 0 | DZ49: 1 | EA49: 3
A50: 46 | B50: 2011-09-09 | C50: 4 | D50: Shatkira | E50: Kalaroa | F50: Pouroshava | G50: Urban | H50: Gopinathpur Poschim para | I50: 4-Damaged or water-logged | J50: 0 | K50: 0 | L50: 1 | M50: 0 | N50: 1 | O50: 1 | P50: 1 | Q50: 0 | R50: 0 | S50: 1-Relatively normal | T50: 0 | U50: 0 | V50: 0 | W50: 0 | X50: 2 | Y50: 3 | Z50: 1 | AA50: 0 | AB50: 0 | AC50: 0 | AD50: 0 | AE50: 0 | AF50: 1 | AG50: 4-Sanitary latrines (household) | AH50: 1-Open area | AI50: 0 | AJ50: 0 | AK50: 0 | AL50: 0 | AM50: 0 | AN50: 0 | AO50: 0 | AP50: 0 | AQ50: 0 | AR50: 0 | AS50: 3 | AT50: 0 | AU50: 0 | AV50: 0 | AW50: 2 | AX50: 1 | AY50: 0 | AZ50: 0 | BA50: 0 | BB50: 0 | BC50: 0 | BD50: 0 | BE50: 0 | BF50: 0 | BG50: 0 | BH50: 0 | BI50: 0 | BJ50: 5 | BK50: 4 | BL50: 0 | BM50: 0 | BN50: 0 | BO50: 0 | BP50: 0 | BQ50: 3 + | BR50: 1 | BS50: 0 | BT50: 0 | BU50: 2 | BV50: 0 | BW50: 0 | BX50: 3 | BY50: 1 | BZ50: 0 | CA50: 0 | CB50: 0 | CC50: 0 | CD50: 0 | CE50: 1 | CF50: 1 | CG50: 10 + | CH50: 1 | CI50: 4-Sanitary latrines (household) | CJ50: 2-Hanging or open latrine | CK50: 1 | CL50: 0 | CM50: 0 | CN50: 0 | CO50: 3 | CP50: 1 | CQ50: 2 | CR50: 0 | CS50: 0 | CT50: 0 | CU50: 1 | CV50: 1 | CX50: d-1 - 2 hours | CY50: 0 | CZ50: 2 | DA50: 3 | DB50: 1 | DC50: 0 | DD50: 0 | DE50: 0 | DF50: 1 | DG50: 1 | DH50: 0 | DI50: 0 | DJ50: 1 | DK50: 1 | DL50: 0 | DM50: 0 | DN50: 1 | DO50: 0 | DP50: 1 | DQ50: 1 | DR50: 0 | DS50: 1 | DT50: 0 | DU50: 1 | DV50: 1 | DW50: 0 | DX50: 1 | DY50: 0 | DZ50: 1 | EA50: 6
A51: 47 | B51: 2011-09-09 | C51: 3 | D51: Shatkira | E51: Shaktira_Sadar | F51: Bolli | G51: Rural | H51: Rajjabari bad, Mukudpur vill | I51: 2-Roadside / embankments | J51: 1 | K51: 1 | L51: 1 | M51: 0 | N51: 1 | O51: 1 | P51: 1 | Q51: 0 | R51: 1 | S51: 4-Extremely vulnerable | T51: 1 | U51: 0 | V51: 2 | W51: 0 | X51: 0 | Y51: 3 | Z51: 0 | AA51: 0 | AB51: 0 | AC51: 0 | AD51: 0 | AE51: 0 | AF51: 0 | AG51: 4-Sanitary latrines (household) | AH51: 2-Hanging or open latrine | AI51: 0 | AJ51: 0 | AK51: 1 | AL51: 0 | AM51: 0 | AN51: 0 | AO51: 1 | AP51: 0 | AQ51: 0 | AR51: 0 | AS51: 0 | AT51: 0 | AU51: 3 | AV51: 2 | AW51: 0 | AX51: 1 | AY51: 0 | AZ51: 0 | BA51: 0 | BB51: 5 | BC51: 4 | BD51: 0 | BE51: 0 | BF51: 0 | BG51: 0 | BH51: 2 | BI51: 0 | BJ51: 1 | BK51: 3 | BL51: 0 | BM51: 0 | BN51: 0 | BO51: 0 | BP51: 0 | BQ51: 3 + | BR51: 1 | BS51: 0 | BT51: 2 | BU51: 0 | BV51: 0 | BW51: 0 | BX51: 3 | BY51: 0 | BZ51: 1 | CA51: 0 | CB51: 0 | CC51: 0 | CD51: 0 | CE51: 0 | CF51: 1 | CG51: 10 + | CH51: 1 | CI51: 4-Sanitary latrines (household) | CJ51: 1-Open area | CK51: 1 | CL51: 3 | CM51: 0 | CN51: 2 | CO51: 0 | CP51: 0 | CQ51: 1 | CR51: 0 | CS51: 0 | CT51: 0 | CU51: 1 | CV51: 0 | CW51: 2 - 3 | CX51: d-1 - 2 hours | CY51: 0 | CZ51: 3 | DA51: 2 | DB51: 0 | DC51: 0 | DD51: 1 | DE51: 1 | DF51: 1 | DG51: 0 | DH51: 0 | DI51: 0 | DJ51: 1 | DK51: 1 | DL51: 1 | DM51: 0 | DN51: 1 | DO51: 0 | DP51: 4 | DQ51: 1 | DR51: 0 | DS51: 1 | DT51: 1 | DU51: 1 | DV51: 1 | DW51: 1 | DX51: 0 | DY51: 1 | DZ51: 1 | EA51: 8
A52: 48 | B52: 2011-09-10 | C52: 3 | D52: Shatkira | E52: Shaktira_Sadar | F52: Brahamorajpur | G52: Rural | H52: Machkhola | I52: 4-Damaged or water-logged | J52: 1 | K52: 1 | L52: 1 | M52: 0 | N52: 1 | O52: 1 | P52: 1 | Q52: 1 | R52: 1 | S52: 4-Extremely vulnerable | T52: 1 | U52: 0 | V52: 3 | W52: 0 | X52: 0 | Y52: 2 | Z52: 0 | AA52: 0 | AB52: 0 | AC52: 0 | AD52: 0 | AE52: 0 | AF52: 1 | AG52: 4-Sanitary latrines (household) | AH52: 2-Hanging or open latrine | AI52: 1 | AJ52: 1 | AK52: 1 | AL52: 0 | AM52: 0 | AN52: 0 | AO52: 1 | AP52: 1 | AQ52: 0 | AR52: 0 | AS52: 0 | AT52: 1 | AU52: 0 | AV52: 3 | AW52: 0 | AX52: 2 | AY52: 0 | AZ52: 0 | BA52: 0 | BB52: 5 | BC52: 1 | BD52: 4 | BE52: 0 | BF52: 0 | BG52: 0 | BH52: 0 | BI52: 0 | BJ52: 2 | BK52: 3 | BL52: 0 | BM52: 0 | BN52: 0 | BO52: 0 | BP52: 0 | BQ52: 2 - 3 | BS52: 0 | BT52: 0 | BU52: 1 | BV52: 0 | BW52: 0 | BX52: 3 | BY52: 2 | BZ52: 0 | CA52: 0 | CB52: 0 | CC52: 0 | CD52: 0 | CE52: 0 | CF52: 1 | CG52: 10 + | CH52: 1 | CI52: 2-Hanging or open latrine | CJ52: 2-Hanging or open latrine | CK52: 1 | CL52: 0 | CM52: 0 | CN52: 0 | CO52: 3 | CP52: 0 | CQ52: 2 | CR52: 1 | CS52: 0 | CT52: 0 | CU52: 1 | CV52: 0 | CW52: 2 - 3 | CX52: b-< 30 minutes | CY52: 0 | CZ52: 0 | DA52: 3 | DB52: 0 | DC52: 1 | DD52: 2 | DE52: 0 | DF52: 0 | DG52: 0 | DH52: 0 | DI52: 0 | DJ52: 1 | DK52: 1 | DL52: 1 | DM52: 1 | DN52: 1 | DO52: 0 | DP52: 4 | DQ52: 1 | DR52: 0 | DS52: 1 | DT52: 0 | DU52: 1 | DV52: 0 | DW52: 1 | DX52: 0 | DY52: 1 | DZ52: 0 | EA52: 5
A53: 49 | B53: 2011-09-10 | C53: 3 | D53: Shatkira | E53: Shaktira_Sadar | F53: Fringi | G53: Rural | H53: Gobordari | I53: 5-Home undamaged | J53: 0 | K53: 0 | L53: 0 | M53: 0 | N53: 1 | O53: 1 | P53: 1 | Q53: 0 | R53: 0 | S53: 4-Extremely vulnerable | T53: 3 | U53: 0 | V53: 0 | W53: 0 | X53: 0 | Y53: 1 | Z53: 0 | AA53: 0 | AB53: 0 | AC53: 2 | AD53: 0 | AE53: 0 | AF53: 0 | AG53: 4-Sanitary latrines (household) | AH53: 3-Sanitary latrines (communal) | AI53: 0 | AJ53: 0 | AK53: 1 | AL53: 0 | AM53: 0 | AN53: 0 | AO53: 1 | AP53: 0 | AQ53: 0 | AR53: 0 | AS53: 0 | AT53: 0 | AU53: 0 | AV53: 3 | AW53: 0 | AX53: 2 | AY53: 0 | AZ53: 0 | BA53: 0 | BB53: 5 | BC53: 4 | BD53: 4 | BE53: 0 | BF53: 0 | BG53: 0 | BH53: 3 | BI53: 0 | BJ53: 1 | BK53: 2 | BL53: 0 | BM53: 0 | BN53: 0 | BO53: 0 | BP53: 0 | BQ53: 2 - 3 | BS53: 0 | BT53: 0 | BU53: 0 | BV53: 1 | BW53: 0 | BX53: 3 | BY53: 2 | BZ53: 0 | CA53: 0 | CB53: 0 | CC53: 0 | CD53: 0 | CE53: 0 | CF53: 1 | CG53: 05 - 10 | CH53: 1 | CI53: 2-Hanging or open latrine | CJ53: 2-Hanging or open latrine | CK53: 1 | CL53: 0 | CM53: 0 | CN53: 0 | CO53: 3 | CP53: 0 | CQ53: 0 | CR53: 2 | CS53: 1 | CT53: 0 | CU53: 1 | CV53: 0 | CX53: a-Health facility nearby | CY53: 0 | CZ53: 3 | DA53: 2 | DB53: 0 | DC53: 0 | DD53: 1 | DE53: 1 | DF53: 1 | DG53: 0 | DH53: 0 | DI53: 0 | DJ53: 1 | DK53: 1 | DL53: 0 | DM53: 0 | DN53: 1 | DO53: 0 | DP53: 4 | DQ53: 1 | DR53: 0 | DS53: 1 | DT53: 1 | DU53: 1 | DV53: 1 | DW53: 1 | DX53: 0 | DY53: 1 | DZ53: 0 | EA53: 7
A54: 50 | B54: 2011-09-09 | C54: 3 | D54: Shatkira | E54: Shaktira_Sadar | F54: Labsa | G54: Rural | H54: Soninathpur, Binerputa | I54: 3-Marooned | J54: 1 | K54: 1 | L54: 0 | M54: 1 | N54: 1 | O54: 1 | P54: 1 | Q54: 0 | R54: 1 | S54: 4-Extremely vulnerable | T54: 0 | U54: 0 | V54: 1 | W54: 0 | X54: 0 | Y54: 2 | Z54: 0 | AA54: 0 | AB54: 0 | AC54: 0 | AD54: 3 | AE54: 0 | AF54: 0 | AG54: 4-Sanitary latrines (household) | AH54: 2-Hanging or open latrine | AI54: 1 | AJ54: 0 | AK54: 0 | AL54: 0 | AM54: 0 | AN54: 0 | AO54: 0 | AP54: 0 | AQ54: 0 | AR54: 0 | AS54: 3 | AT54: 1 | AU54: 0 | AV54: 2 | AW54: 0 | AX54: 0 | AY54: 0 | AZ54: 0 | BA54: 0 | BB54: 3 | BC54: 5 | BD54: 0 | BE54: 0 | BF54: 0 | BG54: 0 | BH54: 1 | BI54: 0 | BJ54: 4 | BK54: 2 | BL54: 0 | BM54: 0 | BN54: 0 | BO54: 0 | BP54: 0 | BQ54: 3 + | BS54: 0 | BT54: 0 | BU54: 2 | BV54: 0 | BW54: 0 | BX54: 1 | BY54: 0 | BZ54: 0 | CA54: 0 | CB54: 0 | CC54: 0 | CD54: 3 | CE54: 0 | CF54: 1 | CG54: 05 - 10 | CH54: 1 | CI54: 4-Sanitary latrines (household) | CJ54: 2-Hanging or open latrine | CK54: 1 | CL54: 0 | CM54: 0 | CN54: 0 | CO54: 3 | CP54: 0 | CQ54: 1 | CR54: 2 | CS54: 0 | CT54: 0 | CU54: 1 | CV54: 0 | CX54: c-30-60 minutes | CY54: 0 | CZ54: 2 | DA54: 3 | DB54: 1 | DC54: 0 | DD54: 0 | DE54: 1 | DF54: 1 | DG54: 0 | DH54: 0 | DI54: 0 | DJ54: 1 | DK54: 1 | DL54: 1 | DM54: 0 | DN54: 1 | DO54: 0 | DP54: 4 | DQ54: 0 | DR54: 0 | DS54: 1 | DT54: 1 | DU54: 1 | DV54: 1 | DW54: 1 | DX54: 0 | DY54: 1 | DZ54: 0 | EA54: 6
A55: 51 | B55: 2011-09-09 | C55: 3 | D55: Shatkira | E55: Shaktira_Sadar | F55: Municipality | G55: Rural | H55: 6 No Ward | I55: 1-Collective centers | J55: 1 | K55: 1 | L55: 1 | M55: 0 | N55: 1 | O55: 1 | P55: 1 | Q55: 0 | R55: 1 | S55: 4-Extremely vulnerable | T55: 0 | U55: 0 | V55: 2 | W55: 1 | X55: 0 | Y55: 3 | Z55: 0 | AA55: 0 | AB55: 0 | AC55: 0 | AD55: 0 | AE55: 0 | AF55: 1 | AG55: 4-Sanitary latrines (household) | AH55: 2-Hanging or open latrine | AI55: 1 | AJ55: 0 | AK55: 1 | AL55: 0 | AM55: 0 | AN55: 0 | AO55: 0 | AP55: 0 | AQ55: 0 | AR55: 0 | AS55: 3 | AT55: 0 | AU55: 2 | AV55: 0 | AW55: 0 | AX55: 0 | AY55: 0 | AZ55: 0 | BA55: 0 | BB55: 5 | BC55: 4 | BD55: 2 | BE55: 0 | BF55: 0 | BG55: 0 | BH55: 0 | BI55: 0 | BJ55: 0 | BK55: 3 | BL55: 0 | BM55: 0 | BN55: 0 | BO55: 1 | BP55: 0 | BQ55: 3 + | BR55: 1 | BS55: 0 | BT55: 0 | BU55: 0 | BV55: 0 | BW55: 2 | BX55: 3 | BY55: 0 | BZ55: 0 | CA55: 0 | CB55: 0 | CC55: 1 | CD55: 0 | CE55: 0 | CF55: 1 | CG55: 10 + | CH55: 1 | CI55: 4-Sanitary latrines (household) | CJ55: 2-Hanging or open latrine | CK55: 1 | CL55: 0 | CM55: 0 | CN55: 3 | CO55: 0 | CP55: 0 | CQ55: 2 | CR55: 1 | CS55: 0 | CT55: 0 | CU55: 1 | CV55: 0 | CW55: 1 - 2 | CX55: e-> 2 hours | CY55: 0 | CZ55: 0 | DA55: 3 | DB55: 2 | DC55: 1 | DD55: 0 | DE55: 0 | DF55: 0 | DG55: 0 | DH55: 0 | DI55: 0 | DJ55: 1 | DK55: 1 | DL55: 1 | DM55: 1 | DN55: 1 | DO55: 0 | DP55: 4 | DQ55: 1 | DR55: 0 | DS55: 1 | DT55: 0 | DU55: 1 | DV55: 0 | DW55: 1 | DX55: 0 | DY55: 1 | DZ55: 1 | EA55: 6
A56: 52 | B56: 2011-09-10 | C56: 3 | D56: Shatkira | E56: Shaktira_Sadar | F56: Municipality | G56: Urban | H56: 6 No Ward | I56: 2-Roadside / embankments | J56: 0 | K56: 0 | L56: 0 | M56: 0 | N56: 1 | O56: 1 | P56: 0 | Q56: 0 | R56: 1 | S56: 4-Extremely vulnerable | T56: 1 | U56: 0 | V56: 3 | W56: 0 | X56: 0 | Y56: 2 | Z56: 0 | AA56: 0 | AB56: 0 | AC56: 0 | AD56: 0 | AE56: 0 | AF56: 1 | AG56: 4-Sanitary latrines (household) | AH56: 3-Sanitary latrines (communal) | AI56: 0 | AJ56: 0 | AK56: 1 | AL56: 0 | AM56: 0 | AN56: 0 | AO56: 1 | AP56: 0 | AQ56: 0 | AR56: 0 | AS56: 0 | AT56: 0 | AU56: 3 | AV56: 2 | AW56: 0 | AX56: 1 | AY56: 0 | AZ56: 0 | BA56: 0 | BB56: 5 | BC56: 4 | BD56: 0 | BE56: 0 | BF56: 0 | BG56: 0 | BH56: 0 | BI56: 0 | BJ56: 0 | BK56: 3 | BL56: 0 | BM56: 0 | BN56: 0 | BO56: 0 | BP56: 0 | BQ56: 2 - 3 | BR56: 1 | BS56: 1 | BT56: 0 | BU56: 2 | BV56: 0 | BW56: 0 | BX56: 3 | BY56: 0 | BZ56: 0 | CA56: 0 | CB56: 0 | CC56: 0 | CD56: 0 | CE56: 0 | CF56: 0 | CG56: 10 + | CH56: 1 | CI56: 4-Sanitary latrines (household) | CJ56: 1-Open area | CK56: 1 | CL56: 0 | CM56: 0 | CN56: 3 | CO56: 2 | CP56: 0 | CQ56: 1 | CR56: 0 | CS56: 0 | CT56: 0 | CU56: 1 | CV56: 0 | CW56: 2 - 3 | CX56: b-< 30 minutes | CY56: 0 | CZ56: 1 | DA56: 3 | DB56: 0 | DC56: 0 | DD56: 2 | DE56: 0 | DF56: 1 | DG56: 1 | DH56: 0 | DI56: 0 | DJ56: 0 | DK56: 0 | DL56: 0 | DM56: 0 | DN56: 1 | DO56: 0 | DP56: 4 | DQ56: 1 | DR56: 0 | DS56: 0 | DT56: 0 | DU56: 1 | DV56: 1 | DW56: 1 | DX56: 1 | DY56: 1 | DZ56: 0 | EA56: 6
A57: 53 | B57: 2011-09-09 | C57: 1 | D57: Shatkira | E57: Tala | F57: Islam Kati | G57: Rural | H57: Narayanpur/ Bhanipur | I57: 2-Roadside / embankments | J57: 1 | K57: 1 | L57: 1 | M57: 0 | N57: 1 | O57: 1 | P57: 1 | Q57: 1 | R57: 0 | S57: 4-Extremely vulnerable | T57: 0 | U57: 0 | V57: 2 | W57: 0 | X57: 0 | Y57: 3 | Z57: 0 | AA57: 0 | AB57: 0 | AC57: 1 | AD57: 0 | AE57: 0 | AF57: 0 | AG57: 4-Sanitary latrines (household) | AH57: 3-Sanitary latrines (communal) | AI57: 0 | AJ57: 0 | AK57: 1 | AL57: 0 | AM57: 0 | AN57: 0 | AO57: 0 | AP57: 0 | AQ57: 1 | AR57: 0 | AS57: 1 | AT57: 0 | AU57: 3 | AV57: 2 | AW57: 0 | AX57: 0 | AY57: 0 | AZ57: 0 | BA57: 0 | BB57: 5 | BC57: 0 | BD57: 0 | BE57: 0 | BF57: 1 | BG57: 2 | BH57: 4 | BI57: 0 | BJ57: 3 | BK57: 0 | BL57: 0 | BM57: 0 | BN57: 0 | BO57: 0 | BP57: 0 | BQ57: 3 + | BR57: 1 | BS57: 0 | BT57: 0 | BU57: 0 | BV57: 0 | BW57: 1 | BX57: 3 | BY57: 2 | BZ57: 0 | CA57: 0 | CB57: 0 | CC57: 0 | CD57: 0 | CE57: 0 | CF57: 1 | CG57: 10 + | CH57: 1 | CI57: 4-Sanitary latrines (household) | CJ57: 3-Sanitary latrines (communal) | CK57: 1 | CL57: 0 | CM57: 2 | CN57: 0 | CO57: 3 | CP57: 0 | CQ57: 0 | CR57: 1 | CS57: 0 | CT57: 0 | CU57: 1 | CV57: 0 | CW57: 3 + | CX57: c-30-60 minutes | CY57: 0 | CZ57: 2 | DA57: 3 | DB57: 0 | DC57: 1 | DD57: 0 | DE57: 1 | DF57: 1 | DG57: 1 | DH57: 0 | DI57: 0 | DJ57: 1 | DK57: 1 | DL57: 1 | DM57: 1 | DN57: 1 | DO57: 0 | DP57: 4 | DQ57: 1 | DR57: 0 | DS57: 1 | DT57: 1 | DU57: 1 | DV57: 1 | DW57: 1 | DX57: 1 | DY57: 1 | DZ57: 0 | EA57: 8
A58: 54 | B58: 2011-09-11 | C58: 2 | D58: Shatkira | E58: Tala | F58: Khalilinagar | G58: Rural | H58: Nagarghata | I58: 2-Roadside / embankments | J58: 1 | K58: 1 | L58: 1 | M58: 0 | N58: 1 | O58: 1 | P58: 1 | Q58: 0 | R58: 0 | S58: 4-Extremely vulnerable | T58: 0 | U58: 0 | V58: 2 | W58: 0 | X58: 0 | Y58: 3 | Z58: 0 | AA58: 0 | AB58: 0 | AC58: 1 | AD58: 0 | AE58: 0 | AF58: 1 | AG58: 3-Sanitary latrines (communal) | AH58: 2-Hanging or open latrine | AI58: 1 | AJ58: 0 | AK58: 1 | AL58: 1 | AM58: 0 | AN58: 0 | AO58: 1 | AP58: 1 | AQ58: 1 | AR58: 0 | AS58: 3 | AT58: 0 | AU58: 2 | AV58: 1 | AW58: 0 | AX58: 0 | AY58: 0 | AZ58: 0 | BA58: 0 | BB58: 5 | BC58: 0 | BD58: 0 | BE58: 0 | BF58: 0 | BG58: 0 | BH58: 4 | BI58: 3 | BJ58: 1 | BK58: 0 | BL58: 0 | BM58: 2 | BN58: 1 | BO58: 0 | BP58: 0 | BQ58: 3 + | BR58: 1 | BS58: 0 | BT58: 0 | BU58: 3 | BV58: 0 | BW58: 0 | BX58: 2 | BY58: 1 | BZ58: 0 | CA58: 0 | CB58: 0 | CC58: 0 | CD58: 0 | CE58: 0 | CF58: 1 | CG58: 10 + | CH58: 1 | CI58: 4-Sanitary latrines (household) | CJ58: 3-Sanitary latrines (communal) | CK58: 1 | CL58: 0 | CM58: 0 | CN58: 3 | CO58: 2 | CP58: 0 | CQ58: 0 | CR58: 1 | CS58: 0 | CT58: 0 | CU58: 1 | CV58: 0 | CW58: 3 + | CX58: d-1 - 2 hours | CY58: 0 | CZ58: 3 | DA58: 0 | DB58: 1 | DC58: 0 | DD58: 2 | DE58: 0 | DF58: 1 | DG58: 1 | DH58: 0 | DI58: 0 | DJ58: 1 | DK58: 1 | DL58: 0 | DM58: 0 | DN58: 1 | DO58: 0 | DP58: 4 | DQ58: 0 | DR58: 0 | DS58: 1 | DT58: 0 | DU58: 1 | DV58: 1 | DW58: 1 | DX58: 1 | DY58: 1 | DZ58: 1 | EA58: 7
A59: 55 | B59: 2011-09-10 | C59: 2 | D59: Shatkira | E59: Tala | F59: Kholishakhali | G59: Rural | H59: Dolua College | I59: 1-Collective centers | J59: 1 | K59: 1 | L59: 0 | M59: 0 | N59: 1 | O59: 1 | P59: 1 | Q59: 1 | R59: 0 | S59: 4-Extremely vulnerable | T59: 1 | U59: 0 | V59: 3 | W59: 0 | X59: 0 | Y59: 2 | Z59: 0 | AA59: 0 | AB59: 0 | AC59: 0 | AD59: 0 | AE59: 0 | AF59: 1 | AG59: 3-Sanitary latrines (communal) | AH59: 3-Sanitary latrines (communal) | AI59: 0 | AJ59: 1 | AK59: 1 | AL59: 1 | AM59: 1 | AN59: 0 | AO59: 1 | AP59: 1 | AQ59: 0 | AR59: 0 | AS59: 2 | AT59: 0 | AU59: 3 | AV59: 1 | AW59: 0 | AX59: 0 | AY59: 0 | AZ59: 0 | BA59: 0 | BB59: 3 | BC59: 0 | BD59: 0 | BE59: 0 | BF59: 0 | BG59: 0 | BH59: 5 | BI59: 0 | BJ59: 0 | BK59: 2 | BL59: 0 | BM59: 4 | BN59: 0 | BO59: 1 | BP59: 0 | BQ59: 1 - 2 | BR59: 1 | BS59: 0 | BT59: 0 | BU59: 3 | BV59: 0 | BW59: 0 | BX59: 1 | BY59: 0 | BZ59: 2 | CA59: 0 | CB59: 0 | CC59: 0 | CD59: 0 | CE59: 1 | CF59: 1 | CG59: 10 + | CH59: 1 | CI59: 4-Sanitary latrines (household) | CJ59: 3-Sanitary latrines (communal) | CK59: 1 | CL59: 3 | CM59: 0 | CN59: 0 | CO59: 1 | CP59: 2 | CQ59: 0 | CR59: 0 | CS59: 0 | CT59: 0 | CU59: 1 | CV59: 0 | CW59: 3 + | CX59: b-< 30 minutes | CY59: 0 | CZ59: 3 | DA59: 2 | DB59: 1 | DC59: 0 | DD59: 0 | DE59: 1 | DF59: 1 | DG59: 0 | DH59: 0 | DI59: 0 | DJ59: 1 | DK59: 0 | DL59: 0 | DM59: 0 | DN59: 0 | DO59: 0 | DP59: 4 | DQ59: 0 | DR59: 0 | DS59: 1 | DT59: 1 | DU59: 1 | DV59: 1 | DW59: 1 | DX59: 0 | DY59: 0 | DZ59: 0 | EA59: 5
A60: 56 | B60: 2011-09-11 | C60: 2 | D60: Shatkira | E60: Tala | F60: Kumira | G60: Rural | H60: Raripara | I60: 3-Marooned | J60: 1 | K60: 0 | L60: 1 | M60: 0 | N60: 1 | O60: 1 | P60: 1 | Q60: 0 | R60: 0 | S60: 2-Vulnerable | T60: 0 | U60: 0 | V60: 0 | W60: 0 | X60: 0 | Y60: 2 | Z60: 0 | AA60: 0 | AB60: 0 | AC60: 1 | AD60: 0 | AE60: 3 | AF60: 1 | AG60: 3-Sanitary latrines (communal) | AH60: 2-Hanging or open latrine | AI60: 0 | AJ60: 0 | AK60: 0 | AL60: 1 | AM60: 0 | AN60: 0 | AO60: 0 | AP60: 0 | AQ60: 0 | AR60: 0 | AS60: 0 | AT60: 1 | AU60: 0 | AV60: 3 | AW60: 0 | AX60: 0 | AY60: 0 | AZ60: 0 | BA60: 2 | BB60: 2 | BC60: 0 | BD60: 0 | BE60: 0 | BF60: 0 | BG60: 0 | BH60: 5 | BI60: 4 | BJ60: 0 | BK60: 0 | BL60: 0 | BM60: 0 | BN60: 1 | BO60: 0 | BP60: 0 | BQ60: 3 + | BS60: 3 | BT60: 0 | BU60: 0 | BV60: 0 | BW60: 2 | BX60: 1 | BY60: 0 | BZ60: 0 | CA60: 0 | CB60: 0 | CC60: 0 | CD60: 0 | CE60: 1 | CF60: 1 | CG60: 10 + | CH60: 1 | CI60: 4-Sanitary latrines (household) | CJ60: 3-Sanitary latrines (communal) | CK60: 1 | CL60: 0 | CM60: 0 | CN60: 0 | CO60: 3 | CP60: 0 | CQ60: 1 | CR60: 2 | CS60: 0 | CT60: 0 | CU60: 1 | CV60: 0 | CW60: 2 - 3 | CX60: e-> 2 hours | CY60: 0 | CZ60: 3 | DA60: 0 | DB60: 2 | DC60: 0 | DD60: 1 | DE60: 0 | DF60: 1 | DG60: 0 | DH60: 0 | DI60: 0 | DJ60: 1 | DK60: 1 | DL60: 0 | DM60: 0 | DN60: 0 | DO60: 0 | DP60: 2 | DQ60: 0 | DR60: 1 | DS60: 1 | DT60: 0 | DU60: 1 | DV60: 1 | DW60: 1 | DX60: 0 | DY60: 0 | DZ60: 1 | EA60: 6
A61: 57 | B61: 2011-09-10 | C61: 2 | D61: Shatkira | E61: Tala | F61: Magura | G61: Rural | H61: Parmadra | I61: 4-Damaged or water-logged | J61: 1 | K61: 0 | L61: 1 | M61: 0 | N61: 1 | O61: 1 | P61: 1 | Q61: 0 | R61: 0 | S61: 4-Extremely vulnerable | T61: 2 | U61: 0 | V61: 3 | W61: 0 | X61: 0 | Y61: 1 | Z61: 0 | AA61: 0 | AB61: 0 | AC61: 0 | AD61: 0 | AE61: 0 | AF61: 1 | AG61: 3-Sanitary latrines (communal) | AH61: 2-Hanging or open latrine | AI61: 0 | AJ61: 0 | AK61: 1 | AL61: 1 | AM61: 0 | AN61: 0 | AO61: 0 | AP61: 0 | AQ61: 0 | AR61: 0 | AS61: 0 | AT61: 0 | AU61: 0 | AV61: 3 | AW61: 1 | AX61: 0 | AY61: 0 | AZ61: 0 | BA61: 2 | BB61: 4 | BC61: 0 | BD61: 0 | BE61: 0 | BF61: 0 | BG61: 0 | BH61: 2 | BI61: 0 | BJ61: 0 | BK61: 5 | BL61: 0 | BM61: 1 | BN61: 3 | BO61: 0 | BP61: 0 | BQ61: 3 + | BR61: 0 | BS61: 0 | BT61: 0 | BU61: 0 | BV61: 0 | BW61: 2 | BX61: 3 | BY61: 1 | BZ61: 0 | CA61: 0 | CB61: 0 | CC61: 0 | CD61: 0 | CE61: 0 | CF61: 1 | CG61: 05 - 10 | CH61: 1 | CI61: 4-Sanitary latrines (household) | CJ61: 3-Sanitary latrines (communal) | CK61: 1 | CL61: 0 | CM61: 0 | CN61: 0 | CO61: 0 | CP61: 0 | CQ61: 0 | CR61: 0 | CS61: 0 | CT61: 0 | CU61: 1 | CV61: 0 | CW61: 3 + | CX61: e-> 2 hours | CY61: 0 | CZ61: 1 | DA61: 2 | DB61: 3 | DC61: 0 | DD61: 0 | DE61: 1 | DF61: 1 | DG61: 0 | DH61: 0 | DI61: 0 | DJ61: 1 | DK61: 0 | DL61: 0 | DM61: 0 | DN61: 0 | DO61: 0 | DP61: 4 | DQ61: 1 | DR61: 0 | DS61: 1 | DT61: 1 | DU61: 1 | DV61: 1 | DW61: 1 | DX61: 0 | DY61: 1 | DZ61: 1 | EA61: 8
A62: 58 | B62: 2011-09-10 | C62: 2 | D62: Shatkira | E62: Tala | F62: Nagarghata | G62: Rural | H62: Nagarghata | I62: 5-Home undamaged | J62: 0 | K62: 0 | L62: 0 | M62: 0 | N62: 0 | O62: 0 | P62: 1 | Q62: 1 | R62: 0 | S62: 2-Vulnerable | T62: 2 | U62: 1 | V62: 0 | W62: 0 | X62: 0 | Y62: 3 | Z62: 0 | AA62: 0 | AB62: 0 | AC62: 0 | AD62: 0 | AE62: 0 | AF62: 0 | AG62: 4-Sanitary latrines (household) | AH62: 3-Sanitary latrines (communal) | AI62: 0 | AJ62: 0 | AK62: 0 | AL62: 0 | AM62: 0 | AN62: 0 | AO62: 0 | AP62: 0 | AQ62: 0 | AR62: 0 | AS62: 0 | AT62: 0 | AU62: 0 | AV62: 0 | AW62: 0 | AX62: 0 | AY62: 0 | AZ62: 0 | BA62: 0 | BB62: 0 | BC62: 0 | BD62: 0 | BE62: 0 | BF62: 0 | BG62: 0 | BH62: 0 | BI62: 0 | BJ62: 0 | BK62: 0 | BL62: 0 | BM62: 0 | BN62: 0 | BO62: 0 | BP62: 0 | BQ62: 0 - <1 | BS62: 2 | BT62: 0 | BU62: 0 | BV62: 1 | BW62: 0 | BX62: 3 | BY62: 0 | BZ62: 0 | CA62: 0 | CB62: 0 | CC62: 0 | CD62: 0 | CE62: 1 | CF62: 1 | CG62: 05 - 10 | CH62: 0 | CI62: 4-Sanitary latrines (household) | CJ62: 5-Other | CK62: 1 | CL62: 0 | CM62: 0 | CN62: 0 | CO62: 0 | CP62: 0 | CQ62: 0 | CR62: 0 | CS62: 0 | CT62: 0 | CU62: 1 | CV62: 0 | CW62: 3 + | CX62: e-> 2 hours | CY62: 0 | CZ62: 3 | DA62: 0 | DB62: 2 | DC62: 0 | DD62: 1 | DE62: 1 | DF62: 1 | DG62: 0 | DH62: 0 | DI62: 0 | DJ62: 1 | DK62: 0 | DL62: 0 | DM62: 0 | DN62: 0 | DO62: 0 | DP62: 2 | DQ62: 1 | DR62: 0 | DS62: 1 | DT62: 1 | DU62: 0 | DV62: 1 | DW62: 1 | DX62: 0 | DY62: 0 | DZ62: 1 | EA62: 6
A63: 59 | B63: 2011-09-10 | C63: 1 | D63: Shatkira | E63: Tala | F63: Sarulia | G63: Rural | H63: Kasipur | I63: 1-Collective centers | J63: 1 | K63: 1 | L63: 1 | M63: 0 | N63: 1 | O63: 1 | P63: 1 | Q63: 1 | R63: 0 | S63: 3-Seriously vulnerable | T63: 0 | U63: 0 | V63: 0 | W63: 0 | X63: 1 | Y63: 3 | Z63: 2 | AA63: 0 | AB63: 0 | AC63: 0 | AD63: 0 | AE63: 0 | AF63: 0 | AG63: 4-Sanitary latrines (household) | AH63: 1-Open area | AI63: 0 | AJ63: 1 | AK63: 0 | AL63: 1 | AM63: 0 | AN63: 0 | AO63: 0 | AP63: 1 | AQ63: 0 | AR63: 0 | AS63: 0 | AT63: 0 | AU63: 3 | AV63: 2 | AW63: 0 | AX63: 1 | AY63: 0 | AZ63: 0 | BA63: 0 | BB63: 5 | BC63: 0 | BD63: 4 | BE63: 0 | BF63: 3 | BG63: 0 | BH63: 0 | BI63: 0 | BJ63: 2 | BK63: 1 | BL63: 0 | BM63: 0 | BN63: 0 | BO63: 0 | BP63: 0 | BQ63: 3 + | BR63: 1 | BS63: 0 | BT63: 0 | BU63: 1 | BV63: 0 | BW63: 0 | BX63: 3 | BY63: 2 | BZ63: 0 | CA63: 0 | CB63: 0 | CC63: 0 | CD63: 0 | CE63: 0 | CF63: 1 | CG63: 10 + | CH63: 1 | CI63: 4-Sanitary latrines (household) | CJ63: 3-Sanitary latrines (communal) | CK63: 1 | CL63: 0 | CM63: 0 | CN63: 3 | CO63: 2 | CP63: 0 | CQ63: 0 | CR63: 1 | CS63: 0 | CT63: 0 | CU63: 1 | CV63: 0 | CW63: 3 + | CX63: a-Health facility nearby | CY63: 0 | CZ63: 2 | DA63: 3 | DB63: 1 | DC63: 0 | DD63: 0 | DE63: 1 | DF63: 1 | DG63: 1 | DH63: 0 | DI63: 0 | DJ63: 1 | DK63: 1 | DL63: 1 | DM63: 0 | DN63: 1 | DO63: 0 | DP63: 3 | DQ63: 1 | DR63: 0 | DS63: 1 | DT63: 1 | DU63: 1 | DV63: 1 | DW63: 1 | DX63: 1 | DY63: 1 | DZ63: 0 | EA63: 8
A64: 60 | B64: 2011-09-11 | C64: 1 | D64: Shatkira | E64: Tala | F64: Sarulia | G64: Rural | H64: Boro Kasipur | I64: 3-Marooned | J64: 1 | K64: 1 | L64: 1 | M64: 0 | N64: 1 | O64: 1 | P64: 1 | Q64: 1 | R64: 0 | S64: 3-Seriously vulnerable | T64: 2 | U64: 0 | V64: 1 | W64: 0 | X64: 0 | Y64: 3 | Z64: 0 | AA64: 0 | AB64: 0 | AC64: 0 | AD64: 0 | AE64: 0 | AF64: 0 | AG64: 4-Sanitary latrines (household) | AH64: 1-Open area | AI64: 1 | AJ64: 0 | AK64: 1 | AL64: 0 | AM64: 0 | AN64: 0 | AO64: 0 | AP64: 1 | AQ64: 0 | AR64: 0 | AS64: 0 | AT64: 0 | AU64: 3 | AV64: 2 | AW64: 0 | AX64: 1 | AY64: 0 | AZ64: 0 | BA64: 0 | BB64: 2 | BC64: 0 | BD64: 0 | BE64: 0 | BF64: 5 | BG64: 4 | BH64: 0 | BI64: 0 | BJ64: 0 | BK64: 3 | BL64: 0 | BM64: 0 | BN64: 1 | BO64: 0 | BP64: 0 | BQ64: 3 + | BR64: 0 | BS64: 1 | BT64: 0 | BU64: 0 | BV64: 0 | BW64: 0 | BX64: 3 | BY64: 2 | BZ64: 0 | CA64: 0 | CB64: 0 | CC64: 0 | CD64: 0 | CE64: 0 | CF64: 1 | CG64: 10 + | CH64: 1 | CI64: 4-Sanitary latrines (household) | CJ64: 5-Other | CK64: 1 | CL64: 0 | CM64: 0 | CN64: 0 | CO64: 0 | CP64: 3 | CQ64: 0 | CR64: 0 | CS64: 2 | CT64: 1 | CU64: 1 | CV64: 0 | CW64: 3 + | CX64: c-30-60 minutes | CY64: 0 | CZ64: 1 | DA64: 2 | DB64: 3 | DC64: 0 | DD64: 0 | DE64: 1 | DF64: 1 | DG64: 1 | DH64: 0 | DI64: 0 | DJ64: 1 | DK64: 1 | DL64: 0 | DM64: 0 | DN64: 1 | DO64: 0 | DP64: 3 | DQ64: 1 | DR64: 0 | DS64: 1 | DT64: 1 | DU64: 1 | DV64: 1 | DW64: 1 | DX64: 1 | DY64: 1 | DZ64: 0 | EA64: 8
A65: 61 | B65: 2011-09-10 | C65: 1 | D65: Shatkira | E65: Tala | F65: Tala Sadar | G65: Rural | H65: Monipur/ Shahpur | I65: 2-Roadside / embankments | J65: 1 | K65: 1 | L65: 1 | M65: 0 | N65: 1 | O65: 1 | P65: 1 | Q65: 1 | R65: 0 | S65: 4-Extremely vulnerable | T65: 2 | U65: 0 | V65: 1 | W65: 0 | X65: 0 | Y65: 3 | Z65: 0 | AA65: 0 | AB65: 0 | AC65: 0 | AD65: 0 | AE65: 0 | AF65: 1 | AG65: 4-Sanitary latrines (household) | AH65: 5-Other | AI65: 0 | AJ65: 1 | AK65: 1 | AL65: 1 | AM65: 0 | AN65: 0 | AO65: 1 | AP65: 0 | AQ65: 0 | AR65: 0 | AS65: 0 | AT65: 0 | AU65: 3 | AV65: 2 | AW65: 0 | AX65: 0 | AY65: 0 | AZ65: 1 | BA65: 0 | BB65: 5 | BC65: 0 | BD65: 0 | BE65: 0 | BF65: 1 | BG65: 2 | BH65: 4 | BI65: 0 | BJ65: 3 | BK65: 2 | BL65: 1 | BM65: 0 | BN65: 0 | BO65: 0 | BP65: 0 | BQ65: 3 + | BR65: 1 | BS65: 0 | BT65: 0 | BU65: 2 | BV65: 0 | BW65: 0 | BX65: 3 | BY65: 1 | BZ65: 0 | CA65: 0 | CB65: 0 | CC65: 0 | CD65: 0 | CE65: 0 | CF65: 1 | CG65: 10 + | CH65: 1 | CI65: 4-Sanitary latrines (household) | CJ65: 3-Sanitary latrines (communal) | CK65: 1 | CL65: 0 | CM65: 0 | CN65: 1 | CO65: 3 | CP65: 0 | CQ65: 0 | CR65: 2 | CS65: 0 | CT65: 0 | CU65: 1 | CV65: 0 | CW65: 3 + | CX65: e-> 2 hours | CY65: 0 | CZ65: 2 | DA65: 3 | DB65: 0 | DC65: 0 | DD65: 1 | DE65: 1 | DF65: 1 | DG65: 1 | DH65: 0 | DI65: 0 | DJ65: 1 | DK65: 1 | DL65: 1 | DM65: 0 | DN65: 1 | DO65: 0 | DP65: 4 | DQ65: 1 | DR65: 0 | DS65: 1 | DT65: 1 | DU65: 1 | DV65: 1 | DW65: 1 | DX65: 1 | DY65: 1 | DZ65: 1 | EA65: 9
A66: 62 | B66: 2011-09-10 | C66: 1 | D66: Shatkira | E66: Tala | F66: Tala Sadar | G66: Rural | H66: Kismotghona | I66: 5-Home undamaged | J66: 1 | K66: 1 | L66: 0 | M66: 0 | N66: 1 | O66: 1 | P66: 1 | Q66: 1 | R66: 0 | S66: 2-Vulnerable | T66: 2 | U66: 0 | V66: 0 | W66: 0 | X66: 0 | Y66: 3 | Z66: 0 | AA66: 0 | AB66: 0 | AC66: 1 | AD66: 0 | AE66: 0 | AF66: 1 | AG66: 4-Sanitary latrines (household) | AH66: 4-Sanitary latrines (household) | AI66: 0 | AJ66: 0 | AK66: 0 | AL66: 0 | AM66: 0 | AN66: 0 | AO66: 0 | AP66: 0 | AQ66: 0 | AR66: 1 | AS66: 0 | AT66: 0 | AU66: 0 | AV66: 0 | AW66: 0 | AX66: 0 | AY66: 0 | AZ66: 0 | BA66: 0 | BB66: 5 | BC66: 3 | BD66: 0 | BE66: 0 | BF66: 0 | BG66: 0 | BH66: 4 | BI66: 0 | BJ66: 0 | BK66: 1 | BL66: 0 | BM66: 0 | BN66: 2 | BO66: 0 | BP66: 0 | BQ66: 3 + | BS66: 0 | BT66: 0 | BU66: 0 | BV66: 1 | BW66: 0 | BX66: 2 | BY66: 0 | BZ66: 0 | CA66: 0 | CB66: 3 | CC66: 0 | CD66: 0 | CE66: 1 | CF66: 0 | CG66: 10 + | CH66: 0 | CI66: 4-Sanitary latrines (household) | CJ66: 4-Sanitary latrines (household) | CK66: 0 | CL66: 0 | CM66: 0 | CN66: 0 | CO66: 0 | CP66: 0 | CQ66: 0 | CR66: 0 | CS66: 0 | CT66: 0 | CU66: 1 | CV66: 0 | CX66: c-30-60 minutes | CY66: 0 | CZ66: 1 | DA66: 2 | DB66: 3 | DC66: 0 | DD66: 0 | DE66: 1 | DF66: 0 | DG66: 1 | DH66: 0 | DI66: 0 | DJ66: 1 | DK66: 0 | DL66: 0 | DM66: 0 | DN66: 0 | DO66: 0 | DP66: 2 | DQ66: 0 | DR66: 0 | DS66: 0 | DT66: 1 | DU66: 0 | DV66: 0 | DW66: 1 | DX66: 1 | DY66: 0 | DZ66: 0 | EA66: 3
A67: 63 | B67: 2011-09-09 | C67: 1 | D67: Shatkira | E67: Tala | F67: Tentulia | G67: Rural | H67: Hatbas, Modonpur, Lakkhanpur | I67: 2-Roadside / embankments | J67: 1 | K67: 1 | L67: 1 | M67: 0 | N67: 1 | O67: 1 | P67: 1 | Q67: 1 | R67: 0 | S67: 4-Extremely vulnerable | T67: 0 | U67: 0 | V67: 2 | W67: 0 | X67: 0 | Y67: 3 | Z67: 0 | AA67: 0 | AB67: 0 | AC67: 1 | AD67: 0 | AE67: 0 | AF67: 1 | AG67: 4-Sanitary latrines (household) | AH67: 3-Sanitary latrines (communal) | AI67: 0 | AJ67: 1 | AK67: 1 | AL67: 1 | AM67: 0 | AN67: 0 | AO67: 0 | AP67: 0 | AQ67: 0 | AR67: 0 | AS67: 0 | AT67: 0 | AU67: 3 | AV67: 2 | AW67: 0 | AX67: 1 | AY67: 0 | AZ67: 0 | BA67: 0 | BB67: 5 | BC67: 4 | BD67: 0 | BE67: 3 | BF67: 0 | BG67: 2 | BH67: 0 | BI67: 0 | BJ67: 1 | BK67: 0 | BL67: 0 | BM67: 0 | BN67: 0 | BO67: 0 | BP67: 0 | BQ67: 3 + | BR67: 1 | BS67: 0 | BT67: 0 | BU67: 1 | BV67: 0 | BW67: 0 | BX67: 3 | BY67: 2 | BZ67: 0 | CA67: 0 | CB67: 0 | CC67: 0 | CD67: 0 | CE67: 0 | CF67: 1 | CG67: 10 + | CH67: 1 | CI67: 4-Sanitary latrines (household) | CJ67: 3-Sanitary latrines (communal) | CK67: 1 | CL67: 0 | CM67: 0 | CN67: 0 | CO67: 3 | CP67: 0 | CQ67: 0 | CR67: 2 | CS67: 0 | CT67: 1 | CU67: 1 | CV67: 0 | CW67: 3 + | CX67: c-30-60 minutes | CY67: 0 | CZ67: 2 | DA67: 3 | DB67: 1 | DC67: 0 | DD67: 0 | DE67: 1 | DF67: 1 | DG67: 0 | DH67: 0 | DI67: 0 | DJ67: 1 | DK67: 1 | DL67: 1 | DM67: 1 | DN67: 1 | DO67: 0 | DP67: 4 | DQ67: 1 | DR67: 0 | DS67: 1 | DT67: 1 | DU67: 1 | DV67: 1 | DW67: 1 | DX67: 0 | DY67: 1 | DZ67: 0 | EA67: 7

Sheet Analysis01_PivotGrouping
A1: Teams | B1: (All)
A2: District | B2: (All)
A3: Upazila | B3: (All)
A4: Union | B4: (All)
A5: Rural vs. Urban | B5: (All)
A7: Sites assessed | B7: Severity
A8: Living arrangement | B8: 1-Relatively normal | C8: 2-Vulnerable | D8: 3-Seriously vulnerable | E8: 4-Extremely vulnerable | F8: Grand Total
A9: 1-Collective centers | B9: 0 | C9: 0 | D9: 4 | E9: 4 | F9: 8
A10: 2-Roadside / embankments | B10: 0 | C10: 3 | D10: 6 | E10: 6 | F10: 15
A11: 3-Marooned | B11: 2 | C11: 5 | D11: 5 | E11: 3 | F11: 15
A12: 4-Damaged or water-logged | B12: 1 | C12: 4 | D12: 5 | E12: 3 | F12: 13
A13: 5-Home undamaged | B13: 3 | C13: 6 | D13: 2 | E13: 1 | F13: 12
A14: Grand Total | B14: 6 | C14: 18 | D14: 22 | E14: 17 | F14: 63

Sheet Analysis01_PivotBinaries
C1: Teams | D1: (All)
C2: District | D2: (All)
C3: Upazila | D3: (All)
C4: Union | D4: (All)
C5: Rural vs. Urban | D5: (All)
C6: Living arrangement | D6: (All)
C7: Severity | D7: (All)
C9: Values | D9: Total
A10: Stagnant water: Settlement | B10: t_02_01 | C10: Average of t_02_01 | D10: 0.8095238095
A11: Stagnant water: Shelter | B11: t_02_02 | C11: Average of t_02_02 | D11: 0.3650793651
A12: Stagnant water: Water points | B12: t_02_03 | C12: Average of t_02_03 | D12: 0.6031746032
A13: Stagnant water: Other | B13: t_02_04 | C13: Average of t_02_04 | D13: 0.09523809524
A14: Garbage | B14: t_03_00 | C14: Average of t_03_00 | D14: 0.8571428571
A15: Disease vectors | B15: t_04_00 | C15: Average of t_04_00 | D15: 0.9365079365
A16: Latrines at site | B16: t_05_00 | C16: Average of t_05_00 | D16: 0.8571428571
A17: Students truant | B17: t_09_00 | C17: Average of t_09_00 | D17: 0.4761904762
A18: Open water sources | B18: t_10_07 | C18: Average of t_10_07 | D18: 0.1587301587
A19: Lack of safe water serious (men) | B19: m_04_00 | C19: Average of m_04_00 | D19: 0.6393442623
A20: Safety of home and property (men) | B20: m_21_00 | C20: Average of m_21_00 | D20: 0.8611111111
A21: Has electricity | B21: w_04_02 | C21: Average of w_04_02 | D21: 0.3650793651
A22: Lack of safe water serious (women) | B22: w_06_00 | C22: Average of w_06_00 | D22: 0.8095238095
A23: Lack of safetoilets (women) | B23: w_10_00 | C23: Average of w_10_00 | D23: 0.8888888889
A24: Difficult women's hygiene | B24: w_12_00 | C24: Average of w_12_00 | D24: 0.9523809524
A25: School attendance high - pre-disaster | B25: w_18_01 | C25: Average of w_18_01 | D25: 0.9841269841
A26: School attendance high - post-disaster | B26: w_18_02 | C26: Average of w_18_02 | D26: 0.2698412698
A27: Diarrhea increased | B27: w_26_00 | C27: Average of w_26_00 | D27: 0.5238095238
A28: Women's safety issues | B28: w_28_01 | C28: Average of w_28_01 | D28: 0.619047619
A29: Child labor | B29: w_29_00 | C29: Average of w_29_00 | D29: 0.5396825397
A30: Children missing | B30: w_30_00 | C30: Average of w_30_00 | D30: 0.03174603175

Sheet Analysis01_Priorities
A1: Variables | C1: Simple vote count | F1: Distribution of priority votes | N1: Borda count
C2: Count of priority mentions | D2: As a fraction of all voting participants | F2: 5 | G2: 4 | H2: 3 | I2: 2 | J2: 1 | K2: 0 | L2: NonMissing | N2: Sumproduct (Borda count) | O2: Mean (mean Borda mean) | P2: Percentage non-empty votes | R2: some priority
A3: Group interviews with men
A4: Priority for men: Livelihoods | B4: m_03_01 | C4: =COUNTIF(INDIRECT($B4),">0") -> 46 | D4: =COUNTIF(INDIRECT($B4),">0") / COUNT(INDIRECT($B4)) -> 0.7301587302 | H4: =COUNTIF(INDIRECT($B4),H$2) -> 12 | I4: 17 | J4: 17 | K4: 17 | L4: =COUNT(INDIRECT($B4)) -> 63 | N4: =SUMPRODUCT($F$2:$K$2,$F4:$K4) -> 87 | O4: =N4/L4 -> 1.380952381 | P4: =SUM(H4:J15) / (63 * 3) -> 0.9735449735 | R4: =SUM(H4:J4)/L4 -> 0.7301587302 | T4: Comparison between simple vote counts and Borda counts, for livelihood priorities:
A5: Priority for men: Livestock feed | B5: m_03_02 | C5: =COUNTIF(INDIRECT($B5),">0") -> 7 | D5: =COUNTIF(INDIRECT($B5),">0") / COUNT(INDIRECT($B5)) -> 0.1111111111 | H5: 0 | I5: 3 | J5: 4 | K5: 56 | L5: =COUNT(INDIRECT($B5)) -> 63 | N5: =SUMPRODUCT($F$2:$K$2,$F5:$K5) -> 10 | O5: =N5/L5 -> 0.1587301587 | R5: 0.1111111111
A6: Priority for men: Rebuild homes | B6: m_03_03 | C6: 27 | D6: 0.4285714286 | H6: 8 | I6: 12 | J6: 7 | K6: 36 | L6: 63 | N6: 55 | O6: 0.873015873 | R6: 0.4285714286
A7: Priority for men: Children's schooling | B7: m_03_04 | C7: 1 | D7: 0.01587301587 | H7: 0 | I7: 0 | J7: 1 | K7: 62 | L7: 63 | N7: 1 | O7: 0.01587301587 | R7: 0.01587301587
A8: Priority for men: Health care | B8: m_03_05 | C8: 14 | D8: 0.2222222222 | H8: 2 | I8: 1 | J8: 11 | K8: 49 | L8: 63 | N8: 19 | O8: 0.3015873016 | R8: 0.2222222222
A9: Priority for men: Food | B9: m_03_06 | C9: 56 | D9: 0.8888888889 | H9: 35 | I9: 15 | J9: 6 | K9: 7 | L9: 63 | N9: 141 | O9: 2.238095238 | R9: 0.8888888889
A10: Priority for men: Safe drinking water | B10: m_03_07 | C10: 12 | D10: 0.1904761905 | H10: 1 | I10: 5 | J10: 6 | K10: 51 | L10: 63 | N10: 19 | O10: 0.3015873016 | R10: 0.1904761905
A11: Priority for men: Water for wash and bath | B11: m_03_08 | C11: 0 | D11: 0 | H11: 0 | I11: 0 | J11: 0 | K11: 63 | L11: 63 | N11: 0 | O11: 0 | R11: 0
A12: Priority for men: Markets | B12: m_03_09 | C12: 0 | D12: 0 | H12: 0 | I12: 0 | J12: 0 | K12: 63 | L12: 63 | N12: 0 | O12: 0 | R12: 0
A13: Priority for men: Short-term financial support | B13: m_03_10 | C13: 12 | D13: 0.1904761905 | H13: 2 | I13: 3 | J13: 7 | K13: 51 | L13: 63 | N13: 19 | O13: 0.3015873016 | R13: 0.1904761905
A14: Priority for men: Safety | B14: m_03_11 | C14: 3 | D14: 0.04761904762 | H14: 1 | I14: 2 | J14: 0 | K14: 60 | L14: 63 | N14: 7 | O14: 0.1111111111 | R14: 0.04761904762
A15: Priority for men: Other | B15: m_03_12 | C15: 6 | D15: 0.09523809524 | H15: 2 | I15: 3 | J15: 1 | K15: 57 | L15: 63 | N15: 13 | O15: 0.2063492063 | R15: 0.09523809524
A17: Shelter priorities for men: Find shelter | B17: m_08_01 | C17: 28 | D17: 0.4444444444 | H17: =COUNTIF(INDIRECT($B17),H$2) -> 15 | I17: 5 | J17: 8 | K17: 35 | L17: 63 | N17: 63 | O17: =N17/L17 -> 1 | P17: =SUM(H17:J25) / (63 * 3) -> 0.7830687831 | R17: =SUM(H17:J17)/L17 -> 0.4444444444
A18: Shelter priorities for men: Move out of shelter | B18: m_08_02 | C18: 4 | D18: 0.06349206349 | H18: 0 | I18: 0 | J18: 4 | K18: 59 | L18: 63 | N18: 4 | O18: 0.06349206349 | R18: 0.06349206349
A19: Shelter priorities for men: Return home | B19: m_08_03 | C19: 20 | D19: 0.3174603175 | H19: 14 | I19: 6 | J19: 0 | K19: 43 | L19: 63 | N19: 54 | O19: 0.8571428571 | R19: 0.3174603175
A20: Shelter priorities for men: Material for home repair | B20: m_08_04 | C20: 49 | D20: 0.7777777778 | H20: 21 | I20: 23 | J20: 5 | K20: 14 | L20: 63 | N20: 114 | O20: 1.80952381 | R20: 0.7777777778
A21: Shelter priorities for men: Manpower for home repair | B21: m_08_05 | C21: 5 | D21: 0.07936507937 | H21: 0 | I21: 1 | J21: 4 | K21: 58 | L21: 63 | N21: 6 | O21: 0.09523809524 | R21: 0.07936507937
A22: Shelter priorities for men: Household items | B22: m_08_06 | C22: 24 | D22: 0.380952381 | H22: 3 | I22: 8 | J22: 13 | K22: 39 | L22: 63 | N22: 38 | O22: 0.6031746032 | R22: 0.380952381
A23: Shelter priorities for men: Privacy | B23: m_08_07 | C23: 7 | D23: 0.1111111111 | H23: 0 | I23: 3 | J23: 4 | K23: 56 | L23: 63 | N23: 10 | O23: 0.1587301587 | R23: 0.1111111111
A24: Shelter priorities for men: Protection from weather | B24: m_08_08 | C24: 6 | D24: 0.09523809524 | H24: 0 | I24: 2 | J24: 4 | K24: 57 | L24: 63 | N24: 8 | O24: 0.126984127 | R24: 0.09523809524
A25: Shelter priorities for men: Other | B25: m_08_09 | C25: 5 | D25: 0.07936507937 | H25: 0 | I25: 3 | J25: 2 | K25: 58 | L25: 63 | N25: 8 | O25: 0.126984127 | R25: 0.07936507937
A27: Coping priorities for men: Reduce meal size | B27: m_16_01 | C27: 44 | D27: 0.6984126984 | F27: =COUNTIF(INDIRECT($B27),F$2) -> 25 | G27: 2 | H27: 7 | I27: 9 | J27: 1 | K27: 19 | L27: 63 | N27: 173 | O27: 2.746031746 | P27: =SUM(F27:J41) / (63 * 5) -> 0.9142857143 | R27: =SUM(F27:J27)/L27 -> 0.6984126984
A28: Coping priorities for men: East less preferred food | B28: m_16_02 | C28: 28 | D28: 0.4444444444 | F28: 3 | G28: 15 | H28: 1 | I28: 4 | J28: 5 | K28: 35 | L28: 63 | N28: 91 | O28: 1.444444444 | R28: 0.4444444444
A29: Coping priorities for men: Eat wild foods | B29: m_16_03 | C29: 10 | D29: 0.1587301587 | F29: 0 | G29: 3 | H29: 3 | I29: 2 | J29: 2 | K29: 53 | L29: 63 | N29: 27 | O29: 0.4285714286 | R29: 0.1587301587
A30: Coping priorities for men: Restrict adult male consumption | B30: m_16_04 | C30: 7 | D30: 0.1111111111 | F30: 0 | G30: 3 | H30: 1 | I30: 2 | J30: 1 | K30: 56 | L30: 63 | N30: 20 | O30: 0.3174603175 | R30: 0.1111111111
A31: Coping priorities for men: Restrict adult female consumption | B31: m_16_05 | C31: 12 | D31: 0.1904761905 | F31: 1 | G31: 0 | H31: 5 | I31: 2 | J31: 4 | K31: 51 | L31: 63 | N31: 28 | O31: 0.4444444444 | R31: 0.1904761905
A32: Coping priorities for men: Send children to relatives | B32: m_16_06 | C32: 8 | D32: 0.126984127 | F32: 0 | G32: 2 | H32: 0 | I32: 4 | J32: 2 | K32: 55 | L32: 63 | N32: 18 | O32: 0.2857142857 | R32: 0.126984127
A33: Coping priorities for men: Borrow money | B33: m_16_07 | C33: 34 | D33: 0.5396825397 | F33: 14 | G33: 9 | H33: 5 | I33: 4 | J33: 2 | K33: 29 | L33: 63 | N33: 131 | O33: 2.079365079 | R33: 0.5396825397
A34: Coping priorities for men: Advance labor sale | B34: m_16_08 | C34: 13 | D34: 0.2063492063 | F34: 0 | G34: 3 | H34: 3 | I34: 0 | J34: 7 | K34: 50 | L34: 63 | N34: 28 | O34: 0.4444444444 | R34: 0.2063492063
A35: Coping priorities for men: Buy food on creadit | B35: m_16_09 | C35: 37 | D35: 0.5873015873 | F35: 11 | G35: 8 | H35: 6 | I35: 6 | J35: 6 | K35: 26 | L35: 63 | N35: 123 | O35: 1.952380952 | R35: 0.5873015873
A36: Coping priorities for men: Sell livestock and poultry | B36: m_16_10 | C36: 39 | D36: 0.619047619 | F36: 2 | G36: 10 | H36: 13 | I36: 11 | J36: 3 | K36: 24 | L36: 63 | N36: 114 | O36: 1.80952381 | R36: 0.619047619
A37: Coping priorities for men: Sell household utensils | B37: m_16_11 | C37: 11 | D37: 0.1746031746 | F37: 2 | G37: 2 | H37: 2 | I37: 1 | J37: 4 | K37: 52 | L37: 63 | N37: 30 | O37: 0.4761904762 | R37: 0.1746031746
A38: Coping priorities for men: Sell land or trees | B38: m_16_12 | C38: 12 | D38: 0.1904761905 | F38: 0 | G38: 1 | H38: 5 | I38: 4 | J38: 2 | K38: 51 | L38: 63 | N38: 29 | O38: 0.4603174603 | R38: 0.1904761905
A39: Coping priorities for men: Outmigration | B39: m_16_13 | C39: 19 | D39: 0.3015873016 | F39: 2 | G39: 3 | H39: 4 | I39: 4 | J39: 6 | K39: 44 | L39: 63 | N39: 48 | O39: 0.7619047619 | R39: 0.3015873016
A40: Coping priorities for men: Send children to work | B40: m_16_14 | C40: 12 | D40: 0.1904761905 | F40: 0 | G40: 0 | H40: 1 | I40: 3 | J40: 8 | K40: 51 | L40: 63 | N40: 17 | O40: 0.2698412698 | R40: 0.1904761905
A41: Coping priorities for men: Other | B41: m_16_15 | C41: 2 | D41: 0.03174603175 | F41: 0 | G41: 0 | H41: 1 | I41: 0 | J41: 1 | K41: 61 | L41: 63 | N41: 4 | O41: 0.06349206349 | R41: 0.03174603175
A43: Group interviews with women
A44: Priority for women: Livelihoods | B44: w_03_01 | C44: 22 | D44: 0.3492063492 | H44: =COUNTIF(INDIRECT($B44),H$2) -> 6 | I44: 5 | J44: 11 | K44: 41 | L44: 63 | N44: 39 | O44: 0.619047619 | P44: =SUM(H44:J55) / (63 * 3) -> 0.9947089947
A45: Priority for women: Livestock feed | B45: w_03_02 | C45: 8 | D45: 0.126984127 | H45: 0 | I45: 3 | J45: 5 | K45: 55 | L45: 63 | N45: 11 | O45: 0.1746031746
A46: Priority for women: Rebuild homes | B46: w_03_03 | C46: 29 | D46: 0.4603174603 | H46: 8 | I46: 17 | J46: 4 | K46: 34 | L46: 63 | N46: 62 | O46: 0.9841269841
A47: Priority for women: Children's schooling | B47: w_03_04 | C47: 3 | D47: 0.04761904762 | H47: 0 | I47: 0 | J47: 3 | K47: 60 | L47: 63 | N47: 3 | O47: 0.04761904762
A48: Priority for women: Health care | B48: w_03_05 | C48: 14 | D48: 0.2222222222 | H48: 2 | I48: 3 | J48: 9 | K48: 49 | L48: 63 | N48: 21 | O48: 0.3333333333
A49: Priority for women: Food | B49: w_03_06 | C49: 56 | D49: 0.8888888889 | H49: 38 | I49: 13 | J49: 5 | K49: 7 | L49: 63 | N49: 145 | O49: 2.301587302
A50: Priority for women: Safe drinking water | B50: w_03_07 | C50: 28 | D50: 0.4444444444 | H50: 2 | I50: 11 | J50: 15 | K50: 35 | L50: 63 | N50: 43 | O50: 0.6825396825
A51: Priority for women: Water for wash and bath | B51: w_03_08 | C51: 3 | D51: 0.04761904762 | H51: 0 | I51: 2 | J51: 1 | K51: 60 | L51: 63 | N51: 5 | O51: 0.07936507937
A52: Priority for women: Markets | B52: w_03_09 | C52: 3 | D52: 0.04761904762 | H52: 0 | I52: 2 | J52: 1 | K52: 60 | L52: 63 | N52: 5 | O52: 0.07936507937
A53: Priority for women: Short-term financial support | B53: w_03_10 | C53: 14 | D53: 0.2222222222 | H53: 4 | I53: 4 | J53: 6 | K53: 49 | L53: 63 | N53: 26 | O53: 0.4126984127
A54: Priority for women: Safety | B54: w_03_11 | C54: 2 | D54: 0.03174603175 | H54: 0 | I54: 0 | J54: 2 | K54: 61 | L54: 63 | N54: 2 | O54: 0.03174603175
A55: Priority for women: Other | B55: w_03_12 | C55: 6 | D55: 0.09523809524 | H55: 2 | I55: 2 | J55: 2 | K55: 57 | L55: 63 | N55: 12 | O55: 0.1904761905
A57: Shelter priorities for women: Find shelter | B57: w_14_01 | C57: 22 | D57: 0.3492063492 | H57: =COUNTIF(INDIRECT($B57),H$2) -> 9 | I57: 6 | J57: 7 | K57: 41 | L57: 63 | N57: 46 | O57: 0.7301587302 | P57: =SUM(H57:J65) / (63 * 3) -> 0.9206349206
A58: Shelter priorities for women: Move out of shelter | B58: w_14_02 | C58: 2 | D58: 0.03174603175 | H58: 0 | I58: 2 | J58: 0 | K58: 61 | L58: 63 | N58: 4 | O58: 0.06349206349
A59: Shelter priorities for women: Return home | B59: w_14_03 | C59: 21 | D59: 0.3333333333 | H59: 15 | I59: 4 | J59: 2 | K59: 42 | L59: 63 | N59: 55 | O59: 0.873015873
A60: Shelter priorities for women: Material for home repair | B60: w_14_04 | C60: 52 | D60: 0.8253968254 | H60: 28 | I60: 17 | J60: 7 | K60: 11 | L60: 63 | N60: 125 | O60: 1.984126984
A61: Shelter priorities for women: Manpower for home repair | B61: w_14_05 | C61: 11 | D61: 0.1746031746 | H61: 1 | I61: 4 | J61: 6 | K61: 52 | L61: 63 | N61: 17 | O61: 0.2698412698
A62: Shelter priorities for women: Household items | B62: w_14_06 | C62: 34 | D62: 0.5396825397 | H62: 5 | I62: 18 | J62: 11 | K62: 29 | L62: 63 | N62: 62 | O62: 0.9841269841
A63: Shelter priorities for women: Privacy | B63: w_14_07 | C63: 20 | D63: 0.3174603175 | H63: 0 | I63: 6 | J63: 14 | K63: 43 | L63: 63 | N63: 26 | O63: 0.4126984127
A64: Shelter priorities for women: Protection from weather | B64: w_14_08 | C64: 5 | D64: 0.07936507937 | H64: 0 | I64: 2 | J64: 3 | K64: 58 | L64: 63 | N64: 7 | O64: 0.1111111111
A65: Shelter priorities for women: Other | B65: w_14_09 | C65: 7 | D65: 0.1111111111 | H65: 0 | I65: 0 | J65: 7 | K65: 56 | L65: 63 | N65: 7 | O65: 0.1111111111
A67: Health priorities for women: None | B67: w_25_01 | C67: 0 | D67: 0 | H67: =COUNTIF(INDIRECT($B67),H$2) -> 0 | I67: 0 | J67: 0 | K67: 63 | L67: 63 | N67: 0 | O67: 0 | P67: =SUM(H67:J72) / (63 * 3) -> 1.005291005
A68: Health priorities for women: Diarrhea | B68: w_25_02 | C68: 55 | D68: 0.873015873 | H68: 25 | I68: 18 | J68: 12 | K68: 8 | L68: 63 | N68: 123 | O68: 1.952380952
A69: Health priorities for women: Skin disease | B69: w_25_03 | C69: =COUNTIF(INDIRECT($B69),">0") -> 59 | D69: =COUNTIF(INDIRECT($B69),">0") / COUNT(INDIRECT($B69)) -> 0.9365079365 | H69: 32 | I69: 26 | J69: 1 | K69: 4 | L69: 63 | N69: 149 | O69: 2.365079365
A70: Health priorities for women: Snake bite | B70: w_25_04 | C70: 37 | D70: 0.5873015873 | H70: 6 | I70: 11 | J70: 20 | K70: 26 | L70: 63 | N70: 60 | O70: 0.9523809524
A71: Health priorities for women: Safe birth | B71: w_25_05 | C71: 9 | D71: 0.1428571429 | H71: 1 | I71: 2 | J71: 6 | K71: 54 | L71: 63 | N71: 13 | O71: 0.2063492063
A72: Health priorities for women: Other | B72: w_25_06 | C72: 30 | D72: 0.4761904762 | H72: 0 | I72: 6 | J72: 24 | K72: 33 | L72: 63 | N72: 36 | O72: 0.5714285714

Sheet Analysis01_TabCategorical
B1: Tabulation of multiple variables that have (nearly) the same categories
B3: If all categories known and available:
I4: Alternatives to using multiple Pivot tables,
B5: Tabulate the four categorical variables side-by-side, using the standard functions | I5: then copy-paste (values only) results side by side.
B6: "indirect" and "countif", as well as mixed cell references.
B8: Predominant defection mode | C8: Men | F8: Women
C9: Before | D9: After | F9: Before | G9: After
C10: m_06_01 | D10: m_06_02 | F10: w_11_01 | G10: w_11_02 | I10: Names of the data ranges in the data sheet.
B11: 1-Open area | C11: =COUNTIF(INDIRECT(C$10),$B11) -> 3 | D11: =COUNTIF(INDIRECT(D$10),$B11) -> 20 | F11: 0 | G11: 26 | I11: =COUNTIF(INDIRECT(R9C),RC2)
B12: 2-Hanging or open latrine | C12: =COUNTIF(INDIRECT(C$10),$B12) -> 2 | D12: =COUNTIF(INDIRECT(D$10),$B12) -> 20 | F12: =COUNTIF(INDIRECT(F$10),$B12) -> 14 | G12: 17
B13: 3-Sanitary latrines (communal) | C13: =COUNTIF(INDIRECT(C$10),$B13) -> 15 | D13: =COUNTIF(INDIRECT(D$10),$B13) -> 13 | F13: 0 | G13: 10
B14: 4-Sanitary latrines (household) | C14: =COUNTIF(INDIRECT(C$10),$B14) -> 42 | D14: =COUNTIF(INDIRECT(D$10),$B14) -> 5 | F14: 49 | G14: 6
B15: 5-Other | C15: =COUNTIF(INDIRECT(C$10),$B15) -> 1 | D15: =COUNTIF(INDIRECT(D$10),$B15) -> 5 | F15: 0 | G15: 4
B16: Total | C16: =SUM(C11:C15) -> 63 | D16: =SUM(D11:D15) -> 63 | F16: 63 | G16: 63
B18: If not all categories across the concerned variables are obvious and easily available:
B20: Step 1: Extract the distinct items from the union of the data ranges,
B21: with the help of the user-written functions "union" and "Unique":
B23: =unique(Union(m_06_01,m_06_02, w_11_01,w_11_02),ROW(B23)-ROW(B$22)) -> 4-Sanitary latrines (household) | D23: =unique(Union(m_06_01,m_06_02, w_11_01,w_11_02),ROW(RC)-ROW(R22C)) | L23: Remarks:
B24: =unique(Union(m_06_01,m_06_02, w_11_01,w_11_02),ROW(B24)-ROW(B$22)) -> 1-Open area | D24: Copy the formula down until it returns blanks in at least one cell. | L24: 1. The function UNION unions the sets passed to it as named ranges.
B25: =unique(Union(m_06_01,m_06_02, w_11_01,w_11_02),ROW(B25)-ROW(B$22)) -> 3-Sanitary latrines (communal) | L25: 2. This unioned set is the first argument in UNIQUE; the seond
B26: =unique(Union(m_06_01,m_06_02, w_11_01,w_11_02),ROW(B26)-ROW(B$22)) -> 5-Other | L26: is a item number, which we conveniently produce by the difference between the row number and the row just above the greyed area.
B27: =unique(Union(m_06_01,m_06_02, w_11_01,w_11_02),ROW(B27)-ROW(B$22)) -> 2-Hanging or open latrine | L27: Items appear in the order they are first encountered.
B28: =unique(Union(m_06_01,m_06_02, w_11_01,w_11_02),ROW(B28)-ROW(B$22)) ->  | D28: The only place in this workbook that uses user-defined functions. See VBA module.
B29: =unique(Union(m_06_01,m_06_02, w_11_01,w_11_02),ROW(B29)-ROW(B$22)) -> 
B30: =unique(Union(m_06_01,m_06_02, w_11_01,w_11_02),ROW(B30)-ROW(B$22)) -> 
B32: Step 2: Copy the cells with visible values, paste them (values only), and sort in place.
B33: 1-Open area
B34: 2-Hanging or open latrine
B35: 3-Sanitary latrines (communal)
B36: 4-Sanitary latrines (household)
B37: 5-Other
B39: Step 3: Build the table as in the first case.

Sheet Analysis01_MultipleR_Pivot
C3: Teams | D3: (All)
C4: Upazila | D4: (All)
C5: Union | D5: (All)
C6: Rural vs. Urban | D6: (All)
C7: Living arrangement | D7: (All)
D9: District
C10: Values | D10: Jessore | E10: Kulna | F10: Shatkira | G10: Grand Total
C11: Count of i_00_01 | D11: 24 | E11: 5 | F11: 34 | G11: 63
A12: Shelter issues for men: Shelter not available | B12: m_07_01 | C12: Average of m_07_01 | D12: 0.6666666667 | E12: 0.8 | F12: 0.3823529412 | G12: 0.5238095238
A13: Shelter issues for men: Overcrowded | B13: m_07_02 | C13: Average of m_07_02 | D13: 0.2083333333 | E13: 0.4 | F13: 0.1470588235 | G13: 0.1904761905
A14: Shelter issues for men: Return home impossible | B14: m_07_03 | C14: Average of m_07_03 | D14: 0.6666666667 | E14: 0.8 | F14: 0.6176470588 | G14: 0.6507936508
A15: Shelter issues for men: No repair materials | B15: m_07_04 | C15: Average of m_07_04 | D15: 0.4166666667 | E15: 0.2 | F15: 0.3529411765 | G15: 0.3650793651
A16: Shelter issues for men: No manpower for repairs | B16: m_07_05 | C16: Average of m_07_05 | D16: 0 | E16: 0.2 | F16: 0.05882352941 | G16: 0.04761904762
A17: Shelter issues for men: Land issues for men | B17: m_07_06 | C17: Average of m_07_06 | D17: 0 | E17: 0.2 | F17: 0.02941176471 | G17: 0.03174603175
A18: Shelter issues for men: Lack of household items | B18: m_07_07 | C18: Average of m_07_07 | D18: 0.1666666667 | E18: 0 | F18: 0.3235294118 | G18: 0.2380952381
A19: Shelter issues for men: Lack of privacy | B19: m_07_08 | C19: Average of m_07_08 | D19: 0.1666666667 | E19: 0 | F19: 0.1764705882 | G19: 0.1587301587
A20: Shelter issues for men: Exposed to weather | B20: m_07_09 | C20: Average of m_07_09 | D20: 0.08333333333 | E20: 0 | F20: 0.1470588235 | G20: 0.1111111111
A21: Shelter issues for men: Other | B21: m_07_10 | C21: Average of m_07_10 | D21: 0.2083333333 | E21: 0 | F21: 0.08823529412 | G21: 0.126984127
C23: By sites | I23: By choices
D24: Jessore | E24: Kulna | F24: Shatkira | G24: Grand Total | J24: Jessore | K24: Kulna | L24: Shatkira | M24: Grand Total
C25: Shelter not available | D25: 0.6666666667 | E25: 0.8 | F25: 0.3823529412 | G25: 0.5238095238 | I25: Shelter not available | J25: =D25/D$36 -> 0.2580645161 | K25: =E25/E$36 -> 0.3076923077 | L25: 0.164556962 | M25: 0.2142857143
C26: Overcrowded | D26: 0.2083333333 | E26: 0.4 | F26: 0.1470588235 | G26: 0.1904761905 | I26: Overcrowded | J26: =D26/D$36 -> 0.08064516129 | K26: 0.1538461538 | L26: 0.06329113924 | M26: 0.07792207792
C27: Return home impossible | D27: 0.6666666667 | E27: 0.8 | F27: 0.6176470588 | G27: 0.6507936508 | I27: Return home impossible | J27: 0.2580645161 | K27: 0.3076923077 | L27: 0.2658227848 | M27: 0.2662337662
C28: No repair materials | D28: 0.4166666667 | E28: 0.2 | F28: 0.3529411765 | G28: 0.3650793651 | I28: No repair materials | J28: 0.1612903226 | K28: 0.07692307692 | L28: 0.1518987342 | M28: 0.1493506494
C29: No manpower for repairs | D29: 0 | E29: 0.2 | F29: 0.05882352941 | G29: 0.04761904762 | I29: No manpower for repairs | J29: 0 | K29: 0.07692307692 | L29: 0.0253164557 | M29: 0.01948051948
C30: Land issues for men | D30: 0 | E30: 0.2 | F30: 0.02941176471 | G30: 0.03174603175 | I30: Land issues for men | J30: 0 | K30: 0.07692307692 | L30: 0.01265822785 | M30: 0.01298701299
C31: Lack of household items | D31: 0.1666666667 | E31: 0 | F31: 0.3235294118 | G31: 0.2380952381 | I31: Lack of household items | J31: 0.06451612903 | K31: 0 | L31: 0.1392405063 | M31: 0.0974025974
C32: Lack of privacy | D32: 0.1666666667 | E32: 0 | F32: 0.1764705882 | G32: 0.1587301587 | I32: Lack of privacy | J32: 0.06451612903 | K32: 0 | L32: 0.07594936709 | M32: 0.06493506494
C33: Exposed to weather | D33: 0.08333333333 | E33: 0 | F33: 0.1470588235 | G33: 0.1111111111 | I33: Exposed to weather | J33: 0.03225806452 | K33: 0 | L33: 0.06329113924 | M33: 0.04545454545
C34: Other | D34: 0.2083333333 | E34: 0 | F34: 0.08823529412 | G34: 0.126984127 | I34: Other | J34: 0.08064516129 | K34: 0 | L34: 0.03797468354 | M34: 0.05194805195
C35: Sites | D35: 24 | E35: 5 | F35: 34 | G35: 63 | I35: Total | J35: =SUM(J25:J34) -> 1 | K35: =SUM(K25:K34) -> 1 | L35: 1 | M35: 1
C36: Mean number of choices | D36: =SUM(D25:D34) -> 2.583333333 | E36: =SUM(E25:E34) -> 2.6 | F36: 2.323529412 | G36: 2.444444444

Sheet Analysis01_MultipleR_IF
A1: Small demo (28 cases only) when multiple-choice data are missing [artificially deleted]:
A2: Missing data - Different case exclusion rules produce different results. | U2: Auxiliary variables:
A3: To account for missing, Pivot tables are not suitable. Use condition fields with COUNTBLANK, and tabulate with INDIRECT and AVERAGEIF. | U3: Non-missing values per record when
A4: Record number | B4: Shelter issues for men: Shelter not available | C4: Shelter issues for men: Overcrowded | D4: Shelter issues for men: Return home impossible | E4: Shelter issues for men: No repair materials | F4: Shelter issues for men: No manpower for repairs | G4: Shelter issues for men: Land issues for men | H4: Shelter issues for men: Lack of household items | I4: Shelter issues for men: Lack of privacy | J4: Shelter issues for men: Exposed to weather | K4: Shelter issues for men: Other | L4: All responses blank | M4: Some missing | Q4: Sites in the assessment | R4: This question: Exluding sites with all missing | S4: This question: Excluding sites with any missing | U4: This question: Exluding sites with all missing | V4: This question: Excluding sites with any missing
A5: ix_00_01 | B5: mx_07_01 | C5: mx_07_02 | D5: mx_07_03 | E5: mx_07_04 | F5: mx_07_05 | G5: mx_07_06 | H5: mx_07_07 | I5: mx_07_08 | J5: mx_07_09 | K5: mx_07_10 | L5: mx_allmiss | M5: mx_somemiss | O5: By sites:
A6: 1 | B6: 1 | C6: 1 | D6: 0 | E6: 0 | F6: 0 | G6: 0 | H6: 0 | I6: 0 | J6: 0 | K6: 0 | L6: =IF(COUNTBLANK($B6:$K6)=COLUMNS($B6:$K6),1,0) -> 0 | M6: =IF(COUNTBLANK($B6:$K6)>0,1,0) -> 0 | O6: Shelter not available | P6: mx_07_01 | R6: =AVERAGEIF(mx_allmiss,0,INDIRECT($P6)) -> 0.6923076923 | S6: =AVERAGEIF(mx_somemiss,0,INDIRECT($P6)) -> 0.6956521739 | U6: =IF(COUNTBLANK($B6:$K6)=COLUMNS($B6:$K6),0,COLUMNS($B6:$K6)-COUNTBLANK($B6:$K6)) -> 10 | V6: =IF(COUNTBLANK($B6:$K6)>0,0,COLUMNS($B6:$K6)) -> 10
A7: 2 | B7: 1 | C7: 0 | D7: 1 | E7: 0 | F7: 0 | G7: 0 | H7: 0 | I7: 0 | J7: 0 | K7: 0 | L7: =IF(COUNTBLANK($B7:$K7)=COLUMNS($B7:$K7),1,0) -> 0 | M7: =IF(COUNTBLANK($B7:$K7)>0,1,0) -> 0 | O7: Overcrowded | P7: mx_07_02 | R7: 0.2692307692 | S7: 0.3043478261 | U7: =IF(COUNTBLANK($B7:$K7)=COLUMNS($B7:$K7),0,COLUMNS($B7:$K7)-COUNTBLANK($B7:$K7)) -> 10 | V7: =IF(COUNTBLANK($B7:$K7)>0,0,COLUMNS($B7:$K7)) -> 10
A8: 3 | B8: 1 | C8: 0 | D8: 1 | E8: 0 | F8: 0 | G8: 0 | H8: 0 | I8: 0 | J8: 0 | K8: 0 | L8: 0 | M8: 0 | O8: Return home impossible | P8: mx_07_03 | R8: 0.6923076923 | S8: 0.7826086957 | U8: 10 | V8: 10
A9: 4 | B9: 1 | C9: 1 | D9: 1 | E9: 0 | F9: 0 | G9: 0 | H9: 0 | I9: 0 | J9: 0 | K9: 0 | L9: 0 | M9: 0 | O9: No repair materials | P9: mx_07_04 | R9: 0.4230769231 | S9: 0.4782608696 | U9: 10 | V9: 10
A10: 5 | B10: 1 | C10: 1 | D10: 0 | E10: 1 | F10: 0 | G10: 0 | H10: 0 | I10: 0 | J10: 0 | K10: 0 | L10: 0 | M10: 0 | O10: No manpower for repairs | P10: mx_07_05 | R10: 0.04347826087 | S10: 0.04347826087 | U10: 10 | V10: 10
A11: 6 | B11: 1 | C11: 0 | D11: 1 | E11: 0 | F11: 0 | G11: 0 | H11: 0 | I11: 1 | J11: 0 | K11: 1 | L11: 0 | M11: 0 | O11: Land issues for men | P11: mx_07_06 | R11: 0.04347826087 | S11: 0.04347826087 | U11: 10 | V11: 10
A12: 7 | B12: 1 | C12: 0 | D12: 1 | E12: 1 | F12: 0 | G12: 0 | H12: 0 | I12: 0 | J12: 0 | K12: 1 | L12: 0 | M12: 0 | O12: Lack of household items | P12: mx_07_07 | R12: 0.1739130435 | S12: 0.1739130435 | U12: 10 | V12: 10
A13: 8 | B13: 1 | C13: 0 | D13: 1 | E13: 0 | F13: 0 | G13: 0 | H13: 0 | I13: 0 | J13: 0 | K13: 1 | L13: 0 | M13: 0 | O13: Lack of privacy | P13: mx_07_08 | R13: 0.1739130435 | S13: 0.1739130435 | U13: 10 | V13: 10
A14: 9 | B14: 1 | C14: 0 | D14: 0 | E14: 1 | F14: 0 | G14: 0 | H14: 0 | I14: 1 | J14: 0 | K14: 0 | L14: 0 | M14: 0 | O14: Exposed to weather | P14: mx_07_09 | R14: 0.08695652174 | S14: 0.08695652174 | U14: 10 | V14: 10
A15: 10 | B15: 0 | C15: 0 | D15: 1 | E15: 1 | F15: 0 | G15: 0 | H15: 0 | I15: 1 | J15: 1 | K15: 0 | L15: 0 | M15: 0 | O15: Other | P15: mx_07_10 | R15: 0.2173913043 | S15: 0.2173913043 | U15: 10 | V15: 10
A16: 11 | B16: 0 | C16: 0 | D16: 0 | E16: 1 | F16: 0 | G16: 0 | H16: 1 | I16: 0 | J16: 1 | K16: 1 | L16: 0 | M16: 0 | O16: Mean number of choices | R16: =SUM(R6:R15) -> 2.816053512 | S16: =SUM(S6:S15) -> 3 | U16: 10 | V16: 10
A17: 12 | B17: 0 | C17: 0 | D17: 1 | E17: 1 | F17: 0 | G17: 0 | H17: 0 | I17: 0 | J17: 0 | K17: 1 | L17: 0 | M17: 0 | O17: Cases | P17: ix_00_01 | Q17: =COUNT(INDIRECT($P17)) -> 28 | R17: =COUNT(INDIRECT($P17))-SUM(mx_allmiss) -> 26 | S17: =COUNT(INDIRECT($P17))-SUM(mx_somemiss) -> 23 | U17: 10 | V17: 10
A18: 13 | B18: 1 | C18: 1 | D18: 1 | E18: 0 | F18: 0 | G18: 0 | H18: 0 | I18: 0 | J18: 0 | K18: 0 | L18: 0 | M18: 0 | O18: Mean number of non-missing | R18: =SUM(U6:U33)/10 -> 24.2 | S18: =SUM(V6:V33)/10 -> 23 | U18: 10 | V18: 10
A19: 14 | B19: 1 | C19: 0 | D19: 0 | E19: 0 | L19: 0 | M19: 1 | U19: 4 | V19: 0
A20: 15 | B20: 0 | C20: 0 | D20: 0 | E20: 0 | L20: 0 | M20: 1 | O20: By choices: | U20: 4 | V20: 0
A21: 16 | B21: 1 | C21: 0 | D21: 0 | E21: 0 | L21: 0 | M21: 1 | O21: Shelter not available | R21: =R6/R$16 -> 0.2458432304 | S21: =S6/S$16 -> 0.231884058 | U21: 4 | V21: 0
A22: 17 | B22: 0 | C22: 1 | D22: 1 | E22: 0 | F22: 0 | G22: 0 | H22: 0 | I22: 1 | J22: 0 | K22: 0 | L22: 0 | M22: 0 | O22: Overcrowded | R22: =R7/R$16 -> 0.09560570071 | S22: 0.1014492754 | U22: 10 | V22: 10
A23: 18 | B23: 1 | C23: 0 | D23: 1 | E23: 0 | F23: 0 | G23: 0 | H23: 0 | I23: 0 | J23: 0 | K23: 0 | L23: 0 | M23: 0 | O23: Return home impossible | R23: =R8/R$16 -> 0.2458432304 | S23: 0.2608695652 | U23: 10 | V23: 10
A24: 19 | B24: 0 | C24: 0 | D24: 1 | E24: 1 | F24: 0 | G24: 0 | H24: 0 | I24: 0 | J24: 0 | K24: 0 | L24: 0 | M24: 0 | O24: No repair materials | R24: =R9/R$16 -> 0.1502375297 | S24: 0.1594202899 | U24: 10 | V24: 10
A25: 20 | B25: 0 | C25: 0 | D25: 1 | E25: 1 | F25: 0 | G25: 0 | H25: 1 | I25: 0 | J25: 0 | K25: 0 | L25: 0 | M25: 0 | O25: No manpower for repairs | R25: =R10/R$16 -> 0.01543942993 | S25: 0.01449275362 | U25: 10 | V25: 10
A26: 21 | B26: 0 | C26: 0 | D26: 1 | E26: 1 | F26: 0 | G26: 0 | H26: 1 | I26: 0 | J26: 0 | K26: 0 | L26: 0 | M26: 0 | O26: Land issues for men | R26: =R11/R$16 -> 0.01543942993 | S26: 0.01449275362 | U26: 10 | V26: 10
A27: 22 | B27: 1 | C27: 0 | D27: 0 | E27: 1 | F27: 0 | G27: 0 | H27: 1 | I27: 0 | J27: 0 | K27: 0 | L27: 0 | M27: 0 | O27: Lack of household items | R27: =R12/R$16 -> 0.06175771971 | S27: 0.05797101449 | U27: 10 | V27: 10
A28: 23 | B28: 1 | C28: 0 | D28: 1 | E28: 0 | F28: 0 | G28: 0 | H28: 0 | I28: 0 | J28: 0 | K28: 0 | L28: 0 | M28: 0 | O28: Lack of privacy | R28: =R13/R$16 -> 0.06175771971 | S28: 0.05797101449 | U28: 10 | V28: 10
A29: 24 | L29: 1 | M29: 1 | O29: Exposed to weather | R29: =R14/R$16 -> 0.03087885986 | S29: 0.02898550725 | U29: 0 | V29: 0
A30: 25 | L30: 1 | M30: 1 | O30: Other | R30: =R15/R$16 -> 0.07719714964 | S30: 0.07246376812 | U30: 0 | V30: 0
A31: 26 | B31: 1 | C31: 0 | D31: 1 | E31: 1 | F31: 1 | G31: 1 | H31: 0 | I31: 0 | J31: 0 | K31: 0 | L31: 0 | M31: 0 | O31: Total | R31: =SUM(R21:R30) -> 1 | S31: =SUM(S21:S30) -> 1 | U31: 10 | V31: 10
A32: 27 | B32: 1 | C32: 1 | D32: 1 | E32: 0 | F32: 0 | G32: 0 | H32: 0 | I32: 0 | J32: 0 | K32: 0 | L32: 0 | M32: 0 | U32: 10 | V32: 10
A33: 28 | B33: 1 | C33: 1 | D33: 1 | E33: 0 | F33: 0 | G33: 0 | H33: 0 | I33: 0 | J33: 0 | K33: 0 | L33: 0 | M33: 0 | U33: 10 | V33: 10

Sheet Text01_Polytomous
A1: Multiple-choice data: Initial entry as text, by order of recorded response
A2: The data type here is multiple-choice without preference or priority. It is a small segment from the Bangladesh data.
B3: Initial data entry: | G3: Transformed to indicator variables:
B5: Strictly standardized response categories: | G5: Working with exact search strings:
A6: RecordNo | B6: Multiple response data: Shelter issues for men | G6: Multiple response data: Indicator form
B7: Recorded 1st | C7: Recorded 2nd | D7: Recorded 3rd | E7: Recorded 4th | G7: Not available | H7: Overcrowded | I7: Return home impossible | J7: No repair materials
A8: recno | B8: ShelterMen1 | C8: ShelterMen2 | D8: ShelterMen3 | E8: ShelterMen4 | G8: m_07_01 | H8: m_07_02 | I8: m_07_03 | J8: m_07_04 | K8: [For convenience only:] Short name of variable in data table to which this indicator variable corresponds.
A9: 1 | B9: Overcrowded | C9: Not available | G9: =IF(ISERROR(MATCH(G$7,$B9:$E9,0))=FALSE,1,0) -> 1 | H9: =IF(ISERROR(MATCH(H$7,$B9:$E9,0))=FALSE,1,0) -> 1 | I9: 0 | J9: 0
A10: 2 | B10: Return home impossible | C10: Not available | G10: =IF(ISERROR(MATCH(G$7,$B10:$E10,0))=FALSE,1,0) -> 1 | H10: 0 | I10: 1 | J10: 0
A11: 3 | B11: Return home impossible | C11: Not available | G11: 1 | H11: 0 | I11: 1 | J11: 0
A12: 4 | B12: Not available | C12: Overcrowded | D12: Return home impossible | G12: 1 | H12: 1 | I12: 1 | J12: 0
A13: 5 | B13: No repair materials | C13: Overcrowded | D13: Not available | G13: 1 | H13: 1 | I13: 0 | J13: 1
G15: Formulas for the exact string in row 7:
G16: =IF(ISERROR(MATCH(R7C,RC2:RC5,0))=FALSE,1,0)
A20: Categories with spelling variants, or free text, but with key semantic components. | G20: Working with approximate search strings:
A21: RecordNo | B21: Multiple response data: Shelter issues for men | G21: Multiple response data: Indicator form
B22: Recorded 1st | C22: Recorded 2nd | D22: Recorded 3rd | E22: Recorded 4th | G22: avail | H22: over | I22: home | J22: repair
A23: recno | B23: ShelterMen1 | C23: ShelterMen2 | D23: ShelterMen3 | E23: ShelterMen4 | G23: m_07_01 | H23: m_07_02 | I23: m_07_03 | J23: m_07_04 | K23: [For convenience only:] Short name of variable in data table to which this indicator variable corresponds.
A24: 1 | B24: Overcrowded | C24: Unavailable | G24: =IF(ISERROR(MATCH("*"&G$22&"*",$B24:$D24,0))=FALSE,1,0) -> 1 | H24: =IF(ISERROR(MATCH("*"&H$22&"*",$B24:$D24,0))=FALSE,1,0) -> 1 | I24: 0 | J24: 0
A25: 2 | B25: Return home not possible | C25: Not available | G25: =IF(ISERROR(MATCH("*"&G$22&"*",$B25:$D25,0))=FALSE,1,0) -> 1 | H25: 0 | I25: 1 | J25: 0
A26: 3 | B26: Return home impossible | C26: Not available | G26: 1 | H26: 0 | I26: 1 | J26: 0
A27: 4 | B27: Not available | C27: Oversold | D27: We cannot go home. | G27: 1 | H27: 1 | I27: 1 | J27: 0
A28: 5 | B28: No repair materials | C28: Overcrowded | D28: Not available | G28: 1 | H28: 1 | I28: 0 | J28: 1
G30: Formulas for the partial string in row 22:
G31: =IF(ISERROR(MATCH("*"&R22C&"*",RC2:RC4,0))=FALSE,1,0)
A32: When some response categories were entered in variants, but with some common substring, a formula flagging substrings can be helpful.
A34: How do the formulas work? Example: 2nd case (recno=2): This family cannot go home.
A35: We reconstruct them from the inside:
B36: Exact string | I36: See formulas in these cells:
B37: Return home impossible | C37: =MATCH(R7C,RC2:RC5,0) | I37: =MATCH(I$7,$B37:$E37,0) -> 1
B38: Return home impossible | C38: =ISERROR(MATCH(R7C,RC2:RC5,0)) | I38: =ISERROR(MATCH(I$7,$B38:$E38,0)) -> FALSE
B39: Return home impossible | C39: =IF(ISERROR(MATCH(R7C,RC2:RC5,0))=FALSE,1,0) | I39: =IF(ISERROR(MATCH(I$7,$B39:$E39,0))=FALSE,1,0) -> 1
B41: Substring = "home"
B42: Return home not possible | C42: =MATCH("*"&R22C&"*",RC2:RC4,0) | I42: =MATCH("*"&I$22&"*",$B42:$D42,0) -> 1
B43: Return home not possible | C43: =ISERROR(MATCH("*"&R22C&"*",RC2:RC4,0)) | I43: =ISERROR(MATCH("*"&I$22&"*",$B43:$D43,0)) -> FALSE
B44: Return home not possible | C44: =IF(ISERROR(MATCH("*"&R22C&"*",RC2:RC4,0))=FALSE,1,0) | I44: =IF(ISERROR(MATCH("*"&I$22&"*",$B44:$D44,0))=FALSE,1,0) -> 1
B46: Note: | C46: In "*"&R22C&"*", & is the concatenation operator; *, within inverted commas, is a placeholder for any or no string.
C47: The same formula type, as in R44, is helpful to extract indicator variables from free-text cells, such as used to record "Other:" options.

Sheet Text02_Priorities
A1: Priority-type data: Initial entry as text, by priority
A2: The data type here is multiple-choice with priorities (up to 3). It is a small segment from the Bangladesh data; some cell contents were changed for demonstration purposes.
B3: Initial data entry: | G3: Transformed to item-based variables:
B5: Strictly standardized response categories: | G5: Working with exact search strings:
A6: RecordNo | B6: Priority-type data: Shelter priorities for men | G6: Priority-type data: Code 1st as 3, 2nd as 2, 3rd as 1
B7: 1st (= highest) priority | C7: 2nd priority | D7: 3rd priority | E7: Comment | G7: Find shelter | H7: Move out of shelter | I7: Return home | J7: Material for home repair
A8: recno | B8: ShelterMen1 | C8: ShelterMen2 | D8: ShelterMen3 | G8: m_08_01 | H8: m_08_02 | I8: m_08_03 | J8: m_08_04 | K8: [For convenience only:] Short name of variable in data table to which this priority variable corresponds.
A9: 1 | B9: Return home | C9: Material for home repair | D9: Find shelter | G9: =IF(COUNTBLANK($B9:$D9)=3,"",IF(ISERROR(MATCH(G$7,$B9:$D9,0))=FALSE,4-MATCH(G$7,$B9:$D9,0),0)) -> 1 | H9: =IF(COUNTBLANK($B9:$D9)=3,"",IF(ISERROR(MATCH(H$7,$B9:$D9,0))=FALSE,4-MATCH(H$7,$B9:$D9,0),0)) -> 0 | I9: 3 | J9: 2
A10: 2 | E10: Did not prioritize any option | G10: =IF(COUNTBLANK($B10:$D10)=3,"",IF(ISERROR(MATCH(G$7,$B10:$D10,0))=FALSE,4-MATCH(G$7,$B10:$D10,0),0)) -> 
A11: 3 | B11: Find shelter | C11: Material for home repair | D11: Return home | G11: 3 | H11: 0 | I11: 1 | J11: 2
A12: 4 | B12: Find shelter | C12: Return home | D12: Material for home repair | G12: 3 | H12: 0 | I12: 2 | J12: 1
A13: 5 | B13: Find shelter | C13: Material for home repair | E13: Only 2 priorities | G13: 3 | H13: 0 | I13: 0 | J13: 2
G15: Formulas for the exact string in row 7:
G16: =IF(COUNTBLANK(RC2:RC4)=3,"",IF(ISERROR(MATCH(R7C,RC2:RC4,0))=FALSE,4-MATCH(R7C,RC2:RC4,0),0))
A20: Categories with spelling variants, or free text, but with key semantic components. | G20: Working with approximate search strings:
A21: RecordNo | B21: Priority-type data: Shelter priorities for men | G21: Priority-type data: Code 1st as 3, 2nd as 2, 3rd as 1
B22: 1st (= highest) priority | C22: 2nd priority | D22: 3rd priority | E22: Comment | G22: find | H22: move out | I22: home | J22: repair
A23: recno | B23: ShelterMen1 | C23: ShelterMen2 | D23: ShelterMen3 | G23: m_08_01 | H23: m_08_02 | I23: m_08_03 | J23: m_08_04 | K23: [For convenience only:] Short name of variable in data table to which this priority variable corresponds.
A24: 1 | B24: Wants to go home. | C24: Material for home repair | D24: Find shelter | G24: =IF(COUNTBLANK($B24:$D24)=3,"",IF(ISERROR(MATCH("*"&G$22&"*",$B24:$D24,0))=FALSE,4-MATCH("*"&G$22&"*",$B24:$D24,0),0)) -> 1 | H24: 0 | I24: 3 | J24: 2
A25: 2 | E25: Did not prioritize
A26: 3 | B26: Find shelter | C26: Material for home repair | D26: Return home | G26: 3 | H26: 0 | I26: 2 | J26: 2
A27: 4 | B27: Find my family shelter | C27: Return home | D27: Home repair | G27: 3 | H27: 0 | I27: 2 | J27: 1
A28: 5 | B28: Find shelter | C28: Materials for home repair | E28: Only 2 priorities | G28: 3 | H28: 0 | I28: 2 | J28: 2
G30: Formulas for the partial string in row 22:
G31: =IF(COUNTBLANK(RC2:RC4)=3,"",IF(ISERROR(MATCH("*"&R22C&"*",RC2:RC4,0))=FALSE,4-MATCH("*"&R22C&"*",RC2:RC4,0),0))
A32: When some response categories were entered in variants, but with some common substring, a formula flagging substrings can be helpful.
A34: How do the formulas work? Example: 1st case (recno=1): For this family, the highest priority is to return home.
A35: We reconstruct them from the inside:
B36: Exact string | I36: See formulas in these cells:
B37: Return home | C37: =MATCH(R7C,RC2:RC4,0) | I37: =MATCH(I$7,$B37:$D37,0) -> 1
B38: Return home | C38: =ISERROR(MATCH(R7C,RC2:RC4,0)) | I38: =ISERROR(MATCH(I$7,$B38:$D38,0)) -> FALSE
B39: Return home | C39: =IF(ISERROR(MATCH(R7C,RC2:RC4,0))=FALSE,4-MATCH(R7C,RC2:RC4,0),0) | I39: =IF(ISERROR(MATCH(I$7,$B39:$D39,0))=FALSE,4-MATCH(I$7,$B39:$D39,0),0) -> 3
B40: Return home | C40: =IF(COUNTBLANK(RC2:RC4)=3,"",IF(ISERROR(MATCH(R7C,RC2:RC4,0))=FALSE,4-MATCH(R7C,RC2:RC4,0),0)) | I40: =IF(COUNTBLANK($B40:$D40)=3,"",IF(ISERROR(MATCH(I$7,$B40:$D40,0))=FALSE,4-MATCH(I$7,$B40:$D40,0),0)) -> 3
B42: Substring = "home"
B43: Wants to go home. | C43: =MATCH("*"&R22C&"*",RC2:RC4,0) | I43: =MATCH("*"&I$22&"*",$B43:$D43,0) -> 1
B44: Wants to go home. | C44: =ISERROR(MATCH("*"&R22C&"*",RC2:RC4,0)) | I44: =ISERROR(MATCH("*"&I$22&"*",$B44:$D44,0)) -> FALSE
B45: Wants to go home. | C45: =IF(ISERROR(MATCH("*"&R22C&"*",RC2:RC4,0))=FALSE,4-MATCH("*"&R22C&"*",RC2:RC4,0),0) | I45: =IF(ISERROR(MATCH("*"&I$22&"*",$B45:$D45,0))=FALSE,4-MATCH("*"&I$22&"*",$B45:$D45,0),0) -> 3
B46: Wants to go home. | C46: =IF(COUNTBLANK(RC2:RC4)=3,"",IF(ISERROR(MATCH("*"&R22C&"*",RC2:RC4,0))=FALSE,4-MATCH("*"&R22C&"*",RC2:RC4,0),0)) | I46: =IF(COUNTBLANK($B46:$D46)=3,"",IF(ISERROR(MATCH("*"&I$22&"*",$B46:$D46,0))=FALSE,4-MATCH("*"&I$22&"*",$B46:$D46,0),0)) -> 3

Sheet Analyses02_QuickOverview
A1: Quick overview, by area and group (= current living arrangement)
A3: By subdistrict: | J3: Full listing of sites
A4: Data field shows maximum vulnerability level in sub-group
A5: [Vulnerability was numerically recoded, see column 120 in the data sheet] | J5: District - Sub-district - Union - Village - site number
A6: Max of t_14_00_code | C6: t_00_10 | J6: Max of t_14_00_code | O6: t_00_10
A7: District | B7: Upazila (Sub-district) | C7: 1-Collective centers | D7: 2-Roadside / embankments | E7: 3-Marooned | F7: 4-Damaged or water-logged | G7: 5-Home undamaged | H7: Grand Total | J7: District | K7: Upazila | L7: Union | M7: Village | N7: Site number | O7: 1-Collective centers | P7: 2-Roadside / embankments | Q7: 3-Marooned | R7: 4-Damaged or water-logged | S7: 5-Home undamaged
A8: Jessore | B8: Abhynagar | E8: 3 | F8: 2 | H8: 3 | J8: Jessore | K8: Abhynagar | L8: Paira | M8: Ghoradari | N8: 1 | R8: 2
B9: Jhikargacha | C9: 3 | D9: 3 | E9: 3 | F9: 3 | G9: 3 | H9: 3 | L9: Siddiqpasa | M9: Joyrabad | N9: 2 | Q9: 2
B10: Keshabpur | C10: 3 | D10: 3 | E10: 3 | F10: 3 | G10: 2 | H10: 3 | M10: Nolamara | N10: 3 | R10: 2
B11: Monirampur | D11: 2 | E11: 3 | F11: 3 | H11: 3 | L11: Suvoyara | M11: Hindia | N11: 5 | R11: 2
A12: Kulna | B12: Paikgacha | D12: 3 | E12: 2 | G12: 1 | H12: 3 | M12: IsamotiPurbapasa | N12: 4 | Q12: 3
A13: Shatkira | B13: Assasuni | C13: 4 | D13: 2 | E13: 4 | F13: 3 | G13: 2 | H13: 4 | K13: Jhikargacha | L13: Bakra | M13: Dikdana | N13: 6 | P13: 3
B14: Debhata | C14: 4 | D14: 3 | E14: 1 | F14: 4 | G14: 1 | H14: 4 | N14: 7 | Q14: 1
B15: Kalaroa | C15: 3 | D15: 2 | E15: 2 | F15: 1 | G15: 1 | H15: 3 | L15: Nibeshkhola | M15: Balla (Beside River) | N15: 8 | S15: 3
B16: Shaktira_Sadar | C16: 4 | D16: 4 | E16: 4 | F16: 4 | G16: 4 | H16: 4 | L16: Ponisara | M16: Purandapur (Purba Para) | N16: 9 | S16: 3
B17: Tala | C17: 4 | D17: 4 | E17: 3 | F17: 4 | G17: 2 | H17: 4 | L17: Pourashara | M17: Parbazar | N17: 10 | O17: 3
A18: Grand Total | C18: 4 | D18: 4 | E18: 4 | F18: 4 | G18: 4 | H18: 4 | M18: Saddampara | N18: 11 | Q18: 3
M19: Shanti Bagar | N19: 12 | R19: 3
A20: Color added by conditional formatting. | K20: Keshabpur | L20: Biddyanandakati | M20: Nehanpur | N20: 13 | O20: 3
C21: Legend: | L21: Keshabpur Sadar | M21: Basdanga | N21: 14 | S21: 2
C22: 1 | D22: 1-Relatively normal | L22: Mojidpur | M22: Protappur | N22: 15 | S22: 2
C23: 2 | D23: 2-Vulnerable | L23: Pazia | M23: Bagdanga | N23: 16 | S23: 2
C24: 3 | D24: 3-Seriously vulnerable | L24: Sagardari | M24: Sagardari | N24: 17 | P24: 3
C25: 4 | D25: 4-Extremely vulnerable | L25: Shuflakati | M25: Krishnagar | N25: 19 | R25: 3
M26: Poschim Sarutia | N26: 18 | Q26: 3
A27: Technical note: | K27: Monirampur | L27: Durbadunga | M27: Ashanigar | N27: 20 | Q27: 3
A28: When we copy-paste a Pivot table, the copy remembers the named database range | L28: Jhapa | M28: 2no Ward | N28: 21 | R28: 3
A29: on which it is based from the definition used for the orginal. | M29: Jhapa | N29: 22 | R29: 3
A30: When we add calculated variables to the data table and update the definition | L30: Moshimnagar | M30: Horotpur | N30: 23 | P30: 2
A31: of "Database", the wizard of the copy Pivot will not show the new variables. | M31: Varatpur | N31: 24 | Q31: 2
A32: The problem can be solved in two ways: | J32: Kulna | K32: Paikgacha | L32: Horidhal | M32: Horidaskathi | N32: 25 | P32: 3
A33: 1. Use "Database" as updated, but build the Pivot table from scratch (i.e. do not copy-paste). | M33: Noakathi | N33: 26 | P33: 3
A34: 2. Use a copied Pivot table, but change in Pivot table tools - Data - Data source | L34: Horikhali | M34: ChandKhali 9No Katabunia | N34: 27 | P34: 3
A35: the source range. First name the updated Database range by yet another name, then | L35: Kopilmoni | M35: Kasimnagar | N35: 28 | Q35: 2
A36: pass this name as the data source. In the above example, after extending "Database" | M36: Kazimusa | N36: 29 | S36: 1
A37: to include column 120, we gave it the name "DatabaseCol120". | J37: Shatkira | K37: Assasuni | L37: Budhata | M37: Behula | N37: 30 | S37: 2
L38: Dargapur | M38: Sonai & Tokipur | N38: 31 | R38: 3
A39: At the beginning of the analysis, it is not known how many calculated variables | L39: Kadakhati | M39: Kadakati | N39: 32 | O39: 4
A40: will have to be added. This updating procedure may thus have to be repeated. | N40: 33 | Q40: 4
L41: Kulia | M41: Kochua | N41: 34 | R41: 2
L42: Shobnali | M42: Bodortola | N42: 36 | Q42: 4
M43: Katakhali | N43: 35 | P43: 2
K44: Debhata | L44: Kulia | M44: Gobrakhali | N44: 37 | O44: 4
L45: Nowapara | M45: Chachura hati | N45: 39 | S45: 1
M46: Kaminiboshu | N46: 38 | Q46: 1
L47: Parulia | M47: Polgoda | N47: 40 | P47: 3
M48: Soto Shatha | N48: 41 | R48: 4
K49: Kalaroa | L49: Deara | M49: Deara Dakhil Madrasha | N49: 42 | O49: 3
M50: Deara Matpara | N50: 43 | P50: 2
L51: Joynagar | M51: Dokkhin Khetropara | N51: 44 | Q51: 2
M52: Manik Nagar | N52: 45 | S52: 1
L53: Pouroshava | M53: Gopinathpur Poschim para | N53: 46 | R53: 1
K54: Shaktira_Sadar | L54: Bolli | M54: Rajjabari bad, Mukudpur vill | N54: 47 | P54: 4
L55: Brahamorajpur | M55: Machkhola | N55: 48 | R55: 4
L56: Fringi | M56: Gobordari | N56: 49 | S56: 4
L57: Labsa | M57: Soninathpur, Binerputa | N57: 50 | Q57: 4
L58: Municipality | M58: 6 No Ward | N58: 51 | O58: 4
N59: 52 | P59: 4
K60: Tala | L60: Islam Kati | M60: Narayanpur/ Bhanipur | N60: 53 | P60: 4
L61: Khalilinagar | M61: Nagarghata | N61: 54 | P61: 4
L62: Kholishakhali | M62: Dolua College | N62: 55 | O62: 4
L63: Kumira | M63: Raripara | N63: 56 | Q63: 2
L64: Magura | M64: Parmadra | N64: 57 | R64: 4
L65: Nagarghata | M65: Nagarghata | N65: 58 | S65: 2
L66: Sarulia | M66: Boro Kasipur | N66: 60 | Q66: 3
M67: Kasipur | N67: 59 | O67: 3
L68: Tala Sadar | M68: Kismotghona | N68: 62 | S68: 2
M69: Monipur/ Shahpur | N69: 61 | P69: 4
L70: Tentulia | M70: Hatbas, Modonpur, Lakkhanpur | N70: 63 | P70: 4

Sheet Analyses02_PrioritiesByVulnerab
A1: Mean Borda count for priority needs, by severity level | C1: 1-Relatively normal | D1: 2-Vulnerable | E1: 3-Seriously vulnerable | F1: 4-Extremely vulnerable | H1: All sites
A2: Sites | C2: =COUNTIF(t_14_00,C$1) -> 6 | D2: =COUNTIF(t_14_00,D$1) -> 18 | E2: =COUNTIF(t_14_00,E$1) -> 22 | F2: =COUNTIF(t_14_00,F$1) -> 17 | H2: =SUM(C2:G2) -> 63
A3: Group interviews with men | J3: Function used in columns 3 - 6:
A4: Priority for men: Livelihoods | B4: m_03_01 | C4: =AVERAGEIF(t_14_00,C$1,INDIRECT($B4)) -> 1.333333333 | D4: 1.666666667 | E4: 1.5 | F4: 0.9411764706 | H4: =AVERAGE(INDIRECT($B4)) -> 1.380952381 | J4: =AVERAGEIF(t_14_00,R1C,INDIRECT(RC2))
A5: Priority for men: Livestock feed | B5: m_03_02 | C5: 0.3333333333 | D5: 0.3333333333 | E5: 0.09090909091 | F5: 0 | H5: =AVERAGE(INDIRECT($B5)) -> 0.1587301587 | J5: See Help function for AVERAGEIF
A6: Priority for men: Rebuild homes | B6: m_03_03 | C6: 0.3333333333 | D6: 0.5555555556 | E6: 0.5 | F6: 1.882352941 | H6: 0.873015873 | J6: Note: t_14_00 is the field name for the assessment teams' severity ratings.
A7: Priority for men: Children's schooling | B7: m_03_04 | C7: 0 | D7: 0 | E7: 0 | F7: 0.05882352941 | H7: 0.01587301587
A8: Priority for men: Health care | B8: m_03_05 | C8: 0.6666666667 | D8: 0.2777777778 | E8: 0.4545454545 | F8: 0 | H8: 0.3015873016 | J8: Function used in column 8:
A9: Priority for men: Food | B9: m_03_06 | C9: 2.5 | D9: 1.722222222 | E9: 2.454545455 | F9: 2.411764706 | H9: 2.238095238 | J9: =AVERAGE(INDIRECT(RC2))
A10: Priority for men: Safe drinking water | B10: m_03_07 | C10: 0.3333333333 | D10: 0.3333333333 | E10: 0.5 | F10: 0 | H10: 0.3015873016
A11: Priority for men: Water for wash and bath | B11: m_03_08 | C11: 0 | D11: 0 | E11: 0 | F11: 0 | H11: 0
A12: Priority for men: Markets | B12: m_03_09 | C12: 0 | D12: 0 | E12: 0 | F12: 0 | H12: 0
A13: Priority for men: Short-term financial support | B13: m_03_10 | C13: 0 | D13: 0.3888888889 | E13: 0.2727272727 | F13: 0.3529411765 | H13: 0.3015873016
A14: Priority for men: Safety | B14: m_03_11 | C14: 0 | D14: 0.1111111111 | E14: 0.09090909091 | F14: 0.1764705882 | H14: 0.1111111111
A15: Priority for men: Other | B15: m_03_12 | C15: 0.3333333333 | D15: 0.4444444444 | E15: 0.1363636364 | F15: 0 | H15: 0.2063492063
A16: Group interviews with women
A17: Priority for women: Livelihoods | B17: w_03_01 | C17: =AVERAGEIF(t_14_00,C$1,INDIRECT($B17)) -> 0.6666666667 | D17: 1.388888889 | E17: 0.4090909091 | F17: 0.05882352941 | H17: 0.619047619
A18: Priority for women: Livestock feed | B18: w_03_02 | C18: 0.5 | D18: 0.1666666667 | E18: 0.1363636364 | F18: 0.1176470588 | H18: 0.1746031746
A19: Priority for women: Rebuild homes | B19: w_03_03 | C19: 1.333333333 | D19: 0.5 | E19: 0.8181818182 | F19: 1.588235294 | H19: 0.9841269841
A20: Priority for women: Children's schooling | B20: w_03_04 | C20: 0 | D20: 0.1111111111 | E20: 0 | F20: 0.05882352941 | H20: 0.04761904762
A21: Priority for women: Health care | B21: w_03_05 | C21: 0.1666666667 | D21: 0.2222222222 | E21: 0.3181818182 | F21: 0.5294117647 | H21: 0.3333333333
A22: Priority for women: Food | B22: w_03_06 | C22: 2.5 | D22: 2.166666667 | E22: 2.409090909 | F22: 2.235294118 | H22: 2.301587302
A23: Priority for women: Safe drinking water | B23: w_03_07 | C23: 0.5 | D23: 0.3888888889 | E23: 0.7272727273 | F23: 1 | H23: 0.6825396825
A24: Priority for women: Water for wash and bath | B24: w_03_08 | C24: 0 | D24: 0.1111111111 | E24: 0 | F24: 0.1764705882 | H24: 0.07936507937
A25: Priority for women: Markets | B25: w_03_09 | C25: 0 | D25: 0.1111111111 | E25: 0.1363636364 | F25: 0 | H25: 0.07936507937
A26: Priority for women: Short-term financial support | B26: w_03_10 | C26: 0.5 | D26: 0.6666666667 | E26: 0.5 | F26: 0 | H26: 0.4126984127
A27: Priority for women: Safety | B27: w_03_11 | C27: 0 | D27: 0.05555555556 | E27: 0 | F27: 0.05882352941 | H27: 0.03174603175
A28: Priority for women: Other | B28: w_03_12 | C28: 0 | D28: 0.1666666667 | E28: 0.2727272727 | F28: 0.1764705882 | H28: 0.1904761905

Sheet Analysis02_DistressIndex
A1: Distress index
A2: We form a naïve distress index from binary indicators. | G2: Scroll right, then down
A3: The intent is to have a vulnerability measure derived from key informant data, as different from the teams' assessments.
A4: For consistency (and availability), we use information gathered from women's groups only.
B6: Domain | C6: Indicator | D6: Based on variable | E6: Short name | F6: Column in data table | G6: Transformation formula | I6: Distress index
I7: Index value | J7: Sites with this value
B8: Survival | I8: 0 | J8: =COUNTIF(dw_distress,I8) -> 0
C9: Food is the highest priority. | D9: w_03_06 | E9: dw_03_06 | F9: 121 | G9: =IF(R[-45]C =3,1,0) | I9: 1 | J9: 0
C10: Livelihoods is the highest priority. | D10: w_03_01 | E10: dw_03_01 | F10: 122 | G10: =IF(R[-51]C =3,1,0) | I10: 2 | J10: 1
B11: Health | I11: 3 | J11: 4
C12: Lack of safe water serious. | D12: w_06_00 | E12: dw_06_00 | F12: 123 | G12: =R[-39]C | I12: 4 | J12: 5
C13: Diarrhea has increased. | D13: w_26_00 | E13: dw_26_00 | F13: 124 | G13: =R[-15]C | I13: 5 | J13: 10
B14: Safety | I14: 6 | J14: 18
C15: Lack of safe toilets | D15: w_10_00 | E15: dw_10_00 | F15: 125 | G15: =R[-39]C | I15: 7 | J15: 13
C16: Women face safety issues. | D16: w_28_01 | E16: dw_28_01 | F16: 126 | G16: =R[-16]C | I16: 8 | J16: 9
B17: Children | I17: 9 | J17: 3
C18: School attendance is low. | D18: w_18_02 | E18: dw_18_02 | F18: 127 | G18: =1 - R[-27]C | I18: 10 | J18: 0
C19: Significant child labor. | D19: w_29_00 | E19: dw_29_00 | F19: 128 | G19: =R[-17]C | I19: Mean: | J19: =AVERAGE(dw_distress) -> 6.063492063
B20: Services
C21: No electricity | D21: w_04_02 | E21: dw_04_02 | F21: 129 | G21: =1-R[-46]C
C22: Health care facility more than 60 minutes' travel | D22: w_24_02 | E22: dw_24_02 | F22: 130 | G22: =IF(OR(LEFT(R[-28]C,1) ="d",LEFT(R[-28]C,1) ="e", LEFT(R[-28]C,1) ="f"),1,0)
B24: Index
E25: dw_distress | F25: 131 | G25: =SUM(R[-10]C:R[-1]C)
I26: Validation of team assessments: | R26: Distress levels, by area and living arrangement:
I27: Count of i_00_01 | J27: t_14_00 | R27: Average of dw_distress | T27: t_00_10
I28: dw_distress2 | J28: 1-Relatively normal | K28: 2-Vulnerable | L28: 3-Seriously vulnerable | M28: 4-Extremely vulnerable | N28: Grand Total | R28: District | S28: Upazila (Sub-district) | T28: 1-Collective centers | U28: 2-Roadside / embankments | V28: 3-Marooned | W28: 4-Damaged or water-logged | X28: 5-Home undamaged | Y28: Grand Total
I29: 2-4 | J29: 3 | K29: 3 | L29: 4 | M29: 0 | N29: 10 | R29: Jessore | S29: Abhynagar | V29: 4 | W29: 5 | Y29: 4.6
I30: 5-6 | J30: 2 | K30: 11 | L30: 7 | M30: 8 | N30: 28 | S30: Jhikargacha | T30: 6 | U30: 4 | V30: 6 | W30: 7 | X30: 5 | Y30: 5.571428571
I31: 7-9 | J31: 1 | K31: 4 | L31: 11 | M31: 9 | N31: 25 | S31: Keshabpur | T31: 7 | U31: 8 | V31: 5 | W31: 6 | X31: 5.333333333 | Y31: 6
I32: Grand Total | J32: 6 | K32: 18 | L32: 22 | M32: 17 | N32: 63 | S32: Monirampur | U32: 7 | V32: 7.5 | W32: 6 | Y32: 6.8
R33: Kulna | S33: Paikgacha | U33: 8 | V33: 6 | X33: 5 | Y33: 7
I34: Pearson collelation coefficient: | L34: =CORREL(dw_distress,t_14_00_code) -> 0.3694837319 | R34: Shatkira | S34: Assasuni | T34: 6 | U34: 6 | V34: 7.5 | W34: 7.5 | X34: 3 | Y34: 6.428571429
S35: Debhata | T35: 6 | U35: 4 | V35: 3 | W35: 6 | X35: 4 | Y35: 4.6
S36: Kalaroa | T36: 7 | U36: 6 | V36: 6 | W36: 6 | X36: 3 | Y36: 5.6
S37: Shaktira_Sadar | T37: 6 | U37: 7 | V37: 6 | W37: 5 | X37: 7 | Y37: 6.333333333
S38: Tala | T38: 6.5 | U38: 7.75 | V38: 7 | W38: 8 | X38: 4.5 | Y38: 6.818181818
R39: Grand Total | T39: 6.375 | U39: 6.933333333 | V39: 6 | W39: 6.153846154 | X39: 4.75 | Y39: 6.063492063
R41: Note: Distress index treated as ratio-level variable.

Sheet Analysis02_Men_Women
A1: Example agreement on priorities between men and women of the same sites.
A2: Pivot tables with conditional formatting. "3" is the highest priority. If "0", the option was not mentioned in the three priority choices.
A3: Men's response appears in the rows, women's in the columns.
A5: Livelihoods: | J5: Comparison of means for all items:
A6: Sites assessed | B6: w_03_01 | J6: Priorities | K6: Mean Borda count
A7: m_03_01 | B7: 0 | C7: 1 | D7: 2 | E7: 3 | F7: Grand Total | K7: Men | L7: Women
A8: 0 | B8: 15 | C8: 1 | D8: 0 | E8: 1 | F8: 17 | J8: Livelihoods | K8: 1.380952381 | L8: 0.619047619
A9: 1 | B9: 13 | C9: 3 | D9: 1 | E9: 0 | F9: 17 | J9: Rebuild homes | K9: 0.873015873 | L9: 0.9841269841
A10: 2 | B10: 9 | C10: 4 | D10: 3 | E10: 1 | F10: 17 | J10: Food | K10: 2.238095238 | L10: 2.301587302
A11: 3 | B11: 4 | C11: 3 | D11: 1 | E11: 4 | F11: 12 | J11: Safe drinking water | K11: 0.3015873016 | L11: 0.6825396825
A12: Grand Total | B12: 41 | C12: 11 | D12: 5 | E12: 6 | F12: 63 | J12: Short-term financial support | K12: 0.3015873016 | L12: 0.4126984127
A15: Rebuild homes:
A16: Sites assessed | B16: w_03_03
A17: m_03_03 | B17: 0 | C17: 1 | D17: 2 | E17: 3 | F17: Grand Total
A18: 0 | B18: 24 | C18: 1 | D18: 9 | E18: 2 | F18: 36
A19: 1 | B19: 3 | C19: 1 | D19: 2 | E19: 1 | F19: 7
A20: 2 | B20: 6 | C20: 1 | D20: 4 | E20: 1 | F20: 12
A21: 3 | B21: 1 | C21: 1 | D21: 2 | E21: 4 | F21: 8
A22: Grand Total | B22: 34 | C22: 4 | D22: 17 | E22: 8 | F22: 63
A25: Food:
A26: Sites assessed | B26: w_03_06
A27: m_03_06 | B27: 0 | C27: 1 | D27: 2 | E27: 3 | F27: Grand Total
A28: 0 | B28: 3 | C28: 0 | D28: 1 | E28: 3 | F28: 7
A29: 1 | B29: 0 | C29: 0 | D29: 1 | E29: 5 | F29: 6
A30: 2 | B30: 0 | C30: 5 | D30: 4 | E30: 6 | F30: 15
A31: 3 | B31: 4 | C31: 0 | D31: 7 | E31: 24 | F31: 35
A32: Grand Total | B32: 7 | C32: 5 | D32: 13 | E32: 38 | F32: 63
A35: Safe drinking water:
A36: Sites assessed | B36: w_03_07
A37: m_03_07 | B37: 0 | C37: 1 | D37: 2 | E37: 3 | F37: Grand Total
A38: 0 | B38: 29 | C38: 11 | D38: 10 | E38: 1 | F38: 51
A39: 1 | B39: 3 | C39: 3 | D39: 0 | E39: 0 | F39: 6
A40: 2 | B40: 2 | C40: 1 | D40: 1 | E40: 1 | F40: 5
A41: 3 | B41: 1 | C41: 0 | D41: 0 | E41: 0 | F41: 1
A42: Grand Total | B42: 35 | C42: 15 | D42: 11 | E42: 2 | F42: 63
A45: Short-term financial support:
A46: Sites assessed | B46: w_03_10
A47: m_03_10 | B47: 0 | C47: 1 | D47: 2 | E47: 3 | F47: Grand Total
A48: 0 | B48: 41 | C48: 6 | D48: 3 | E48: 1 | F48: 51
A49: 1 | B49: 6 | C49: 0 | D49: 0 | E49: 1 | F49: 7
A50: 2 | B50: 1 | C50: 0 | D50: 1 | E50: 1 | F50: 3
A51: 3 | B51: 1 | C51: 0 | D51: 0 | E51: 1 | F51: 2
A52: Grand Total | B52: 49 | C52: 6 | D52: 4 | E52: 4 | F52: 63

Sheet NamedRanges
A1: Name | B1: RefersToLocal | C1: Cells
A2: Database | B2: =Analysis01_Data!R4C1:R67C131 | C2: 8384
A3: DatabaseCol120 | B3: =Analysis01_Data!R4C1:R67C120 | C3: 7680
A4: DatabaseCol131 | B4: =Analysis01_Data!R4C1:R67C131 | C4: 8384
A5: dw_03_01 | B5: =Analysis01_Data!R5C122:R67C122 | C5: 63
A6: dw_03_06 | B6: =Analysis01_Data!R5C121:R67C121 | C6: 63
A7: dw_04_02 | B7: =Analysis01_Data!R5C129:R67C129 | C7: 63
A8: dw_06_00 | B8: =Analysis01_Data!R5C123:R67C123 | C8: 63
A9: dw_10_00 | B9: =Analysis01_Data!R5C125:R67C125 | C9: 63
A10: dw_18_02 | B10: =Analysis01_Data!R5C127:R67C127 | C10: 63
A11: dw_24_02 | B11: =Analysis01_Data!R5C130:R67C130 | C11: 63
A12: dw_26_00 | B12: =Analysis01_Data!R5C124:R67C124 | C12: 63
A13: dw_28_01 | B13: =Analysis01_Data!R5C126:R67C126 | C13: 63
A14: dw_29_00 | B14: =Analysis01_Data!R5C128:R67C128 | C14: 63
A15: dw_distress | B15: =Analysis01_Data!R5C131:R67C131 | C15: 63
A16: i_00_01 | B16: =Analysis01_Data!R5C1:R67C1 | C16: 63
A17: i_00_03 | B17: =Analysis01_Data!R5C2:R67C2 | C17: 63
A18: i_00_04 | B18: =Analysis01_Data!R5C3:R67C3 | C18: 63
A19: i_00_05 | B19: =Analysis01_Data!R5C4:R67C4 | C19: 63
A20: i_00_06 | B20: =Analysis01_Data!R5C5:R67C5 | C20: 63
A21: i_00_07 | B21: =Analysis01_Data!R5C6:R67C6 | C21: 63
A22: i_00_08 | B22: =Analysis01_Data!R5C7:R67C7 | C22: 63
A23: i_00_09 | B23: =Analysis01_Data!R5C8:R67C8 | C23: 63
A24: ix_00_01 | B24: =Analysis01_MultipleR_IF!R6C1:R33C1 | C24: 28
A25: m_03_01 | B25: =Analysis01_Data!R5C20:R67C20 | C25: 63
A26: m_03_02 | B26: =Analysis01_Data!R5C21:R67C21 | C26: 63
A27: m_03_03 | B27: =Analysis01_Data!R5C22:R67C22 | C27: 63
A28: m_03_04 | B28: =Analysis01_Data!R5C23:R67C23 | C28: 63
A29: m_03_05 | B29: =Analysis01_Data!R5C24:R67C24 | C29: 63
A30: m_03_06 | B30: =Analysis01_Data!R5C25:R67C25 | C30: 63
A31: m_03_07 | B31: =Analysis01_Data!R5C26:R67C26 | C31: 63
A32: m_03_08 | B32: =Analysis01_Data!R5C27:R67C27 | C32: 63
A33: m_03_09 | B33: =Analysis01_Data!R5C28:R67C28 | C33: 63
A34: m_03_10 | B34: =Analysis01_Data!R5C29:R67C29 | C34: 63
A35: m_03_11 | B35: =Analysis01_Data!R5C30:R67C30 | C35: 63
A36: m_03_12 | B36: =Analysis01_Data!R5C31:R67C31 | C36: 63
A37: m_04_00 | B37: =Analysis01_Data!R5C32:R67C32 | C37: 63
A38: m_06_01 | B38: =Analysis01_Data!R5C33:R67C33 | C38: 63
A39: m_06_02 | B39: =Analysis01_Data!R5C34:R67C34 | C39: 63
A40: m_07_01 | B40: =Analysis01_Data!R5C35:R67C35 | C40: 63
A41: m_07_02 | B41: =Analysis01_Data!R5C36:R67C36 | C41: 63
A42: m_07_03 | B42: =Analysis01_Data!R5C37:R67C37 | C42: 63
A43: m_07_04 | B43: =Analysis01_Data!R5C38:R67C38 | C43: 63
A44: m_07_05 | B44: =Analysis01_Data!R5C39:R67C39 | C44: 63
A45: m_07_06 | B45: =Analysis01_Data!R5C40:R67C40 | C45: 63
A46: m_07_07 | B46: =Analysis01_Data!R5C41:R67C41 | C46: 63
A47: m_07_08 | B47: =Analysis01_Data!R5C42:R67C42 | C47: 63
A48: m_07_09 | B48: =Analysis01_Data!R5C43:R67C43 | C48: 63
A49: m_07_10 | B49: =Analysis01_Data!R5C44:R67C44 | C49: 63
A50: m_08_01 | B50: =Analysis01_Data!R5C45:R67C45 | C50: 63
A51: m_08_02 | B51: =Analysis01_Data!R5C46:R67C46 | C51: 63
A52: m_08_03 | B52: =Analysis01_Data!R5C47:R67C47 | C52: 63
A53: m_08_04 | B53: =Analysis01_Data!R5C48:R67C48 | C53: 63
A54: m_08_05 | B54: =Analysis01_Data!R5C49:R67C49 | C54: 63
A55: m_08_06 | B55: =Analysis01_Data!R5C50:R67C50 | C55: 63
A56: m_08_07 | B56: =Analysis01_Data!R5C51:R67C51 | C56: 63
A57: m_08_08 | B57: =Analysis01_Data!R5C52:R67C52 | C57: 63
A58: m_08_09 | B58: =Analysis01_Data!R5C53:R67C53 | C58: 63
A59: m_16_01 | B59: =Analysis01_Data!R5C54:R67C54 | C59: 63
A60: m_16_02 | B60: =Analysis01_Data!R5C55:R67C55 | C60: 63
A61: m_16_03 | B61: =Analysis01_Data!R5C56:R67C56 | C61: 63
A62: m_16_04 | B62: =Analysis01_Data!R5C57:R67C57 | C62: 63
A63: m_16_05 | B63: =Analysis01_Data!R5C58:R67C58 | C63: 63
A64: m_16_06 | B64: =Analysis01_Data!R5C59:R67C59 | C64: 63
A65: m_16_07 | B65: =Analysis01_Data!R5C60:R67C60 | C65: 63
A66: m_16_08 | B66: =Analysis01_Data!R5C61:R67C61 | C66: 63
A67: m_16_09 | B67: =Analysis01_Data!R5C62:R67C62 | C67: 63
A68: m_16_10 | B68: =Analysis01_Data!R5C63:R67C63 | C68: 63
A69: m_16_11 | B69: =Analysis01_Data!R5C64:R67C64 | C69: 63
A70: m_16_12 | B70: =Analysis01_Data!R5C65:R67C65 | C70: 63
A71: m_16_13 | B71: =Analysis01_Data!R5C66:R67C66 | C71: 63
A72: m_16_14 | B72: =Analysis01_Data!R5C67:R67C67 | C72: 63
A73: m_16_15 | B73: =Analysis01_Data!R5C68:R67C68 | C73: 63
A74: m_17_00 | B74: =Analysis01_Data!R5C69:R67C69 | C74: 63
A75: m_21_00 | B75: =Analysis01_Data!R5C70:R67C70 | C75: 63
A76: mx_07_01 | B76: =Analysis01_MultipleR_IF!R6C2:R33C2 | C76: 28
A77: mx_07_02 | B77: =Analysis01_MultipleR_IF!R6C3:R33C3 | C77: 28
A78: mx_07_03 | B78: =Analysis01_MultipleR_IF!R6C4:R33C4 | C78: 28
A79: mx_07_04 | B79: =Analysis01_MultipleR_IF!R6C5:R33C5 | C79: 28
A80: mx_07_05 | B80: =Analysis01_MultipleR_IF!R6C6:R33C6 | C80: 28
A81: mx_07_06 | B81: =Analysis01_MultipleR_IF!R6C7:R33C7 | C81: 28
A82: mx_07_07 | B82: =Analysis01_MultipleR_IF!R6C8:R33C8 | C82: 28
A83: mx_07_08 | B83: =Analysis01_MultipleR_IF!R6C9:R33C9 | C83: 28
A84: mx_07_09 | B84: =Analysis01_MultipleR_IF!R6C10:R33C10 | C84: 28
A85: mx_07_10 | B85: =Analysis01_MultipleR_IF!R6C11:R33C11 | C85: 28
A86: mx_allmiss | B86: =Analysis01_MultipleR_IF!R6C12:R33C12 | C86: 28
A87: mx_somemiss | B87: =Analysis01_MultipleR_IF!R6C13:R33C13 | C87: 28
A88: t_00_10 | B88: =Analysis01_Data!R5C9:R67C9 | C88: 63
A89: t_02_01 | B89: =Analysis01_Data!R5C10:R67C10 | C89: 63
A90: t_02_02 | B90: =Analysis01_Data!R5C11:R67C11 | C90: 63
A91: t_02_03 | B91: =Analysis01_Data!R5C12:R67C12 | C91: 63
A92: t_02_04 | B92: =Analysis01_Data!R5C13:R67C13 | C92: 63
A93: t_03_00 | B93: =Analysis01_Data!R5C14:R67C14 | C93: 63
A94: t_04_00 | B94: =Analysis01_Data!R5C15:R67C15 | C94: 63
A95: t_05_00 | B95: =Analysis01_Data!R5C16:R67C16 | C95: 63
A96: t_09_00 | B96: =Analysis01_Data!R5C17:R67C17 | C96: 63
A97: t_10_07 | B97: =Analysis01_Data!R5C18:R67C18 | C97: 63
A98: t_14_00 | B98: =Analysis01_Data!R5C19:R67C19 | C98: 63
A99: t_14_00_code | B99: =Analysis01_Data!R5C120:R67C120 | C99: 63
A100: w_03_01 | B100: =Analysis01_Data!R5C71:R67C71 | C100: 63
A101: w_03_02 | B101: =Analysis01_Data!R5C72:R67C72 | C101: 63
A102: w_03_03 | B102: =Analysis01_Data!R5C73:R67C73 | C102: 63
A103: w_03_04 | B103: =Analysis01_Data!R5C74:R67C74 | C103: 63
A104: w_03_05 | B104: =Analysis01_Data!R5C75:R67C75 | C104: 63
A105: w_03_06 | B105: =Analysis01_Data!R5C76:R67C76 | C105: 63
A106: w_03_07 | B106: =Analysis01_Data!R5C77:R67C77 | C106: 63
A107: w_03_08 | B107: =Analysis01_Data!R5C78:R67C78 | C107: 63
A108: w_03_09 | B108: =Analysis01_Data!R5C79:R67C79 | C108: 63
A109: w_03_10 | B109: =Analysis01_Data!R5C80:R67C80 | C109: 63
A110: w_03_11 | B110: =Analysis01_Data!R5C81:R67C81 | C110: 63
A111: w_03_12 | B111: =Analysis01_Data!R5C82:R67C82 | C111: 63
A112: w_04_02 | B112: =Analysis01_Data!R5C83:R67C83 | C112: 63
A113: w_06_00 | B113: =Analysis01_Data!R5C84:R67C84 | C113: 63
A114: w_09_00 | B114: =Analysis01_Data!R5C85:R67C85 | C114: 63
A115: w_10_00 | B115: =Analysis01_Data!R5C86:R67C86 | C115: 63
A116: w_11_01 | B116: =Analysis01_Data!R5C87:R67C87 | C116: 63
A117: w_11_02 | B117: =Analysis01_Data!R5C88:R67C88 | C117: 63
A118: w_12_00 | B118: =Analysis01_Data!R5C89:R67C89 | C118: 63
A119: w_14_01 | B119: =Analysis01_Data!R5C90:R67C90 | C119: 63
A120: w_14_02 | B120: =Analysis01_Data!R5C91:R67C91 | C120: 63
A121: w_14_03 | B121: =Analysis01_Data!R5C92:R67C92 | C121: 63
A122: w_14_04 | B122: =Analysis01_Data!R5C93:R67C93 | C122: 63
A123: w_14_05 | B123: =Analysis01_Data!R5C94:R67C94 | C123: 63
A124: w_14_06 | B124: =Analysis01_Data!R5C95:R67C95 | C124: 63
A125: w_14_07 | B125: =Analysis01_Data!R5C96:R67C96 | C125: 63
A126: w_14_08 | B126: =Analysis01_Data!R5C97:R67C97 | C126: 63
A127: w_14_09 | B127: =Analysis01_Data!R5C98:R67C98 | C127: 63
A128: w_18_01 | B128: =Analysis01_Data!R5C99:R67C99 | C128: 63
A129: w_18_02 | B129: =Analysis01_Data!R5C100:R67C100 | C129: 63
A130: w_21_00 | B130: =Analysis01_Data!R5C101:R67C101 | C130: 63
A131: w_24_02 | B131: =Analysis01_Data!R5C102:R67C102 | C131: 63
A132: w_25_01 | B132: =Analysis01_Data!R5C103:R67C103 | C132: 63
A133: w_25_02 | B133: =Analysis01_Data!R5C104:R67C104 | C133: 63
A134: w_25_03 | B134: =Analysis01_Data!R5C105:R67C105 | C134: 63
A135: w_25_04 | B135: =Analysis01_Data!R5C106:R67C106 | C135: 63
A136: w_25_05 | B136: =Analysis01_Data!R5C107:R67C107 | C136: 63
A137: w_25_06 | B137: =Analysis01_Data!R5C108:R67C108 | C137: 63
A138: w_26_00 | B138: =Analysis01_Data!R5C109:R67C109 | C138: 63
A139: w_28_01 | B139: =Analysis01_Data!R5C110:R67C110 | C139: 63
A140: w_29_00 | B140: =Analysis01_Data!R5C111:R67C111 | C140: 63
A141: w_30_00 | B141: =Analysis01_Data!R5C112:R67C112 | C141: 63
A142: w_37_01 | B142: =Analysis01_Data!R5C113:R67C113 | C142: 63
A143: w_37_02 | B143: =Analysis01_Data!R5C114:R67C114 | C143: 63
A144: w_37_03 | B144: =Analysis01_Data!R5C115:R67C115 | C144: 63
A145: w_37_04 | B145: =Analysis01_Data!R5C116:R67C116 | C145: 63
A146: w_37_05 | B146: =Analysis01_Data!R5C117:R67C117 | C146: 63
A147: w_37_06 | B147: =Analysis01_Data!R5C118:R67C118 | C147: 63
A148: w_37_07 | B148: =Analysis01_Data!R5C119:R67C119 | C148: 63
